Workbook

Sheet input➡

Sheet 施設コード
A1: 参照する期間 | B1: 集計タイプ | C1: =IF(B2<>"",B2,"集計タイプを選択してください") -> 回答エリア | D1: 都道府県 | E1: 6分類 | F1: 市町村
A2: 4月 | B2: 回答エリア | C2: 福井駅前 エリア | D2: 福井県 | E2: =IFERROR(IF($C$1="回答エリア",VLOOKUP($C2,【M】エリア!$E$2:$H$121,3,FALSE),"▼選択してください。"),"▼選択してください。") -> 福井市・永平寺町 | F2: =IFERROR(IF($C$1="DMO","▼選択してください。",VLOOKUP($C2,【M】エリア!$E$2:$H$121,2,FALSE)),"▼選択してください。") -> 福井市
B21: エリア一覧
B22: ID | C22: QRコード名 | D22: 市町 | E22: =IF($B$2="回答エリア",T(【M】エリア!$H1:$H1),T(【M】エリア!$B1:$B1)) -> DMO（rawデータから自動更新）
B23: =IF($B$2="回答エリア",【M】エリア!$D2,【M】エリア!$A2) -> 01 | C23: =T(IF($B$2="回答エリア",【M】エリア!$E2,"")) -> 福井駅前 エリア | D23: =T(IF($B$2="回答エリア",【M】エリア!$F2,"")) -> 福井市 | E23: =T(IF($B$2="回答エリア",【M】エリア!$H2,【M】エリア!$B2)) -> 
B24: =IF($B$2="回答エリア",【M】エリア!$D3,【M】エリア!$A3) -> 02 | C24: =T(IF($B$2="回答エリア",【M】エリア!$E3,"")) -> 福井駅前 エリア（宿泊施設） | D24: =T(IF($B$2="回答エリア",【M】エリア!$F3,"")) -> 福井市 | E24: =T(IF($B$2="回答エリア",【M】エリア!$H3,【M】エリア!$B3)) -> 
B25: =IF($B$2="回答エリア",【M】エリア!$D4,【M】エリア!$A4) -> 03 | C25: =T(IF($B$2="回答エリア",【M】エリア!$E4,"")) -> 北ノ庄 エリア | D25: =T(IF($B$2="回答エリア",【M】エリア!$F4,"")) -> 福井市 | E25: =T(IF($B$2="回答エリア",【M】エリア!$H4,【M】エリア!$B4)) -> 
B26: =IF($B$2="回答エリア",【M】エリア!$D5,【M】エリア!$A5) -> 04 | C26: =T(IF($B$2="回答エリア",【M】エリア!$E5,"")) -> 名勝 養浩館庭園 エリア | D26: =T(IF($B$2="回答エリア",【M】エリア!$F5,"")) -> 福井市 | E26: =T(IF($B$2="回答エリア",【M】エリア!$H5,【M】エリア!$B5)) -> 
B27: =IF($B$2="回答エリア",【M】エリア!$D6,【M】エリア!$A6) -> 05 | C27: =T(IF($B$2="回答エリア",【M】エリア!$E6,"")) -> ふくい鮮いちば エリア | D27: =T(IF($B$2="回答エリア",【M】エリア!$F6,"")) -> 福井市 | E27: =T(IF($B$2="回答エリア",【M】エリア!$H6,【M】エリア!$B6)) -> 
B28: =IF($B$2="回答エリア",【M】エリア!$D7,【M】エリア!$A7) -> 06 | C28: =T(IF($B$2="回答エリア",【M】エリア!$E7,"")) -> 一乗谷朝倉氏遺跡 エリア | D28: =T(IF($B$2="回答エリア",【M】エリア!$F7,"")) -> 福井市 | E28: =T(IF($B$2="回答エリア",【M】エリア!$H7,【M】エリア!$B7)) -> 
B29: =IF($B$2="回答エリア",【M】エリア!$D8,【M】エリア!$A8) -> 07 | C29: =T(IF($B$2="回答エリア",【M】エリア!$E8,"")) -> 越前海岸 北部 エリア | D29: =T(IF($B$2="回答エリア",【M】エリア!$F8,"")) -> 福井市 | E29: =T(IF($B$2="回答エリア",【M】エリア!$H8,【M】エリア!$B8)) -> 
B30: =IF($B$2="回答エリア",【M】エリア!$D9,【M】エリア!$A9) -> 08 | C30: =T(IF($B$2="回答エリア",【M】エリア!$E9,"")) -> 大安禅寺 エリア | D30: =T(IF($B$2="回答エリア",【M】エリア!$F9,"")) -> 福井市 | E30: =T(IF($B$2="回答エリア",【M】エリア!$H9,【M】エリア!$B9)) -> 
B31: =IF($B$2="回答エリア",【M】エリア!$D10,【M】エリア!$A10) -> 09 | C31: =T(IF($B$2="回答エリア",【M】エリア!$E10,"")) -> 三国湊 エリア | D31: =T(IF($B$2="回答エリア",【M】エリア!$F10,"")) -> 坂井市 | E31: =T(IF($B$2="回答エリア",【M】エリア!$H10,【M】エリア!$B10)) -> (一社)DMOさかい観光局
B32: =IF($B$2="回答エリア",【M】エリア!$D11,【M】エリア!$A11) -> 10 | C32: =T(IF($B$2="回答エリア",【M】エリア!$E11,"")) -> 東尋坊 エリア | D32: =T(IF($B$2="回答エリア",【M】エリア!$F11,"")) -> 坂井市 | E32: =T(IF($B$2="回答エリア",【M】エリア!$H11,【M】エリア!$B11)) -> (一社)DMOさかい観光局
B33: =IF($B$2="回答エリア",【M】エリア!$D12,【M】エリア!$A12) -> 11 | C33: =T(IF($B$2="回答エリア",【M】エリア!$E12,"")) -> 越前松島水族館 エリア | D33: =T(IF($B$2="回答エリア",【M】エリア!$F12,"")) -> 坂井市 | E33: =T(IF($B$2="回答エリア",【M】エリア!$H12,【M】エリア!$B12)) -> (一社)DMOさかい観光局
B34: =IF($B$2="回答エリア",【M】エリア!$D13,【M】エリア!$A13) -> 12 | C34: =T(IF($B$2="回答エリア",【M】エリア!$E13,"")) -> 芝政ワールド エリア | D34: =T(IF($B$2="回答エリア",【M】エリア!$F13,"")) -> 坂井市 | E34: =T(IF($B$2="回答エリア",【M】エリア!$H13,【M】エリア!$B13)) -> (一社)DMOさかい観光局
B35: =IF($B$2="回答エリア",【M】エリア!$D14,【M】エリア!$A14) -> 13 | C35: =T(IF($B$2="回答エリア",【M】エリア!$E14,"")) -> 丸岡城 エリア | D35: =T(IF($B$2="回答エリア",【M】エリア!$F14,"")) -> 坂井市 | E35: =T(IF($B$2="回答エリア",【M】エリア!$H14,【M】エリア!$B14)) -> (一社)DMOさかい観光局
B36: =IF($B$2="回答エリア",【M】エリア!$D15,【M】エリア!$A15) -> 14 | C36: =T(IF($B$2="回答エリア",【M】エリア!$E15,"")) -> 花の駅 ゆりの里公園 エリア | D36: =T(IF($B$2="回答エリア",【M】エリア!$F15,"")) -> 坂井市 | E36: =T(IF($B$2="回答エリア",【M】エリア!$H15,【M】エリア!$B15)) -> (一社)DMOさかい観光局
B37: =IF($B$2="回答エリア",【M】エリア!$D16,【M】エリア!$A16) -> 15 | C37: =T(IF($B$2="回答エリア",【M】エリア!$E16,"")) -> 道の駅みくに ふれあいパーク三里浜 エリア | D37: =T(IF($B$2="回答エリア",【M】エリア!$F16,"")) -> 坂井市 | E37: =T(IF($B$2="回答エリア",【M】エリア!$H16,【M】エリア!$B16)) -> (一社)DMOさかい観光局
B38: =IF($B$2="回答エリア",【M】エリア!$D17,【M】エリア!$A17) -> 16 | C38: =T(IF($B$2="回答エリア",【M】エリア!$E17,"")) -> JR芦原温泉駅 エリア | D38: =T(IF($B$2="回答エリア",【M】エリア!$F17,"")) -> あわら市 | E38: =T(IF($B$2="回答エリア",【M】エリア!$H17,【M】エリア!$B17)) -> 
B39: =IF($B$2="回答エリア",【M】エリア!$D18,【M】エリア!$A18) -> 17 | C39: =T(IF($B$2="回答エリア",【M】エリア!$E18,"")) -> あわら湯のまち エリア | D39: =T(IF($B$2="回答エリア",【M】エリア!$F18,"")) -> あわら市 | E39: =T(IF($B$2="回答エリア",【M】エリア!$H18,【M】エリア!$B18)) -> 
B40: =IF($B$2="回答エリア",【M】エリア!$D19,【M】エリア!$A19) -> 18 | C40: =T(IF($B$2="回答エリア",【M】エリア!$E19,"")) -> フルーツライン エリア | D40: =T(IF($B$2="回答エリア",【M】エリア!$F19,"")) -> あわら市 | E40: =T(IF($B$2="回答エリア",【M】エリア!$H19,【M】エリア!$B19)) -> 
B41: =IF($B$2="回答エリア",【M】エリア!$D20,【M】エリア!$A20) -> 19 | C41: =T(IF($B$2="回答エリア",【M】エリア!$E20,"")) -> 波松 エリア | D41: =T(IF($B$2="回答エリア",【M】エリア!$F20,"")) -> あわら市 | E41: =T(IF($B$2="回答エリア",【M】エリア!$H20,【M】エリア!$B20)) -> 
B42: =IF($B$2="回答エリア",【M】エリア!$D21,【M】エリア!$A21) -> 20 | C42: =T(IF($B$2="回答エリア",【M】エリア!$E21,"")) -> 北潟湖 エリア | D42: =T(IF($B$2="回答エリア",【M】エリア!$F21,"")) -> あわら市 | E42: =T(IF($B$2="回答エリア",【M】エリア!$H21,【M】エリア!$B21)) -> 
B43: =IF($B$2="回答エリア",【M】エリア!$D22,【M】エリア!$A22) -> 21 | C43: =T(IF($B$2="回答エリア",【M】エリア!$E22,"")) -> 越前大野城・城下町 エリア | D43: =T(IF($B$2="回答エリア",【M】エリア!$F22,"")) -> 大野市 | E43: =T(IF($B$2="回答エリア",【M】エリア!$H22,【M】エリア!$B22)) -> 
B44: =IF($B$2="回答エリア",【M】エリア!$D23,【M】エリア!$A23) -> 22 | C44: =T(IF($B$2="回答エリア",【M】エリア!$E23,"")) -> 道の駅「越前おおの荒島の郷」 エリア | D44: =T(IF($B$2="回答エリア",【M】エリア!$F23,"")) -> 大野市 | E44: =T(IF($B$2="回答エリア",【M】エリア!$H23,【M】エリア!$B23)) -> 
B45: =IF($B$2="回答エリア",【M】エリア!$D24,【M】エリア!$A24) -> 23 | C45: =T(IF($B$2="回答エリア",【M】エリア!$E24,"")) -> JR九頭竜湖駅 エリア | D45: =T(IF($B$2="回答エリア",【M】エリア!$F24,"")) -> 大野市 | E45: =T(IF($B$2="回答エリア",【M】エリア!$H24,【M】エリア!$B24)) -> 
B46: =IF($B$2="回答エリア",【M】エリア!$D25,【M】エリア!$A25) -> 24 | C46: =T(IF($B$2="回答エリア",【M】エリア!$E25,"")) -> 六呂師高原 エリア | D46: =T(IF($B$2="回答エリア",【M】エリア!$F25,"")) -> 大野市 | E46: =T(IF($B$2="回答エリア",【M】エリア!$H25,【M】エリア!$B25)) -> 
B47: =IF($B$2="回答エリア",【M】エリア!$D26,【M】エリア!$A26) -> 25 | C47: =T(IF($B$2="回答エリア",【M】エリア!$E26,"")) -> かつやま恐竜の森 エリア | D47: =T(IF($B$2="回答エリア",【M】エリア!$F26,"")) -> 勝山市 | E47: =T(IF($B$2="回答エリア",【M】エリア!$H26,【M】エリア!$B26)) -> 勝山市観光まちづくり(株)
B48: =IF($B$2="回答エリア",【M】エリア!$D27,【M】エリア!$A27) -> 26 | C48: =T(IF($B$2="回答エリア",【M】エリア!$E27,"")) -> 道の駅「恐竜渓谷かつやま」 エリア | D48: =T(IF($B$2="回答エリア",【M】エリア!$F27,"")) -> 勝山市 | E48: =T(IF($B$2="回答エリア",【M】エリア!$H27,【M】エリア!$B27)) -> 勝山市観光まちづくり(株)
B49: =IF($B$2="回答エリア",【M】エリア!$D28,【M】エリア!$A28) -> 28 | C49: =T(IF($B$2="回答エリア",【M】エリア!$E28,"")) -> 越前大仏 エリア | D49: =T(IF($B$2="回答エリア",【M】エリア!$F28,"")) -> 勝山市 | E49: =T(IF($B$2="回答エリア",【M】エリア!$H28,【M】エリア!$B28)) -> 勝山市観光まちづくり(株)
B50: =IF($B$2="回答エリア",【M】エリア!$D29,【M】エリア!$A29) -> 29 | C50: =T(IF($B$2="回答エリア",【M】エリア!$E29,"")) -> 平泉寺白山神社 エリア | D50: =T(IF($B$2="回答エリア",【M】エリア!$F29,"")) -> 勝山市 | E50: =T(IF($B$2="回答エリア",【M】エリア!$H29,【M】エリア!$B29)) -> 勝山市観光まちづくり(株)
B51: =IF($B$2="回答エリア",【M】エリア!$D30,【M】エリア!$A30) -> 30 | C51: =T(IF($B$2="回答エリア",【M】エリア!$E30,"")) -> はたや記念館 ゆめおーれ勝山 エリア | D51: =T(IF($B$2="回答エリア",【M】エリア!$F30,"")) -> 勝山市 | E51: =T(IF($B$2="回答エリア",【M】エリア!$H30,【M】エリア!$B30)) -> 勝山市観光まちづくり(株)
B52: =IF($B$2="回答エリア",【M】エリア!$D31,【M】エリア!$A31) -> 31 | C52: =T(IF($B$2="回答エリア",【M】エリア!$E31,"")) -> えちぜん鉄道 永平寺口駅 エリア | D52: =T(IF($B$2="回答エリア",【M】エリア!$F31,"")) -> 永平寺町 | E52: =T(IF($B$2="回答エリア",【M】エリア!$H31,【M】エリア!$B31)) -> 
B53: =IF($B$2="回答エリア",【M】エリア!$D32,【M】エリア!$A32) -> 33 | C53: =T(IF($B$2="回答エリア",【M】エリア!$E32,"")) -> えちぜん鉄道 松岡駅 エリア | D53: =T(IF($B$2="回答エリア",【M】エリア!$F32,"")) -> 永平寺町 | E53: =T(IF($B$2="回答エリア",【M】エリア!$H32,【M】エリア!$B32)) -> 
B54: =IF($B$2="回答エリア",【M】エリア!$D33,【M】エリア!$A33) -> 34 | C54: =T(IF($B$2="回答エリア",【M】エリア!$E33,"")) -> 大本山 永平寺 エリア | D54: =T(IF($B$2="回答エリア",【M】エリア!$F33,"")) -> 永平寺町 | E54: =T(IF($B$2="回答エリア",【M】エリア!$H33,【M】エリア!$B33)) -> 
B55: =IF($B$2="回答エリア",【M】エリア!$D34,【M】エリア!$A34) -> 35 | C55: =T(IF($B$2="回答エリア",【M】エリア!$E34,"")) -> 道の駅「禅の里」 エリア | D55: =T(IF($B$2="回答エリア",【M】エリア!$F34,"")) -> 永平寺町 | E55: =T(IF($B$2="回答エリア",【M】エリア!$H34,【M】エリア!$B34)) -> 
B56: =IF($B$2="回答エリア",【M】エリア!$D35,【M】エリア!$A35) -> 37 | C56: =T(IF($B$2="回答エリア",【M】エリア!$E35,"")) -> 越前そばの里 エリア | D56: =T(IF($B$2="回答エリア",【M】エリア!$F35,"")) -> 越前市 | E56: =T(IF($B$2="回答エリア",【M】エリア!$H35,【M】エリア!$B35)) -> 
B57: =IF($B$2="回答エリア",【M】エリア!$D36,【M】エリア!$A36) -> 38 | C57: =T(IF($B$2="回答エリア",【M】エリア!$E36,"")) -> 北陸新幹線 越前たけふ駅 エリア | D57: =T(IF($B$2="回答エリア",【M】エリア!$F36,"")) -> 越前市 | E57: =T(IF($B$2="回答エリア",【M】エリア!$H36,【M】エリア!$B36)) -> 
B58: =IF($B$2="回答エリア",【M】エリア!$D37,【M】エリア!$A37) -> 39 | C58: =T(IF($B$2="回答エリア",【M】エリア!$E37,"")) -> タケフナイフビレッジ エリア | D58: =T(IF($B$2="回答エリア",【M】エリア!$F37,"")) -> 越前市 | E58: =T(IF($B$2="回答エリア",【M】エリア!$H37,【M】エリア!$B37)) -> 
B59: =IF($B$2="回答エリア",【M】エリア!$D38,【M】エリア!$A38) -> 40 | C59: =T(IF($B$2="回答エリア",【M】エリア!$E38,"")) -> 武生駅 エリア | D59: =T(IF($B$2="回答エリア",【M】エリア!$F38,"")) -> 越前市 | E59: =T(IF($B$2="回答エリア",【M】エリア!$H38,【M】エリア!$B38)) -> 
B60: =IF($B$2="回答エリア",【M】エリア!$D39,【M】エリア!$A39) -> 41 | C60: =T(IF($B$2="回答エリア",【M】エリア!$E39,"")) -> 紫式部公園 エリア | D60: =T(IF($B$2="回答エリア",【M】エリア!$F39,"")) -> 越前市 | E60: =T(IF($B$2="回答エリア",【M】エリア!$H39,【M】エリア!$B39)) -> 
B61: =IF($B$2="回答エリア",【M】エリア!$D40,【M】エリア!$A40) -> 42 | C61: =T(IF($B$2="回答エリア",【M】エリア!$E40,"")) -> だるまちゃん広場 エリア | D61: =T(IF($B$2="回答エリア",【M】エリア!$F40,"")) -> 越前市 | E61: =T(IF($B$2="回答エリア",【M】エリア!$H40,【M】エリア!$B40)) -> 
B62: =IF($B$2="回答エリア",【M】エリア!$D41,【M】エリア!$A41) -> 44 | C62: =T(IF($B$2="回答エリア",【M】エリア!$E41,"")) -> 道の駅「西山公園」 エリア | D62: =T(IF($B$2="回答エリア",【M】エリア!$F41,"")) -> 鯖江市 | E62: =T(IF($B$2="回答エリア",【M】エリア!$H41,【M】エリア!$B41)) -> 
B63: =IF($B$2="回答エリア",【M】エリア!$D42,【M】エリア!$A42) -> 45 | C63: =T(IF($B$2="回答エリア",【M】エリア!$E42,"")) -> メガネストリート エリア | D63: =T(IF($B$2="回答エリア",【M】エリア!$F42,"")) -> 鯖江市 | E63: =T(IF($B$2="回答エリア",【M】エリア!$H42,【M】エリア!$B42)) -> 
B64: =IF($B$2="回答エリア",【M】エリア!$D43,【M】エリア!$A43) -> 46 | C64: =T(IF($B$2="回答エリア",【M】エリア!$E43,"")) -> うるしの里 エリア | D64: =T(IF($B$2="回答エリア",【M】エリア!$F43,"")) -> 鯖江市 | E64: =T(IF($B$2="回答エリア",【M】エリア!$H43,【M】エリア!$B43)) -> 
B65: =IF($B$2="回答エリア",【M】エリア!$D44,【M】エリア!$A44) -> 47 | C65: =T(IF($B$2="回答エリア",【M】エリア!$E44,"")) -> まちの駅 こってコテいけだ エリア | D65: =T(IF($B$2="回答エリア",【M】エリア!$F44,"")) -> 池田町 | E65: =T(IF($B$2="回答エリア",【M】エリア!$H44,【M】エリア!$B44)) -> （一財）いけだ農村観光公社
B66: =IF($B$2="回答エリア",【M】エリア!$D45,【M】エリア!$A45) -> 48 | C66: =T(IF($B$2="回答エリア",【M】エリア!$E45,"")) -> かずら橋 エリア | D66: =T(IF($B$2="回答エリア",【M】エリア!$F45,"")) -> 池田町 | E66: =T(IF($B$2="回答エリア",【M】エリア!$H45,【M】エリア!$B45)) -> （一財）いけだ農村観光公社
B67: =IF($B$2="回答エリア",【M】エリア!$D46,【M】エリア!$A46) -> 49 | C67: =T(IF($B$2="回答エリア",【M】エリア!$E46,"")) -> 道の駅「越前」 エリア | D67: =T(IF($B$2="回答エリア",【M】エリア!$F46,"")) -> 越前町 | E67: =T(IF($B$2="回答エリア",【M】エリア!$H46,【M】エリア!$B46)) -> 一般社団法人 越前町観光連盟（DMO ECHIZEN）
B68: =IF($B$2="回答エリア",【M】エリア!$D47,【M】エリア!$A47) -> 50 | C68: =T(IF($B$2="回答エリア",【M】エリア!$E47,"")) -> 道の駅「パークイン丹生ヶ丘」 エリア | D68: =T(IF($B$2="回答エリア",【M】エリア!$F47,"")) -> 越前町 | E68: =T(IF($B$2="回答エリア",【M】エリア!$H47,【M】エリア!$B47)) -> 一般社団法人 越前町観光連盟（DMO ECHIZEN）
B69: =IF($B$2="回答エリア",【M】エリア!$D48,【M】エリア!$A48) -> 51 | C69: =T(IF($B$2="回答エリア",【M】エリア!$E48,"")) -> 劔神社 エリア | D69: =T(IF($B$2="回答エリア",【M】エリア!$F48,"")) -> 越前町 | E69: =T(IF($B$2="回答エリア",【M】エリア!$H48,【M】エリア!$B48)) -> 一般社団法人 越前町観光連盟（DMO ECHIZEN）
B70: =IF($B$2="回答エリア",【M】エリア!$D49,【M】エリア!$A49) -> 52 | C70: =T(IF($B$2="回答エリア",【M】エリア!$E49,"")) -> 越前陶芸村 エリア | D70: =T(IF($B$2="回答エリア",【M】エリア!$F49,"")) -> 越前町 | E70: =T(IF($B$2="回答エリア",【M】エリア!$H49,【M】エリア!$B49)) -> 一般社団法人 越前町観光連盟（DMO ECHIZEN）
B71: =IF($B$2="回答エリア",【M】エリア!$D50,【M】エリア!$A50) -> 53 | C71: =T(IF($B$2="回答エリア",【M】エリア!$E50,"")) -> 越前海岸 越前岬 エリア | D71: =T(IF($B$2="回答エリア",【M】エリア!$F50,"")) -> 越前町 | E71: =T(IF($B$2="回答エリア",【M】エリア!$H50,【M】エリア!$B50)) -> 一般社団法人 越前町観光連盟（DMO ECHIZEN）
B72: =IF($B$2="回答エリア",【M】エリア!$D51,【M】エリア!$A51) -> 54 | C72: =T(IF($B$2="回答エリア",【M】エリア!$E51,"")) -> 越前漁港 エリア | D72: =T(IF($B$2="回答エリア",【M】エリア!$F51,"")) -> 越前町 | E72: =T(IF($B$2="回答エリア",【M】エリア!$H51,【M】エリア!$B51)) -> 一般社団法人 越前町観光連盟（DMO ECHIZEN）
B73: =IF($B$2="回答エリア",【M】エリア!$D52,【M】エリア!$A52) -> 56 | C73: =T(IF($B$2="回答エリア",【M】エリア!$E52,"")) -> 越前海岸 高佐米ノ旅館街 エリア | D73: =T(IF($B$2="回答エリア",【M】エリア!$F52,"")) -> 越前町 | E73: =T(IF($B$2="回答エリア",【M】エリア!$H52,【M】エリア!$B52)) -> 一般社団法人 越前町観光連盟（DMO ECHIZEN）
B74: =IF($B$2="回答エリア",【M】エリア!$D53,【M】エリア!$A53) -> 57 | C74: =T(IF($B$2="回答エリア",【M】エリア!$E53,"")) -> 越前海岸 くりや旅館街 エリア | D74: =T(IF($B$2="回答エリア",【M】エリア!$F53,"")) -> 越前町 | E74: =T(IF($B$2="回答エリア",【M】エリア!$H53,【M】エリア!$B53)) -> 一般社団法人 越前町観光連盟（DMO ECHIZEN）
B75: =IF($B$2="回答エリア",【M】エリア!$D54,【M】エリア!$A54) -> 58 | C75: =T(IF($B$2="回答エリア",【M】エリア!$E54,"")) -> 道の駅「南えちぜん山海里」 エリア | D75: =T(IF($B$2="回答エリア",【M】エリア!$F54,"")) -> 南越前町 | E75: =T(IF($B$2="回答エリア",【M】エリア!$H54,【M】エリア!$B54)) -> 
B76: =IF($B$2="回答エリア",【M】エリア!$D55,【M】エリア!$A55) -> 59 | C76: =T(IF($B$2="回答エリア",【M】エリア!$E55,"")) -> 河野北前船主通りエリア | D76: =T(IF($B$2="回答エリア",【M】エリア!$F55,"")) -> 南越前町 | E76: =T(IF($B$2="回答エリア",【M】エリア!$H55,【M】エリア!$B55)) -> 
B77: =IF($B$2="回答エリア",【M】エリア!$D56,【M】エリア!$A56) -> 60 | C77: =T(IF($B$2="回答エリア",【M】エリア!$E56,"")) -> 今庄宿 エリア | D77: =T(IF($B$2="回答エリア",【M】エリア!$F56,"")) -> 南越前町 | E77: =T(IF($B$2="回答エリア",【M】エリア!$H56,【M】エリア!$B56)) -> 
B78: =IF($B$2="回答エリア",【M】エリア!$D57,【M】エリア!$A57) -> 61 | C78: =T(IF($B$2="回答エリア",【M】エリア!$E57,"")) -> 日本海さかな街 エリア | D78: =T(IF($B$2="回答エリア",【M】エリア!$F57,"")) -> 敦賀市 | E78: =T(IF($B$2="回答エリア",【M】エリア!$H57,【M】エリア!$B57)) -> 
B79: =IF($B$2="回答エリア",【M】エリア!$D58,【M】エリア!$A58) -> 62 | C79: =T(IF($B$2="回答エリア",【M】エリア!$E58,"")) -> 神楽通り エリア | D79: =T(IF($B$2="回答エリア",【M】エリア!$F58,"")) -> 敦賀市 | E79: =T(IF($B$2="回答エリア",【M】エリア!$H58,【M】エリア!$B58)) -> 
B80: =IF($B$2="回答エリア",【M】エリア!$D59,【M】エリア!$A59) -> 63 | C80: =T(IF($B$2="回答エリア",【M】エリア!$E59,"")) -> JR敦賀駅前 エリア | D80: =T(IF($B$2="回答エリア",【M】エリア!$F59,"")) -> 敦賀市 | E80: =T(IF($B$2="回答エリア",【M】エリア!$H59,【M】エリア!$B59)) -> 
B81: =IF($B$2="回答エリア",【M】エリア!$D60,【M】エリア!$A60) -> 64 | C81: =T(IF($B$2="回答エリア",【M】エリア!$E60,"")) -> 金ヶ崎 エリア | D81: =T(IF($B$2="回答エリア",【M】エリア!$F60,"")) -> 敦賀市 | E81: =T(IF($B$2="回答エリア",【M】エリア!$H60,【M】エリア!$B60)) -> 
B82: =IF($B$2="回答エリア",【M】エリア!$D61,【M】エリア!$A61) -> 65 | C82: =T(IF($B$2="回答エリア",【M】エリア!$E61,"")) -> 敦賀市立博物館 エリア | D82: =T(IF($B$2="回答エリア",【M】エリア!$F61,"")) -> 敦賀市 | E82: =T(IF($B$2="回答エリア",【M】エリア!$H61,【M】エリア!$B61)) -> 
B83: =IF($B$2="回答エリア",【M】エリア!$D62,【M】エリア!$A62) -> 67 | C83: =T(IF($B$2="回答エリア",【M】エリア!$E62,"")) -> 小浜市 阿納 エリア | D83: =T(IF($B$2="回答エリア",【M】エリア!$F62,"")) -> 小浜市 | E83: =T(IF($B$2="回答エリア",【M】エリア!$H62,【M】エリア!$B62)) -> (株)まちづくり小浜
B84: =IF($B$2="回答エリア",【M】エリア!$D63,【M】エリア!$A63) -> 68 | C84: =T(IF($B$2="回答エリア",【M】エリア!$E63,"")) -> 道の駅「若狭おばま」 エリア | D84: =T(IF($B$2="回答エリア",【M】エリア!$F63,"")) -> 小浜市 | E84: =T(IF($B$2="回答エリア",【M】エリア!$H63,【M】エリア!$B63)) -> (株)まちづくり小浜
B85: =IF($B$2="回答エリア",【M】エリア!$D64,【M】エリア!$A64) -> 69 | C85: =T(IF($B$2="回答エリア",【M】エリア!$E64,"")) -> 小浜 エリア（宿泊施設） | D85: =T(IF($B$2="回答エリア",【M】エリア!$F64,"")) -> 小浜市 | E85: =T(IF($B$2="回答エリア",【M】エリア!$H64,【M】エリア!$B64)) -> (株)まちづくり小浜
B86: =IF($B$2="回答エリア",【M】エリア!$D65,【M】エリア!$A65) -> 70 | C86: =T(IF($B$2="回答エリア",【M】エリア!$E65,"")) -> 若狭フィッシャーマンズワーフ エリア | D86: =T(IF($B$2="回答エリア",【M】エリア!$F65,"")) -> 小浜市 | E86: =T(IF($B$2="回答エリア",【M】エリア!$H65,【M】エリア!$B65)) -> (株)まちづくり小浜
B87: =IF($B$2="回答エリア",【M】エリア!$D66,【M】エリア!$A66) -> 71 | C87: =T(IF($B$2="回答エリア",【M】エリア!$E66,"")) -> 御食国若狭おばま食文化館 エリア | D87: =T(IF($B$2="回答エリア",【M】エリア!$F66,"")) -> 小浜市 | E87: =T(IF($B$2="回答エリア",【M】エリア!$H66,【M】エリア!$B66)) -> (株)まちづくり小浜
B88: =IF($B$2="回答エリア",【M】エリア!$D67,【M】エリア!$A67) -> 72 | C88: =T(IF($B$2="回答エリア",【M】エリア!$E67,"")) -> 小浜市まちの駅 エリア | D88: =T(IF($B$2="回答エリア",【M】エリア!$F67,"")) -> 小浜市 | E88: =T(IF($B$2="回答エリア",【M】エリア!$H67,【M】エリア!$B67)) -> (株)まちづくり小浜
B89: =IF($B$2="回答エリア",【M】エリア!$D68,【M】エリア!$A68) -> 73 | C89: =T(IF($B$2="回答エリア",【M】エリア!$E68,"")) -> 明通寺 エリア | D89: =T(IF($B$2="回答エリア",【M】エリア!$F68,"")) -> 小浜市 | E89: =T(IF($B$2="回答エリア",【M】エリア!$H68,【M】エリア!$B68)) -> (株)まちづくり小浜
B90: =IF($B$2="回答エリア",【M】エリア!$D69,【M】エリア!$A69) -> 74 | C90: =T(IF($B$2="回答エリア",【M】エリア!$E69,"")) -> 箸のふるさと館WAKASA エリア | D90: =T(IF($B$2="回答エリア",【M】エリア!$F69,"")) -> 小浜市 | E90: =T(IF($B$2="回答エリア",【M】エリア!$H69,【M】エリア!$B69)) -> (株)まちづくり小浜
B91: =IF($B$2="回答エリア",【M】エリア!$D70,【M】エリア!$A70) -> 75 | C91: =T(IF($B$2="回答エリア",【M】エリア!$E70,"")) -> 三方五湖ネイチャークルーズ エリア | D91: =T(IF($B$2="回答エリア",【M】エリア!$F70,"")) -> 美浜町 | E91: =T(IF($B$2="回答エリア",【M】エリア!$H70,【M】エリア!$B70)) -> 三方五湖DMO(株)
B92: =IF($B$2="回答エリア",【M】エリア!$D71,【M】エリア!$A71) -> 77 | C92: =T(IF($B$2="回答エリア",【M】エリア!$E71,"")) -> レインボーライン エリア | D92: =T(IF($B$2="回答エリア",【M】エリア!$F71,"")) -> 美浜町 | E92: =T(IF($B$2="回答エリア",【M】エリア!$H71,【M】エリア!$B71)) -> 三方五湖DMO(株)
B93: =IF($B$2="回答エリア",【M】エリア!$D72,【M】エリア!$A72) -> 79 | C93: =T(IF($B$2="回答エリア",【M】エリア!$E72,"")) -> JR美浜駅 エリア | D93: =T(IF($B$2="回答エリア",【M】エリア!$F72,"")) -> 美浜町 | E93: =T(IF($B$2="回答エリア",【M】エリア!$H72,【M】エリア!$B72)) -> 三方五湖DMO(株)
B94: =IF($B$2="回答エリア",【M】エリア!$D73,【M】エリア!$A73) -> 81 | C94: =T(IF($B$2="回答エリア",【M】エリア!$E73,"")) -> 熊川宿 エリア | D94: =T(IF($B$2="回答エリア",【M】エリア!$F73,"")) -> 若狭町 | E94: =T(IF($B$2="回答エリア",【M】エリア!$H73,【M】エリア!$B73)) -> 三方五湖DMO(株)
B95: =IF($B$2="回答エリア",【M】エリア!$D74,【M】エリア!$A74) -> 82 | C95: =T(IF($B$2="回答エリア",【M】エリア!$E74,"")) -> 湖上館パムコ（水月湖）エリア | D95: =T(IF($B$2="回答エリア",【M】エリア!$F74,"")) -> 若狭町 | E95: =T(IF($B$2="回答エリア",【M】エリア!$H74,【M】エリア!$B74)) -> 三方五湖DMO(株)
B96: =IF($B$2="回答エリア",【M】エリア!$D75,【M】エリア!$A75) -> 83 | C96: =T(IF($B$2="回答エリア",【M】エリア!$E75,"")) -> 道の駅「三方五湖」 エリア | D96: =T(IF($B$2="回答エリア",【M】エリア!$F75,"")) -> 若狭町 | E96: =T(IF($B$2="回答エリア",【M】エリア!$H75,【M】エリア!$B75)) -> 三方五湖DMO(株)
B97: =IF($B$2="回答エリア",【M】エリア!$D76,【M】エリア!$A76) -> 84 | C97: =T(IF($B$2="回答エリア",【M】エリア!$E76,"")) -> うみんぴあ大飯 エリア | D97: =T(IF($B$2="回答エリア",【M】エリア!$F76,"")) -> おおい町 | E97: =T(IF($B$2="回答エリア",【M】エリア!$H76,【M】エリア!$B76)) -> 
B98: =IF($B$2="回答エリア",【M】エリア!$D77,【M】エリア!$A77) -> 85 | C98: =T(IF($B$2="回答エリア",【M】エリア!$E77,"")) -> 若州一滴文庫 エリア | D98: =T(IF($B$2="回答エリア",【M】エリア!$F77,"")) -> おおい町 | E98: =T(IF($B$2="回答エリア",【M】エリア!$H77,【M】エリア!$B77)) -> 
B99: =IF($B$2="回答エリア",【M】エリア!$D78,【M】エリア!$A78) -> 86 | C99: =T(IF($B$2="回答エリア",【M】エリア!$E78,"")) -> 名田庄 エリア | D99: =T(IF($B$2="回答エリア",【M】エリア!$F78,"")) -> おおい町 | E99: =T(IF($B$2="回答エリア",【M】エリア!$H78,【M】エリア!$B78)) -> 
B100: =IF($B$2="回答エリア",【M】エリア!$D79,【M】エリア!$A79) -> 87 | C100: =T(IF($B$2="回答エリア",【M】エリア!$E79,"")) -> 赤礁崎オートキャンプ場 エリア | D100: =T(IF($B$2="回答エリア",【M】エリア!$F79,"")) -> おおい町 | E100: =T(IF($B$2="回答エリア",【M】エリア!$H79,【M】エリア!$B79)) -> 
B101: =IF($B$2="回答エリア",【M】エリア!$D80,【M】エリア!$A80) -> 89 | C101: =T(IF($B$2="回答エリア",【M】エリア!$E80,"")) -> 若狭和田 エリア | D101: =T(IF($B$2="回答エリア",【M】エリア!$F80,"")) -> 高浜町 | E101: =T(IF($B$2="回答エリア",【M】エリア!$H80,【M】エリア!$B80)) -> 
B102: =IF($B$2="回答エリア",【M】エリア!$D81,【M】エリア!$A81) -> 90 | C102: =T(IF($B$2="回答エリア",【M】エリア!$E81,"")) -> 若狭高浜 エリア | D102: =T(IF($B$2="回答エリア",【M】エリア!$F81,"")) -> 高浜町 | E102: =T(IF($B$2="回答エリア",【M】エリア!$H81,【M】エリア!$B81)) -> 
B103: =IF($B$2="回答エリア",【M】エリア!$D82,【M】エリア!$A82) -> 91 | C103: =T(IF($B$2="回答エリア",【M】エリア!$E82,"")) -> 竹田エリア | D103: =T(IF($B$2="回答エリア",【M】エリア!$F82,"")) -> 坂井市 | E103: =T(IF($B$2="回答エリア",【M】エリア!$H82,【M】エリア!$B82)) -> (一社)DMOさかい観光局
B104: =IF($B$2="回答エリア",【M】エリア!$D83,【M】エリア!$A83) -> 94 | C104: =T(IF($B$2="回答エリア",【M】エリア!$E83,"")) -> 青葉山ハーバルビレッジ エリア | D104: =T(IF($B$2="回答エリア",【M】エリア!$F83,"")) -> 高浜町 | E104: =T(IF($B$2="回答エリア",【M】エリア!$H83,【M】エリア!$B83)) -> 
B105: =IF($B$2="回答エリア",【M】エリア!$D84,【M】エリア!$A84) -> 0 | C105: =T(IF($B$2="回答エリア",【M】エリア!$E84,"")) ->  | D105: =T(IF($B$2="回答エリア",【M】エリア!$F84,"")) ->  | E105: =T(IF($B$2="回答エリア",【M】エリア!$H84,【M】エリア!$B84)) -> 
B106: =IF($B$2="回答エリア",【M】エリア!$D85,【M】エリア!$A85) -> 0 | C106: =T(IF($B$2="回答エリア",【M】エリア!$E85,"")) ->  | D106: =T(IF($B$2="回答エリア",【M】エリア!$F85,"")) ->  | E106: =T(IF($B$2="回答エリア",【M】エリア!$H85,【M】エリア!$B85)) -> 
B107: =IF($B$2="回答エリア",【M】エリア!$D86,【M】エリア!$A86) -> 0 | C107: =T(IF($B$2="回答エリア",【M】エリア!$E86,"")) ->  | D107: =T(IF($B$2="回答エリア",【M】エリア!$F86,"")) ->  | E107: =T(IF($B$2="回答エリア",【M】エリア!$H86,【M】エリア!$B86)) -> 
B108: =IF($B$2="回答エリア",【M】エリア!$D87,【M】エリア!$A87) -> 0 | C108: =T(IF($B$2="回答エリア",【M】エリア!$E87,"")) ->  | D108: =T(IF($B$2="回答エリア",【M】エリア!$F87,"")) ->  | E108: =T(IF($B$2="回答エリア",【M】エリア!$H87,【M】エリア!$B87)) -> 
B109: =IF($B$2="回答エリア",【M】エリア!$D88,【M】エリア!$A88) -> 0 | C109: =T(IF($B$2="回答エリア",【M】エリア!$E88,"")) ->  | D109: =T(IF($B$2="回答エリア",【M】エリア!$F88,"")) ->  | E109: =T(IF($B$2="回答エリア",【M】エリア!$H88,【M】エリア!$B88)) -> 
B110: =IF($B$2="回答エリア",【M】エリア!$D89,【M】エリア!$A89) -> 0 | C110: =T(IF($B$2="回答エリア",【M】エリア!$E89,"")) ->  | D110: =T(IF($B$2="回答エリア",【M】エリア!$F89,"")) ->  | E110: =T(IF($B$2="回答エリア",【M】エリア!$H89,【M】エリア!$B89)) -> 
B111: =IF($B$2="回答エリア",【M】エリア!$D90,【M】エリア!$A90) -> 0 | C111: =T(IF($B$2="回答エリア",【M】エリア!$E90,"")) ->  | D111: =T(IF($B$2="回答エリア",【M】エリア!$F90,"")) ->  | E111: =T(IF($B$2="回答エリア",【M】エリア!$H90,【M】エリア!$B90)) -> 
B112: =IF($B$2="回答エリア",【M】エリア!$D91,【M】エリア!$A91) -> 0 | C112: =T(IF($B$2="回答エリア",【M】エリア!$E91,"")) ->  | D112: =T(IF($B$2="回答エリア",【M】エリア!$F91,"")) ->  | E112: =T(IF($B$2="回答エリア",【M】エリア!$H91,【M】エリア!$B91)) -> 
B113: =IF($B$2="回答エリア",【M】エリア!$D92,【M】エリア!$A92) -> 0 | C113: =T(IF($B$2="回答エリア",【M】エリア!$E92,"")) ->  | D113: =T(IF($B$2="回答エリア",【M】エリア!$F92,"")) ->  | E113: =T(IF($B$2="回答エリア",【M】エリア!$H92,【M】エリア!$B92)) -> 
B114: =IF($B$2="回答エリア",【M】エリア!$D93,【M】エリア!$A93) -> 0 | C114: =T(IF($B$2="回答エリア",【M】エリア!$E93,"")) ->  | D114: =T(IF($B$2="回答エリア",【M】エリア!$F93,"")) ->  | E114: =T(IF($B$2="回答エリア",【M】エリア!$H93,【M】エリア!$B93)) -> 
B115: =IF($B$2="回答エリア",【M】エリア!$D94,【M】エリア!$A94) -> 0 | C115: =T(IF($B$2="回答エリア",【M】エリア!$E94,"")) ->  | D115: =T(IF($B$2="回答エリア",【M】エリア!$F94,"")) ->  | E115: =T(IF($B$2="回答エリア",【M】エリア!$H94,【M】エリア!$B94)) -> 
B116: =IF($B$2="回答エリア",【M】エリア!$D95,【M】エリア!$A95) -> 0 | C116: =T(IF($B$2="回答エリア",【M】エリア!$E95,"")) ->  | D116: =T(IF($B$2="回答エリア",【M】エリア!$F95,"")) ->  | E116: =T(IF($B$2="回答エリア",【M】エリア!$H95,【M】エリア!$B95)) -> 
B117: =IF($B$2="回答エリア",【M】エリア!$D96,【M】エリア!$A96) -> 0 | C117: =T(IF($B$2="回答エリア",【M】エリア!$E96,"")) ->  | D117: =T(IF($B$2="回答エリア",【M】エリア!$F96,"")) ->  | E117: =T(IF($B$2="回答エリア",【M】エリア!$H96,【M】エリア!$B96)) -> 
B118: =IF($B$2="回答エリア",【M】エリア!$D97,【M】エリア!$A97) -> 0 | C118: =T(IF($B$2="回答エリア",【M】エリア!$E97,"")) ->  | D118: =T(IF($B$2="回答エリア",【M】エリア!$F97,"")) ->  | E118: =T(IF($B$2="回答エリア",【M】エリア!$H97,【M】エリア!$B97)) -> 
B119: =IF($B$2="回答エリア",【M】エリア!$D98,【M】エリア!$A98) -> 0 | C119: =T(IF($B$2="回答エリア",【M】エリア!$E98,"")) ->  | D119: =T(IF($B$2="回答エリア",【M】エリア!$F98,"")) ->  | E119: =T(IF($B$2="回答エリア",【M】エリア!$H98,【M】エリア!$B98)) -> 
B120: =IF($B$2="回答エリア",【M】エリア!$D99,【M】エリア!$A99) -> 0 | C120: =T(IF($B$2="回答エリア",【M】エリア!$E99,"")) ->  | D120: =T(IF($B$2="回答エリア",【M】エリア!$F99,"")) ->  | E120: =T(IF($B$2="回答エリア",【M】エリア!$H99,【M】エリア!$B99)) -> 
B121: =IF($B$2="回答エリア",【M】エリア!$D100,【M】エリア!$A100) -> 0 | C121: =T(IF($B$2="回答エリア",【M】エリア!$E100,"")) ->  | D121: =T(IF($B$2="回答エリア",【M】エリア!$F100,"")) ->  | E121: =T(IF($B$2="回答エリア",【M】エリア!$H100,【M】エリア!$B100)) -> 
B122: =IF($B$2="回答エリア",【M】エリア!$D101,【M】エリア!$A101) -> 0 | C122: =T(IF($B$2="回答エリア",【M】エリア!$E101,"")) ->  | D122: =T(IF($B$2="回答エリア",【M】エリア!$F101,"")) ->  | E122: =T(IF($B$2="回答エリア",【M】エリア!$H101,【M】エリア!$B101)) -> 
B123: =IF($B$2="回答エリア",【M】エリア!$D102,【M】エリア!$A102) -> 0 | C123: =T(IF($B$2="回答エリア",【M】エリア!$E102,"")) ->  | D123: =T(IF($B$2="回答エリア",【M】エリア!$F102,"")) ->  | E123: =T(IF($B$2="回答エリア",【M】エリア!$H102,【M】エリア!$B102)) -> 
B124: =IF($B$2="回答エリア",【M】エリア!$D103,【M】エリア!$A103) -> 0 | C124: =T(IF($B$2="回答エリア",【M】エリア!$E103,"")) ->  | D124: =T(IF($B$2="回答エリア",【M】エリア!$F103,"")) ->  | E124: =T(IF($B$2="回答エリア",【M】エリア!$H103,【M】エリア!$B103)) -> 
B125: =IF($B$2="回答エリア",【M】エリア!$D104,【M】エリア!$A104) -> 0 | C125: =T(IF($B$2="回答エリア",【M】エリア!$E104,"")) ->  | D125: =T(IF($B$2="回答エリア",【M】エリア!$F104,"")) ->  | E125: =T(IF($B$2="回答エリア",【M】エリア!$H104,【M】エリア!$B104)) -> 
B126: =IF($B$2="回答エリア",【M】エリア!$D105,【M】エリア!$A105) -> 0 | C126: =T(IF($B$2="回答エリア",【M】エリア!$E105,"")) ->  | D126: =T(IF($B$2="回答エリア",【M】エリア!$F105,"")) ->  | E126: =T(IF($B$2="回答エリア",【M】エリア!$H105,【M】エリア!$B105)) -> 
B127: =IF($B$2="回答エリア",【M】エリア!$D106,【M】エリア!$A106) -> 0 | C127: =T(IF($B$2="回答エリア",【M】エリア!$E106,"")) ->  | D127: =T(IF($B$2="回答エリア",【M】エリア!$F106,"")) ->  | E127: =T(IF($B$2="回答エリア",【M】エリア!$H106,【M】エリア!$B106)) -> 
B128: =IF($B$2="回答エリア",【M】エリア!$D107,【M】エリア!$A107) -> 0 | C128: =T(IF($B$2="回答エリア",【M】エリア!$E107,"")) ->  | D128: =T(IF($B$2="回答エリア",【M】エリア!$F107,"")) ->  | E128: =T(IF($B$2="回答エリア",【M】エリア!$H107,【M】エリア!$B107)) -> 
B129: =IF($B$2="回答エリア",【M】エリア!$D108,【M】エリア!$A108) -> 0 | C129: =T(IF($B$2="回答エリア",【M】エリア!$E108,"")) ->  | D129: =T(IF($B$2="回答エリア",【M】エリア!$F108,"")) ->  | E129: =T(IF($B$2="回答エリア",【M】エリア!$H108,【M】エリア!$B108)) -> 
B130: =IF($B$2="回答エリア",【M】エリア!$D109,【M】エリア!$A109) -> 0 | C130: =T(IF($B$2="回答エリア",【M】エリア!$E109,"")) ->  | D130: =T(IF($B$2="回答エリア",【M】エリア!$F109,"")) ->  | E130: =T(IF($B$2="回答エリア",【M】エリア!$H109,【M】エリア!$B109)) -> 
B131: =IF($B$2="回答エリア",【M】エリア!$D110,【M】エリア!$A110) -> 0 | C131: =T(IF($B$2="回答エリア",【M】エリア!$E110,"")) ->  | D131: =T(IF($B$2="回答エリア",【M】エリア!$F110,"")) ->  | E131: =T(IF($B$2="回答エリア",【M】エリア!$H110,【M】エリア!$B110)) -> 
B132: =IF($B$2="回答エリア",【M】エリア!$D111,【M】エリア!$A111) -> 0 | C132: =T(IF($B$2="回答エリア",【M】エリア!$E111,"")) ->  | D132: =T(IF($B$2="回答エリア",【M】エリア!$F111,"")) ->  | E132: =T(IF($B$2="回答エリア",【M】エリア!$H111,【M】エリア!$B111)) -> 
B133: =IF($B$2="回答エリア",【M】エリア!$D112,【M】エリア!$A112) -> 0 | C133: =T(IF($B$2="回答エリア",【M】エリア!$E112,"")) ->  | D133: =T(IF($B$2="回答エリア",【M】エリア!$F112,"")) ->  | E133: =T(IF($B$2="回答エリア",【M】エリア!$H112,【M】エリア!$B112)) -> 
B134: =IF($B$2="回答エリア",【M】エリア!$D113,【M】エリア!$A113) -> 0 | C134: =T(IF($B$2="回答エリア",【M】エリア!$E113,"")) ->  | D134: =T(IF($B$2="回答エリア",【M】エリア!$F113,"")) ->  | E134: =T(IF($B$2="回答エリア",【M】エリア!$H113,【M】エリア!$B113)) -> 
B135: =IF($B$2="回答エリア",【M】エリア!$D114,【M】エリア!$A114) -> 0 | C135: =T(IF($B$2="回答エリア",【M】エリア!$E114,"")) ->  | D135: =T(IF($B$2="回答エリア",【M】エリア!$F114,"")) ->  | E135: =T(IF($B$2="回答エリア",【M】エリア!$H114,【M】エリア!$B114)) -> 
B136: =IF($B$2="回答エリア",【M】エリア!$D115,【M】エリア!$A115) -> 0 | C136: =T(IF($B$2="回答エリア",【M】エリア!$E115,"")) ->  | D136: =T(IF($B$2="回答エリア",【M】エリア!$F115,"")) ->  | E136: =T(IF($B$2="回答エリア",【M】エリア!$H115,【M】エリア!$B115)) -> 
B137: =IF($B$2="回答エリア",【M】エリア!$D116,【M】エリア!$A116) -> 0 | C137: =T(IF($B$2="回答エリア",【M】エリア!$E116,"")) ->  | D137: =T(IF($B$2="回答エリア",【M】エリア!$F116,"")) ->  | E137: =T(IF($B$2="回答エリア",【M】エリア!$H116,【M】エリア!$B116)) -> 
B138: =IF($B$2="回答エリア",【M】エリア!$D117,【M】エリア!$A117) -> 0 | C138: =T(IF($B$2="回答エリア",【M】エリア!$E117,"")) ->  | D138: =T(IF($B$2="回答エリア",【M】エリア!$F117,"")) ->  | E138: =T(IF($B$2="回答エリア",【M】エリア!$H117,【M】エリア!$B117)) -> 
B139: =IF($B$2="回答エリア",【M】エリア!$D118,【M】エリア!$A118) -> 0 | C139: =T(IF($B$2="回答エリア",【M】エリア!$E118,"")) ->  | D139: =T(IF($B$2="回答エリア",【M】エリア!$F118,"")) ->  | E139: =T(IF($B$2="回答エリア",【M】エリア!$H118,【M】エリア!$B118)) -> 
B140: =IF($B$2="回答エリア",【M】エリア!$D119,【M】エリア!$A119) -> 0 | C140: =T(IF($B$2="回答エリア",【M】エリア!$E119,"")) ->  | D140: =T(IF($B$2="回答エリア",【M】エリア!$F119,"")) ->  | E140: =T(IF($B$2="回答エリア",【M】エリア!$H119,【M】エリア!$B119)) -> 
B141: =IF($B$2="回答エリア",【M】エリア!$D120,【M】エリア!$A120) -> 0 | C141: =T(IF($B$2="回答エリア",【M】エリア!$E120,"")) ->  | D141: =T(IF($B$2="回答エリア",【M】エリア!$F120,"")) ->  | E141: =T(IF($B$2="回答エリア",【M】エリア!$H120,【M】エリア!$B120)) -> 
B142: =IF($B$2="回答エリア",【M】エリア!$D121,【M】エリア!$A121) -> 0 | C142: =T(IF($B$2="回答エリア",【M】エリア!$E121,"")) ->  | D142: =T(IF($B$2="回答エリア",【M】エリア!$F121,"")) ->  | E142: =T(IF($B$2="回答エリア",【M】エリア!$H121,【M】エリア!$B121)) -> 

Sheet output➡

Sheet 回答数
C1: 回答月 | R1: 集計区分 | T1: 回答数 | U1: 回答月
C2: 4月 | D2: 5月 | E2: 6月 | F2: 7月 | G2: 8月 | H2: 9月 | I2: 10月 | J2: 11月 | K2: 12月 | L2: 1月 | M2: 2月 | N2: 3月 | O2: 合計 | U2: 4月 | W2: 5月 | Y2: 6月 | AA2: 7月 | AC2: 8月 | AE2: 9月 | AG2: 10月 | AI2: 11月 | AK2: 12月 | AM2: 1月 | AO2: 2月 | AQ2: 3月 | AS2: 合計
A3: =【M】エリア!$L$2 -> 福井県 | B3: 単月 | C3: =VLOOKUP($A3,$S$3:$AS$95,MATCH(C$2,$S$2:$AS$2,0),FALSE) -> 1552件 | D3: =VLOOKUP($A3,$S$3:$AS$95,MATCH(D$2,$S$2:$AS$2,0),FALSE) -> 0件 | E3: 0件 | F3: 0件 | G3: 0件 | H3: 0件 | I3: 0件 | J3: 0件 | K3: 0件 | L3: 0件 | M3: 0件 | N3: 0件 | O3: 1552件 | R3: 都道府県 | S3: =【M】エリア!$L$2 -> 福井県 | U3: =IF(ISBLANK($S3), "", COUNTIFS(INDEX(rawデータ範囲, , MATCH($U$1,表頭範囲, 0)),U$2 )) -> 1552件 | W3: 0件 | Y3: 0件 | AA3: 0件 | AC3: 0件 | AE3: 0件 | AG3: 0件 | AI3: 0件 | AK3: 0件 | AM3: 0件 | AO3: 0件 | AQ3: 0件 | AS3: =SUM($U3:$AQ3) -> 1552件
B4: 累計 | C4: =C3 -> 1552件 | D4: =C4+D3 -> 1552件 | E4: =D4+E3 -> 1552件 | F4: 1552件 | G4: 1552件 | H4: 1552件 | I4: 1552件 | J4: 1552件 | K4: 1552件 | L4: 1552件 | M4: 1552件 | N4: 1552件 | O4: =N4+O3 -> 3104件 | R4: =【M】エリア!$J$2 -> 6分類 | S4: =【M】エリア!$L$3 -> 福井市・永平寺町 | U4: =IF($S4="", "", COUNTIFS( INDEX(rawデータ範囲, , MATCH($R4,表頭範囲, 0)), $S4, INDEX(rawデータ範囲, , MATCH($U$1,表頭範囲, 0)),U$2 ) ) -> 298件 | W4: 0件 | Y4: 0件 | AA4: 0件 | AC4: 0件 | AE4: 0件 | AG4: 0件 | AI4: 0件 | AK4: 0件 | AM4: 0件 | AO4: 0件 | AQ4: 0件 | AS4: =IF(ISBLANK($S4), "",SUM($U4:$AQ4)) -> 298件
A5: =【M】エリア!$L$3 -> 福井市・永平寺町 | B5: 単月 | C5: =VLOOKUP($A5,$S$3:$AS$95,MATCH(C$2,$S$2:$AS$2,0),FALSE) -> 298件 | D5: 0件 | E5: 0件 | F5: 0件 | G5: 0件 | H5: 0件 | I5: 0件 | J5: 0件 | K5: 0件 | L5: 0件 | M5: 0件 | N5: 0件 | O5: 298件 | R5: 市町村 | S5: =【M】エリア!$L$4 -> 福井市 | U5: 176件 | W5: 0件 | Y5: 0件 | AA5: 0件 | AC5: 0件 | AE5: 0件 | AG5: 0件 | AI5: 0件 | AK5: 0件 | AM5: 0件 | AO5: 0件 | AQ5: 0件 | AS5: =IF($S5="", "",SUM($U5:$AQ5)) -> 176件
B6: 累計 | C6: =C5 -> 298件 | D6: =C6+D5 -> 298件 | E6: =D6+E5 -> 298件 | F6: =E6+F5 -> 298件 | G6: =F6+G5 -> 298件 | H6: =G6+H5 -> 298件 | I6: =H6+I5 -> 298件 | J6: =I6+J5 -> 298件 | K6: =J6+K5 -> 298件 | L6: =K6+L5 -> 298件 | M6: =L6+M5 -> 298件 | N6: =M6+N5 -> 298件 | O6: 596件 | R6: 回答エリア | S6: =IF(【M】エリア!$E2<>"",【M】エリア!$E2,"") -> 福井駅前 エリア | U6: =IF($S6="", "", COUNTIFS( INDEX(rawデータ範囲, , MATCH($R6,表頭範囲, 0)), $S6, INDEX(rawデータ範囲, , MATCH($U$1,表頭範囲, 0)),U$2 ) ) -> 60件 | W6: 0件 | Y6: 0件 | AA6: 0件 | AC6: 0件 | AE6: 0件 | AG6: 0件 | AI6: 0件 | AK6: 0件 | AM6: 0件 | AO6: 0件 | AQ6: 0件 | AS6: =IF($S6="", "",SUM($U6:$AQ6)) -> 60件
A7: =【M】エリア!$L$4 -> 福井市 | B7: 単月 | C7: =VLOOKUP($A7,$S$3:$AS$95,MATCH(C$2,$S$2:$AS$2,0),FALSE) -> 176件 | D7: 0件 | E7: 0件 | F7: 0件 | G7: 0件 | H7: 0件 | I7: 0件 | J7: 0件 | K7: 0件 | L7: 0件 | M7: 0件 | N7: 0件 | O7: 176件 | R7: 回答エリア | S7: =IF(【M】エリア!$E3<>"",【M】エリア!$E3,"") -> 福井駅前 エリア（宿泊施設） | U7: 29件 | W7: 0件 | Y7: 0件 | AA7: 0件 | AC7: 0件 | AE7: 0件 | AG7: 0件 | AI7: 0件 | AK7: 0件 | AM7: 0件 | AO7: 0件 | AQ7: 0件 | AS7: 29件
B8: 累計 | C8: =C7 -> 176件 | D8: =C8+D7 -> 176件 | E8: =D8+E7 -> 176件 | F8: =E8+F7 -> 176件 | G8: =F8+G7 -> 176件 | H8: =G8+H7 -> 176件 | I8: =H8+I7 -> 176件 | J8: =I8+J7 -> 176件 | K8: =J8+K7 -> 176件 | L8: =K8+L7 -> 176件 | M8: =L8+M7 -> 176件 | N8: =M8+N7 -> 176件 | O8: =N8+O7 -> 352件 | R8: 回答エリア | S8: =IF(【M】エリア!$E4<>"",【M】エリア!$E4,"") -> 北ノ庄 エリア | U8: 4件 | W8: 0件 | Y8: 0件 | AA8: 0件 | AC8: 0件 | AE8: 0件 | AG8: 0件 | AI8: 0件 | AK8: 0件 | AM8: 0件 | AO8: 0件 | AQ8: 0件 | AS8: 4件
A9: =【M】エリア!$L$5 -> 福井駅前 エリア | B9: 単月 | C9: =VLOOKUP($A9,$S$3:$AS$95,MATCH(C$2,$S$2:$AS$2,0),FALSE) -> 60件 | D9: 0件 | E9: 0件 | F9: 0件 | G9: 0件 | H9: 0件 | I9: 0件 | J9: 0件 | K9: 0件 | L9: 0件 | M9: 0件 | N9: 0件 | O9: 60件 | R9: 回答エリア | S9: =IF(【M】エリア!$E5<>"",【M】エリア!$E5,"") -> 名勝 養浩館庭園 エリア | U9: 7件 | W9: 0件 | Y9: 0件 | AA9: 0件 | AC9: 0件 | AE9: 0件 | AG9: 0件 | AI9: 0件 | AK9: 0件 | AM9: 0件 | AO9: 0件 | AQ9: 0件 | AS9: 7件
B10: 累計 | C10: =C9 -> 60件 | D10: =C10+D9 -> 60件 | E10: =D10+E9 -> 60件 | F10: =E10+F9 -> 60件 | G10: =F10+G9 -> 60件 | H10: =G10+H9 -> 60件 | I10: =H10+I9 -> 60件 | J10: =I10+J9 -> 60件 | K10: =J10+K9 -> 60件 | L10: =K10+L9 -> 60件 | M10: =L10+M9 -> 60件 | N10: =M10+N9 -> 60件 | O10: =N10+O9 -> 120件 | R10: 回答エリア | S10: =IF(【M】エリア!$E6<>"",【M】エリア!$E6,"") -> ふくい鮮いちば エリア | U10: 24件 | W10: 0件 | Y10: 0件 | AA10: 0件 | AC10: 0件 | AE10: 0件 | AG10: 0件 | AI10: 0件 | AK10: 0件 | AM10: 0件 | AO10: 0件 | AQ10: 0件 | AS10: 24件
R11: 回答エリア | S11: =IF(【M】エリア!$E7<>"",【M】エリア!$E7,"") -> 一乗谷朝倉氏遺跡 エリア | U11: 38件 | W11: 0件 | Y11: 0件 | AA11: 0件 | AC11: 0件 | AE11: 0件 | AG11: 0件 | AI11: 0件 | AK11: 0件 | AM11: 0件 | AO11: 0件 | AQ11: 0件 | AS11: 38件
R12: 回答エリア | S12: =IF(【M】エリア!$E8<>"",【M】エリア!$E8,"") -> 越前海岸 北部 エリア | U12: 13件 | W12: 0件 | Y12: 0件 | AA12: 0件 | AC12: 0件 | AE12: 0件 | AG12: 0件 | AI12: 0件 | AK12: 0件 | AM12: 0件 | AO12: 0件 | AQ12: 0件 | AS12: 13件
R13: 回答エリア | S13: =IF(【M】エリア!$E9<>"",【M】エリア!$E9,"") -> 大安禅寺 エリア | U13: 1件 | W13: 0件 | Y13: 0件 | AA13: 0件 | AC13: 0件 | AE13: 0件 | AG13: 0件 | AI13: 0件 | AK13: 0件 | AM13: 0件 | AO13: 0件 | AQ13: 0件 | AS13: 1件
R14: 回答エリア | S14: =IF(【M】エリア!$E10<>"",【M】エリア!$E10,"") -> 三国湊 エリア | U14: =IF($S14="", "", COUNTIFS( INDEX(rawデータ範囲, , MATCH($R14,表頭範囲, 0)), $S14, INDEX(rawデータ範囲, , MATCH($U$1,表頭範囲, 0)),U$2 ) ) -> 15件 | W14: 0件 | Y14: 0件 | AA14: 0件 | AC14: 0件 | AE14: 0件 | AG14: 0件 | AI14: 0件 | AK14: 0件 | AM14: 0件 | AO14: 0件 | AQ14: 0件 | AS14: 15件
R15: 回答エリア | S15: =IF(【M】エリア!$E11<>"",【M】エリア!$E11,"") -> 東尋坊 エリア | U15: 29件 | W15: 0件 | Y15: 0件 | AA15: 0件 | AC15: 0件 | AE15: 0件 | AG15: 0件 | AI15: 0件 | AK15: 0件 | AM15: 0件 | AO15: 0件 | AQ15: 0件 | AS15: 29件
R16: 回答エリア | S16: =IF(【M】エリア!$E12<>"",【M】エリア!$E12,"") -> 越前松島水族館 エリア | U16: 11件 | W16: 0件 | Y16: 0件 | AA16: 0件 | AC16: 0件 | AE16: 0件 | AG16: 0件 | AI16: 0件 | AK16: 0件 | AM16: 0件 | AO16: 0件 | AQ16: 0件 | AS16: 11件
R17: 回答エリア | S17: =IF(【M】エリア!$E13<>"",【M】エリア!$E13,"") -> 芝政ワールド エリア | U17: 2件 | W17: 0件 | Y17: 0件 | AA17: 0件 | AC17: 0件 | AE17: 0件 | AG17: 0件 | AI17: 0件 | AK17: 0件 | AM17: 0件 | AO17: 0件 | AQ17: 0件 | AS17: 2件
R18: 回答エリア | S18: =IF(【M】エリア!$E14<>"",【M】エリア!$E14,"") -> 丸岡城 エリア | U18: 46件 | W18: 0件 | Y18: 0件 | AA18: 0件 | AC18: 0件 | AE18: 0件 | AG18: 0件 | AI18: 0件 | AK18: 0件 | AM18: 0件 | AO18: 0件 | AQ18: 0件 | AS18: 46件
R19: 回答エリア | S19: =IF(【M】エリア!$E15<>"",【M】エリア!$E15,"") -> 花の駅 ゆりの里公園 エリア | U19: 11件 | W19: 0件 | Y19: 0件 | AA19: 0件 | AC19: 0件 | AE19: 0件 | AG19: 0件 | AI19: 0件 | AK19: 0件 | AM19: 0件 | AO19: 0件 | AQ19: 0件 | AS19: 11件
R20: 回答エリア | S20: =IF(【M】エリア!$E16<>"",【M】エリア!$E16,"") -> 道の駅みくに ふれあいパーク三里浜 エリア | U20: 25件 | W20: 0件 | Y20: 0件 | AA20: 0件 | AC20: 0件 | AE20: 0件 | AG20: 0件 | AI20: 0件 | AK20: 0件 | AM20: 0件 | AO20: 0件 | AQ20: 0件 | AS20: 25件
R21: 回答エリア | S21: =IF(【M】エリア!$E17<>"",【M】エリア!$E17,"") -> JR芦原温泉駅 エリア | U21: 10件 | W21: 0件 | Y21: 0件 | AA21: 0件 | AC21: 0件 | AE21: 0件 | AG21: 0件 | AI21: 0件 | AK21: 0件 | AM21: 0件 | AO21: 0件 | AQ21: 0件 | AS21: 10件
R22: 回答エリア | S22: =IF(【M】エリア!$E18<>"",【M】エリア!$E18,"") -> あわら湯のまち エリア | U22: 50件 | W22: 0件 | Y22: 0件 | AA22: 0件 | AC22: 0件 | AE22: 0件 | AG22: 0件 | AI22: 0件 | AK22: 0件 | AM22: 0件 | AO22: 0件 | AQ22: 0件 | AS22: 50件
R23: 回答エリア | S23: =IF(【M】エリア!$E19<>"",【M】エリア!$E19,"") -> フルーツライン エリア | U23: 11件 | W23: 0件 | Y23: 0件 | AA23: 0件 | AC23: 0件 | AE23: 0件 | AG23: 0件 | AI23: 0件 | AK23: 0件 | AM23: 0件 | AO23: 0件 | AQ23: 0件 | AS23: 11件
R24: 回答エリア | S24: =IF(【M】エリア!$E20<>"",【M】エリア!$E20,"") -> 波松 エリア | U24: =IF($S24="", "", COUNTIFS( INDEX(rawデータ範囲, , MATCH($R24,表頭範囲, 0)), $S24, INDEX(rawデータ範囲, , MATCH($U$1,表頭範囲, 0)),U$2 ) ) -> 1件 | W24: 0件 | Y24: 0件 | AA24: 0件 | AC24: 0件 | AE24: 0件 | AG24: 0件 | AI24: 0件 | AK24: 0件 | AM24: 0件 | AO24: 0件 | AQ24: 0件 | AS24: 1件
R25: 回答エリア | S25: =IF(【M】エリア!$E21<>"",【M】エリア!$E21,"") -> 北潟湖 エリア | U25: 15件 | W25: 0件 | Y25: 0件 | AA25: 0件 | AC25: 0件 | AE25: 0件 | AG25: 0件 | AI25: 0件 | AK25: 0件 | AM25: 0件 | AO25: 0件 | AQ25: 0件 | AS25: 15件
R26: 回答エリア | S26: =IF(【M】エリア!$E22<>"",【M】エリア!$E22,"") -> 越前大野城・城下町 エリア | U26: 50件 | W26: 0件 | Y26: 0件 | AA26: 0件 | AC26: 0件 | AE26: 0件 | AG26: 0件 | AI26: 0件 | AK26: 0件 | AM26: 0件 | AO26: 0件 | AQ26: 0件 | AS26: 50件
R27: 回答エリア | S27: =IF(【M】エリア!$E23<>"",【M】エリア!$E23,"") -> 道の駅「越前おおの荒島の郷」 エリア | U27: 48件 | W27: 0件 | Y27: 0件 | AA27: 0件 | AC27: 0件 | AE27: 0件 | AG27: 0件 | AI27: 0件 | AK27: 0件 | AM27: 0件 | AO27: 0件 | AQ27: 0件 | AS27: 48件
R28: 回答エリア | S28: =IF(【M】エリア!$E24<>"",【M】エリア!$E24,"") -> JR九頭竜湖駅 エリア | U28: 10件 | W28: 0件 | Y28: 0件 | AA28: 0件 | AC28: 0件 | AE28: 0件 | AG28: 0件 | AI28: 0件 | AK28: 0件 | AM28: 0件 | AO28: 0件 | AQ28: 0件 | AS28: 10件
R29: 回答エリア | S29: =IF(【M】エリア!$E25<>"",【M】エリア!$E25,"") -> 六呂師高原 エリア | U29: 3件 | W29: 0件 | Y29: 0件 | AA29: 0件 | AC29: 0件 | AE29: 0件 | AG29: 0件 | AI29: 0件 | AK29: 0件 | AM29: 0件 | AO29: 0件 | AQ29: 0件 | AS29: 3件
R30: 回答エリア | S30: =IF(【M】エリア!$E26<>"",【M】エリア!$E26,"") -> かつやま恐竜の森 エリア | U30: 131件 | W30: 0件 | Y30: 0件 | AA30: 0件 | AC30: 0件 | AE30: 0件 | AG30: 0件 | AI30: 0件 | AK30: 0件 | AM30: 0件 | AO30: 0件 | AQ30: 0件 | AS30: 131件
R31: 回答エリア | S31: =IF(【M】エリア!$E27<>"",【M】エリア!$E27,"") -> 道の駅「恐竜渓谷かつやま」 エリア | U31: 62件 | W31: 0件 | Y31: 0件 | AA31: 0件 | AC31: 0件 | AE31: 0件 | AG31: 0件 | AI31: 0件 | AK31: 0件 | AM31: 0件 | AO31: 0件 | AQ31: 0件 | AS31: 62件
R32: 回答エリア | S32: =IF(【M】エリア!$E28<>"",【M】エリア!$E28,"") -> 越前大仏 エリア | U32: 12件 | W32: 0件 | Y32: 0件 | AA32: 0件 | AC32: 0件 | AE32: 0件 | AG32: 0件 | AI32: 0件 | AK32: 0件 | AM32: 0件 | AO32: 0件 | AQ32: 0件 | AS32: 12件
R33: 回答エリア | S33: =IF(【M】エリア!$E29<>"",【M】エリア!$E29,"") -> 平泉寺白山神社 エリア | U33: 5件 | W33: 0件 | Y33: 0件 | AA33: 0件 | AC33: 0件 | AE33: 0件 | AG33: 0件 | AI33: 0件 | AK33: 0件 | AM33: 0件 | AO33: 0件 | AQ33: 0件 | AS33: 5件
R34: 回答エリア | S34: =IF(【M】エリア!$E30<>"",【M】エリア!$E30,"") -> はたや記念館 ゆめおーれ勝山 エリア | U34: =IF($S34="", "", COUNTIFS( INDEX(rawデータ範囲, , MATCH($R34,表頭範囲, 0)), $S34, INDEX(rawデータ範囲, , MATCH($U$1,表頭範囲, 0)),U$2 ) ) -> 1件 | W34: 0件 | Y34: 0件 | AA34: 0件 | AC34: 0件 | AE34: 0件 | AG34: 0件 | AI34: 0件 | AK34: 0件 | AM34: 0件 | AO34: 0件 | AQ34: 0件 | AS34: 1件
R35: 回答エリア | S35: =IF(【M】エリア!$E31<>"",【M】エリア!$E31,"") -> えちぜん鉄道 永平寺口駅 エリア | U35: 1件 | W35: 0件 | Y35: 0件 | AA35: 0件 | AC35: 0件 | AE35: 0件 | AG35: 0件 | AI35: 0件 | AK35: 0件 | AM35: 0件 | AO35: 0件 | AQ35: 0件 | AS35: 1件
R36: 回答エリア | S36: =IF(【M】エリア!$E32<>"",【M】エリア!$E32,"") -> えちぜん鉄道 松岡駅 エリア | U36: 3件 | W36: 0件 | Y36: 0件 | AA36: 0件 | AC36: 0件 | AE36: 0件 | AG36: 0件 | AI36: 0件 | AK36: 0件 | AM36: 0件 | AO36: 0件 | AQ36: 0件 | AS36: 3件
R37: 回答エリア | S37: =IF(【M】エリア!$E33<>"",【M】エリア!$E33,"") -> 大本山 永平寺 エリア | U37: 104件 | W37: 0件 | Y37: 0件 | AA37: 0件 | AC37: 0件 | AE37: 0件 | AG37: 0件 | AI37: 0件 | AK37: 0件 | AM37: 0件 | AO37: 0件 | AQ37: 0件 | AS37: 104件
R38: 回答エリア | S38: =IF(【M】エリア!$E34<>"",【M】エリア!$E34,"") -> 道の駅「禅の里」 エリア | U38: 14件 | W38: 0件 | Y38: 0件 | AA38: 0件 | AC38: 0件 | AE38: 0件 | AG38: 0件 | AI38: 0件 | AK38: 0件 | AM38: 0件 | AO38: 0件 | AQ38: 0件 | AS38: 14件
R39: 回答エリア | S39: =IF(【M】エリア!$E35<>"",【M】エリア!$E35,"") -> 越前そばの里 エリア | U39: 63件 | W39: 0件 | Y39: 0件 | AA39: 0件 | AC39: 0件 | AE39: 0件 | AG39: 0件 | AI39: 0件 | AK39: 0件 | AM39: 0件 | AO39: 0件 | AQ39: 0件 | AS39: 63件
R40: 回答エリア | S40: =IF(【M】エリア!$E36<>"",【M】エリア!$E36,"") -> 北陸新幹線 越前たけふ駅 エリア | U40: 26件 | W40: 0件 | Y40: 0件 | AA40: 0件 | AC40: 0件 | AE40: 0件 | AG40: 0件 | AI40: 0件 | AK40: 0件 | AM40: 0件 | AO40: 0件 | AQ40: 0件 | AS40: 26件
R41: 回答エリア | S41: =IF(【M】エリア!$E37<>"",【M】エリア!$E37,"") -> タケフナイフビレッジ エリア | U41: 2件 | W41: 0件 | Y41: 0件 | AA41: 0件 | AC41: 0件 | AE41: 0件 | AG41: 0件 | AI41: 0件 | AK41: 0件 | AM41: 0件 | AO41: 0件 | AQ41: 0件 | AS41: 2件
R42: 回答エリア | S42: =IF(【M】エリア!$E38<>"",【M】エリア!$E38,"") -> 武生駅 エリア | U42: 12件 | W42: 0件 | Y42: 0件 | AA42: 0件 | AC42: 0件 | AE42: 0件 | AG42: 0件 | AI42: 0件 | AK42: 0件 | AM42: 0件 | AO42: 0件 | AQ42: 0件 | AS42: 12件
R43: 回答エリア | S43: =IF(【M】エリア!$E39<>"",【M】エリア!$E39,"") -> 紫式部公園 エリア | U43: 9件 | W43: 0件 | Y43: 0件 | AA43: 0件 | AC43: 0件 | AE43: 0件 | AG43: 0件 | AI43: 0件 | AK43: 0件 | AM43: 0件 | AO43: 0件 | AQ43: 0件 | AS43: 9件
R44: 回答エリア | S44: =IF(【M】エリア!$E40<>"",【M】エリア!$E40,"") -> だるまちゃん広場 エリア | U44: =IF($S44="", "", COUNTIFS( INDEX(rawデータ範囲, , MATCH($R44,表頭範囲, 0)), $S44, INDEX(rawデータ範囲, , MATCH($U$1,表頭範囲, 0)),U$2 ) ) -> 12件 | W44: 0件 | Y44: 0件 | AA44: 0件 | AC44: 0件 | AE44: 0件 | AG44: 0件 | AI44: 0件 | AK44: 0件 | AM44: 0件 | AO44: 0件 | AQ44: 0件 | AS44: 12件
R45: 回答エリア | S45: =IF(【M】エリア!$E41<>"",【M】エリア!$E41,"") -> 道の駅「西山公園」 エリア | U45: 32件 | W45: 0件 | Y45: 0件 | AA45: 0件 | AC45: 0件 | AE45: 0件 | AG45: 0件 | AI45: 0件 | AK45: 0件 | AM45: 0件 | AO45: 0件 | AQ45: 0件 | AS45: 32件
R46: 回答エリア | S46: =IF(【M】エリア!$E42<>"",【M】エリア!$E42,"") -> メガネストリート エリア | U46: 18件 | W46: 0件 | Y46: 0件 | AA46: 0件 | AC46: 0件 | AE46: 0件 | AG46: 0件 | AI46: 0件 | AK46: 0件 | AM46: 0件 | AO46: 0件 | AQ46: 0件 | AS46: 18件
R47: 回答エリア | S47: =IF(【M】エリア!$E43<>"",【M】エリア!$E43,"") -> うるしの里 エリア | U47: 6件 | W47: 0件 | Y47: 0件 | AA47: 0件 | AC47: 0件 | AE47: 0件 | AG47: 0件 | AI47: 0件 | AK47: 0件 | AM47: 0件 | AO47: 0件 | AQ47: 0件 | AS47: 6件
R48: 回答エリア | S48: =IF(【M】エリア!$E44<>"",【M】エリア!$E44,"") -> まちの駅 こってコテいけだ エリア | U48: 14件 | W48: 0件 | Y48: 0件 | AA48: 0件 | AC48: 0件 | AE48: 0件 | AG48: 0件 | AI48: 0件 | AK48: 0件 | AM48: 0件 | AO48: 0件 | AQ48: 0件 | AS48: 14件
R49: 回答エリア | S49: =IF(【M】エリア!$E45<>"",【M】エリア!$E45,"") -> かずら橋 エリア | U49: 36件 | W49: 0件 | Y49: 0件 | AA49: 0件 | AC49: 0件 | AE49: 0件 | AG49: 0件 | AI49: 0件 | AK49: 0件 | AM49: 0件 | AO49: 0件 | AQ49: 0件 | AS49: 36件
R50: 回答エリア | S50: =IF(【M】エリア!$E46<>"",【M】エリア!$E46,"") -> 道の駅「越前」 エリア | U50: 11件 | W50: 0件 | Y50: 0件 | AA50: 0件 | AC50: 0件 | AE50: 0件 | AG50: 0件 | AI50: 0件 | AK50: 0件 | AM50: 0件 | AO50: 0件 | AQ50: 0件 | AS50: 11件
R51: 回答エリア | S51: =IF(【M】エリア!$E47<>"",【M】エリア!$E47,"") -> 道の駅「パークイン丹生ヶ丘」 エリア | U51: 10件 | W51: 0件 | Y51: 0件 | AA51: 0件 | AC51: 0件 | AE51: 0件 | AG51: 0件 | AI51: 0件 | AK51: 0件 | AM51: 0件 | AO51: 0件 | AQ51: 0件 | AS51: 10件
R52: 回答エリア | S52: =IF(【M】エリア!$E48<>"",【M】エリア!$E48,"") -> 劔神社 エリア | U52: 3件 | W52: 0件 | Y52: 0件 | AA52: 0件 | AC52: 0件 | AE52: 0件 | AG52: 0件 | AI52: 0件 | AK52: 0件 | AM52: 0件 | AO52: 0件 | AQ52: 0件 | AS52: 3件
R53: 回答エリア | S53: =IF(【M】エリア!$E49<>"",【M】エリア!$E49,"") -> 越前陶芸村 エリア | U53: 20件 | W53: 0件 | Y53: 0件 | AA53: 0件 | AC53: 0件 | AE53: 0件 | AG53: 0件 | AI53: 0件 | AK53: 0件 | AM53: 0件 | AO53: 0件 | AQ53: 0件 | AS53: 20件
R54: 回答エリア | S54: =IF(【M】エリア!$E50<>"",【M】エリア!$E50,"") -> 越前海岸 越前岬 エリア | U54: =IF($S54="", "", COUNTIFS( INDEX(rawデータ範囲, , MATCH($R54,表頭範囲, 0)), $S54, INDEX(rawデータ範囲, , MATCH($U$1,表頭範囲, 0)),U$2 ) ) -> 1件 | W54: 0件 | Y54: 0件 | AA54: 0件 | AC54: 0件 | AE54: 0件 | AG54: 0件 | AI54: 0件 | AK54: 0件 | AM54: 0件 | AO54: 0件 | AQ54: 0件 | AS54: 1件
R55: 回答エリア | S55: =IF(【M】エリア!$E51<>"",【M】エリア!$E51,"") -> 越前漁港 エリア | U55: 1件 | W55: 0件 | Y55: 0件 | AA55: 0件 | AC55: 0件 | AE55: 0件 | AG55: 0件 | AI55: 0件 | AK55: 0件 | AM55: 0件 | AO55: 0件 | AQ55: 0件 | AS55: 1件
R56: 回答エリア | S56: =IF(【M】エリア!$E52<>"",【M】エリア!$E52,"") -> 越前海岸 高佐米ノ旅館街 エリア | U56: 8件 | W56: 0件 | Y56: 0件 | AA56: 0件 | AC56: 0件 | AE56: 0件 | AG56: 0件 | AI56: 0件 | AK56: 0件 | AM56: 0件 | AO56: 0件 | AQ56: 0件 | AS56: 8件
R57: 回答エリア | S57: =IF(【M】エリア!$E53<>"",【M】エリア!$E53,"") -> 越前海岸 くりや旅館街 エリア | U57: 3件 | W57: 0件 | Y57: 0件 | AA57: 0件 | AC57: 0件 | AE57: 0件 | AG57: 0件 | AI57: 0件 | AK57: 0件 | AM57: 0件 | AO57: 0件 | AQ57: 0件 | AS57: 3件
R58: 回答エリア | S58: =IF(【M】エリア!$E54<>"",【M】エリア!$E54,"") -> 道の駅「南えちぜん山海里」 エリア | U58: 52件 | W58: 0件 | Y58: 0件 | AA58: 0件 | AC58: 0件 | AE58: 0件 | AG58: 0件 | AI58: 0件 | AK58: 0件 | AM58: 0件 | AO58: 0件 | AQ58: 0件 | AS58: 52件
R59: 回答エリア | S59: =IF(【M】エリア!$E55<>"",【M】エリア!$E55,"") -> 河野北前船主通りエリア | U59: 1件 | W59: 0件 | Y59: 0件 | AA59: 0件 | AC59: 0件 | AE59: 0件 | AG59: 0件 | AI59: 0件 | AK59: 0件 | AM59: 0件 | AO59: 0件 | AQ59: 0件 | AS59: 1件
R60: 回答エリア | S60: =IF(【M】エリア!$E56<>"",【M】エリア!$E56,"") -> 今庄宿 エリア | U60: 3件 | W60: 0件 | Y60: 0件 | AA60: 0件 | AC60: 0件 | AE60: 0件 | AG60: 0件 | AI60: 0件 | AK60: 0件 | AM60: 0件 | AO60: 0件 | AQ60: 0件 | AS60: 3件
R61: 回答エリア | S61: =IF(【M】エリア!$E57<>"",【M】エリア!$E57,"") -> 日本海さかな街 エリア | U61: 17件 | W61: 0件 | Y61: 0件 | AA61: 0件 | AC61: 0件 | AE61: 0件 | AG61: 0件 | AI61: 0件 | AK61: 0件 | AM61: 0件 | AO61: 0件 | AQ61: 0件 | AS61: 17件
R62: 回答エリア | S62: =IF(【M】エリア!$E58<>"",【M】エリア!$E58,"") -> 神楽通り エリア | U62: 15件 | W62: 0件 | Y62: 0件 | AA62: 0件 | AC62: 0件 | AE62: 0件 | AG62: 0件 | AI62: 0件 | AK62: 0件 | AM62: 0件 | AO62: 0件 | AQ62: 0件 | AS62: 15件
R63: 回答エリア | S63: =IF(【M】エリア!$E59<>"",【M】エリア!$E59,"") -> JR敦賀駅前 エリア | U63: 23件 | W63: 0件 | Y63: 0件 | AA63: 0件 | AC63: 0件 | AE63: 0件 | AG63: 0件 | AI63: 0件 | AK63: 0件 | AM63: 0件 | AO63: 0件 | AQ63: 0件 | AS63: 23件
R64: 回答エリア | S64: =IF(【M】エリア!$E60<>"",【M】エリア!$E60,"") -> 金ヶ崎 エリア | U64: =IF($S64="", "", COUNTIFS( INDEX(rawデータ範囲, , MATCH($R64,表頭範囲, 0)), $S64, INDEX(rawデータ範囲, , MATCH($U$1,表頭範囲, 0)),U$2 ) ) -> 20件 | W64: 0件 | Y64: 0件 | AA64: 0件 | AC64: 0件 | AE64: 0件 | AG64: 0件 | AI64: 0件 | AK64: 0件 | AM64: 0件 | AO64: 0件 | AQ64: 0件 | AS64: 20件
R65: 回答エリア | S65: =IF(【M】エリア!$E61<>"",【M】エリア!$E61,"") -> 敦賀市立博物館 エリア | U65: 6件 | W65: 0件 | Y65: 0件 | AA65: 0件 | AC65: 0件 | AE65: 0件 | AG65: 0件 | AI65: 0件 | AK65: 0件 | AM65: 0件 | AO65: 0件 | AQ65: 0件 | AS65: 6件
R66: 回答エリア | S66: =IF(【M】エリア!$E62<>"",【M】エリア!$E62,"") -> 小浜市 阿納 エリア | U66: 17件 | W66: 0件 | Y66: 0件 | AA66: 0件 | AC66: 0件 | AE66: 0件 | AG66: 0件 | AI66: 0件 | AK66: 0件 | AM66: 0件 | AO66: 0件 | AQ66: 0件 | AS66: 17件
R67: 回答エリア | S67: =IF(【M】エリア!$E63<>"",【M】エリア!$E63,"") -> 道の駅「若狭おばま」 エリア | U67: 27件 | W67: 0件 | Y67: 0件 | AA67: 0件 | AC67: 0件 | AE67: 0件 | AG67: 0件 | AI67: 0件 | AK67: 0件 | AM67: 0件 | AO67: 0件 | AQ67: 0件 | AS67: 27件
R68: 回答エリア | S68: =IF(【M】エリア!$E64<>"",【M】エリア!$E64,"") -> 小浜 エリア（宿泊施設） | U68: 10件 | W68: 0件 | Y68: 0件 | AA68: 0件 | AC68: 0件 | AE68: 0件 | AG68: 0件 | AI68: 0件 | AK68: 0件 | AM68: 0件 | AO68: 0件 | AQ68: 0件 | AS68: 10件
R69: 回答エリア | S69: =IF(【M】エリア!$E65<>"",【M】エリア!$E65,"") -> 若狭フィッシャーマンズワーフ エリア | U69: 6件 | W69: 0件 | Y69: 0件 | AA69: 0件 | AC69: 0件 | AE69: 0件 | AG69: 0件 | AI69: 0件 | AK69: 0件 | AM69: 0件 | AO69: 0件 | AQ69: 0件 | AS69: 6件
R70: 回答エリア | S70: =IF(【M】エリア!$E66<>"",【M】エリア!$E66,"") -> 御食国若狭おばま食文化館 エリア | U70: 14件 | W70: 0件 | Y70: 0件 | AA70: 0件 | AC70: 0件 | AE70: 0件 | AG70: 0件 | AI70: 0件 | AK70: 0件 | AM70: 0件 | AO70: 0件 | AQ70: 0件 | AS70: =IF($S70="", "",SUM($U70:$AQ70)) -> 14件
R71: 回答エリア | S71: =IF(【M】エリア!$E67<>"",【M】エリア!$E67,"") -> 小浜市まちの駅 エリア | U71: 8件 | W71: 0件 | Y71: 0件 | AA71: 0件 | AC71: 0件 | AE71: 0件 | AG71: 0件 | AI71: 0件 | AK71: 0件 | AM71: 0件 | AO71: 0件 | AQ71: 0件 | AS71: 8件
R72: 回答エリア | S72: =IF(【M】エリア!$E68<>"",【M】エリア!$E68,"") -> 明通寺 エリア | U72: 4件 | W72: 0件 | Y72: 0件 | AA72: 0件 | AC72: 0件 | AE72: 0件 | AG72: 0件 | AI72: 0件 | AK72: 0件 | AM72: 0件 | AO72: 0件 | AQ72: 0件 | AS72: 4件
R73: 回答エリア | S73: =IF(【M】エリア!$E69<>"",【M】エリア!$E69,"") -> 箸のふるさと館WAKASA エリア | U73: 1件 | W73: 0件 | Y73: 0件 | AA73: 0件 | AC73: 0件 | AE73: 0件 | AG73: 0件 | AI73: 0件 | AK73: 0件 | AM73: 0件 | AO73: 0件 | AQ73: 0件 | AS73: 1件
R74: 回答エリア | S74: =IF(【M】エリア!$E70<>"",【M】エリア!$E70,"") -> 三方五湖ネイチャークルーズ エリア | U74: =IF($S74="", "", COUNTIFS( INDEX(rawデータ範囲, , MATCH($R74,表頭範囲, 0)), $S74, INDEX(rawデータ範囲, , MATCH($U$1,表頭範囲, 0)),U$2 ) ) -> 9件 | W74: 0件 | Y74: 0件 | AA74: 0件 | AC74: 0件 | AE74: 0件 | AG74: 0件 | AI74: 0件 | AK74: 0件 | AM74: 0件 | AO74: 0件 | AQ74: 0件 | AS74: 9件
R75: 回答エリア | S75: =IF(【M】エリア!$E71<>"",【M】エリア!$E71,"") -> レインボーライン エリア | U75: 20件 | W75: 0件 | Y75: 0件 | AA75: 0件 | AC75: 0件 | AE75: 0件 | AG75: 0件 | AI75: 0件 | AK75: 0件 | AM75: 0件 | AO75: 0件 | AQ75: 0件 | AS75: 20件
R76: 回答エリア | S76: =IF(【M】エリア!$E72<>"",【M】エリア!$E72,"") -> JR美浜駅 エリア | U76: 35件 | W76: 0件 | Y76: 0件 | AA76: 0件 | AC76: 0件 | AE76: 0件 | AG76: 0件 | AI76: 0件 | AK76: 0件 | AM76: 0件 | AO76: 0件 | AQ76: 0件 | AS76: 35件
R77: 回答エリア | S77: =IF(【M】エリア!$E73<>"",【M】エリア!$E73,"") -> 熊川宿 エリア | U77: 5件 | W77: 0件 | Y77: 0件 | AA77: 0件 | AC77: 0件 | AE77: 0件 | AG77: 0件 | AI77: 0件 | AK77: 0件 | AM77: 0件 | AO77: 0件 | AQ77: 0件 | AS77: 5件
R78: 回答エリア | S78: =IF(【M】エリア!$E74<>"",【M】エリア!$E74,"") -> 湖上館パムコ（水月湖）エリア | U78: 11件 | W78: 0件 | Y78: 0件 | AA78: 0件 | AC78: 0件 | AE78: 0件 | AG78: 0件 | AI78: 0件 | AK78: 0件 | AM78: 0件 | AO78: 0件 | AQ78: 0件 | AS78: 11件
R79: 回答エリア | S79: =IF(【M】エリア!$E75<>"",【M】エリア!$E75,"") -> 道の駅「三方五湖」 エリア | U79: 29件 | W79: 0件 | Y79: 0件 | AA79: 0件 | AC79: 0件 | AE79: 0件 | AG79: 0件 | AI79: 0件 | AK79: 0件 | AM79: 0件 | AO79: 0件 | AQ79: 0件 | AS79: 29件
R80: 回答エリア | S80: =IF(【M】エリア!$E76<>"",【M】エリア!$E76,"") -> うみんぴあ大飯 エリア | U80: 19件 | W80: 0件 | Y80: 0件 | AA80: 0件 | AC80: 0件 | AE80: 0件 | AG80: 0件 | AI80: 0件 | AK80: 0件 | AM80: 0件 | AO80: 0件 | AQ80: 0件 | AS80: 19件
R81: 回答エリア | S81: =IF(【M】エリア!$E77<>"",【M】エリア!$E77,"") -> 若州一滴文庫 エリア | U81: 4件 | W81: 0件 | Y81: 0件 | AA81: 0件 | AC81: 0件 | AE81: 0件 | AG81: 0件 | AI81: 0件 | AK81: 0件 | AM81: 0件 | AO81: 0件 | AQ81: 0件 | AS81: 4件
R82: 回答エリア | S82: =IF(【M】エリア!$E78<>"",【M】エリア!$E78,"") -> 名田庄 エリア | U82: 7件 | W82: 0件 | Y82: 0件 | AA82: 0件 | AC82: 0件 | AE82: 0件 | AG82: 0件 | AI82: 0件 | AK82: 0件 | AM82: 0件 | AO82: 0件 | AQ82: 0件 | AS82: 7件
R83: 回答エリア | S83: =IF(【M】エリア!$E79<>"",【M】エリア!$E79,"") -> 赤礁崎オートキャンプ場 エリア | U83: 1件 | W83: 0件 | Y83: 0件 | AA83: 0件 | AC83: 0件 | AE83: 0件 | AG83: 0件 | AI83: 0件 | AK83: 0件 | AM83: 0件 | AO83: 0件 | AQ83: 0件 | AS83: 1件
R84: 回答エリア | S84: =IF(【M】エリア!$E80<>"",【M】エリア!$E80,"") -> 若狭和田 エリア | U84: =IF($S84="", "", COUNTIFS( INDEX(rawデータ範囲, , MATCH($R84,表頭範囲, 0)), $S84, INDEX(rawデータ範囲, , MATCH($U$1,表頭範囲, 0)),U$2 ) ) -> 7件 | W84: 0件 | Y84: 0件 | AA84: 0件 | AC84: 0件 | AE84: 0件 | AG84: 0件 | AI84: 0件 | AK84: 0件 | AM84: 0件 | AO84: 0件 | AQ84: 0件 | AS84: 7件
R85: 回答エリア | S85: =IF(【M】エリア!$E81<>"",【M】エリア!$E81,"") -> 若狭高浜 エリア | U85: 13件 | W85: 0件 | Y85: 0件 | AA85: 0件 | AC85: 0件 | AE85: 0件 | AG85: 0件 | AI85: 0件 | AK85: 0件 | AM85: 0件 | AO85: 0件 | AQ85: 0件 | AS85: 13件
R86: 回答エリア | S86: =IF(【M】エリア!$E82<>"",【M】エリア!$E82,"") -> 竹田エリア | U86: 29件 | W86: 0件 | Y86: 0件 | AA86: 0件 | AC86: 0件 | AE86: 0件 | AG86: 0件 | AI86: 0件 | AK86: 0件 | AM86: 0件 | AO86: 0件 | AQ86: 0件 | AS86: 29件
R87: 回答エリア | S87: =IF(【M】エリア!$E83<>"",【M】エリア!$E83,"") -> 青葉山ハーバルビレッジ エリア | U87: 6件 | W87: 0件 | Y87: 0件 | AA87: 0件 | AC87: 0件 | AE87: 0件 | AG87: 0件 | AI87: 0件 | AK87: 0件 | AM87: 0件 | AO87: 0件 | AQ87: 0件 | AS87: 6件
R88: 回答エリア | S88: =IF(【M】エリア!$E84<>"",【M】エリア!$E84,"") -> 
R89: 回答エリア | S89: =IF(【M】エリア!$E85<>"",【M】エリア!$E85,"") -> 
R90: 回答エリア | S90: =IF(【M】エリア!$E86<>"",【M】エリア!$E86,"") -> 
R91: 回答エリア | S91: =IF(【M】エリア!$E87<>"",【M】エリア!$E87,"") -> 
R92: 回答エリア | S92: =IF(【M】エリア!$E88<>"",【M】エリア!$E88,"") -> 
R93: 回答エリア | S93: =IF(【M】エリア!$E89<>"",【M】エリア!$E89,"") -> 
R94: 回答エリア | S94: =IF(【M】エリア!$E90<>"",【M】エリア!$E90,"") ->  | U94: =IF($S94="", "", COUNTIFS( INDEX(rawデータ範囲, , MATCH($R94,表頭範囲, 0)), $S94, INDEX(rawデータ範囲, , MATCH($U$1,表頭範囲, 0)),U$2 ) ) -> 
R95: 回答エリア | S95: =IF(【M】エリア!$E91<>"",【M】エリア!$E91,"") -> 
R96: 回答エリア | S96: =IF(【M】エリア!$E92<>"",【M】エリア!$E92,"") -> 
R97: 回答エリア | S97: =IF(【M】エリア!$E93<>"",【M】エリア!$E93,"") -> 
R98: 回答エリア | S98: =IF(【M】エリア!$E94<>"",【M】エリア!$E94,"") -> 
R99: 回答エリア | S99: =IF(【M】エリア!$E95<>"",【M】エリア!$E95,"") -> 
R100: 回答エリア | S100: =IF(【M】エリア!$E96<>"",【M】エリア!$E96,"") -> 
R101: 回答エリア | S101: =IF(【M】エリア!$E97<>"",【M】エリア!$E97,"") -> 
R102: 回答エリア | S102: =IF(【M】エリア!$E98<>"",【M】エリア!$E98,"") -> 
R103: 回答エリア | S103: =IF(【M】エリア!$E99<>"",【M】エリア!$E99,"") -> 
R104: 回答エリア | S104: =IF(【M】エリア!$E100<>"",【M】エリア!$E100,"") ->  | U104: =IF($S104="", "", COUNTIFS( INDEX(rawデータ範囲, , MATCH($R104,表頭範囲, 0)), $S104, INDEX(rawデータ範囲, , MATCH($U$1,表頭範囲, 0)),U$2 ) ) -> 
R105: 回答エリア | S105: =IF(【M】エリア!$E101<>"",【M】エリア!$E101,"") -> 
R106: 回答エリア | S106: =IF(【M】エリア!$E102<>"",【M】エリア!$E102,"") -> 
R107: 回答エリア | S107: =IF(【M】エリア!$E103<>"",【M】エリア!$E103,"") -> 
R108: 回答エリア | S108: =IF(【M】エリア!$E104<>"",【M】エリア!$E104,"") -> 
R109: 回答エリア | S109: =IF(【M】エリア!$E105<>"",【M】エリア!$E105,"") -> 
R110: 回答エリア | S110: =IF(【M】エリア!$E106<>"",【M】エリア!$E106,"") -> 
R111: 回答エリア | S111: =IF(【M】エリア!$E107<>"",【M】エリア!$E107,"") -> 
R112: 回答エリア | S112: =IF(【M】エリア!$E108<>"",【M】エリア!$E108,"") -> 
R113: 回答エリア | S113: =IF(【M】エリア!$E109<>"",【M】エリア!$E109,"") -> 
R114: 回答エリア | S114: =IF(【M】エリア!$E110<>"",【M】エリア!$E110,"") ->  | U114: =IF($S114="", "", COUNTIFS( INDEX(rawデータ範囲, , MATCH($R114,表頭範囲, 0)), $S114, INDEX(rawデータ範囲, , MATCH($U$1,表頭範囲, 0)),U$2 ) ) -> 
R115: 回答エリア | S115: =IF(【M】エリア!$E111<>"",【M】エリア!$E111,"") -> 
R116: 回答エリア | S116: =IF(【M】エリア!$E112<>"",【M】エリア!$E112,"") -> 
R117: 回答エリア | S117: =IF(【M】エリア!$E113<>"",【M】エリア!$E113,"") -> 
R118: 回答エリア | S118: =IF(【M】エリア!$E114<>"",【M】エリア!$E114,"") -> 
R119: 回答エリア | S119: =IF(【M】エリア!$E115<>"",【M】エリア!$E115,"") -> 
R120: 回答エリア | S120: =IF(【M】エリア!$E116<>"",【M】エリア!$E116,"") -> 
R121: 回答エリア | S121: =IF(【M】エリア!$E117<>"",【M】エリア!$E117,"") -> 
R122: 回答エリア | S122: =IF(【M】エリア!$E118<>"",【M】エリア!$E118,"") -> 
R123: 回答エリア | S123: =IF(【M】エリア!$E119<>"",【M】エリア!$E119,"") -> 
R124: 回答エリア | S124: =IF(【M】エリア!$E120<>"",【M】エリア!$E120,"") -> 
R125: 回答エリア | S125: =IF(【M】エリア!$E121<>"",【M】エリア!$E121,"") -> 

Sheet NPS
A1: =施設コード!$A$2 -> 4月 | G1: 4月 | H1: 5月 | I1: 6月 | J1: 7月 | K1: 8月 | L1: 9月 | M1: 10月 | N1: 11月 | O1: 12月 | P1: 1月 | Q1: 2月 | R1: 3月 | S1: 通年 | V1: =IFERROR(MATCH($A$1,$BE$2:$BQ$2,0),"-") -> 1 | X1: 集計区分 | Z1: NPS | AA1: 回答月 | AO1: Rank | AP1: 回答月 | BD1: （処理用_順位） | BE1: 回答月
A2: 順位 | B2: 回答エリア | C2: NPS | D2: 回答数 | F2: =【M】エリア!$L$2 -> 福井県 | G2: =IF(ISNUMBER(AA3),AA3,"-") -> 20.1 | H2: =IF(ISNUMBER(AB3),AB3,"-") -> - | I2: =IF(ISNUMBER(AC3),AC3,"-") -> - | J2: =IF(ISNUMBER(AD3),AD3,"-") -> - | K2: =IF(ISNUMBER(AE3),AE3,"-") -> - | L2: =IF(ISNUMBER(AF3),AF3,"-") -> - | M2: =IF(ISNUMBER(AG3),AG3,"-") -> - | N2: =IF(ISNUMBER(AH3),AH3,"-") -> - | O2: =IF(ISNUMBER(AI3),AI3,"-") -> - | P2: =IF(ISNUMBER(AJ3),AJ3,"-") -> - | Q2: =IF(ISNUMBER(AK3),AK3,"-") -> - | R2: =IF(ISNUMBER(AL3),AL3,"-") -> - | S2: =IF(ISNUMBER(AM3),AM3,"-") -> 20.1 | V2: ↑X位置/↓Y位置決定 | AA2: 4月 | AB2: 5月 | AC2: 6月 | AD2: 7月 | AE2: 8月 | AF2: 9月 | AG2: 10月 | AH2: 11月 | AI2: 12月 | AJ2: 1月 | AK2: 2月 | AL2: 3月 | AM2: 通年 | AP2: 4月 | AQ2: 5月 | AR2: 6月 | AS2: 7月 | AT2: 8月 | AU2: 9月 | AV2: 10月 | AW2: 11月 | AX2: 12月 | AY2: 1月 | AZ2: 2月 | BA2: 3月 | BB2: 通年 | BE2: 4月 | BF2: 5月 | BG2: 6月 | BH2: 7月 | BI2: 8月 | BJ2: 9月 | BK2: 10月 | BL2: 11月 | BM2: 12月 | BN2: 1月 | BO2: 2月 | BP2: 3月 | BQ2: 通年
A3: =IFERROR(INDEX($AP$6:$BB$125,$V3,$V$1),"") -> 1 | B3: =IFERROR(INDEX($Y$6:$Y$125,$V3,1),"") -> 越前漁港 エリア | C3: =IFERROR(INDEX($AA$6:$AM$125,$V3,$V$1),"") -> 100.0 | D3: =IFERROR(INDEX(【D】NPS!$GP$7:$HB$126,$V3,$V$1),"") -> 1件 | F3: =【M】エリア!$L$3 -> 福井市・永平寺町 | G3: =IF(ISNUMBER(AA4),AA4,"-") -> 23.8 | H3: - | I3: - | J3: - | K3: - | L3: - | M3: - | N3: - | O3: - | P3: - | Q3: - | R3: - | S3: 23.8 | V3: =IFERROR(MATCH(ROW(B3)-2,INDEX($BE$6:$BQ$125,,$V$1),0),"-") -> 50 | X3: 都道府県 | Y3: =【M】エリア!$L$2 -> 福井県 | AA3: =IF($Y3<>"", INDEX(NPSデータ範囲, MATCH($Y3,NPS表側範囲,0), MATCH(AA$2&$Z$1,NPS表頭範囲,0) ),"") -> 20.1 | AB3: - | AC3: - | AD3: - | AE3: - | AF3: - | AG3: - | AH3: - | AI3: - | AJ3: - | AK3: - | AL3: - | AM3: 20.1 | AP3: - | AQ3: - | AR3: - | AS3: - | AT3: - | AU3: - | AV3: - | AW3: - | AX3: - | AY3: - | AZ3: - | BA3: - | BB3: - | BE3: - | BF3: - | BG3: - | BH3: - | BI3: - | BJ3: - | BK3: - | BL3: - | BM3: - | BN3: - | BO3: - | BP3: - | BQ3: -
A4: =IFERROR(INDEX($AP$6:$BB$125,$V4,$V$1),"") -> 2 | B4: =IFERROR(INDEX($Y$6:$Y$125,$V4,1),"") -> だるまちゃん広場 エリア | C4: =IFERROR(INDEX($AA$6:$AM$125,$V4,$V$1),"") -> 83.3 | D4: =IFERROR(INDEX(【D】NPS!$GP$7:$HB$126,$V4,$V$1),"") -> 12件 | F4: =【M】エリア!$L$4 -> 福井市 | G4: 29.0 | H4: - | I4: - | J4: - | K4: - | L4: - | M4: - | N4: - | O4: - | P4: - | Q4: - | R4: - | S4: 29.0 | V4: 39 | X4: =【M】エリア!$J$2 -> 6分類 | Y4: =【M】エリア!$L$3 -> 福井市・永平寺町 | AA4: 23.8 | AB4: - | AC4: - | AD4: - | AE4: - | AF4: - | AG4: - | AH4: - | AI4: - | AJ4: - | AK4: - | AL4: - | AM4: 23.8 | AP4: - | AQ4: - | AR4: - | AS4: - | AT4: - | AU4: - | AV4: - | AW4: - | AX4: - | AY4: - | AZ4: - | BA4: - | BB4: - | BE4: - | BF4: - | BG4: - | BH4: - | BI4: - | BJ4: - | BK4: - | BL4: - | BM4: - | BN4: - | BO4: - | BP4: - | BQ4: -
A5: =IFERROR(INDEX($AP$6:$BB$125,$V5,$V$1),"") -> 3 | B5: =IFERROR(INDEX($Y$6:$Y$125,$V5,1),"") -> 平泉寺白山神社 エリア | C5: =IFERROR(INDEX($AA$6:$AM$125,$V5,$V$1),"") -> 80.0 | D5: =IFERROR(INDEX(【D】NPS!$GP$7:$HB$126,$V5,$V$1),"") -> 5件 | F5: =【M】エリア!$L$5 -> 福井駅前 エリア | G5: =IFERROR(INDEX(AA$6:AA$125,MATCH($F5,$Y$6:$Y$125,0),1),"-") -> 26.7 | H5: =IFERROR(INDEX(AB$6:AB$125,MATCH($F5,$Y$6:$Y$125,0),1),"-") -> - | I5: - | J5: - | K5: - | L5: - | M5: - | N5: - | O5: - | P5: - | Q5: - | R5: - | S5: 26.7 | V5: 28 | X5: 市町村 | Y5: =【M】エリア!$L$4 -> 福井市 | AA5: 29.0 | AB5: - | AC5: - | AD5: - | AE5: - | AF5: - | AG5: - | AH5: - | AI5: - | AJ5: - | AK5: - | AL5: - | AM5: 29.0 | AP5: - | AQ5: - | AR5: - | AS5: - | AT5: - | AU5: - | AV5: - | AW5: - | AX5: - | AY5: - | AZ5: - | BA5: - | BB5: - | BE5: - | BF5: - | BG5: - | BH5: - | BI5: - | BJ5: - | BK5: - | BL5: - | BM5: - | BN5: - | BO5: - | BP5: - | BQ5: -
A6: =IFERROR(INDEX($AP$6:$BB$125,$V6,$V$1),"") -> 4 | B6: =IFERROR(INDEX($Y$6:$Y$125,$V6,1),"") -> 北ノ庄 エリア | C6: =IFERROR(INDEX($AA$6:$AM$125,$V6,$V$1),"") -> 75.0 | D6: =IFERROR(INDEX(【D】NPS!$GP$7:$HB$126,$V6,$V$1),"") -> 4件 | V6: 3 | X6: 回答エリア | Y6: =IF(【M】エリア!$E2<>"",【M】エリア!$E2,"") -> 福井駅前 エリア | AA6: 26.7 | AB6: - | AC6: - | AD6: - | AE6: - | AF6: - | AG6: - | AH6: - | AI6: - | AJ6: - | AK6: - | AL6: - | AM6: 26.7 | AP6: =IF($Y6<>"", INDEX(NPSデータ範囲, MATCH($Y6,NPS表側範囲,0), MATCH(AP$2&$AO$1,NPS表頭範囲,0) ),"") -> 32 | AQ6: - | AR6: - | AS6: - | AT6: - | AU6: - | AV6: - | AW6: - | AX6: - | AY6: - | AZ6: - | BA6: - | BB6: 32 | BE6: =IF($Y6<>"", INDEX(NPSデータ範囲, MATCH($Y6,NPS表側範囲,0), MATCH(BE$2&$BD$1,NPS表頭範囲,0) ),"") -> 32 | BF6: - | BG6: - | BH6: - | BI6: - | BJ6: - | BK6: - | BL6: - | BM6: - | BN6: - | BO6: - | BP6: - | BQ6: 32
A7: =IFERROR(INDEX($AP$6:$BB$125,$V7,$V$1),"") -> 5 | B7: =IFERROR(INDEX($Y$6:$Y$125,$V7,1),"") -> 今庄宿 エリア | C7: =IFERROR(INDEX($AA$6:$AM$125,$V7,$V$1),"") -> 66.7 | D7: =IFERROR(INDEX(【D】NPS!$GP$7:$HB$126,$V7,$V$1),"") -> 3件 | V7: 55 | X7: 回答エリア | Y7: =IF(【M】エリア!$E3<>"",【M】エリア!$E3,"") -> 福井駅前 エリア（宿泊施設） | AA7: 27.6 | AB7: - | AC7: - | AD7: - | AE7: - | AF7: - | AG7: - | AH7: - | AI7: - | AJ7: - | AK7: - | AL7: - | AM7: 27.6 | AP7: 31 | AQ7: - | AR7: - | AS7: - | AT7: - | AU7: - | AV7: - | AW7: - | AX7: - | AY7: - | AZ7: - | BA7: - | BB7: 31 | BE7: 31 | BF7: - | BG7: - | BH7: - | BI7: - | BJ7: - | BK7: - | BL7: - | BM7: - | BN7: - | BO7: - | BP7: - | BQ7: 31
A8: =IFERROR(INDEX($AP$6:$BB$125,$V8,$V$1),"") -> 6 | B8: =IFERROR(INDEX($Y$6:$Y$125,$V8,1),"") -> 熊川宿 エリア | C8: =IFERROR(INDEX($AA$6:$AM$125,$V8,$V$1),"") -> 60.0 | D8: =IFERROR(INDEX(【D】NPS!$GP$7:$HB$126,$V8,$V$1),"") -> 5件 | V8: 72 | X8: 回答エリア | Y8: =IF(【M】エリア!$E4<>"",【M】エリア!$E4,"") -> 北ノ庄 エリア | AA8: 75.0 | AB8: - | AC8: - | AD8: - | AE8: - | AF8: - | AG8: - | AH8: - | AI8: - | AJ8: - | AK8: - | AL8: - | AM8: 75.0 | AP8: 4 | AQ8: - | AR8: - | AS8: - | AT8: - | AU8: - | AV8: - | AW8: - | AX8: - | AY8: - | AZ8: - | BA8: - | BB8: 4 | BE8: 4 | BF8: - | BG8: - | BH8: - | BI8: - | BJ8: - | BK8: - | BL8: - | BM8: - | BN8: - | BO8: - | BP8: - | BQ8: 4
A9: =IFERROR(INDEX($AP$6:$BB$125,$V9,$V$1),"") -> 7 | B9: =IFERROR(INDEX($Y$6:$Y$125,$V9,1),"") -> 北潟湖 エリア | C9: =IFERROR(INDEX($AA$6:$AM$125,$V9,$V$1),"") -> 60.0 | D9: =IFERROR(INDEX(【D】NPS!$GP$7:$HB$126,$V9,$V$1),"") -> 15件 | V9: 20 | X9: 回答エリア | Y9: =IF(【M】エリア!$E5<>"",【M】エリア!$E5,"") -> 名勝 養浩館庭園 エリア | AA9: 42.9 | AB9: - | AC9: - | AD9: - | AE9: - | AF9: - | AG9: - | AH9: - | AI9: - | AJ9: - | AK9: - | AL9: - | AM9: 42.9 | AP9: 17 | AQ9: - | AR9: - | AS9: - | AT9: - | AU9: - | AV9: - | AW9: - | AX9: - | AY9: - | AZ9: - | BA9: - | BB9: 17 | BE9: 17 | BF9: - | BG9: - | BH9: - | BI9: - | BJ9: - | BK9: - | BL9: - | BM9: - | BN9: - | BO9: - | BP9: - | BQ9: 17
A10: =IFERROR(INDEX($AP$6:$BB$125,$V10,$V$1),"") -> 8 | B10: =IFERROR(INDEX($Y$6:$Y$125,$V10,1),"") -> 道の駅「南えちぜん山海里」 エリア | C10: =IFERROR(INDEX($AA$6:$AM$125,$V10,$V$1),"") -> 51.9 | D10: =IFERROR(INDEX(【D】NPS!$GP$7:$HB$126,$V10,$V$1),"") -> 52件 | V10: 53 | X10: 回答エリア | Y10: =IF(【M】エリア!$E6<>"",【M】エリア!$E6,"") -> ふくい鮮いちば エリア | AA10: 25.0 | AB10: - | AC10: - | AD10: - | AE10: - | AF10: - | AG10: - | AH10: - | AI10: - | AJ10: - | AK10: - | AL10: - | AM10: 25.0 | AP10: 35 | AQ10: - | AR10: - | AS10: - | AT10: - | AU10: - | AV10: - | AW10: - | AX10: - | AY10: - | AZ10: - | BA10: - | BB10: 35 | BE10: 35 | BF10: - | BG10: - | BH10: - | BI10: - | BJ10: - | BK10: - | BL10: - | BM10: - | BN10: - | BO10: - | BP10: - | BQ10: 35
A11: =IFERROR(INDEX($AP$6:$BB$125,$V11,$V$1),"") -> 9 | B11: =IFERROR(INDEX($Y$6:$Y$125,$V11,1),"") -> 芝政ワールド エリア | C11: =IFERROR(INDEX($AA$6:$AM$125,$V11,$V$1),"") -> 50.0 | D11: =IFERROR(INDEX(【D】NPS!$GP$7:$HB$126,$V11,$V$1),"") -> 2件 | V11: 12 | X11: 回答エリア | Y11: =IF(【M】エリア!$E7<>"",【M】エリア!$E7,"") -> 一乗谷朝倉氏遺跡 エリア | AA11: 31.6 | AB11: - | AC11: - | AD11: - | AE11: - | AF11: - | AG11: - | AH11: - | AI11: - | AJ11: - | AK11: - | AL11: - | AM11: 31.6 | AP11: 25 | AQ11: - | AR11: - | AS11: - | AT11: - | AU11: - | AV11: - | AW11: - | AX11: - | AY11: - | AZ11: - | BA11: - | BB11: 25 | BE11: 25 | BF11: - | BG11: - | BH11: - | BI11: - | BJ11: - | BK11: - | BL11: - | BM11: - | BN11: - | BO11: - | BP11: - | BQ11: 25
A12: =IFERROR(INDEX($AP$6:$BB$125,$V12,$V$1),"") -> 9 | B12: =IFERROR(INDEX($Y$6:$Y$125,$V12,1),"") -> タケフナイフビレッジ エリア | C12: =IFERROR(INDEX($AA$6:$AM$125,$V12,$V$1),"") -> 50.0 | D12: =IFERROR(INDEX(【D】NPS!$GP$7:$HB$126,$V12,$V$1),"") -> 2件 | V12: 36 | X12: 回答エリア | Y12: =IF(【M】エリア!$E8<>"",【M】エリア!$E8,"") -> 越前海岸 北部 エリア | AA12: 23.1 | AB12: - | AC12: - | AD12: - | AE12: - | AF12: - | AG12: - | AH12: - | AI12: - | AJ12: - | AK12: - | AL12: - | AM12: 23.1 | AP12: 36 | AQ12: - | AR12: - | AS12: - | AT12: - | AU12: - | AV12: - | AW12: - | AX12: - | AY12: - | AZ12: - | BA12: - | BB12: 36 | BE12: 36 | BF12: - | BG12: - | BH12: - | BI12: - | BJ12: - | BK12: - | BL12: - | BM12: - | BN12: - | BO12: - | BP12: - | BQ12: 36
A13: =IFERROR(INDEX($AP$6:$BB$125,$V13,$V$1),"") -> 9 | B13: =IFERROR(INDEX($Y$6:$Y$125,$V13,1),"") -> 敦賀市立博物館 エリア | C13: =IFERROR(INDEX($AA$6:$AM$125,$V13,$V$1),"") -> 50.0 | D13: =IFERROR(INDEX(【D】NPS!$GP$7:$HB$126,$V13,$V$1),"") -> 6件 | V13: 60 | X13: 回答エリア | Y13: =IF(【M】エリア!$E9<>"",【M】エリア!$E9,"") -> 大安禅寺 エリア | AA13: =IF($Y13<>"", INDEX(NPSデータ範囲, MATCH($Y13,NPS表側範囲,0), MATCH(AA$2&$Z$1,NPS表頭範囲,0) ),"") -> 0.0 | AB13: - | AC13: - | AD13: - | AE13: - | AF13: - | AG13: - | AH13: - | AI13: - | AJ13: - | AK13: - | AL13: - | AM13: 0.0 | AP13: 50 | AQ13: - | AR13: - | AS13: - | AT13: - | AU13: - | AV13: - | AW13: - | AX13: - | AY13: - | AZ13: - | BA13: - | BB13: 50 | BE13: 50 | BF13: - | BG13: - | BH13: - | BI13: - | BJ13: - | BK13: - | BL13: - | BM13: - | BN13: - | BO13: - | BP13: - | BQ13: 50
A14: =IFERROR(INDEX($AP$6:$BB$125,$V14,$V$1),"") -> 9 | B14: =IFERROR(INDEX($Y$6:$Y$125,$V14,1),"") -> 若州一滴文庫 エリア | C14: =IFERROR(INDEX($AA$6:$AM$125,$V14,$V$1),"") -> 50.0 | D14: =IFERROR(INDEX(【D】NPS!$GP$7:$HB$126,$V14,$V$1),"") -> 4件 | V14: 76 | X14: 回答エリア | Y14: =IF(【M】エリア!$E10<>"",【M】エリア!$E10,"") -> 三国湊 エリア | AA14: 20.0 | AB14: - | AC14: - | AD14: - | AE14: - | AF14: - | AG14: - | AH14: - | AI14: - | AJ14: - | AK14: - | AL14: - | AM14: 20.0 | AP14: 38 | AQ14: - | AR14: - | AS14: - | AT14: - | AU14: - | AV14: - | AW14: - | AX14: - | AY14: - | AZ14: - | BA14: - | BB14: 38 | BE14: 38 | BF14: - | BG14: - | BH14: - | BI14: - | BJ14: - | BK14: - | BL14: - | BM14: - | BN14: - | BO14: - | BP14: - | BQ14: 38
A15: =IFERROR(INDEX($AP$6:$BB$125,$V15,$V$1),"") -> 13 | B15: =IFERROR(INDEX($Y$6:$Y$125,$V15,1),"") -> 越前松島水族館 エリア | C15: =IFERROR(INDEX($AA$6:$AM$125,$V15,$V$1),"") -> 45.5 | D15: =IFERROR(INDEX(【D】NPS!$GP$7:$HB$126,$V15,$V$1),"") -> 11件 | V15: 11 | X15: 回答エリア | Y15: =IF(【M】エリア!$E11<>"",【M】エリア!$E11,"") -> 東尋坊 エリア | AA15: 6.9 | AB15: - | AC15: - | AD15: - | AE15: - | AF15: - | AG15: - | AH15: - | AI15: - | AJ15: - | AK15: - | AL15: - | AM15: 6.9 | AP15: 48 | AQ15: - | AR15: - | AS15: - | AT15: - | AU15: - | AV15: - | AW15: - | AX15: - | AY15: - | AZ15: - | BA15: - | BB15: 48 | BE15: 48 | BF15: - | BG15: - | BH15: - | BI15: - | BJ15: - | BK15: - | BL15: - | BM15: - | BN15: - | BO15: - | BP15: - | BQ15: 48
A16: =IFERROR(INDEX($AP$6:$BB$125,$V16,$V$1),"") -> 13 | B16: =IFERROR(INDEX($Y$6:$Y$125,$V16,1),"") -> 道の駅「越前」 エリア | C16: =IFERROR(INDEX($AA$6:$AM$125,$V16,$V$1),"") -> 45.5 | D16: =IFERROR(INDEX(【D】NPS!$GP$7:$HB$126,$V16,$V$1),"") -> 11件 | V16: 45 | X16: 回答エリア | Y16: =IF(【M】エリア!$E12<>"",【M】エリア!$E12,"") -> 越前松島水族館 エリア | AA16: 45.5 | AB16: - | AC16: - | AD16: - | AE16: - | AF16: - | AG16: - | AH16: - | AI16: - | AJ16: - | AK16: - | AL16: - | AM16: 45.5 | AP16: =IF($Y16<>"", INDEX(NPSデータ範囲, MATCH($Y16,NPS表側範囲,0), MATCH(AP$2&$AO$1,NPS表頭範囲,0) ),"") -> 13 | AQ16: - | AR16: - | AS16: - | AT16: - | AU16: - | AV16: - | AW16: - | AX16: - | AY16: - | AZ16: - | BA16: - | BB16: 13 | BE16: =IF($Y16<>"", INDEX(NPSデータ範囲, MATCH($Y16,NPS表側範囲,0), MATCH(BE$2&$BD$1,NPS表頭範囲,0) ),"") -> 13 | BF16: - | BG16: - | BH16: - | BI16: - | BJ16: - | BK16: - | BL16: - | BM16: - | BN16: - | BO16: - | BP16: - | BQ16: 13
A17: =IFERROR(INDEX($AP$6:$BB$125,$V17,$V$1),"") -> 15 | B17: =IFERROR(INDEX($Y$6:$Y$125,$V17,1),"") -> 三方五湖ネイチャークルーズ エリア | C17: =IFERROR(INDEX($AA$6:$AM$125,$V17,$V$1),"") -> 44.4 | D17: =IFERROR(INDEX(【D】NPS!$GP$7:$HB$126,$V17,$V$1),"") -> 9件 | V17: 69 | X17: 回答エリア | Y17: =IF(【M】エリア!$E13<>"",【M】エリア!$E13,"") -> 芝政ワールド エリア | AA17: 50.0 | AB17: - | AC17: - | AD17: - | AE17: - | AF17: - | AG17: - | AH17: - | AI17: - | AJ17: - | AK17: - | AL17: - | AM17: 50.0 | AP17: 9 | AQ17: - | AR17: - | AS17: - | AT17: - | AU17: - | AV17: - | AW17: - | AX17: - | AY17: - | AZ17: - | BA17: - | BB17: 9 | BE17: 9 | BF17: - | BG17: - | BH17: - | BI17: - | BJ17: - | BK17: - | BL17: - | BM17: - | BN17: - | BO17: - | BP17: - | BQ17: 9
A18: =IFERROR(INDEX($AP$6:$BB$125,$V18,$V$1),"") -> 16 | B18: =IFERROR(INDEX($Y$6:$Y$125,$V18,1),"") -> 道の駅「西山公園」 エリア | C18: =IFERROR(INDEX($AA$6:$AM$125,$V18,$V$1),"") -> 43.8 | D18: =IFERROR(INDEX(【D】NPS!$GP$7:$HB$126,$V18,$V$1),"") -> 32件 | V18: 40 | X18: 回答エリア | Y18: =IF(【M】エリア!$E14<>"",【M】エリア!$E14,"") -> 丸岡城 エリア | AA18: 28.3 | AB18: - | AC18: - | AD18: - | AE18: - | AF18: - | AG18: - | AH18: - | AI18: - | AJ18: - | AK18: - | AL18: - | AM18: 28.3 | AP18: 30 | AQ18: - | AR18: - | AS18: - | AT18: - | AU18: - | AV18: - | AW18: - | AX18: - | AY18: - | AZ18: - | BA18: - | BB18: 30 | BE18: 30 | BF18: - | BG18: - | BH18: - | BI18: - | BJ18: - | BK18: - | BL18: - | BM18: - | BN18: - | BO18: - | BP18: - | BQ18: 30
A19: =IFERROR(INDEX($AP$6:$BB$125,$V19,$V$1),"") -> 17 | B19: =IFERROR(INDEX($Y$6:$Y$125,$V19,1),"") -> 名勝 養浩館庭園 エリア | C19: =IFERROR(INDEX($AA$6:$AM$125,$V19,$V$1),"") -> 42.9 | D19: =IFERROR(INDEX(【D】NPS!$GP$7:$HB$126,$V19,$V$1),"") -> 7件 | V19: 4 | X19: 回答エリア | Y19: =IF(【M】エリア!$E15<>"",【M】エリア!$E15,"") -> 花の駅 ゆりの里公園 エリア | AA19: -9.1 | AB19: - | AC19: - | AD19: - | AE19: - | AF19: - | AG19: - | AH19: - | AI19: - | AJ19: - | AK19: - | AL19: - | AM19: -9.1 | AP19: 65 | AQ19: - | AR19: - | AS19: - | AT19: - | AU19: - | AV19: - | AW19: - | AX19: - | AY19: - | AZ19: - | BA19: - | BB19: 65 | BE19: 65 | BF19: - | BG19: - | BH19: - | BI19: - | BJ19: - | BK19: - | BL19: - | BM19: - | BN19: - | BO19: - | BP19: - | BQ19: 65
A20: =IFERROR(INDEX($AP$6:$BB$125,$V20,$V$1),"") -> 18 | B20: =IFERROR(INDEX($Y$6:$Y$125,$V20,1),"") -> かつやま恐竜の森 エリア | C20: =IFERROR(INDEX($AA$6:$AM$125,$V20,$V$1),"") -> 42.0 | D20: =IFERROR(INDEX(【D】NPS!$GP$7:$HB$126,$V20,$V$1),"") -> 131件 | V20: 25 | X20: 回答エリア | Y20: =IF(【M】エリア!$E16<>"",【M】エリア!$E16,"") -> 道の駅みくに ふれあいパーク三里浜 エリア | AA20: -4.0 | AB20: - | AC20: - | AD20: - | AE20: - | AF20: - | AG20: - | AH20: - | AI20: - | AJ20: - | AK20: - | AL20: - | AM20: -4.0 | AP20: 61 | AQ20: - | AR20: - | AS20: - | AT20: - | AU20: - | AV20: - | AW20: - | AX20: - | AY20: - | AZ20: - | BA20: - | BB20: 61 | BE20: 61 | BF20: - | BG20: - | BH20: - | BI20: - | BJ20: - | BK20: - | BL20: - | BM20: - | BN20: - | BO20: - | BP20: - | BQ20: 61
A21: =IFERROR(INDEX($AP$6:$BB$125,$V21,$V$1),"") -> 19 | B21: =IFERROR(INDEX($Y$6:$Y$125,$V21,1),"") -> 小浜市 阿納 エリア | C21: =IFERROR(INDEX($AA$6:$AM$125,$V21,$V$1),"") -> 41.2 | D21: =IFERROR(INDEX(【D】NPS!$GP$7:$HB$126,$V21,$V$1),"") -> 17件 | V21: 61 | X21: 回答エリア | Y21: =IF(【M】エリア!$E17<>"",【M】エリア!$E17,"") -> JR芦原温泉駅 エリア | AA21: 10.0 | AB21: - | AC21: - | AD21: - | AE21: - | AF21: - | AG21: - | AH21: - | AI21: - | AJ21: - | AK21: - | AL21: - | AM21: 10.0 | AP21: 46 | AQ21: - | AR21: - | AS21: - | AT21: - | AU21: - | AV21: - | AW21: - | AX21: - | AY21: - | AZ21: - | BA21: - | BB21: 46 | BE21: 46 | BF21: - | BG21: - | BH21: - | BI21: - | BJ21: - | BK21: - | BL21: - | BM21: - | BN21: - | BO21: - | BP21: - | BQ21: 46
A22: =IFERROR(INDEX($AP$6:$BB$125,$V22,$V$1),"") -> 20 | B22: =IFERROR(INDEX($Y$6:$Y$125,$V22,1),"") -> あわら湯のまち エリア | C22: =IFERROR(INDEX($AA$6:$AM$125,$V22,$V$1),"") -> 40.0 | D22: =IFERROR(INDEX(【D】NPS!$GP$7:$HB$126,$V22,$V$1),"") -> 50件 | V22: 17 | X22: 回答エリア | Y22: =IF(【M】エリア!$E18<>"",【M】エリア!$E18,"") -> あわら湯のまち エリア | AA22: 40.0 | AB22: - | AC22: - | AD22: - | AE22: - | AF22: - | AG22: - | AH22: - | AI22: - | AJ22: - | AK22: - | AL22: - | AM22: 40.0 | AP22: 20 | AQ22: - | AR22: - | AS22: - | AT22: - | AU22: - | AV22: - | AW22: - | AX22: - | AY22: - | AZ22: - | BA22: - | BB22: 20 | BE22: 20 | BF22: - | BG22: - | BH22: - | BI22: - | BJ22: - | BK22: - | BL22: - | BM22: - | BN22: - | BO22: - | BP22: - | BQ22: 20
A23: =IFERROR(INDEX($AP$6:$BB$125,$V23,$V$1),"") -> 21 | B23: =IFERROR(INDEX($Y$6:$Y$125,$V23,1),"") -> 湖上館パムコ（水月湖）エリア | C23: =IFERROR(INDEX($AA$6:$AM$125,$V23,$V$1),"") -> 36.4 | D23: =IFERROR(INDEX(【D】NPS!$GP$7:$HB$126,$V23,$V$1),"") -> 11件 | V23: 73 | X23: 回答エリア | Y23: =IF(【M】エリア!$E19<>"",【M】エリア!$E19,"") -> フルーツライン エリア | AA23: =IF($Y23<>"", INDEX(NPSデータ範囲, MATCH($Y23,NPS表側範囲,0), MATCH(AA$2&$Z$1,NPS表頭範囲,0) ),"") -> 18.2 | AB23: - | AC23: - | AD23: - | AE23: - | AF23: - | AG23: - | AH23: - | AI23: - | AJ23: - | AK23: - | AL23: - | AM23: 18.2 | AP23: 41 | AQ23: - | AR23: - | AS23: - | AT23: - | AU23: - | AV23: - | AW23: - | AX23: - | AY23: - | AZ23: - | BA23: - | BB23: 41 | BE23: 41 | BF23: - | BG23: - | BH23: - | BI23: - | BJ23: - | BK23: - | BL23: - | BM23: - | BN23: - | BO23: - | BP23: - | BQ23: 41
A24: =IFERROR(INDEX($AP$6:$BB$125,$V24,$V$1),"") -> 22 | B24: =IFERROR(INDEX($Y$6:$Y$125,$V24,1),"") -> レインボーライン エリア | C24: =IFERROR(INDEX($AA$6:$AM$125,$V24,$V$1),"") -> 35.0 | D24: =IFERROR(INDEX(【D】NPS!$GP$7:$HB$126,$V24,$V$1),"") -> 20件 | V24: 70 | X24: 回答エリア | Y24: =IF(【M】エリア!$E20<>"",【M】エリア!$E20,"") -> 波松 エリア | AA24: 0.0 | AB24: - | AC24: - | AD24: - | AE24: - | AF24: - | AG24: - | AH24: - | AI24: - | AJ24: - | AK24: - | AL24: - | AM24: 0.0 | AP24: 50 | AQ24: - | AR24: - | AS24: - | AT24: - | AU24: - | AV24: - | AW24: - | AX24: - | AY24: - | AZ24: - | BA24: - | BB24: 50 | BE24: 51 | BF24: - | BG24: - | BH24: - | BI24: - | BJ24: - | BK24: - | BL24: - | BM24: - | BN24: - | BO24: - | BP24: - | BQ24: 51
A25: =IFERROR(INDEX($AP$6:$BB$125,$V25,$V$1),"") -> 23 | B25: =IFERROR(INDEX($Y$6:$Y$125,$V25,1),"") -> 紫式部公園 エリア | C25: =IFERROR(INDEX($AA$6:$AM$125,$V25,$V$1),"") -> 33.3 | D25: =IFERROR(INDEX(【D】NPS!$GP$7:$HB$126,$V25,$V$1),"") -> 9件 | V25: 38 | X25: 回答エリア | Y25: =IF(【M】エリア!$E21<>"",【M】エリア!$E21,"") -> 北潟湖 エリア | AA25: 60.0 | AB25: - | AC25: - | AD25: - | AE25: - | AF25: - | AG25: - | AH25: - | AI25: - | AJ25: - | AK25: - | AL25: - | AM25: 60.0 | AP25: 7 | AQ25: - | AR25: - | AS25: - | AT25: - | AU25: - | AV25: - | AW25: - | AX25: - | AY25: - | AZ25: - | BA25: - | BB25: 7 | BE25: 7 | BF25: - | BG25: - | BH25: - | BI25: - | BJ25: - | BK25: - | BL25: - | BM25: - | BN25: - | BO25: - | BP25: - | BQ25: 7
A26: =IFERROR(INDEX($AP$6:$BB$125,$V26,$V$1),"") -> 23 | B26: =IFERROR(INDEX($Y$6:$Y$125,$V26,1),"") -> 若狭フィッシャーマンズワーフ エリア | C26: =IFERROR(INDEX($AA$6:$AM$125,$V26,$V$1),"") -> 33.3 | D26: =IFERROR(INDEX(【D】NPS!$GP$7:$HB$126,$V26,$V$1),"") -> 6件 | V26: 64 | X26: 回答エリア | Y26: =IF(【M】エリア!$E22<>"",【M】エリア!$E22,"") -> 越前大野城・城下町 エリア | AA26: 2.0 | AB26: - | AC26: - | AD26: - | AE26: - | AF26: - | AG26: - | AH26: - | AI26: - | AJ26: - | AK26: - | AL26: - | AM26: 2.0 | AP26: =IF($Y26<>"", INDEX(NPSデータ範囲, MATCH($Y26,NPS表側範囲,0), MATCH(AP$2&$AO$1,NPS表頭範囲,0) ),"") -> 49 | AQ26: - | AR26: - | AS26: - | AT26: - | AU26: - | AV26: - | AW26: - | AX26: - | AY26: - | AZ26: - | BA26: - | BB26: 49 | BE26: =IF($Y26<>"", INDEX(NPSデータ範囲, MATCH($Y26,NPS表側範囲,0), MATCH(BE$2&$BD$1,NPS表頭範囲,0) ),"") -> 49 | BF26: - | BG26: - | BH26: - | BI26: - | BJ26: - | BK26: - | BL26: - | BM26: - | BN26: - | BO26: - | BP26: - | BQ26: 49
A27: =IFERROR(INDEX($AP$6:$BB$125,$V27,$V$1),"") -> 25 | B27: =IFERROR(INDEX($Y$6:$Y$125,$V27,1),"") -> 一乗谷朝倉氏遺跡 エリア | C27: =IFERROR(INDEX($AA$6:$AM$125,$V27,$V$1),"") -> 31.6 | D27: =IFERROR(INDEX(【D】NPS!$GP$7:$HB$126,$V27,$V$1),"") -> 38件 | V27: 6 | X27: 回答エリア | Y27: =IF(【M】エリア!$E23<>"",【M】エリア!$E23,"") -> 道の駅「越前おおの荒島の郷」 エリア | AA27: 29.2 | AB27: - | AC27: - | AD27: - | AE27: - | AF27: - | AG27: - | AH27: - | AI27: - | AJ27: - | AK27: - | AL27: - | AM27: 29.2 | AP27: 27 | AQ27: - | AR27: - | AS27: - | AT27: - | AU27: - | AV27: - | AW27: - | AX27: - | AY27: - | AZ27: - | BA27: - | BB27: 27 | BE27: 27 | BF27: - | BG27: - | BH27: - | BI27: - | BJ27: - | BK27: - | BL27: - | BM27: - | BN27: - | BO27: - | BP27: - | BQ27: 27
A28: =IFERROR(INDEX($AP$6:$BB$125,$V28,$V$1),"") -> 26 | B28: =IFERROR(INDEX($Y$6:$Y$125,$V28,1),"") -> 小浜 エリア（宿泊施設） | C28: =IFERROR(INDEX($AA$6:$AM$125,$V28,$V$1),"") -> 30.0 | D28: =IFERROR(INDEX(【D】NPS!$GP$7:$HB$126,$V28,$V$1),"") -> 10件 | V28: 63 | X28: 回答エリア | Y28: =IF(【M】エリア!$E24<>"",【M】エリア!$E24,"") -> JR九頭竜湖駅 エリア | AA28: 20.0 | AB28: - | AC28: - | AD28: - | AE28: - | AF28: - | AG28: - | AH28: - | AI28: - | AJ28: - | AK28: - | AL28: - | AM28: 20.0 | AP28: 38 | AQ28: - | AR28: - | AS28: - | AT28: - | AU28: - | AV28: - | AW28: - | AX28: - | AY28: - | AZ28: - | BA28: - | BB28: 38 | BE28: 39 | BF28: - | BG28: - | BH28: - | BI28: - | BJ28: - | BK28: - | BL28: - | BM28: - | BN28: - | BO28: - | BP28: - | BQ28: 39
A29: =IFERROR(INDEX($AP$6:$BB$125,$V29,$V$1),"") -> 27 | B29: =IFERROR(INDEX($Y$6:$Y$125,$V29,1),"") -> 道の駅「越前おおの荒島の郷」 エリア | C29: =IFERROR(INDEX($AA$6:$AM$125,$V29,$V$1),"") -> 29.2 | D29: =IFERROR(INDEX(【D】NPS!$GP$7:$HB$126,$V29,$V$1),"") -> 48件 | V29: 22 | X29: 回答エリア | Y29: =IF(【M】エリア!$E25<>"",【M】エリア!$E25,"") -> 六呂師高原 エリア | AA29: 0.0 | AB29: - | AC29: - | AD29: - | AE29: - | AF29: - | AG29: - | AH29: - | AI29: - | AJ29: - | AK29: - | AL29: - | AM29: 0.0 | AP29: 50 | AQ29: - | AR29: - | AS29: - | AT29: - | AU29: - | AV29: - | AW29: - | AX29: - | AY29: - | AZ29: - | BA29: - | BB29: 50 | BE29: 52 | BF29: - | BG29: - | BH29: - | BI29: - | BJ29: - | BK29: - | BL29: - | BM29: - | BN29: - | BO29: - | BP29: - | BQ29: 52
A30: =IFERROR(INDEX($AP$6:$BB$125,$V30,$V$1),"") -> 28 | B30: =IFERROR(INDEX($Y$6:$Y$125,$V30,1),"") -> 大本山 永平寺 エリア | C30: =IFERROR(INDEX($AA$6:$AM$125,$V30,$V$1),"") -> 28.8 | D30: =IFERROR(INDEX(【D】NPS!$GP$7:$HB$126,$V30,$V$1),"") -> 104件 | V30: 32 | X30: 回答エリア | Y30: =IF(【M】エリア!$E26<>"",【M】エリア!$E26,"") -> かつやま恐竜の森 エリア | AA30: 42.0 | AB30: - | AC30: - | AD30: - | AE30: - | AF30: - | AG30: - | AH30: - | AI30: - | AJ30: - | AK30: - | AL30: - | AM30: 42.0 | AP30: 18 | AQ30: - | AR30: - | AS30: - | AT30: - | AU30: - | AV30: - | AW30: - | AX30: - | AY30: - | AZ30: - | BA30: - | BB30: 18 | BE30: 18 | BF30: - | BG30: - | BH30: - | BI30: - | BJ30: - | BK30: - | BL30: - | BM30: - | BN30: - | BO30: - | BP30: - | BQ30: 18
A31: =IFERROR(INDEX($AP$6:$BB$125,$V31,$V$1),"") -> 29 | B31: =IFERROR(INDEX($Y$6:$Y$125,$V31,1),"") -> JR美浜駅 エリア | C31: =IFERROR(INDEX($AA$6:$AM$125,$V31,$V$1),"") -> 28.6 | D31: =IFERROR(INDEX(【D】NPS!$GP$7:$HB$126,$V31,$V$1),"") -> 35件 | V31: 71 | X31: 回答エリア | Y31: =IF(【M】エリア!$E27<>"",【M】エリア!$E27,"") -> 道の駅「恐竜渓谷かつやま」 エリア | AA31: 0.0 | AB31: - | AC31: - | AD31: - | AE31: - | AF31: - | AG31: - | AH31: - | AI31: - | AJ31: - | AK31: - | AL31: - | AM31: 0.0 | AP31: 50 | AQ31: - | AR31: - | AS31: - | AT31: - | AU31: - | AV31: - | AW31: - | AX31: - | AY31: - | AZ31: - | BA31: - | BB31: 50 | BE31: 53 | BF31: - | BG31: - | BH31: - | BI31: - | BJ31: - | BK31: - | BL31: - | BM31: - | BN31: - | BO31: - | BP31: - | BQ31: 53
A32: =IFERROR(INDEX($AP$6:$BB$125,$V32,$V$1),"") -> 30 | B32: =IFERROR(INDEX($Y$6:$Y$125,$V32,1),"") -> 丸岡城 エリア | C32: =IFERROR(INDEX($AA$6:$AM$125,$V32,$V$1),"") -> 28.3 | D32: =IFERROR(INDEX(【D】NPS!$GP$7:$HB$126,$V32,$V$1),"") -> 46件 | V32: 13 | X32: 回答エリア | Y32: =IF(【M】エリア!$E28<>"",【M】エリア!$E28,"") -> 越前大仏 エリア | AA32: -33.3 | AB32: - | AC32: - | AD32: - | AE32: - | AF32: - | AG32: - | AH32: - | AI32: - | AJ32: - | AK32: - | AL32: - | AM32: -33.3 | AP32: 74 | AQ32: - | AR32: - | AS32: - | AT32: - | AU32: - | AV32: - | AW32: - | AX32: - | AY32: - | AZ32: - | BA32: - | BB32: 74 | BE32: 74 | BF32: - | BG32: - | BH32: - | BI32: - | BJ32: - | BK32: - | BL32: - | BM32: - | BN32: - | BO32: - | BP32: - | BQ32: 74
A33: =IFERROR(INDEX($AP$6:$BB$125,$V33,$V$1),"") -> 31 | B33: =IFERROR(INDEX($Y$6:$Y$125,$V33,1),"") -> 福井駅前 エリア（宿泊施設） | C33: =IFERROR(INDEX($AA$6:$AM$125,$V33,$V$1),"") -> 27.6 | D33: =IFERROR(INDEX(【D】NPS!$GP$7:$HB$126,$V33,$V$1),"") -> 29件 | V33: 2 | X33: 回答エリア | Y33: =IF(【M】エリア!$E29<>"",【M】エリア!$E29,"") -> 平泉寺白山神社 エリア | AA33: =IF($Y33<>"", INDEX(NPSデータ範囲, MATCH($Y33,NPS表側範囲,0), MATCH(AA$2&$Z$1,NPS表頭範囲,0) ),"") -> 80.0 | AB33: - | AC33: - | AD33: - | AE33: - | AF33: - | AG33: - | AH33: - | AI33: - | AJ33: - | AK33: - | AL33: - | AM33: 80.0 | AP33: 3 | AQ33: - | AR33: - | AS33: - | AT33: - | AU33: - | AV33: - | AW33: - | AX33: - | AY33: - | AZ33: - | BA33: - | BB33: 3 | BE33: 3 | BF33: - | BG33: - | BH33: - | BI33: - | BJ33: - | BK33: - | BL33: - | BM33: - | BN33: - | BO33: - | BP33: - | BQ33: 3
A34: =IFERROR(INDEX($AP$6:$BB$125,$V34,$V$1),"") -> 32 | B34: =IFERROR(INDEX($Y$6:$Y$125,$V34,1),"") -> 福井駅前 エリア | C34: =IFERROR(INDEX($AA$6:$AM$125,$V34,$V$1),"") -> 26.7 | D34: =IFERROR(INDEX(【D】NPS!$GP$7:$HB$126,$V34,$V$1),"") -> 60件 | V34: 1 | X34: 回答エリア | Y34: =IF(【M】エリア!$E30<>"",【M】エリア!$E30,"") -> はたや記念館 ゆめおーれ勝山 エリア | AA34: -100.0 | AB34: - | AC34: - | AD34: - | AE34: - | AF34: - | AG34: - | AH34: - | AI34: - | AJ34: - | AK34: - | AL34: - | AM34: -100.0 | AP34: 79 | AQ34: - | AR34: - | AS34: - | AT34: - | AU34: - | AV34: - | AW34: - | AX34: - | AY34: - | AZ34: - | BA34: - | BB34: 79 | BE34: 79 | BF34: - | BG34: - | BH34: - | BI34: - | BJ34: - | BK34: - | BL34: - | BM34: - | BN34: - | BO34: - | BP34: - | BQ34: 79
A35: =IFERROR(INDEX($AP$6:$BB$125,$V35,$V$1),"") -> 33 | B35: =IFERROR(INDEX($Y$6:$Y$125,$V35,1),"") -> 越前そばの里 エリア | C35: =IFERROR(INDEX($AA$6:$AM$125,$V35,$V$1),"") -> 25.4 | D35: =IFERROR(INDEX(【D】NPS!$GP$7:$HB$126,$V35,$V$1),"") -> 63件 | V35: =IFERROR(MATCH(ROW(B35)-2,INDEX($BE$6:$BQ$125,,$V$1),0),"-") -> 34 | X35: 回答エリア | Y35: =IF(【M】エリア!$E31<>"",【M】エリア!$E31,"") -> えちぜん鉄道 永平寺口駅 エリア | AA35: -100.0 | AB35: - | AC35: - | AD35: - | AE35: - | AF35: - | AG35: - | AH35: - | AI35: - | AJ35: - | AK35: - | AL35: - | AM35: -100.0 | AP35: 79 | AQ35: - | AR35: - | AS35: - | AT35: - | AU35: - | AV35: - | AW35: - | AX35: - | AY35: - | AZ35: - | BA35: - | BB35: 79 | BE35: 80 | BF35: - | BG35: - | BH35: - | BI35: - | BJ35: - | BK35: - | BL35: - | BM35: - | BN35: - | BO35: - | BP35: - | BQ35: 80
A36: =IFERROR(INDEX($AP$6:$BB$125,$V36,$V$1),"") -> 34 | B36: =IFERROR(INDEX($Y$6:$Y$125,$V36,1),"") -> 越前陶芸村 エリア | C36: =IFERROR(INDEX($AA$6:$AM$125,$V36,$V$1),"") -> 25.0 | D36: =IFERROR(INDEX(【D】NPS!$GP$7:$HB$126,$V36,$V$1),"") -> 20件 | V36: 48 | X36: 回答エリア | Y36: =IF(【M】エリア!$E32<>"",【M】エリア!$E32,"") -> えちぜん鉄道 松岡駅 エリア | AA36: -33.3 | AB36: - | AC36: - | AD36: - | AE36: - | AF36: - | AG36: - | AH36: - | AI36: - | AJ36: - | AK36: - | AL36: - | AM36: -33.3 | AP36: =IF($Y36<>"", INDEX(NPSデータ範囲, MATCH($Y36,NPS表側範囲,0), MATCH(AP$2&$AO$1,NPS表頭範囲,0) ),"") -> 72 | AQ36: - | AR36: - | AS36: - | AT36: - | AU36: - | AV36: - | AW36: - | AX36: - | AY36: - | AZ36: - | BA36: - | BB36: 72 | BE36: =IF($Y36<>"", INDEX(NPSデータ範囲, MATCH($Y36,NPS表側範囲,0), MATCH(BE$2&$BD$1,NPS表頭範囲,0) ),"") -> 72 | BF36: - | BG36: - | BH36: - | BI36: - | BJ36: - | BK36: - | BL36: - | BM36: - | BN36: - | BO36: - | BP36: - | BQ36: 72
A37: =IFERROR(INDEX($AP$6:$BB$125,$V37,$V$1),"") -> 35 | B37: =IFERROR(INDEX($Y$6:$Y$125,$V37,1),"") -> ふくい鮮いちば エリア | C37: =IFERROR(INDEX($AA$6:$AM$125,$V37,$V$1),"") -> 25.0 | D37: =IFERROR(INDEX(【D】NPS!$GP$7:$HB$126,$V37,$V$1),"") -> 24件 | V37: 5 | X37: 回答エリア | Y37: =IF(【M】エリア!$E33<>"",【M】エリア!$E33,"") -> 大本山 永平寺 エリア | AA37: 28.8 | AB37: - | AC37: - | AD37: - | AE37: - | AF37: - | AG37: - | AH37: - | AI37: - | AJ37: - | AK37: - | AL37: - | AM37: 28.8 | AP37: 28 | AQ37: - | AR37: - | AS37: - | AT37: - | AU37: - | AV37: - | AW37: - | AX37: - | AY37: - | AZ37: - | BA37: - | BB37: 28 | BE37: 28 | BF37: - | BG37: - | BH37: - | BI37: - | BJ37: - | BK37: - | BL37: - | BM37: - | BN37: - | BO37: - | BP37: - | BQ37: 28
A38: =IFERROR(INDEX($AP$6:$BB$125,$V38,$V$1),"") -> 36 | B38: =IFERROR(INDEX($Y$6:$Y$125,$V38,1),"") -> 越前海岸 北部 エリア | C38: =IFERROR(INDEX($AA$6:$AM$125,$V38,$V$1),"") -> 23.1 | D38: =IFERROR(INDEX(【D】NPS!$GP$7:$HB$126,$V38,$V$1),"") -> 13件 | V38: 7 | X38: 回答エリア | Y38: =IF(【M】エリア!$E34<>"",【M】エリア!$E34,"") -> 道の駅「禅の里」 エリア | AA38: -57.1 | AB38: - | AC38: - | AD38: - | AE38: - | AF38: - | AG38: - | AH38: - | AI38: - | AJ38: - | AK38: - | AL38: - | AM38: -57.1 | AP38: 77 | AQ38: - | AR38: - | AS38: - | AT38: - | AU38: - | AV38: - | AW38: - | AX38: - | AY38: - | AZ38: - | BA38: - | BB38: 77 | BE38: 77 | BF38: - | BG38: - | BH38: - | BI38: - | BJ38: - | BK38: - | BL38: - | BM38: - | BN38: - | BO38: - | BP38: - | BQ38: 77
A39: =IFERROR(INDEX($AP$6:$BB$125,$V39,$V$1),"") -> 37 | B39: =IFERROR(INDEX($Y$6:$Y$125,$V39,1),"") -> かずら橋 エリア | C39: =IFERROR(INDEX($AA$6:$AM$125,$V39,$V$1),"") -> 22.2 | D39: =IFERROR(INDEX(【D】NPS!$GP$7:$HB$126,$V39,$V$1),"") -> 36件 | V39: 44 | X39: 回答エリア | Y39: =IF(【M】エリア!$E35<>"",【M】エリア!$E35,"") -> 越前そばの里 エリア | AA39: 25.4 | AB39: - | AC39: - | AD39: - | AE39: - | AF39: - | AG39: - | AH39: - | AI39: - | AJ39: - | AK39: - | AL39: - | AM39: 25.4 | AP39: 33 | AQ39: - | AR39: - | AS39: - | AT39: - | AU39: - | AV39: - | AW39: - | AX39: - | AY39: - | AZ39: - | BA39: - | BB39: 33 | BE39: 33 | BF39: - | BG39: - | BH39: - | BI39: - | BJ39: - | BK39: - | BL39: - | BM39: - | BN39: - | BO39: - | BP39: - | BQ39: 33
A40: =IFERROR(INDEX($AP$6:$BB$125,$V40,$V$1),"") -> 38 | B40: =IFERROR(INDEX($Y$6:$Y$125,$V40,1),"") -> 三国湊 エリア | C40: =IFERROR(INDEX($AA$6:$AM$125,$V40,$V$1),"") -> 20.0 | D40: =IFERROR(INDEX(【D】NPS!$GP$7:$HB$126,$V40,$V$1),"") -> 15件 | V40: 9 | X40: 回答エリア | Y40: =IF(【M】エリア!$E36<>"",【M】エリア!$E36,"") -> 北陸新幹線 越前たけふ駅 エリア | AA40: -7.7 | AB40: - | AC40: - | AD40: - | AE40: - | AF40: - | AG40: - | AH40: - | AI40: - | AJ40: - | AK40: - | AL40: - | AM40: -7.7 | AP40: 64 | AQ40: - | AR40: - | AS40: - | AT40: - | AU40: - | AV40: - | AW40: - | AX40: - | AY40: - | AZ40: - | BA40: - | BB40: 64 | BE40: 64 | BF40: - | BG40: - | BH40: - | BI40: - | BJ40: - | BK40: - | BL40: - | BM40: - | BN40: - | BO40: - | BP40: - | BQ40: 64
A41: =IFERROR(INDEX($AP$6:$BB$125,$V41,$V$1),"") -> 38 | B41: =IFERROR(INDEX($Y$6:$Y$125,$V41,1),"") -> JR九頭竜湖駅 エリア | C41: =IFERROR(INDEX($AA$6:$AM$125,$V41,$V$1),"") -> 20.0 | D41: =IFERROR(INDEX(【D】NPS!$GP$7:$HB$126,$V41,$V$1),"") -> 10件 | V41: 23 | X41: 回答エリア | Y41: =IF(【M】エリア!$E37<>"",【M】エリア!$E37,"") -> タケフナイフビレッジ エリア | AA41: 50.0 | AB41: - | AC41: - | AD41: - | AE41: - | AF41: - | AG41: - | AH41: - | AI41: - | AJ41: - | AK41: - | AL41: - | AM41: 50.0 | AP41: 9 | AQ41: - | AR41: - | AS41: - | AT41: - | AU41: - | AV41: - | AW41: - | AX41: - | AY41: - | AZ41: - | BA41: - | BB41: 9 | BE41: 10 | BF41: - | BG41: - | BH41: - | BI41: - | BJ41: - | BK41: - | BL41: - | BM41: - | BN41: - | BO41: - | BP41: - | BQ41: 10
A42: =IFERROR(INDEX($AP$6:$BB$125,$V42,$V$1),"") -> 38 | B42: =IFERROR(INDEX($Y$6:$Y$125,$V42,1),"") -> 神楽通り エリア | C42: =IFERROR(INDEX($AA$6:$AM$125,$V42,$V$1),"") -> 20.0 | D42: =IFERROR(INDEX(【D】NPS!$GP$7:$HB$126,$V42,$V$1),"") -> 15件 | V42: 57 | X42: 回答エリア | Y42: =IF(【M】エリア!$E38<>"",【M】エリア!$E38,"") -> 武生駅 エリア | AA42: -33.3 | AB42: - | AC42: - | AD42: - | AE42: - | AF42: - | AG42: - | AH42: - | AI42: - | AJ42: - | AK42: - | AL42: - | AM42: -33.3 | AP42: 74 | AQ42: - | AR42: - | AS42: - | AT42: - | AU42: - | AV42: - | AW42: - | AX42: - | AY42: - | AZ42: - | BA42: - | BB42: 74 | BE42: 75 | BF42: - | BG42: - | BH42: - | BI42: - | BJ42: - | BK42: - | BL42: - | BM42: - | BN42: - | BO42: - | BP42: - | BQ42: 75
A43: =IFERROR(INDEX($AP$6:$BB$125,$V43,$V$1),"") -> 41 | B43: =IFERROR(INDEX($Y$6:$Y$125,$V43,1),"") -> フルーツライン エリア | C43: =IFERROR(INDEX($AA$6:$AM$125,$V43,$V$1),"") -> 18.2 | D43: =IFERROR(INDEX(【D】NPS!$GP$7:$HB$126,$V43,$V$1),"") -> 11件 | V43: 18 | X43: 回答エリア | Y43: =IF(【M】エリア!$E39<>"",【M】エリア!$E39,"") -> 紫式部公園 エリア | AA43: =IF($Y43<>"", INDEX(NPSデータ範囲, MATCH($Y43,NPS表側範囲,0), MATCH(AA$2&$Z$1,NPS表頭範囲,0) ),"") -> 33.3 | AB43: - | AC43: - | AD43: - | AE43: - | AF43: - | AG43: - | AH43: - | AI43: - | AJ43: - | AK43: - | AL43: - | AM43: 33.3 | AP43: 23 | AQ43: - | AR43: - | AS43: - | AT43: - | AU43: - | AV43: - | AW43: - | AX43: - | AY43: - | AZ43: - | BA43: - | BB43: 23 | BE43: 23 | BF43: - | BG43: - | BH43: - | BI43: - | BJ43: - | BK43: - | BL43: - | BM43: - | BN43: - | BO43: - | BP43: - | BQ43: 23
A44: =IFERROR(INDEX($AP$6:$BB$125,$V44,$V$1),"") -> 42 | B44: =IFERROR(INDEX($Y$6:$Y$125,$V44,1),"") -> うるしの里 エリア | C44: =IFERROR(INDEX($AA$6:$AM$125,$V44,$V$1),"") -> 16.7 | D44: =IFERROR(INDEX(【D】NPS!$GP$7:$HB$126,$V44,$V$1),"") -> 6件 | V44: 42 | X44: 回答エリア | Y44: =IF(【M】エリア!$E40<>"",【M】エリア!$E40,"") -> だるまちゃん広場 エリア | AA44: 83.3 | AB44: - | AC44: - | AD44: - | AE44: - | AF44: - | AG44: - | AH44: - | AI44: - | AJ44: - | AK44: - | AL44: - | AM44: 83.3 | AP44: 2 | AQ44: - | AR44: - | AS44: - | AT44: - | AU44: - | AV44: - | AW44: - | AX44: - | AY44: - | AZ44: - | BA44: - | BB44: 2 | BE44: 2 | BF44: - | BG44: - | BH44: - | BI44: - | BJ44: - | BK44: - | BL44: - | BM44: - | BN44: - | BO44: - | BP44: - | BQ44: 2
A45: =IFERROR(INDEX($AP$6:$BB$125,$V45,$V$1),"") -> 43 | B45: =IFERROR(INDEX($Y$6:$Y$125,$V45,1),"") -> まちの駅 こってコテいけだ エリア | C45: =IFERROR(INDEX($AA$6:$AM$125,$V45,$V$1),"") -> 14.3 | D45: =IFERROR(INDEX(【D】NPS!$GP$7:$HB$126,$V45,$V$1),"") -> 14件 | V45: 43 | X45: 回答エリア | Y45: =IF(【M】エリア!$E41<>"",【M】エリア!$E41,"") -> 道の駅「西山公園」 エリア | AA45: 43.8 | AB45: - | AC45: - | AD45: - | AE45: - | AF45: - | AG45: - | AH45: - | AI45: - | AJ45: - | AK45: - | AL45: - | AM45: 43.8 | AP45: 16 | AQ45: - | AR45: - | AS45: - | AT45: - | AU45: - | AV45: - | AW45: - | AX45: - | AY45: - | AZ45: - | BA45: - | BB45: 16 | BE45: 16 | BF45: - | BG45: - | BH45: - | BI45: - | BJ45: - | BK45: - | BL45: - | BM45: - | BN45: - | BO45: - | BP45: - | BQ45: 16
A46: =IFERROR(INDEX($AP$6:$BB$125,$V46,$V$1),"") -> 43 | B46: =IFERROR(INDEX($Y$6:$Y$125,$V46,1),"") -> 若狭和田 エリア | C46: =IFERROR(INDEX($AA$6:$AM$125,$V46,$V$1),"") -> 14.3 | D46: =IFERROR(INDEX(【D】NPS!$GP$7:$HB$126,$V46,$V$1),"") -> 7件 | V46: 79 | X46: 回答エリア | Y46: =IF(【M】エリア!$E42<>"",【M】エリア!$E42,"") -> メガネストリート エリア | AA46: -5.6 | AB46: - | AC46: - | AD46: - | AE46: - | AF46: - | AG46: - | AH46: - | AI46: - | AJ46: - | AK46: - | AL46: - | AM46: -5.6 | AP46: =IF($Y46<>"", INDEX(NPSデータ範囲, MATCH($Y46,NPS表側範囲,0), MATCH(AP$2&$AO$1,NPS表頭範囲,0) ),"") -> 62 | AQ46: - | AR46: - | AS46: - | AT46: - | AU46: - | AV46: - | AW46: - | AX46: - | AY46: - | AZ46: - | BA46: - | BB46: 62 | BE46: =IF($Y46<>"", INDEX(NPSデータ範囲, MATCH($Y46,NPS表側範囲,0), MATCH(BE$2&$BD$1,NPS表頭範囲,0) ),"") -> 62 | BF46: - | BG46: - | BH46: - | BI46: - | BJ46: - | BK46: - | BL46: - | BM46: - | BN46: - | BO46: - | BP46: - | BQ46: 62
A47: =IFERROR(INDEX($AP$6:$BB$125,$V47,$V$1),"") -> 45 | B47: =IFERROR(INDEX($Y$6:$Y$125,$V47,1),"") -> うみんぴあ大飯 エリア | C47: =IFERROR(INDEX($AA$6:$AM$125,$V47,$V$1),"") -> 10.5 | D47: =IFERROR(INDEX(【D】NPS!$GP$7:$HB$126,$V47,$V$1),"") -> 19件 | V47: 75 | X47: 回答エリア | Y47: =IF(【M】エリア!$E43<>"",【M】エリア!$E43,"") -> うるしの里 エリア | AA47: 16.7 | AB47: - | AC47: - | AD47: - | AE47: - | AF47: - | AG47: - | AH47: - | AI47: - | AJ47: - | AK47: - | AL47: - | AM47: 16.7 | AP47: 42 | AQ47: - | AR47: - | AS47: - | AT47: - | AU47: - | AV47: - | AW47: - | AX47: - | AY47: - | AZ47: - | BA47: - | BB47: 42 | BE47: 42 | BF47: - | BG47: - | BH47: - | BI47: - | BJ47: - | BK47: - | BL47: - | BM47: - | BN47: - | BO47: - | BP47: - | BQ47: 42
A48: =IFERROR(INDEX($AP$6:$BB$125,$V48,$V$1),"") -> 46 | B48: =IFERROR(INDEX($Y$6:$Y$125,$V48,1),"") -> JR芦原温泉駅 エリア | C48: =IFERROR(INDEX($AA$6:$AM$125,$V48,$V$1),"") -> 10.0 | D48: =IFERROR(INDEX(【D】NPS!$GP$7:$HB$126,$V48,$V$1),"") -> 10件 | V48: 16 | X48: 回答エリア | Y48: =IF(【M】エリア!$E44<>"",【M】エリア!$E44,"") -> まちの駅 こってコテいけだ エリア | AA48: 14.3 | AB48: - | AC48: - | AD48: - | AE48: - | AF48: - | AG48: - | AH48: - | AI48: - | AJ48: - | AK48: - | AL48: - | AM48: 14.3 | AP48: 43 | AQ48: - | AR48: - | AS48: - | AT48: - | AU48: - | AV48: - | AW48: - | AX48: - | AY48: - | AZ48: - | BA48: - | BB48: 43 | BE48: 43 | BF48: - | BG48: - | BH48: - | BI48: - | BJ48: - | BK48: - | BL48: - | BM48: - | BN48: - | BO48: - | BP48: - | BQ48: 43
A49: =IFERROR(INDEX($AP$6:$BB$125,$V49,$V$1),"") -> 47 | B49: =IFERROR(INDEX($Y$6:$Y$125,$V49,1),"") -> 若狭高浜 エリア | C49: =IFERROR(INDEX($AA$6:$AM$125,$V49,$V$1),"") -> 7.7 | D49: =IFERROR(INDEX(【D】NPS!$GP$7:$HB$126,$V49,$V$1),"") -> 13件 | V49: 80 | X49: 回答エリア | Y49: =IF(【M】エリア!$E45<>"",【M】エリア!$E45,"") -> かずら橋 エリア | AA49: 22.2 | AB49: - | AC49: - | AD49: - | AE49: - | AF49: - | AG49: - | AH49: - | AI49: - | AJ49: - | AK49: - | AL49: - | AM49: 22.2 | AP49: 37 | AQ49: - | AR49: - | AS49: - | AT49: - | AU49: - | AV49: - | AW49: - | AX49: - | AY49: - | AZ49: - | BA49: - | BB49: 37 | BE49: 37 | BF49: - | BG49: - | BH49: - | BI49: - | BJ49: - | BK49: - | BL49: - | BM49: - | BN49: - | BO49: - | BP49: - | BQ49: 37
A50: =IFERROR(INDEX($AP$6:$BB$125,$V50,$V$1),"") -> 48 | B50: =IFERROR(INDEX($Y$6:$Y$125,$V50,1),"") -> 東尋坊 エリア | C50: =IFERROR(INDEX($AA$6:$AM$125,$V50,$V$1),"") -> 6.9 | D50: =IFERROR(INDEX(【D】NPS!$GP$7:$HB$126,$V50,$V$1),"") -> 29件 | V50: 10 | X50: 回答エリア | Y50: =IF(【M】エリア!$E46<>"",【M】エリア!$E46,"") -> 道の駅「越前」 エリア | AA50: 45.5 | AB50: - | AC50: - | AD50: - | AE50: - | AF50: - | AG50: - | AH50: - | AI50: - | AJ50: - | AK50: - | AL50: - | AM50: 45.5 | AP50: 13 | AQ50: - | AR50: - | AS50: - | AT50: - | AU50: - | AV50: - | AW50: - | AX50: - | AY50: - | AZ50: - | BA50: - | BB50: 13 | BE50: 14 | BF50: - | BG50: - | BH50: - | BI50: - | BJ50: - | BK50: - | BL50: - | BM50: - | BN50: - | BO50: - | BP50: - | BQ50: 14
A51: =IFERROR(INDEX($AP$6:$BB$125,$V51,$V$1),"") -> 49 | B51: =IFERROR(INDEX($Y$6:$Y$125,$V51,1),"") -> 越前大野城・城下町 エリア | C51: =IFERROR(INDEX($AA$6:$AM$125,$V51,$V$1),"") -> 2.0 | D51: =IFERROR(INDEX(【D】NPS!$GP$7:$HB$126,$V51,$V$1),"") -> 50件 | V51: 21 | X51: 回答エリア | Y51: =IF(【M】エリア!$E47<>"",【M】エリア!$E47,"") -> 道の駅「パークイン丹生ヶ丘」 エリア | AA51: -40.0 | AB51: - | AC51: - | AD51: - | AE51: - | AF51: - | AG51: - | AH51: - | AI51: - | AJ51: - | AK51: - | AL51: - | AM51: -40.0 | AP51: 76 | AQ51: - | AR51: - | AS51: - | AT51: - | AU51: - | AV51: - | AW51: - | AX51: - | AY51: - | AZ51: - | BA51: - | BB51: 76 | BE51: 76 | BF51: - | BG51: - | BH51: - | BI51: - | BJ51: - | BK51: - | BL51: - | BM51: - | BN51: - | BO51: - | BP51: - | BQ51: 76
A52: =IFERROR(INDEX($AP$6:$BB$125,$V52,$V$1),"") -> 50 | B52: =IFERROR(INDEX($Y$6:$Y$125,$V52,1),"") -> 大安禅寺 エリア | C52: =IFERROR(INDEX($AA$6:$AM$125,$V52,$V$1),"") -> 0.0 | D52: =IFERROR(INDEX(【D】NPS!$GP$7:$HB$126,$V52,$V$1),"") -> 1件 | V52: 8 | X52: 回答エリア | Y52: =IF(【M】エリア!$E48<>"",【M】エリア!$E48,"") -> 劔神社 エリア | AA52: -66.7 | AB52: - | AC52: - | AD52: - | AE52: - | AF52: - | AG52: - | AH52: - | AI52: - | AJ52: - | AK52: - | AL52: - | AM52: -66.7 | AP52: 78 | AQ52: - | AR52: - | AS52: - | AT52: - | AU52: - | AV52: - | AW52: - | AX52: - | AY52: - | AZ52: - | BA52: - | BB52: 78 | BE52: 78 | BF52: - | BG52: - | BH52: - | BI52: - | BJ52: - | BK52: - | BL52: - | BM52: - | BN52: - | BO52: - | BP52: - | BQ52: 78
A53: =IFERROR(INDEX($AP$6:$BB$125,$V53,$V$1),"") -> 50 | B53: =IFERROR(INDEX($Y$6:$Y$125,$V53,1),"") -> 波松 エリア | C53: =IFERROR(INDEX($AA$6:$AM$125,$V53,$V$1),"") -> 0.0 | D53: =IFERROR(INDEX(【D】NPS!$GP$7:$HB$126,$V53,$V$1),"") -> 1件 | V53: 19 | X53: 回答エリア | Y53: =IF(【M】エリア!$E49<>"",【M】エリア!$E49,"") -> 越前陶芸村 エリア | AA53: =IF($Y53<>"", INDEX(NPSデータ範囲, MATCH($Y53,NPS表側範囲,0), MATCH(AA$2&$Z$1,NPS表頭範囲,0) ),"") -> 25.0 | AB53: - | AC53: - | AD53: - | AE53: - | AF53: - | AG53: - | AH53: - | AI53: - | AJ53: - | AK53: - | AL53: - | AM53: 25.0 | AP53: 34 | AQ53: - | AR53: - | AS53: - | AT53: - | AU53: - | AV53: - | AW53: - | AX53: - | AY53: - | AZ53: - | BA53: - | BB53: 34 | BE53: 34 | BF53: - | BG53: - | BH53: - | BI53: - | BJ53: - | BK53: - | BL53: - | BM53: - | BN53: - | BO53: - | BP53: - | BQ53: 34
A54: =IFERROR(INDEX($AP$6:$BB$125,$V54,$V$1),"") -> 50 | B54: =IFERROR(INDEX($Y$6:$Y$125,$V54,1),"") -> 六呂師高原 エリア | C54: =IFERROR(INDEX($AA$6:$AM$125,$V54,$V$1),"") -> 0.0 | D54: =IFERROR(INDEX(【D】NPS!$GP$7:$HB$126,$V54,$V$1),"") -> 3件 | V54: 24 | X54: 回答エリア | Y54: =IF(【M】エリア!$E50<>"",【M】エリア!$E50,"") -> 越前海岸 越前岬 エリア | AA54: 0.0 | AB54: - | AC54: - | AD54: - | AE54: - | AF54: - | AG54: - | AH54: - | AI54: - | AJ54: - | AK54: - | AL54: - | AM54: 0.0 | AP54: 50 | AQ54: - | AR54: - | AS54: - | AT54: - | AU54: - | AV54: - | AW54: - | AX54: - | AY54: - | AZ54: - | BA54: - | BB54: 50 | BE54: 54 | BF54: - | BG54: - | BH54: - | BI54: - | BJ54: - | BK54: - | BL54: - | BM54: - | BN54: - | BO54: - | BP54: - | BQ54: 54
A55: =IFERROR(INDEX($AP$6:$BB$125,$V55,$V$1),"") -> 50 | B55: =IFERROR(INDEX($Y$6:$Y$125,$V55,1),"") -> 道の駅「恐竜渓谷かつやま」 エリア | C55: =IFERROR(INDEX($AA$6:$AM$125,$V55,$V$1),"") -> 0.0 | D55: =IFERROR(INDEX(【D】NPS!$GP$7:$HB$126,$V55,$V$1),"") -> 62件 | V55: 26 | X55: 回答エリア | Y55: =IF(【M】エリア!$E51<>"",【M】エリア!$E51,"") -> 越前漁港 エリア | AA55: 100.0 | AB55: - | AC55: - | AD55: - | AE55: - | AF55: - | AG55: - | AH55: - | AI55: - | AJ55: - | AK55: - | AL55: - | AM55: 100.0 | AP55: 1 | AQ55: - | AR55: - | AS55: - | AT55: - | AU55: - | AV55: - | AW55: - | AX55: - | AY55: - | AZ55: - | BA55: - | BB55: 1 | BE55: 1 | BF55: - | BG55: - | BH55: - | BI55: - | BJ55: - | BK55: - | BL55: - | BM55: - | BN55: - | BO55: - | BP55: - | BQ55: 1
A56: =IFERROR(INDEX($AP$6:$BB$125,$V56,$V$1),"") -> 50 | B56: =IFERROR(INDEX($Y$6:$Y$125,$V56,1),"") -> 越前海岸 越前岬 エリア | C56: =IFERROR(INDEX($AA$6:$AM$125,$V56,$V$1),"") -> 0.0 | D56: =IFERROR(INDEX(【D】NPS!$GP$7:$HB$126,$V56,$V$1),"") -> 1件 | V56: 49 | X56: 回答エリア | Y56: =IF(【M】エリア!$E52<>"",【M】エリア!$E52,"") -> 越前海岸 高佐米ノ旅館街 エリア | AA56: -12.5 | AB56: - | AC56: - | AD56: - | AE56: - | AF56: - | AG56: - | AH56: - | AI56: - | AJ56: - | AK56: - | AL56: - | AM56: -12.5 | AP56: =IF($Y56<>"", INDEX(NPSデータ範囲, MATCH($Y56,NPS表側範囲,0), MATCH(AP$2&$AO$1,NPS表頭範囲,0) ),"") -> 66 | AQ56: - | AR56: - | AS56: - | AT56: - | AU56: - | AV56: - | AW56: - | AX56: - | AY56: - | AZ56: - | BA56: - | BB56: 66 | BE56: =IF($Y56<>"", INDEX(NPSデータ範囲, MATCH($Y56,NPS表側範囲,0), MATCH(BE$2&$BD$1,NPS表頭範囲,0) ),"") -> 66 | BF56: - | BG56: - | BH56: - | BI56: - | BJ56: - | BK56: - | BL56: - | BM56: - | BN56: - | BO56: - | BP56: - | BQ56: 66
A57: =IFERROR(INDEX($AP$6:$BB$125,$V57,$V$1),"") -> 50 | B57: =IFERROR(INDEX($Y$6:$Y$125,$V57,1),"") -> 金ヶ崎 エリア | C57: =IFERROR(INDEX($AA$6:$AM$125,$V57,$V$1),"") -> 0.0 | D57: =IFERROR(INDEX(【D】NPS!$GP$7:$HB$126,$V57,$V$1),"") -> 20件 | V57: 59 | X57: 回答エリア | Y57: =IF(【M】エリア!$E53<>"",【M】エリア!$E53,"") -> 越前海岸 くりや旅館街 エリア | AA57: -33.3 | AB57: - | AC57: - | AD57: - | AE57: - | AF57: - | AG57: - | AH57: - | AI57: - | AJ57: - | AK57: - | AL57: - | AM57: -33.3 | AP57: 72 | AQ57: - | AR57: - | AS57: - | AT57: - | AU57: - | AV57: - | AW57: - | AX57: - | AY57: - | AZ57: - | BA57: - | BB57: 72 | BE57: 73 | BF57: - | BG57: - | BH57: - | BI57: - | BJ57: - | BK57: - | BL57: - | BM57: - | BN57: - | BO57: - | BP57: - | BQ57: 73
A58: =IFERROR(INDEX($AP$6:$BB$125,$V58,$V$1),"") -> 50 | B58: =IFERROR(INDEX($Y$6:$Y$125,$V58,1),"") -> 道の駅「若狭おばま」 エリア | C58: =IFERROR(INDEX($AA$6:$AM$125,$V58,$V$1),"") -> 0.0 | D58: =IFERROR(INDEX(【D】NPS!$GP$7:$HB$126,$V58,$V$1),"") -> 27件 | V58: 62 | X58: 回答エリア | Y58: =IF(【M】エリア!$E54<>"",【M】エリア!$E54,"") -> 道の駅「南えちぜん山海里」 エリア | AA58: 51.9 | AB58: - | AC58: - | AD58: - | AE58: - | AF58: - | AG58: - | AH58: - | AI58: - | AJ58: - | AK58: - | AL58: - | AM58: 51.9 | AP58: 8 | AQ58: - | AR58: - | AS58: - | AT58: - | AU58: - | AV58: - | AW58: - | AX58: - | AY58: - | AZ58: - | BA58: - | BB58: 8 | BE58: 8 | BF58: - | BG58: - | BH58: - | BI58: - | BJ58: - | BK58: - | BL58: - | BM58: - | BN58: - | BO58: - | BP58: - | BQ58: 8
A59: =IFERROR(INDEX($AP$6:$BB$125,$V59,$V$1),"") -> 50 | B59: =IFERROR(INDEX($Y$6:$Y$125,$V59,1),"") -> 明通寺 エリア | C59: =IFERROR(INDEX($AA$6:$AM$125,$V59,$V$1),"") -> 0.0 | D59: =IFERROR(INDEX(【D】NPS!$GP$7:$HB$126,$V59,$V$1),"") -> 4件 | V59: 67 | X59: 回答エリア | Y59: =IF(【M】エリア!$E55<>"",【M】エリア!$E55,"") -> 河野北前船主通りエリア | AA59: -100.0 | AB59: - | AC59: - | AD59: - | AE59: - | AF59: - | AG59: - | AH59: - | AI59: - | AJ59: - | AK59: - | AL59: - | AM59: -100.0 | AP59: 79 | AQ59: - | AR59: - | AS59: - | AT59: - | AU59: - | AV59: - | AW59: - | AX59: - | AY59: - | AZ59: - | BA59: - | BB59: 79 | BE59: 81 | BF59: - | BG59: - | BH59: - | BI59: - | BJ59: - | BK59: - | BL59: - | BM59: - | BN59: - | BO59: - | BP59: - | BQ59: 81
A60: =IFERROR(INDEX($AP$6:$BB$125,$V60,$V$1),"") -> 50 | B60: =IFERROR(INDEX($Y$6:$Y$125,$V60,1),"") -> 道の駅「三方五湖」 エリア | C60: =IFERROR(INDEX($AA$6:$AM$125,$V60,$V$1),"") -> 0.0 | D60: =IFERROR(INDEX(【D】NPS!$GP$7:$HB$126,$V60,$V$1),"") -> 29件 | V60: 74 | X60: 回答エリア | Y60: =IF(【M】エリア!$E56<>"",【M】エリア!$E56,"") -> 今庄宿 エリア | AA60: 66.7 | AB60: - | AC60: - | AD60: - | AE60: - | AF60: - | AG60: - | AH60: - | AI60: - | AJ60: - | AK60: - | AL60: - | AM60: 66.7 | AP60: 5 | AQ60: - | AR60: - | AS60: - | AT60: - | AU60: - | AV60: - | AW60: - | AX60: - | AY60: - | AZ60: - | BA60: - | BB60: 5 | BE60: 5 | BF60: - | BG60: - | BH60: - | BI60: - | BJ60: - | BK60: - | BL60: - | BM60: - | BN60: - | BO60: - | BP60: - | BQ60: 5
A61: =IFERROR(INDEX($AP$6:$BB$125,$V61,$V$1),"") -> 50 | B61: =IFERROR(INDEX($Y$6:$Y$125,$V61,1),"") -> 赤礁崎オートキャンプ場 エリア | C61: =IFERROR(INDEX($AA$6:$AM$125,$V61,$V$1),"") -> 0.0 | D61: =IFERROR(INDEX(【D】NPS!$GP$7:$HB$126,$V61,$V$1),"") -> 1件 | V61: 78 | X61: 回答エリア | Y61: =IF(【M】エリア!$E57<>"",【M】エリア!$E57,"") -> 日本海さかな街 エリア | AA61: -23.5 | AB61: - | AC61: - | AD61: - | AE61: - | AF61: - | AG61: - | AH61: - | AI61: - | AJ61: - | AK61: - | AL61: - | AM61: -23.5 | AP61: 70 | AQ61: - | AR61: - | AS61: - | AT61: - | AU61: - | AV61: - | AW61: - | AX61: - | AY61: - | AZ61: - | BA61: - | BB61: 70 | BE61: 70 | BF61: - | BG61: - | BH61: - | BI61: - | BJ61: - | BK61: - | BL61: - | BM61: - | BN61: - | BO61: - | BP61: - | BQ61: 70
A62: =IFERROR(INDEX($AP$6:$BB$125,$V62,$V$1),"") -> 50 | B62: =IFERROR(INDEX($Y$6:$Y$125,$V62,1),"") -> 竹田エリア | C62: =IFERROR(INDEX($AA$6:$AM$125,$V62,$V$1),"") -> 0.0 | D62: =IFERROR(INDEX(【D】NPS!$GP$7:$HB$126,$V62,$V$1),"") -> 29件 | V62: 81 | X62: 回答エリア | Y62: =IF(【M】エリア!$E58<>"",【M】エリア!$E58,"") -> 神楽通り エリア | AA62: 20.0 | AB62: - | AC62: - | AD62: - | AE62: - | AF62: - | AG62: - | AH62: - | AI62: - | AJ62: - | AK62: - | AL62: - | AM62: 20.0 | AP62: 38 | AQ62: - | AR62: - | AS62: - | AT62: - | AU62: - | AV62: - | AW62: - | AX62: - | AY62: - | AZ62: - | BA62: - | BB62: 38 | BE62: 40 | BF62: - | BG62: - | BH62: - | BI62: - | BJ62: - | BK62: - | BL62: - | BM62: - | BN62: - | BO62: - | BP62: - | BQ62: 40
A63: =IFERROR(INDEX($AP$6:$BB$125,$V63,$V$1),"") -> 61 | B63: =IFERROR(INDEX($Y$6:$Y$125,$V63,1),"") -> 道の駅みくに ふれあいパーク三里浜 エリア | C63: =IFERROR(INDEX($AA$6:$AM$125,$V63,$V$1),"") -> (4.0) | D63: =IFERROR(INDEX(【D】NPS!$GP$7:$HB$126,$V63,$V$1),"") -> 25件 | V63: 15 | X63: 回答エリア | Y63: =IF(【M】エリア!$E59<>"",【M】エリア!$E59,"") -> JR敦賀駅前 エリア | AA63: =IF($Y63<>"", INDEX(NPSデータ範囲, MATCH($Y63,NPS表側範囲,0), MATCH(AA$2&$Z$1,NPS表頭範囲,0) ),"") -> -26.1 | AB63: - | AC63: - | AD63: - | AE63: - | AF63: - | AG63: - | AH63: - | AI63: - | AJ63: - | AK63: - | AL63: - | AM63: -26.1 | AP63: 71 | AQ63: - | AR63: - | AS63: - | AT63: - | AU63: - | AV63: - | AW63: - | AX63: - | AY63: - | AZ63: - | BA63: - | BB63: 71 | BE63: 71 | BF63: - | BG63: - | BH63: - | BI63: - | BJ63: - | BK63: - | BL63: - | BM63: - | BN63: - | BO63: - | BP63: - | BQ63: 71
A64: =IFERROR(INDEX($AP$6:$BB$125,$V64,$V$1),"") -> 62 | B64: =IFERROR(INDEX($Y$6:$Y$125,$V64,1),"") -> メガネストリート エリア | C64: =IFERROR(INDEX($AA$6:$AM$125,$V64,$V$1),"") -> (5.6) | D64: =IFERROR(INDEX(【D】NPS!$GP$7:$HB$126,$V64,$V$1),"") -> 18件 | V64: 41 | X64: 回答エリア | Y64: =IF(【M】エリア!$E60<>"",【M】エリア!$E60,"") -> 金ヶ崎 エリア | AA64: 0.0 | AB64: - | AC64: - | AD64: - | AE64: - | AF64: - | AG64: - | AH64: - | AI64: - | AJ64: - | AK64: - | AL64: - | AM64: 0.0 | AP64: 50 | AQ64: - | AR64: - | AS64: - | AT64: - | AU64: - | AV64: - | AW64: - | AX64: - | AY64: - | AZ64: - | BA64: - | BB64: 50 | BE64: 55 | BF64: - | BG64: - | BH64: - | BI64: - | BJ64: - | BK64: - | BL64: - | BM64: - | BN64: - | BO64: - | BP64: - | BQ64: 55
A65: =IFERROR(INDEX($AP$6:$BB$125,$V65,$V$1),"") -> 63 | B65: =IFERROR(INDEX($Y$6:$Y$125,$V65,1),"") -> 御食国若狭おばま食文化館 エリア | C65: =IFERROR(INDEX($AA$6:$AM$125,$V65,$V$1),"") -> (7.1) | D65: =IFERROR(INDEX(【D】NPS!$GP$7:$HB$126,$V65,$V$1),"") -> 14件 | V65: 65 | X65: 回答エリア | Y65: =IF(【M】エリア!$E61<>"",【M】エリア!$E61,"") -> 敦賀市立博物館 エリア | AA65: 50.0 | AB65: - | AC65: - | AD65: - | AE65: - | AF65: - | AG65: - | AH65: - | AI65: - | AJ65: - | AK65: - | AL65: - | AM65: 50.0 | AP65: 9 | AQ65: - | AR65: - | AS65: - | AT65: - | AU65: - | AV65: - | AW65: - | AX65: - | AY65: - | AZ65: - | BA65: - | BB65: 9 | BE65: 11 | BF65: - | BG65: - | BH65: - | BI65: - | BJ65: - | BK65: - | BL65: - | BM65: - | BN65: - | BO65: - | BP65: - | BQ65: 11
A66: =IFERROR(INDEX($AP$6:$BB$125,$V66,$V$1),"") -> 64 | B66: =IFERROR(INDEX($Y$6:$Y$125,$V66,1),"") -> 北陸新幹線 越前たけふ駅 エリア | C66: =IFERROR(INDEX($AA$6:$AM$125,$V66,$V$1),"") -> (7.7) | D66: =IFERROR(INDEX(【D】NPS!$GP$7:$HB$126,$V66,$V$1),"") -> 26件 | V66: 35 | X66: 回答エリア | Y66: =IF(【M】エリア!$E62<>"",【M】エリア!$E62,"") -> 小浜市 阿納 エリア | AA66: 41.2 | AB66: - | AC66: - | AD66: - | AE66: - | AF66: - | AG66: - | AH66: - | AI66: - | AJ66: - | AK66: - | AL66: - | AM66: 41.2 | AP66: =IF($Y66<>"", INDEX(NPSデータ範囲, MATCH($Y66,NPS表側範囲,0), MATCH(AP$2&$AO$1,NPS表頭範囲,0) ),"") -> 19 | AQ66: - | AR66: - | AS66: - | AT66: - | AU66: - | AV66: - | AW66: - | AX66: - | AY66: - | AZ66: - | BA66: - | BB66: 19 | BE66: =IF($Y66<>"", INDEX(NPSデータ範囲, MATCH($Y66,NPS表側範囲,0), MATCH(BE$2&$BD$1,NPS表頭範囲,0) ),"") -> 19 | BF66: - | BG66: - | BH66: - | BI66: - | BJ66: - | BK66: - | BL66: - | BM66: - | BN66: - | BO66: - | BP66: - | BQ66: 19
A67: =IFERROR(INDEX($AP$6:$BB$125,$V67,$V$1),"") -> 65 | B67: =IFERROR(INDEX($Y$6:$Y$125,$V67,1),"") -> 花の駅 ゆりの里公園 エリア | C67: =IFERROR(INDEX($AA$6:$AM$125,$V67,$V$1),"") -> (9.1) | D67: =IFERROR(INDEX(【D】NPS!$GP$7:$HB$126,$V67,$V$1),"") -> 11件 | V67: =IFERROR(MATCH(ROW(B67)-2,INDEX($BE$6:$BQ$125,,$V$1),0),"-") -> 14 | X67: 回答エリア | Y67: =IF(【M】エリア!$E63<>"",【M】エリア!$E63,"") -> 道の駅「若狭おばま」 エリア | AA67: 0.0 | AB67: - | AC67: - | AD67: - | AE67: - | AF67: - | AG67: - | AH67: - | AI67: - | AJ67: - | AK67: - | AL67: - | AM67: 0.0 | AP67: 50 | AQ67: - | AR67: - | AS67: - | AT67: - | AU67: - | AV67: - | AW67: - | AX67: - | AY67: - | AZ67: - | BA67: - | BB67: 50 | BE67: 56 | BF67: - | BG67: - | BH67: - | BI67: - | BJ67: - | BK67: - | BL67: - | BM67: - | BN67: - | BO67: - | BP67: - | BQ67: 56
A68: =IFERROR(INDEX($AP$6:$BB$125,$V68,$V$1),"") -> 66 | B68: =IFERROR(INDEX($Y$6:$Y$125,$V68,1),"") -> 越前海岸 高佐米ノ旅館街 エリア | C68: =IFERROR(INDEX($AA$6:$AM$125,$V68,$V$1),"") -> (12.5) | D68: =IFERROR(INDEX(【D】NPS!$GP$7:$HB$126,$V68,$V$1),"") -> 8件 | V68: 51 | X68: 回答エリア | Y68: =IF(【M】エリア!$E64<>"",【M】エリア!$E64,"") -> 小浜 エリア（宿泊施設） | AA68: 30.0 | AB68: - | AC68: - | AD68: - | AE68: - | AF68: - | AG68: - | AH68: - | AI68: - | AJ68: - | AK68: - | AL68: - | AM68: 30.0 | AP68: 26 | AQ68: - | AR68: - | AS68: - | AT68: - | AU68: - | AV68: - | AW68: - | AX68: - | AY68: - | AZ68: - | BA68: - | BB68: 26 | BE68: 26 | BF68: - | BG68: - | BH68: - | BI68: - | BJ68: - | BK68: - | BL68: - | BM68: - | BN68: - | BO68: - | BP68: - | BQ68: 26
A69: =IFERROR(INDEX($AP$6:$BB$125,$V69,$V$1),"") -> 66 | B69: =IFERROR(INDEX($Y$6:$Y$125,$V69,1),"") -> 小浜市まちの駅 エリア | C69: =IFERROR(INDEX($AA$6:$AM$125,$V69,$V$1),"") -> (12.5) | D69: =IFERROR(INDEX(【D】NPS!$GP$7:$HB$126,$V69,$V$1),"") -> 8件 | V69: 66 | X69: 回答エリア | Y69: =IF(【M】エリア!$E65<>"",【M】エリア!$E65,"") -> 若狭フィッシャーマンズワーフ エリア | AA69: 33.3 | AB69: - | AC69: - | AD69: - | AE69: - | AF69: - | AG69: - | AH69: - | AI69: - | AJ69: - | AK69: - | AL69: - | AM69: 33.3 | AP69: 23 | AQ69: - | AR69: - | AS69: - | AT69: - | AU69: - | AV69: - | AW69: - | AX69: - | AY69: - | AZ69: - | BA69: - | BB69: 23 | BE69: 24 | BF69: - | BG69: - | BH69: - | BI69: - | BJ69: - | BK69: - | BL69: - | BM69: - | BN69: - | BO69: - | BP69: - | BQ69: 24
A70: =IFERROR(INDEX($AP$6:$BB$125,$V70,$V$1),"") -> 68 | B70: =IFERROR(INDEX($Y$6:$Y$125,$V70,1),"") -> 名田庄 エリア | C70: =IFERROR(INDEX($AA$6:$AM$125,$V70,$V$1),"") -> (14.3) | D70: =IFERROR(INDEX(【D】NPS!$GP$7:$HB$126,$V70,$V$1),"") -> 7件 | V70: 77 | X70: 回答エリア | Y70: =IF(【M】エリア!$E66<>"",【M】エリア!$E66,"") -> 御食国若狭おばま食文化館 エリア | AA70: -7.1 | AB70: - | AC70: - | AD70: - | AE70: - | AF70: - | AG70: - | AH70: - | AI70: - | AJ70: - | AK70: - | AL70: - | AM70: -7.1 | AP70: 63 | AQ70: - | AR70: - | AS70: - | AT70: - | AU70: - | AV70: - | AW70: - | AX70: - | AY70: - | AZ70: - | BA70: - | BB70: 63 | BE70: 63 | BF70: - | BG70: - | BH70: - | BI70: - | BJ70: - | BK70: - | BL70: - | BM70: - | BN70: - | BO70: - | BP70: - | BQ70: 63
A71: =IFERROR(INDEX($AP$6:$BB$125,$V71,$V$1),"") -> 69 | B71: =IFERROR(INDEX($Y$6:$Y$125,$V71,1),"") -> 青葉山ハーバルビレッジ エリア | C71: =IFERROR(INDEX($AA$6:$AM$125,$V71,$V$1),"") -> (16.7) | D71: =IFERROR(INDEX(【D】NPS!$GP$7:$HB$126,$V71,$V$1),"") -> 6件 | V71: 82 | X71: 回答エリア | Y71: =IF(【M】エリア!$E67<>"",【M】エリア!$E67,"") -> 小浜市まちの駅 エリア | AA71: -12.5 | AB71: - | AC71: - | AD71: - | AE71: - | AF71: - | AG71: - | AH71: - | AI71: - | AJ71: - | AK71: - | AL71: - | AM71: -12.5 | AP71: 66 | AQ71: - | AR71: - | AS71: - | AT71: - | AU71: - | AV71: - | AW71: - | AX71: - | AY71: - | AZ71: - | BA71: - | BB71: 66 | BE71: 67 | BF71: - | BG71: - | BH71: - | BI71: - | BJ71: - | BK71: - | BL71: - | BM71: - | BN71: - | BO71: - | BP71: - | BQ71: 67
A72: =IFERROR(INDEX($AP$6:$BB$125,$V72,$V$1),"") -> 70 | B72: =IFERROR(INDEX($Y$6:$Y$125,$V72,1),"") -> 日本海さかな街 エリア | C72: =IFERROR(INDEX($AA$6:$AM$125,$V72,$V$1),"") -> (23.5) | D72: =IFERROR(INDEX(【D】NPS!$GP$7:$HB$126,$V72,$V$1),"") -> 17件 | V72: 56 | X72: 回答エリア | Y72: =IF(【M】エリア!$E68<>"",【M】エリア!$E68,"") -> 明通寺 エリア | AA72: 0.0 | AB72: - | AC72: - | AD72: - | AE72: - | AF72: - | AG72: - | AH72: - | AI72: - | AJ72: - | AK72: - | AL72: - | AM72: 0.0 | AP72: 50 | AQ72: - | AR72: - | AS72: - | AT72: - | AU72: - | AV72: - | AW72: - | AX72: - | AY72: - | AZ72: - | BA72: - | BB72: 50 | BE72: 57 | BF72: - | BG72: - | BH72: - | BI72: - | BJ72: - | BK72: - | BL72: - | BM72: - | BN72: - | BO72: - | BP72: - | BQ72: 57
A73: =IFERROR(INDEX($AP$6:$BB$125,$V73,$V$1),"") -> 71 | B73: =IFERROR(INDEX($Y$6:$Y$125,$V73,1),"") -> JR敦賀駅前 エリア | C73: =IFERROR(INDEX($AA$6:$AM$125,$V73,$V$1),"") -> (26.1) | D73: =IFERROR(INDEX(【D】NPS!$GP$7:$HB$126,$V73,$V$1),"") -> 23件 | V73: 58 | X73: 回答エリア | Y73: =IF(【M】エリア!$E69<>"",【M】エリア!$E69,"") -> 箸のふるさと館WAKASA エリア | AA73: =IF($Y73<>"", INDEX(NPSデータ範囲, MATCH($Y73,NPS表側範囲,0), MATCH(AA$2&$Z$1,NPS表頭範囲,0) ),"") -> -100.0 | AB73: - | AC73: - | AD73: - | AE73: - | AF73: - | AG73: - | AH73: - | AI73: - | AJ73: - | AK73: - | AL73: - | AM73: -100.0 | AP73: 79 | AQ73: - | AR73: - | AS73: - | AT73: - | AU73: - | AV73: - | AW73: - | AX73: - | AY73: - | AZ73: - | BA73: - | BB73: 79 | BE73: 82 | BF73: - | BG73: - | BH73: - | BI73: - | BJ73: - | BK73: - | BL73: - | BM73: - | BN73: - | BO73: - | BP73: - | BQ73: 82
A74: =IFERROR(INDEX($AP$6:$BB$125,$V74,$V$1),"") -> 72 | B74: =IFERROR(INDEX($Y$6:$Y$125,$V74,1),"") -> えちぜん鉄道 松岡駅 エリア | C74: =IFERROR(INDEX($AA$6:$AM$125,$V74,$V$1),"") -> (33.3) | D74: =IFERROR(INDEX(【D】NPS!$GP$7:$HB$126,$V74,$V$1),"") -> 3件 | V74: 31 | X74: 回答エリア | Y74: =IF(【M】エリア!$E70<>"",【M】エリア!$E70,"") -> 三方五湖ネイチャークルーズ エリア | AA74: 44.4 | AB74: - | AC74: - | AD74: - | AE74: - | AF74: - | AG74: - | AH74: - | AI74: - | AJ74: - | AK74: - | AL74: - | AM74: 44.4 | AP74: 15 | AQ74: - | AR74: - | AS74: - | AT74: - | AU74: - | AV74: - | AW74: - | AX74: - | AY74: - | AZ74: - | BA74: - | BB74: 15 | BE74: 15 | BF74: - | BG74: - | BH74: - | BI74: - | BJ74: - | BK74: - | BL74: - | BM74: - | BN74: - | BO74: - | BP74: - | BQ74: 15
A75: =IFERROR(INDEX($AP$6:$BB$125,$V75,$V$1),"") -> 72 | B75: =IFERROR(INDEX($Y$6:$Y$125,$V75,1),"") -> 越前海岸 くりや旅館街 エリア | C75: =IFERROR(INDEX($AA$6:$AM$125,$V75,$V$1),"") -> (33.3) | D75: =IFERROR(INDEX(【D】NPS!$GP$7:$HB$126,$V75,$V$1),"") -> 3件 | V75: 52 | X75: 回答エリア | Y75: =IF(【M】エリア!$E71<>"",【M】エリア!$E71,"") -> レインボーライン エリア | AA75: 35.0 | AB75: - | AC75: - | AD75: - | AE75: - | AF75: - | AG75: - | AH75: - | AI75: - | AJ75: - | AK75: - | AL75: - | AM75: 35.0 | AP75: 22 | AQ75: - | AR75: - | AS75: - | AT75: - | AU75: - | AV75: - | AW75: - | AX75: - | AY75: - | AZ75: - | BA75: - | BB75: 22 | BE75: 22 | BF75: - | BG75: - | BH75: - | BI75: - | BJ75: - | BK75: - | BL75: - | BM75: - | BN75: - | BO75: - | BP75: - | BQ75: 22
A76: =IFERROR(INDEX($AP$6:$BB$125,$V76,$V$1),"") -> 74 | B76: =IFERROR(INDEX($Y$6:$Y$125,$V76,1),"") -> 越前大仏 エリア | C76: =IFERROR(INDEX($AA$6:$AM$125,$V76,$V$1),"") -> (33.3) | D76: =IFERROR(INDEX(【D】NPS!$GP$7:$HB$126,$V76,$V$1),"") -> 12件 | V76: 27 | X76: 回答エリア | Y76: =IF(【M】エリア!$E72<>"",【M】エリア!$E72,"") -> JR美浜駅 エリア | AA76: 28.6 | AB76: - | AC76: - | AD76: - | AE76: - | AF76: - | AG76: - | AH76: - | AI76: - | AJ76: - | AK76: - | AL76: - | AM76: 28.6 | AP76: =IF($Y76<>"", INDEX(NPSデータ範囲, MATCH($Y76,NPS表側範囲,0), MATCH(AP$2&$AO$1,NPS表頭範囲,0) ),"") -> 29 | AQ76: - | AR76: - | AS76: - | AT76: - | AU76: - | AV76: - | AW76: - | AX76: - | AY76: - | AZ76: - | BA76: - | BB76: 29 | BE76: =IF($Y76<>"", INDEX(NPSデータ範囲, MATCH($Y76,NPS表側範囲,0), MATCH(BE$2&$BD$1,NPS表頭範囲,0) ),"") -> 29 | BF76: - | BG76: - | BH76: - | BI76: - | BJ76: - | BK76: - | BL76: - | BM76: - | BN76: - | BO76: - | BP76: - | BQ76: 29
A77: =IFERROR(INDEX($AP$6:$BB$125,$V77,$V$1),"") -> 74 | B77: =IFERROR(INDEX($Y$6:$Y$125,$V77,1),"") -> 武生駅 エリア | C77: =IFERROR(INDEX($AA$6:$AM$125,$V77,$V$1),"") -> (33.3) | D77: =IFERROR(INDEX(【D】NPS!$GP$7:$HB$126,$V77,$V$1),"") -> 12件 | V77: 37 | X77: 回答エリア | Y77: =IF(【M】エリア!$E73<>"",【M】エリア!$E73,"") -> 熊川宿 エリア | AA77: 60.0 | AB77: - | AC77: - | AD77: - | AE77: - | AF77: - | AG77: - | AH77: - | AI77: - | AJ77: - | AK77: - | AL77: - | AM77: 60.0 | AP77: 6 | AQ77: - | AR77: - | AS77: - | AT77: - | AU77: - | AV77: - | AW77: - | AX77: - | AY77: - | AZ77: - | BA77: - | BB77: 6 | BE77: 6 | BF77: - | BG77: - | BH77: - | BI77: - | BJ77: - | BK77: - | BL77: - | BM77: - | BN77: - | BO77: - | BP77: - | BQ77: 6
A78: =IFERROR(INDEX($AP$6:$BB$125,$V78,$V$1),"") -> 76 | B78: =IFERROR(INDEX($Y$6:$Y$125,$V78,1),"") -> 道の駅「パークイン丹生ヶ丘」 エリア | C78: =IFERROR(INDEX($AA$6:$AM$125,$V78,$V$1),"") -> (40.0) | D78: =IFERROR(INDEX(【D】NPS!$GP$7:$HB$126,$V78,$V$1),"") -> 10件 | V78: 46 | X78: 回答エリア | Y78: =IF(【M】エリア!$E74<>"",【M】エリア!$E74,"") -> 湖上館パムコ（水月湖）エリア | AA78: 36.4 | AB78: - | AC78: - | AD78: - | AE78: - | AF78: - | AG78: - | AH78: - | AI78: - | AJ78: - | AK78: - | AL78: - | AM78: 36.4 | AP78: 21 | AQ78: - | AR78: - | AS78: - | AT78: - | AU78: - | AV78: - | AW78: - | AX78: - | AY78: - | AZ78: - | BA78: - | BB78: 21 | BE78: 21 | BF78: - | BG78: - | BH78: - | BI78: - | BJ78: - | BK78: - | BL78: - | BM78: - | BN78: - | BO78: - | BP78: - | BQ78: 21
A79: =IFERROR(INDEX($AP$6:$BB$125,$V79,$V$1),"") -> 77 | B79: =IFERROR(INDEX($Y$6:$Y$125,$V79,1),"") -> 道の駅「禅の里」 エリア | C79: =IFERROR(INDEX($AA$6:$AM$125,$V79,$V$1),"") -> (57.1) | D79: =IFERROR(INDEX(【D】NPS!$GP$7:$HB$126,$V79,$V$1),"") -> 14件 | V79: 33 | X79: 回答エリア | Y79: =IF(【M】エリア!$E75<>"",【M】エリア!$E75,"") -> 道の駅「三方五湖」 エリア | AA79: 0.0 | AB79: - | AC79: - | AD79: - | AE79: - | AF79: - | AG79: - | AH79: - | AI79: - | AJ79: - | AK79: - | AL79: - | AM79: 0.0 | AP79: 50 | AQ79: - | AR79: - | AS79: - | AT79: - | AU79: - | AV79: - | AW79: - | AX79: - | AY79: - | AZ79: - | BA79: - | BB79: 50 | BE79: 58 | BF79: - | BG79: - | BH79: - | BI79: - | BJ79: - | BK79: - | BL79: - | BM79: - | BN79: - | BO79: - | BP79: - | BQ79: 58
A80: =IFERROR(INDEX($AP$6:$BB$125,$V80,$V$1),"") -> 78 | B80: =IFERROR(INDEX($Y$6:$Y$125,$V80,1),"") -> 劔神社 エリア | C80: =IFERROR(INDEX($AA$6:$AM$125,$V80,$V$1),"") -> (66.7) | D80: =IFERROR(INDEX(【D】NPS!$GP$7:$HB$126,$V80,$V$1),"") -> 3件 | V80: 47 | X80: 回答エリア | Y80: =IF(【M】エリア!$E76<>"",【M】エリア!$E76,"") -> うみんぴあ大飯 エリア | AA80: 10.5 | AB80: - | AC80: - | AD80: - | AE80: - | AF80: - | AG80: - | AH80: - | AI80: - | AJ80: - | AK80: - | AL80: - | AM80: 10.5 | AP80: 45 | AQ80: - | AR80: - | AS80: - | AT80: - | AU80: - | AV80: - | AW80: - | AX80: - | AY80: - | AZ80: - | BA80: - | BB80: 45 | BE80: 45 | BF80: - | BG80: - | BH80: - | BI80: - | BJ80: - | BK80: - | BL80: - | BM80: - | BN80: - | BO80: - | BP80: - | BQ80: 45
A81: =IFERROR(INDEX($AP$6:$BB$125,$V81,$V$1),"") -> 79 | B81: =IFERROR(INDEX($Y$6:$Y$125,$V81,1),"") -> はたや記念館 ゆめおーれ勝山 エリア | C81: =IFERROR(INDEX($AA$6:$AM$125,$V81,$V$1),"") -> (100.0) | D81: =IFERROR(INDEX(【D】NPS!$GP$7:$HB$126,$V81,$V$1),"") -> 1件 | V81: 29 | X81: 回答エリア | Y81: =IF(【M】エリア!$E77<>"",【M】エリア!$E77,"") -> 若州一滴文庫 エリア | AA81: 50.0 | AB81: - | AC81: - | AD81: - | AE81: - | AF81: - | AG81: - | AH81: - | AI81: - | AJ81: - | AK81: - | AL81: - | AM81: 50.0 | AP81: 9 | AQ81: - | AR81: - | AS81: - | AT81: - | AU81: - | AV81: - | AW81: - | AX81: - | AY81: - | AZ81: - | BA81: - | BB81: 9 | BE81: 12 | BF81: - | BG81: - | BH81: - | BI81: - | BJ81: - | BK81: - | BL81: - | BM81: - | BN81: - | BO81: - | BP81: - | BQ81: 12
A82: =IFERROR(INDEX($AP$6:$BB$125,$V82,$V$1),"") -> 79 | B82: =IFERROR(INDEX($Y$6:$Y$125,$V82,1),"") -> えちぜん鉄道 永平寺口駅 エリア | C82: =IFERROR(INDEX($AA$6:$AM$125,$V82,$V$1),"") -> (100.0) | D82: =IFERROR(INDEX(【D】NPS!$GP$7:$HB$126,$V82,$V$1),"") -> 1件 | V82: 30 | X82: 回答エリア | Y82: =IF(【M】エリア!$E78<>"",【M】エリア!$E78,"") -> 名田庄 エリア | AA82: -14.3 | AB82: - | AC82: - | AD82: - | AE82: - | AF82: - | AG82: - | AH82: - | AI82: - | AJ82: - | AK82: - | AL82: - | AM82: -14.3 | AP82: 68 | AQ82: - | AR82: - | AS82: - | AT82: - | AU82: - | AV82: - | AW82: - | AX82: - | AY82: - | AZ82: - | BA82: - | BB82: 68 | BE82: 68 | BF82: - | BG82: - | BH82: - | BI82: - | BJ82: - | BK82: - | BL82: - | BM82: - | BN82: - | BO82: - | BP82: - | BQ82: 68
A83: =IFERROR(INDEX($AP$6:$BB$125,$V83,$V$1),"") -> 79 | B83: =IFERROR(INDEX($Y$6:$Y$125,$V83,1),"") -> 河野北前船主通りエリア | C83: =IFERROR(INDEX($AA$6:$AM$125,$V83,$V$1),"") -> (100.0) | D83: =IFERROR(INDEX(【D】NPS!$GP$7:$HB$126,$V83,$V$1),"") -> 1件 | V83: 54 | X83: 回答エリア | Y83: =IF(【M】エリア!$E79<>"",【M】エリア!$E79,"") -> 赤礁崎オートキャンプ場 エリア | AA83: =IF($Y83<>"", INDEX(NPSデータ範囲, MATCH($Y83,NPS表側範囲,0), MATCH(AA$2&$Z$1,NPS表頭範囲,0) ),"") -> 0.0 | AB83: - | AC83: - | AD83: - | AE83: - | AF83: - | AG83: - | AH83: - | AI83: - | AJ83: - | AK83: - | AL83: - | AM83: 0.0 | AP83: 50 | AQ83: - | AR83: - | AS83: - | AT83: - | AU83: - | AV83: - | AW83: - | AX83: - | AY83: - | AZ83: - | BA83: - | BB83: 50 | BE83: 59 | BF83: - | BG83: - | BH83: - | BI83: - | BJ83: - | BK83: - | BL83: - | BM83: - | BN83: - | BO83: - | BP83: - | BQ83: 59
A84: =IFERROR(INDEX($AP$6:$BB$125,$V84,$V$1),"") -> 79 | B84: =IFERROR(INDEX($Y$6:$Y$125,$V84,1),"") -> 箸のふるさと館WAKASA エリア | C84: =IFERROR(INDEX($AA$6:$AM$125,$V84,$V$1),"") -> (100.0) | D84: =IFERROR(INDEX(【D】NPS!$GP$7:$HB$126,$V84,$V$1),"") -> 1件 | V84: 68 | X84: 回答エリア | Y84: =IF(【M】エリア!$E80<>"",【M】エリア!$E80,"") -> 若狭和田 エリア | AA84: 14.3 | AB84: - | AC84: - | AD84: - | AE84: - | AF84: - | AG84: - | AH84: - | AI84: - | AJ84: - | AK84: - | AL84: - | AM84: 14.3 | AP84: 43 | AQ84: - | AR84: - | AS84: - | AT84: - | AU84: - | AV84: - | AW84: - | AX84: - | AY84: - | AZ84: - | BA84: - | BB84: 43 | BE84: 44 | BF84: - | BG84: - | BH84: - | BI84: - | BJ84: - | BK84: - | BL84: - | BM84: - | BN84: - | BO84: - | BP84: - | BQ84: 44
A85: =IFERROR(INDEX($AP$6:$BB$125,$V85,$V$1),"") ->  | B85: =IFERROR(INDEX($Y$6:$Y$125,$V85,1),"") ->  | C85: =IFERROR(INDEX($AA$6:$AM$125,$V85,$V$1),"") ->  | D85: =IFERROR(INDEX(【D】NPS!$GP$7:$HB$126,$V85,$V$1),"") ->  | V85: - | X85: 回答エリア | Y85: =IF(【M】エリア!$E81<>"",【M】エリア!$E81,"") -> 若狭高浜 エリア | AA85: 7.7 | AB85: - | AC85: - | AD85: - | AE85: - | AF85: - | AG85: - | AH85: - | AI85: - | AJ85: - | AK85: - | AL85: - | AM85: 7.7 | AP85: 47 | AQ85: - | AR85: - | AS85: - | AT85: - | AU85: - | AV85: - | AW85: - | AX85: - | AY85: - | AZ85: - | BA85: - | BB85: 47 | BE85: 47 | BF85: - | BG85: - | BH85: - | BI85: - | BJ85: - | BK85: - | BL85: - | BM85: - | BN85: - | BO85: - | BP85: - | BQ85: 47
A86: =IFERROR(INDEX($AP$6:$BB$125,$V86,$V$1),"") ->  | B86: =IFERROR(INDEX($Y$6:$Y$125,$V86,1),"") ->  | C86: =IFERROR(INDEX($AA$6:$AM$125,$V86,$V$1),"") ->  | D86: =IFERROR(INDEX(【D】NPS!$GP$7:$HB$126,$V86,$V$1),"") ->  | V86: - | X86: 回答エリア | Y86: =IF(【M】エリア!$E82<>"",【M】エリア!$E82,"") -> 竹田エリア | AA86: 0.0 | AB86: - | AC86: - | AD86: - | AE86: - | AF86: - | AG86: - | AH86: - | AI86: - | AJ86: - | AK86: - | AL86: - | AM86: 0.0 | AP86: =IF($Y86<>"", INDEX(NPSデータ範囲, MATCH($Y86,NPS表側範囲,0), MATCH(AP$2&$AO$1,NPS表頭範囲,0) ),"") -> 50 | AQ86: - | AR86: - | AS86: - | AT86: - | AU86: - | AV86: - | AW86: - | AX86: - | AY86: - | AZ86: - | BA86: - | BB86: 50 | BE86: =IF($Y86<>"", INDEX(NPSデータ範囲, MATCH($Y86,NPS表側範囲,0), MATCH(BE$2&$BD$1,NPS表頭範囲,0) ),"") -> 60 | BF86: - | BG86: - | BH86: - | BI86: - | BJ86: - | BK86: - | BL86: - | BM86: - | BN86: - | BO86: - | BP86: - | BQ86: 60
A87: =IFERROR(INDEX($AP$6:$BB$125,$V87,$V$1),"") ->  | B87: =IFERROR(INDEX($Y$6:$Y$125,$V87,1),"") ->  | C87: =IFERROR(INDEX($AA$6:$AM$125,$V87,$V$1),"") ->  | D87: =IFERROR(INDEX(【D】NPS!$GP$7:$HB$126,$V87,$V$1),"") ->  | V87: - | X87: 回答エリア | Y87: =IF(【M】エリア!$E83<>"",【M】エリア!$E83,"") -> 青葉山ハーバルビレッジ エリア | AA87: -16.7 | AB87: - | AC87: - | AD87: - | AE87: - | AF87: - | AG87: - | AH87: - | AI87: - | AJ87: - | AK87: - | AL87: - | AM87: -16.7 | AP87: 69 | AQ87: - | AR87: - | AS87: - | AT87: - | AU87: - | AV87: - | AW87: - | AX87: - | AY87: - | AZ87: - | BA87: - | BB87: 69 | BE87: 69 | BF87: - | BG87: - | BH87: - | BI87: - | BJ87: - | BK87: - | BL87: - | BM87: - | BN87: - | BO87: - | BP87: - | BQ87: 69
A88: =IFERROR(INDEX($AP$6:$BB$125,$V88,$V$1),"") ->  | B88: =IFERROR(INDEX($Y$6:$Y$125,$V88,1),"") ->  | C88: =IFERROR(INDEX($AA$6:$AM$125,$V88,$V$1),"") ->  | D88: =IFERROR(INDEX(【D】NPS!$GP$7:$HB$126,$V88,$V$1),"") ->  | V88: - | X88: 回答エリア | Y88: =IF(【M】エリア!$E84<>"",【M】エリア!$E84,"") -> 
A89: =IFERROR(INDEX($AP$6:$BB$125,$V89,$V$1),"") ->  | B89: =IFERROR(INDEX($Y$6:$Y$125,$V89,1),"") ->  | C89: =IFERROR(INDEX($AA$6:$AM$125,$V89,$V$1),"") ->  | D89: =IFERROR(INDEX(【D】NPS!$GP$7:$HB$126,$V89,$V$1),"") ->  | V89: - | X89: 回答エリア | Y89: =IF(【M】エリア!$E85<>"",【M】エリア!$E85,"") -> 
A90: =IFERROR(INDEX($AP$6:$BB$125,$V90,$V$1),"") ->  | B90: =IFERROR(INDEX($Y$6:$Y$125,$V90,1),"") ->  | C90: =IFERROR(INDEX($AA$6:$AM$125,$V90,$V$1),"") ->  | D90: =IFERROR(INDEX(【D】NPS!$GP$7:$HB$126,$V90,$V$1),"") ->  | V90: - | X90: 回答エリア | Y90: =IF(【M】エリア!$E86<>"",【M】エリア!$E86,"") -> 
A91: =IFERROR(INDEX($AP$6:$BB$125,$V91,$V$1),"") ->  | B91: =IFERROR(INDEX($Y$6:$Y$125,$V91,1),"") ->  | C91: =IFERROR(INDEX($AA$6:$AM$125,$V91,$V$1),"") ->  | D91: =IFERROR(INDEX(【D】NPS!$GP$7:$HB$126,$V91,$V$1),"") ->  | V91: - | X91: 回答エリア | Y91: =IF(【M】エリア!$E87<>"",【M】エリア!$E87,"") -> 
A92: =IFERROR(INDEX($AP$6:$BB$125,$V92,$V$1),"") ->  | B92: =IFERROR(INDEX($Y$6:$Y$125,$V92,1),"") ->  | C92: =IFERROR(INDEX($AA$6:$AM$125,$V92,$V$1),"") ->  | D92: =IFERROR(INDEX(【D】NPS!$GP$7:$HB$126,$V92,$V$1),"") ->  | V92: - | X92: 回答エリア | Y92: =IF(【M】エリア!$E88<>"",【M】エリア!$E88,"") -> 
A93: =IFERROR(INDEX($AP$6:$BB$125,$V93,$V$1),"") ->  | B93: =IFERROR(INDEX($Y$6:$Y$125,$V93,1),"") ->  | C93: =IFERROR(INDEX($AA$6:$AM$125,$V93,$V$1),"") ->  | D93: =IFERROR(INDEX(【D】NPS!$GP$7:$HB$126,$V93,$V$1),"") ->  | V93: - | X93: 回答エリア | Y93: =IF(【M】エリア!$E89<>"",【M】エリア!$E89,"") ->  | AA93: =IF($Y93<>"", INDEX(NPSデータ範囲, MATCH($Y93,NPS表側範囲,0), MATCH(AA$2&$Z$1,NPS表頭範囲,0) ),"") -> 
A94: =IFERROR(INDEX($AP$6:$BB$125,$V94,$V$1),"") ->  | B94: =IFERROR(INDEX($Y$6:$Y$125,$V94,1),"") ->  | C94: =IFERROR(INDEX($AA$6:$AM$125,$V94,$V$1),"") ->  | D94: =IFERROR(INDEX(【D】NPS!$GP$7:$HB$126,$V94,$V$1),"") ->  | V94: - | X94: 回答エリア | Y94: =IF(【M】エリア!$E90<>"",【M】エリア!$E90,"") -> 
A95: =IFERROR(INDEX($AP$6:$BB$125,$V95,$V$1),"") ->  | B95: =IFERROR(INDEX($Y$6:$Y$125,$V95,1),"") ->  | C95: =IFERROR(INDEX($AA$6:$AM$125,$V95,$V$1),"") ->  | D95: =IFERROR(INDEX(【D】NPS!$GP$7:$HB$126,$V95,$V$1),"") ->  | V95: - | X95: 回答エリア | Y95: =IF(【M】エリア!$E91<>"",【M】エリア!$E91,"") -> 
A96: =IFERROR(INDEX($AP$6:$BB$125,$V96,$V$1),"") ->  | B96: =IFERROR(INDEX($Y$6:$Y$125,$V96,1),"") ->  | C96: =IFERROR(INDEX($AA$6:$AM$125,$V96,$V$1),"") ->  | D96: =IFERROR(INDEX(【D】NPS!$GP$7:$HB$126,$V96,$V$1),"") ->  | V96: - | X96: 回答エリア | Y96: =IF(【M】エリア!$E92<>"",【M】エリア!$E92,"") ->  | AP96: =IF($Y96<>"", INDEX(NPSデータ範囲, MATCH($Y96,NPS表側範囲,0), MATCH(AP$2&$AO$1,NPS表頭範囲,0) ),"") ->  | BE96: =IF($Y96<>"", INDEX(NPSデータ範囲, MATCH($Y96,NPS表側範囲,0), MATCH(BE$2&$BD$1,NPS表頭範囲,0) ),"") -> 
A97: =IFERROR(INDEX($AP$6:$BB$125,$V97,$V$1),"") ->  | B97: =IFERROR(INDEX($Y$6:$Y$125,$V97,1),"") ->  | C97: =IFERROR(INDEX($AA$6:$AM$125,$V97,$V$1),"") ->  | D97: =IFERROR(INDEX(【D】NPS!$GP$7:$HB$126,$V97,$V$1),"") ->  | V97: - | X97: 回答エリア | Y97: =IF(【M】エリア!$E93<>"",【M】エリア!$E93,"") -> 
A98: =IFERROR(INDEX($AP$6:$BB$125,$V98,$V$1),"") ->  | B98: =IFERROR(INDEX($Y$6:$Y$125,$V98,1),"") ->  | C98: =IFERROR(INDEX($AA$6:$AM$125,$V98,$V$1),"") ->  | D98: =IFERROR(INDEX(【D】NPS!$GP$7:$HB$126,$V98,$V$1),"") ->  | V98: - | X98: 回答エリア | Y98: =IF(【M】エリア!$E94<>"",【M】エリア!$E94,"") -> 
A99: =IFERROR(INDEX($AP$6:$BB$125,$V99,$V$1),"") ->  | B99: =IFERROR(INDEX($Y$6:$Y$125,$V99,1),"") ->  | C99: =IFERROR(INDEX($AA$6:$AM$125,$V99,$V$1),"") ->  | D99: =IFERROR(INDEX(【D】NPS!$GP$7:$HB$126,$V99,$V$1),"") ->  | V99: =IFERROR(MATCH(ROW(B99)-2,INDEX($BE$6:$BQ$125,,$V$1),0),"-") -> - | X99: 回答エリア | Y99: =IF(【M】エリア!$E95<>"",【M】エリア!$E95,"") -> 
A100: =IFERROR(INDEX($AP$6:$BB$125,$V100,$V$1),"") ->  | B100: =IFERROR(INDEX($Y$6:$Y$125,$V100,1),"") ->  | C100: =IFERROR(INDEX($AA$6:$AM$125,$V100,$V$1),"") ->  | D100: =IFERROR(INDEX(【D】NPS!$GP$7:$HB$126,$V100,$V$1),"") ->  | V100: - | X100: 回答エリア | Y100: =IF(【M】エリア!$E96<>"",【M】エリア!$E96,"") -> 
A101: =IFERROR(INDEX($AP$6:$BB$125,$V101,$V$1),"") ->  | B101: =IFERROR(INDEX($Y$6:$Y$125,$V101,1),"") ->  | C101: =IFERROR(INDEX($AA$6:$AM$125,$V101,$V$1),"") ->  | D101: =IFERROR(INDEX(【D】NPS!$GP$7:$HB$126,$V101,$V$1),"") ->  | V101: - | X101: 回答エリア | Y101: =IF(【M】エリア!$E97<>"",【M】エリア!$E97,"") -> 
A102: =IFERROR(INDEX($AP$6:$BB$125,$V102,$V$1),"") ->  | B102: =IFERROR(INDEX($Y$6:$Y$125,$V102,1),"") ->  | C102: =IFERROR(INDEX($AA$6:$AM$125,$V102,$V$1),"") ->  | D102: =IFERROR(INDEX(【D】NPS!$GP$7:$HB$126,$V102,$V$1),"") ->  | V102: - | X102: 回答エリア | Y102: =IF(【M】エリア!$E98<>"",【M】エリア!$E98,"") -> 
A103: =IFERROR(INDEX($AP$6:$BB$125,$V103,$V$1),"") ->  | B103: =IFERROR(INDEX($Y$6:$Y$125,$V103,1),"") ->  | C103: =IFERROR(INDEX($AA$6:$AM$125,$V103,$V$1),"") ->  | D103: =IFERROR(INDEX(【D】NPS!$GP$7:$HB$126,$V103,$V$1),"") ->  | V103: - | X103: 回答エリア | Y103: =IF(【M】エリア!$E99<>"",【M】エリア!$E99,"") ->  | AA103: =IF($Y103<>"", INDEX(NPSデータ範囲, MATCH($Y103,NPS表側範囲,0), MATCH(AA$2&$Z$1,NPS表頭範囲,0) ),"") -> 
A104: =IFERROR(INDEX($AP$6:$BB$125,$V104,$V$1),"") ->  | B104: =IFERROR(INDEX($Y$6:$Y$125,$V104,1),"") ->  | C104: =IFERROR(INDEX($AA$6:$AM$125,$V104,$V$1),"") ->  | D104: =IFERROR(INDEX(【D】NPS!$GP$7:$HB$126,$V104,$V$1),"") ->  | V104: - | X104: 回答エリア | Y104: =IF(【M】エリア!$E100<>"",【M】エリア!$E100,"") -> 
A105: =IFERROR(INDEX($AP$6:$BB$125,$V105,$V$1),"") ->  | B105: =IFERROR(INDEX($Y$6:$Y$125,$V105,1),"") ->  | C105: =IFERROR(INDEX($AA$6:$AM$125,$V105,$V$1),"") ->  | D105: =IFERROR(INDEX(【D】NPS!$GP$7:$HB$126,$V105,$V$1),"") ->  | V105: - | X105: 回答エリア | Y105: =IF(【M】エリア!$E101<>"",【M】エリア!$E101,"") -> 
A106: =IFERROR(INDEX($AP$6:$BB$125,$V106,$V$1),"") ->  | B106: =IFERROR(INDEX($Y$6:$Y$125,$V106,1),"") ->  | C106: =IFERROR(INDEX($AA$6:$AM$125,$V106,$V$1),"") ->  | D106: =IFERROR(INDEX(【D】NPS!$GP$7:$HB$126,$V106,$V$1),"") ->  | V106: - | X106: 回答エリア | Y106: =IF(【M】エリア!$E102<>"",【M】エリア!$E102,"") ->  | AP106: =IF($Y106<>"", INDEX(NPSデータ範囲, MATCH($Y106,NPS表側範囲,0), MATCH(AP$2&$AO$1,NPS表頭範囲,0) ),"") ->  | BE106: =IF($Y106<>"", INDEX(NPSデータ範囲, MATCH($Y106,NPS表側範囲,0), MATCH(BE$2&$BD$1,NPS表頭範囲,0) ),"") -> 
A107: =IFERROR(INDEX($AP$6:$BB$125,$V107,$V$1),"") ->  | B107: =IFERROR(INDEX($Y$6:$Y$125,$V107,1),"") ->  | C107: =IFERROR(INDEX($AA$6:$AM$125,$V107,$V$1),"") ->  | D107: =IFERROR(INDEX(【D】NPS!$GP$7:$HB$126,$V107,$V$1),"") ->  | V107: - | X107: 回答エリア | Y107: =IF(【M】エリア!$E103<>"",【M】エリア!$E103,"") -> 
A108: =IFERROR(INDEX($AP$6:$BB$125,$V108,$V$1),"") ->  | B108: =IFERROR(INDEX($Y$6:$Y$125,$V108,1),"") ->  | C108: =IFERROR(INDEX($AA$6:$AM$125,$V108,$V$1),"") ->  | D108: =IFERROR(INDEX(【D】NPS!$GP$7:$HB$126,$V108,$V$1),"") ->  | V108: - | X108: 回答エリア | Y108: =IF(【M】エリア!$E104<>"",【M】エリア!$E104,"") -> 
A109: =IFERROR(INDEX($AP$6:$BB$125,$V109,$V$1),"") ->  | B109: =IFERROR(INDEX($Y$6:$Y$125,$V109,1),"") ->  | C109: =IFERROR(INDEX($AA$6:$AM$125,$V109,$V$1),"") ->  | D109: =IFERROR(INDEX(【D】NPS!$GP$7:$HB$126,$V109,$V$1),"") ->  | V109: - | X109: 回答エリア | Y109: =IF(【M】エリア!$E105<>"",【M】エリア!$E105,"") -> 
A110: =IFERROR(INDEX($AP$6:$BB$125,$V110,$V$1),"") ->  | B110: =IFERROR(INDEX($Y$6:$Y$125,$V110,1),"") ->  | C110: =IFERROR(INDEX($AA$6:$AM$125,$V110,$V$1),"") ->  | D110: =IFERROR(INDEX(【D】NPS!$GP$7:$HB$126,$V110,$V$1),"") ->  | V110: - | X110: 回答エリア | Y110: =IF(【M】エリア!$E106<>"",【M】エリア!$E106,"") -> 
A111: =IFERROR(INDEX($AP$6:$BB$125,$V111,$V$1),"") ->  | B111: =IFERROR(INDEX($Y$6:$Y$125,$V111,1),"") ->  | C111: =IFERROR(INDEX($AA$6:$AM$125,$V111,$V$1),"") ->  | D111: =IFERROR(INDEX(【D】NPS!$GP$7:$HB$126,$V111,$V$1),"") ->  | V111: - | X111: 回答エリア | Y111: =IF(【M】エリア!$E107<>"",【M】エリア!$E107,"") -> 
A112: =IFERROR(INDEX($AP$6:$BB$125,$V112,$V$1),"") ->  | B112: =IFERROR(INDEX($Y$6:$Y$125,$V112,1),"") ->  | C112: =IFERROR(INDEX($AA$6:$AM$125,$V112,$V$1),"") ->  | D112: =IFERROR(INDEX(【D】NPS!$GP$7:$HB$126,$V112,$V$1),"") ->  | V112: - | X112: 回答エリア | Y112: =IF(【M】エリア!$E108<>"",【M】エリア!$E108,"") -> 
A113: =IFERROR(INDEX($AP$6:$BB$125,$V113,$V$1),"") ->  | B113: =IFERROR(INDEX($Y$6:$Y$125,$V113,1),"") ->  | C113: =IFERROR(INDEX($AA$6:$AM$125,$V113,$V$1),"") ->  | D113: =IFERROR(INDEX(【D】NPS!$GP$7:$HB$126,$V113,$V$1),"") ->  | V113: - | X113: 回答エリア | Y113: =IF(【M】エリア!$E109<>"",【M】エリア!$E109,"") ->  | AA113: =IF($Y113<>"", INDEX(NPSデータ範囲, MATCH($Y113,NPS表側範囲,0), MATCH(AA$2&$Z$1,NPS表頭範囲,0) ),"") -> 
A114: =IFERROR(INDEX($AP$6:$BB$125,$V114,$V$1),"") ->  | B114: =IFERROR(INDEX($Y$6:$Y$125,$V114,1),"") ->  | C114: =IFERROR(INDEX($AA$6:$AM$125,$V114,$V$1),"") ->  | D114: =IFERROR(INDEX(【D】NPS!$GP$7:$HB$126,$V114,$V$1),"") ->  | V114: - | X114: 回答エリア | Y114: =IF(【M】エリア!$E110<>"",【M】エリア!$E110,"") -> 
A115: =IFERROR(INDEX($AP$6:$BB$125,$V115,$V$1),"") ->  | B115: =IFERROR(INDEX($Y$6:$Y$125,$V115,1),"") ->  | C115: =IFERROR(INDEX($AA$6:$AM$125,$V115,$V$1),"") ->  | D115: =IFERROR(INDEX(【D】NPS!$GP$7:$HB$126,$V115,$V$1),"") ->  | V115: - | X115: 回答エリア | Y115: =IF(【M】エリア!$E111<>"",【M】エリア!$E111,"") -> 
A116: =IFERROR(INDEX($AP$6:$BB$125,$V116,$V$1),"") ->  | B116: =IFERROR(INDEX($Y$6:$Y$125,$V116,1),"") ->  | C116: =IFERROR(INDEX($AA$6:$AM$125,$V116,$V$1),"") ->  | D116: =IFERROR(INDEX(【D】NPS!$GP$7:$HB$126,$V116,$V$1),"") ->  | V116: - | X116: 回答エリア | Y116: =IF(【M】エリア!$E112<>"",【M】エリア!$E112,"") ->  | AP116: =IF($Y116<>"", INDEX(NPSデータ範囲, MATCH($Y116,NPS表側範囲,0), MATCH(AP$2&$AO$1,NPS表頭範囲,0) ),"") ->  | BE116: =IF($Y116<>"", INDEX(NPSデータ範囲, MATCH($Y116,NPS表側範囲,0), MATCH(BE$2&$BD$1,NPS表頭範囲,0) ),"") -> 
A117: =IFERROR(INDEX($AP$6:$BB$125,$V117,$V$1),"") ->  | B117: =IFERROR(INDEX($Y$6:$Y$125,$V117,1),"") ->  | C117: =IFERROR(INDEX($AA$6:$AM$125,$V117,$V$1),"") ->  | D117: =IFERROR(INDEX(【D】NPS!$GP$7:$HB$126,$V117,$V$1),"") ->  | V117: - | X117: 回答エリア | Y117: =IF(【M】エリア!$E113<>"",【M】エリア!$E113,"") -> 
A118: =IFERROR(INDEX($AP$6:$BB$125,$V118,$V$1),"") ->  | B118: =IFERROR(INDEX($Y$6:$Y$125,$V118,1),"") ->  | C118: =IFERROR(INDEX($AA$6:$AM$125,$V118,$V$1),"") ->  | D118: =IFERROR(INDEX(【D】NPS!$GP$7:$HB$126,$V118,$V$1),"") ->  | V118: - | X118: 回答エリア | Y118: =IF(【M】エリア!$E114<>"",【M】エリア!$E114,"") -> 
A119: =IFERROR(INDEX($AP$6:$BB$125,$V119,$V$1),"") ->  | B119: =IFERROR(INDEX($Y$6:$Y$125,$V119,1),"") ->  | C119: =IFERROR(INDEX($AA$6:$AM$125,$V119,$V$1),"") ->  | D119: =IFERROR(INDEX(【D】NPS!$GP$7:$HB$126,$V119,$V$1),"") ->  | V119: - | X119: 回答エリア | Y119: =IF(【M】エリア!$E115<>"",【M】エリア!$E115,"") -> 
A120: =IFERROR(INDEX($AP$6:$BB$125,$V120,$V$1),"") ->  | B120: =IFERROR(INDEX($Y$6:$Y$125,$V120,1),"") ->  | C120: =IFERROR(INDEX($AA$6:$AM$125,$V120,$V$1),"") ->  | D120: =IFERROR(INDEX(【D】NPS!$GP$7:$HB$126,$V120,$V$1),"") ->  | V120: - | X120: 回答エリア | Y120: =IF(【M】エリア!$E116<>"",【M】エリア!$E116,"") -> 
A121: =IFERROR(INDEX($AP$6:$BB$125,$V121,$V$1),"") ->  | B121: =IFERROR(INDEX($Y$6:$Y$125,$V121,1),"") ->  | C121: =IFERROR(INDEX($AA$6:$AM$125,$V121,$V$1),"") ->  | D121: =IFERROR(INDEX(【D】NPS!$GP$7:$HB$126,$V121,$V$1),"") ->  | V121: - | X121: 回答エリア | Y121: =IF(【M】エリア!$E117<>"",【M】エリア!$E117,"") -> 
A122: =IFERROR(INDEX($AP$6:$BB$125,$V122,$V$1),"") ->  | B122: =IFERROR(INDEX($Y$6:$Y$125,$V122,1),"") ->  | C122: =IFERROR(INDEX($AA$6:$AM$125,$V122,$V$1),"") ->  | D122: =IFERROR(INDEX(【D】NPS!$GP$7:$HB$126,$V122,$V$1),"") ->  | V122: - | X122: 回答エリア | Y122: =IF(【M】エリア!$E118<>"",【M】エリア!$E118,"") -> 
V123: - | X123: 回答エリア | Y123: =IF(【M】エリア!$E119<>"",【M】エリア!$E119,"") -> 
V124: - | X124: 回答エリア | Y124: =IF(【M】エリア!$E120<>"",【M】エリア!$E120,"") -> 
X125: 回答エリア | Y125: =IF(【M】エリア!$E121<>"",【M】エリア!$E121,"") -> 

Sheet 満足度(商品・サービス)
A1: =施設コード!$A$2 -> 4月 | B1: =【M】エリア!$L$2 -> 福井県 | C1: =【M】エリア!$L$3 -> 福井市・永平寺町 | D1: =【M】エリア!$L$4 -> 福井市 | E1: =【M】エリア!$L$5 -> 福井駅前 エリア | G1: =AF16 -> 満足度スコア | H1: 4月 | I1: 5月 | J1: 6月 | K1: 7月 | L1: 8月 | M1: 9月 | N1: 10月 | O1: 11月 | P1: 12月 | Q1: 1月 | R1: 2月 | S1: 3月 | T1: 通年 | AA1: =AF16&"（推移）" -> 満足度スコア（推移） | AC1: 集計区分 | AE1: 満足度(商品・サービス) | AF1: 回答数 | AG1: 回答月 | AH1: 回答月 | AI1: 回答月 | AJ1: 回答月 | AK1: 回答月 | AL1: 回答月 | AM1: 回答月 | AN1: 回答月 | AO1: 回答月 | AP1: 回答月 | AQ1: 回答月 | AR1: 回答月 | AS1: 回答月 | AT1: 回答月 | AU1: 回答月 | AV1: 回答月 | AW1: 回答月 | AX1: 回答月 | AY1: 回答月 | AZ1: 回答月 | BA1: 回答月 | BB1: 回答月 | BC1: 回答月 | BD1: 回答月 | BE1: 回答月 | BF1: 回答月
A2: =IF(AE3<>"",AE3,"") -> とても満足 | B2: =IFERROR(OFFSET(INDEX($AG$3:$BF$14, MATCH($A2,$A$2:$A$13,0),MATCH($A$1,$AG$2:$BF$2,0)),0,1),"") -> 38.5% | C2: =IFERROR(OFFSET(INDEX($AG$18:$BF$29, MATCH($A2,$A$2:$A$13,0),MATCH($A$1,$AG$2:$BF$2,0)),0,1),"") -> 43.3% | D2: =IFERROR(OFFSET(INDEX($AG$33:$BF$44, MATCH($A2,$A$2:$A$13,0),MATCH($A$1,$AG$2:$BF$2,0)),0,1),"") -> 44.9% | E2: =IFERROR(OFFSET(INDEX($AG$48:$BF$59, MATCH($A2,$A$2:$A$13,0),MATCH($A$1,$AG$2:$BF$2,0)),0,1),"") -> 43.3% | G2: =【M】エリア!$L$2 -> 福井県 | H2: =AG16 -> 4.25 | I2: =AI16 -> - | J2: =AK16 -> - | K2: =AM16 -> - | L2: =AO16 -> - | M2: =AQ16 -> - | N2: =AS16 -> - | O2: =AU16 -> - | P2: =AW16 -> - | Q2: =AY16 -> - | R2: =BA16 -> - | S2: =BC16 -> - | T2: =BE16 -> 4.25 | AC2: 都道府県 | AD2: =【M】エリア!$L$2 -> 福井県 | AG2: 4月 | AI2: 5月 | AK2: 6月 | AM2: 7月 | AO2: 8月 | AQ2: 9月 | AS2: 10月 | AU2: 11月 | AW2: 12月 | AY2: 1月 | BA2: 2月 | BC2: 3月 | BE2: 通年
A3: =IF(AE4<>"",AE4,"") -> 満足 | B3: =IFERROR(OFFSET(INDEX($AG$3:$BF$14, MATCH($A3,$A$2:$A$13,0),MATCH($A$1,$AG$2:$BF$2,0)),0,1),"") -> 49.5% | C3: =IFERROR(OFFSET(INDEX($AG$18:$BF$29, MATCH($A3,$A$2:$A$13,0),MATCH($A$1,$AG$2:$BF$2,0)),0,1),"") -> 44.0% | D3: =IFERROR(OFFSET(INDEX($AG$33:$BF$44, MATCH($A3,$A$2:$A$13,0),MATCH($A$1,$AG$2:$BF$2,0)),0,1),"") -> 44.9% | E3: =IFERROR(OFFSET(INDEX($AG$48:$BF$59, MATCH($A3,$A$2:$A$13,0),MATCH($A$1,$AG$2:$BF$2,0)),0,1),"") -> 43.3% | G3: =【M】エリア!$L$3 -> 福井市・永平寺町 | H3: =AG31 -> 4.29 | I3: =AI31 -> - | J3: =AK31 -> - | K3: =AM31 -> - | L3: =AO31 -> - | M3: =AQ31 -> - | N3: =AS31 -> - | O3: =AU31 -> - | P3: =AW31 -> - | Q3: =AY31 -> - | R3: =BA31 -> - | S3: =BC31 -> - | T3: =BE31 -> 4.29 | AA3: =IF($AE3<>"",VLOOKUP($AE3,【M】満足度!$A$1:$B$5,2,0),"") -> 5 | AC3: =AC2 -> 都道府県 | AD3: =AD2 -> 福井県 | AE3: とても満足 | AG3: =IF(OR(IFERROR(FIND($AD3,"施設コード"),0)>0,$AE3=""), "", COUNTIFS( INDEX(rawデータ範囲, , MATCH($AG$1,表頭範囲, 0)),AG$2, INDEX(rawデータ範囲, , MATCH($AE$1,表頭範囲, 0)),$AE3 ) ) -> 597件 | AH3: =IFERROR(AG3/AG$15,"") -> 38.5% | AI3: =IF(OR(IFERROR(FIND($AD3,"施設コード"),0)>0,$AE3=""), "", COUNTIFS( INDEX(rawデータ範囲, , MATCH($AG$1,表頭範囲, 0)),AI$2, INDEX(rawデータ範囲, , MATCH($AE$1,表頭範囲, 0)),$AE3 ) ) -> 0件 | AJ3: =IFERROR(AI3/AI$15,"") ->  | AK3: =IF(OR(IFERROR(FIND($AD3,"施設コード"),0)>0,$AE3=""), "", COUNTIFS( INDEX(rawデータ範囲, , MATCH($AG$1,表頭範囲, 0)),AK$2, INDEX(rawデータ範囲, , MATCH($AE$1,表頭範囲, 0)),$AE3 ) ) -> 0件 | AL3: =IFERROR(AK3/AK$15,"") ->  | AM3: =IF(OR(IFERROR(FIND($AD3,"施設コード"),0)>0,$AE3=""), "", COUNTIFS( INDEX(rawデータ範囲, , MATCH($AG$1,表頭範囲, 0)),AM$2, INDEX(rawデータ範囲, , MATCH($AE$1,表頭範囲, 0)),$AE3 ) ) -> 0件 | AN3: =IFERROR(AM3/AM$15,"") ->  | AO3: =IF(OR(IFERROR(FIND($AD3,"施設コード"),0)>0,$AE3=""), "", COUNTIFS( INDEX(rawデータ範囲, , MATCH($AG$1,表頭範囲, 0)),AO$2, INDEX(rawデータ範囲, , MATCH($AE$1,表頭範囲, 0)),$AE3 ) ) -> 0件 | AP3: =IFERROR(AO3/AO$15,"") ->  | AQ3: =IF(OR(IFERROR(FIND($AD3,"施設コード"),0)>0,$AE3=""), "", COUNTIFS( INDEX(rawデータ範囲, , MATCH($AG$1,表頭範囲, 0)),AQ$2, INDEX(rawデータ範囲, , MATCH($AE$1,表頭範囲, 0)),$AE3 ) ) -> 0件 | AR3: =IFERROR(AQ3/AQ$15,"") ->  | AS3: =IF(OR(IFERROR(FIND($AD3,"施設コード"),0)>0,$AE3=""), "", COUNTIFS( INDEX(rawデータ範囲, , MATCH($AG$1,表頭範囲, 0)),AS$2, INDEX(rawデータ範囲, , MATCH($AE$1,表頭範囲, 0)),$AE3 ) ) -> 0件 | AT3: =IFERROR(AS3/AS$15,"") ->  | AU3: =IF(OR(IFERROR(FIND($AD3,"施設コード"),0)>0,$AE3=""), "", COUNTIFS( INDEX(rawデータ範囲, , MATCH($AG$1,表頭範囲, 0)),AU$2, INDEX(rawデータ範囲, , MATCH($AE$1,表頭範囲, 0)),$AE3 ) ) -> 0件 | AV3: =IFERROR(AU3/AU$15,"") ->  | AW3: =IF(OR(IFERROR(FIND($AD3,"施設コード"),0)>0,$AE3=""), "", COUNTIFS( INDEX(rawデータ範囲, , MATCH($AG$1,表頭範囲, 0)),AW$2, INDEX(rawデータ範囲, , MATCH($AE$1,表頭範囲, 0)),$AE3 ) ) -> 0件 | AX3: =IFERROR(AW3/AW$15,"") ->  | AY3: =IF(OR(IFERROR(FIND($AD3,"施設コード"),0)>0,$AE3=""), "", COUNTIFS( INDEX(rawデータ範囲, , MATCH($AG$1,表頭範囲, 0)),AY$2, INDEX(rawデータ範囲, , MATCH($AE$1,表頭範囲, 0)),$AE3 ) ) -> 0件 | AZ3: =IFERROR(AY3/AY$15,"") ->  | BA3: =IF(OR(IFERROR(FIND($AD3,"施設コード"),0)>0,$AE3=""), "", COUNTIFS( INDEX(rawデータ範囲, , MATCH($AG$1,表頭範囲, 0)),BA$2, INDEX(rawデータ範囲, , MATCH($AE$1,表頭範囲, 0)),$AE3 ) ) -> 0件 | BB3: =IFERROR(BA3/BA$15,"") ->  | BC3: =IF(OR(IFERROR(FIND($AD3,"施設コード"),0)>0,$AE3=""), "", COUNTIFS( INDEX(rawデータ範囲, , MATCH($AG$1,表頭範囲, 0)),BC$2, INDEX(rawデータ範囲, , MATCH($AE$1,表頭範囲, 0)),$AE3 ) ) -> 0件 | BD3: =IFERROR(BC3/BC$15,"") ->  | BE3: =IFERROR(AG3+AI3+AK3+AM3+AO3+AQ3+AS3+AU3+AW3+AY3+BA3+BC3,"") -> 597件 | BF3: =IFERROR(BE3/BE$15,"") -> 38.5%
A4: どちらでもない | B4: 10.8% | C4: 11.1% | D4: 9.1% | E4: 13.3% | G4: =【M】エリア!$L$4 -> 福井市 | H4: =AG46 -> 4.34 | I4: =AI46 -> - | J4: =AK46 -> - | K4: =AM46 -> - | L4: =AO46 -> - | M4: =AQ46 -> - | N4: =AS46 -> - | O4: =AU46 -> - | P4: =AW46 -> - | Q4: =AY46 -> - | R4: =BA46 -> - | S4: =BC46 -> - | T4: =BE46 -> 4.34 | AA4: =IF($AE4<>"",VLOOKUP($AE4,【M】満足度!$A$1:$B$5,2,0),"") -> 4 | AC4: =AC3 -> 都道府県 | AD4: 福井県 | AE4: 満足 | AG4: 768件 | AH4: 49.5% | AI4: 0件 | AK4: 0件 | AM4: 0件 | AO4: 0件 | AQ4: 0件 | AS4: 0件 | AU4: 0件 | AW4: 0件 | AY4: 0件 | BA4: 0件 | BC4: 0件 | BE4: =IFERROR(AG4+AI4+AK4+AM4+AO4+AQ4+AS4+AU4+AW4+AY4+BA4+BC4,"") -> 768件 | BF4: 49.5%
A5: 不満 | B5: 1.0% | C5: 1.7% | D5: 1.1% | E5: 0.0% | G5: =【M】エリア!$L$5 -> 福井駅前 エリア | H5: =AG61 -> 4.30 | I5: =AI61 -> - | J5: =AK61 -> - | K5: =AM61 -> - | L5: =AO61 -> - | M5: =AQ61 -> - | N5: =AS61 -> - | O5: =AU61 -> - | P5: =AW61 -> - | Q5: =AY61 -> - | R5: =BA61 -> - | S5: =BC61 -> - | T5: =BE61 -> 4.30 | AA5: =IF($AE5<>"",VLOOKUP($AE5,【M】満足度!$A$1:$B$5,2,0),"") -> 3 | AC5: 都道府県 | AD5: 福井県 | AE5: どちらでもない | AG5: 167件 | AH5: 10.8% | AI5: 0件 | AK5: 0件 | AM5: 0件 | AO5: 0件 | AQ5: 0件 | AS5: 0件 | AU5: 0件 | AW5: 0件 | AY5: 0件 | BA5: 0件 | BC5: 0件 | BE5: 167件 | BF5: 10.8%
A6: とても不満 | B6: 0.3% | C6: 0.0% | D6: 0.0% | E6: 0.0% | AA6: =IF($AE6<>"",VLOOKUP($AE6,【M】満足度!$A$1:$B$5,2,0),"") -> 2 | AC6: 都道府県 | AD6: 福井県 | AE6: 不満 | AG6: 16件 | AH6: 1.0% | AI6: 0件 | AK6: 0件 | AM6: 0件 | AO6: 0件 | AQ6: 0件 | AS6: 0件 | AU6: 0件 | AW6: 0件 | AY6: 0件 | BA6: 0件 | BC6: 0件 | BE6: 16件 | BF6: 1.0%
AA7: =IF($AE7<>"",VLOOKUP($AE7,【M】満足度!$A$1:$B$5,2,0),"") -> 1 | AC7: 都道府県 | AD7: 福井県 | AE7: とても不満 | AG7: 4件 | AH7: 0.3% | AI7: 0件 | AK7: 0件 | AM7: 0件 | AO7: 0件 | AQ7: 0件 | AS7: 0件 | AU7: 0件 | AW7: 0件 | AY7: 0件 | BA7: 0件 | BC7: 0件 | BE7: 4件 | BF7: 0.3%
AA8: =IF($AE8<>"",VLOOKUP($AE8,【M】満足度!$A$1:$B$5,2,0),"") ->  | AC8: 都道府県 | AD8: 福井県
AA9: =IF($AE9<>"",VLOOKUP($AE9,【M】満足度!$A$1:$B$5,2,0),"") ->  | AC9: 都道府県 | AD9: 福井県
AA10: =IF($AE10<>"",VLOOKUP($AE10,【M】満足度!$A$1:$B$5,2,0),"") ->  | AC10: =AC9 -> 都道府県 | AD10: =AD9 -> 福井県
AA11: =IF($AE11<>"",VLOOKUP($AE11,【M】満足度!$A$1:$B$5,2,0),"") ->  | AC11: 都道府県 | AD11: 福井県
AA12: =IF($AE12<>"",VLOOKUP($AE12,【M】満足度!$A$1:$B$5,2,0),"") ->  | AC12: 都道府県 | AD12: 福井県
AA13: =IF($AE13<>"",VLOOKUP($AE13,【M】満足度!$A$1:$B$5,2,0),"") ->  | AC13: 都道府県 | AD13: 福井県 | BE13: =IFERROR(AG13+AI13+AK13+AM13+AO13+AQ13+AS13+AU13+AW13+AY13+BA13+BC13,"") -> 
AA14: =IF($AE14<>"",VLOOKUP($AE14,【M】満足度!$A$1:$B$5,2,0),"") ->  | AC14: =AC12 -> 都道府県 | AD14: =AD12 -> 福井県 | AH14: =IFERROR(AG14/AG$15,"") ->  | AJ14: =IFERROR(AI14/AI$15,"") ->  | AL14: =IFERROR(AK14/AK$15,"") ->  | AN14: =IFERROR(AM14/AM$15,"") ->  | AP14: =IFERROR(AO14/AO$15,"") ->  | AR14: =IFERROR(AQ14/AQ$15,"") ->  | AT14: =IFERROR(AS14/AS$15,"") ->  | AV14: =IFERROR(AU14/AU$15,"") ->  | AX14: =IFERROR(AW14/AW$15,"") ->  | AZ14: =IFERROR(AY14/AY$15,"") ->  | BB14: =IFERROR(BA14/BA$15,"") ->  | BD14: =IFERROR(BC14/BC$15,"") ->  | BF14: =IFERROR(BE14/BE$15,"") -> 
AF15: 合計 | AG15: =SUM(AG3:AG14) -> 1,552件 | AH15: 100.0% | AI15: 0件 | AJ15: 0.0% | AK15: 0件 | AL15: 0.0% | AM15: 0件 | AN15: 0.0% | AO15: 0件 | AP15: 0.0% | AQ15: 0件 | AR15: 0.0% | AS15: 0件 | AT15: 0.0% | AU15: 0件 | AV15: 0.0% | AW15: 0件 | AX15: 0.0% | AY15: 0件 | AZ15: 0.0% | BA15: 0件 | BB15: 0.0% | BC15: 0件 | BD15: 0.0% | BE15: =AG15+AI15+AK15+AM15+AO15+AQ15+AS15+AU15+AW15+AY15+BA15+BC15 -> 1,552件 | BF15: =SUM(BF3:BF14) -> 100.0%
AF16: 満足度スコア | AG16: =IF(AG15>0,SUMPRODUCT($AA3:$AA14,AG3:AG14)/AG15,"-") -> 4.25 | AI16: =IF(AI15>0,SUMPRODUCT($AA3:$AA14,AI3:AI14)/AI15,"-") -> - | AK16: =IF(AK15>0,SUMPRODUCT($AA3:$AA14,AK3:AK14)/AK15,"-") -> - | AM16: =IF(AM15>0,SUMPRODUCT($AA3:$AA14,AM3:AM14)/AM15,"-") -> - | AO16: =IF(AO15>0,SUMPRODUCT($AA3:$AA14,AO3:AO14)/AO15,"-") -> - | AQ16: =IF(AQ15>0,SUMPRODUCT($AA3:$AA14,AQ3:AQ14)/AQ15,"-") -> - | AS16: =IF(AS15>0,SUMPRODUCT($AA3:$AA14,AS3:AS14)/AS15,"-") -> - | AU16: =IF(AU15>0,SUMPRODUCT($AA3:$AA14,AU3:AU14)/AU15,"-") -> - | AW16: =IF(AW15>0,SUMPRODUCT($AA3:$AA14,AW3:AW14)/AW15,"-") -> - | AY16: =IF(AY15>0,SUMPRODUCT($AA3:$AA14,AY3:AY14)/AY15,"-") -> - | BA16: =IF(BA15>0,SUMPRODUCT($AA3:$AA14,BA3:BA14)/BA15,"-") -> - | BC16: =IF(BC15>0,SUMPRODUCT($AA3:$AA14,BC3:BC14)/BC15,"-") -> - | BE16: =IF(BE15>0,SUMPRODUCT($AA3:$AA14,BE3:BE14)/BE15,"-") -> 4.25
AC17: =【M】エリア!$J$2 -> 6分類 | AD17: =【M】エリア!$L$3 -> 福井市・永平寺町
AA18: =IF($AE18<>"",VLOOKUP($AE18,【M】満足度!$A$1:$B$5,2,0),"") -> 5 | AC18: =AC17 -> 6分類 | AD18: =AD17 -> 福井市・永平寺町 | AE18: =IF(AE3<>"",AE3,"") -> とても満足 | AG18: =IF(OR(IFERROR(FIND($AD18,"施設コード"),0)>0,$AE18=""), "", COUNTIFS( INDEX(rawデータ範囲, , MATCH($AG$1,表頭範囲, 0)),AG$2, INDEX(rawデータ範囲, , MATCH($AE$1,表頭範囲, 0)),$AE18, INDEX(rawデータ範囲, , MATCH($AC18,表頭範囲, 0)),$AD18 ) ) -> 129件 | AH18: =IFERROR(AG18/AG$30,"") -> 43.3% | AI18: =IF(OR(IFERROR(FIND($AD18,"施設コード"),0)>0,$AE18=""), "", COUNTIFS( INDEX(rawデータ範囲, , MATCH($AG$1,表頭範囲, 0)),AI$2, INDEX(rawデータ範囲, , MATCH($AE$1,表頭範囲, 0)),$AE18, INDEX(rawデータ範囲, , MATCH($AC18,表頭範囲, 0)),$AD18 ) ) -> 0件 | AJ18: =IFERROR(AI18/AI$30,"") ->  | AK18: =IF(OR(IFERROR(FIND($AD18,"施設コード"),0)>0,$AE18=""), "", COUNTIFS( INDEX(rawデータ範囲, , MATCH($AG$1,表頭範囲, 0)),AK$2, INDEX(rawデータ範囲, , MATCH($AE$1,表頭範囲, 0)),$AE18, INDEX(rawデータ範囲, , MATCH($AC18,表頭範囲, 0)),$AD18 ) ) -> 0件 | AL18: =IFERROR(AK18/AK$30,"") ->  | AM18: =IF(OR(IFERROR(FIND($AD18,"施設コード"),0)>0,$AE18=""), "", COUNTIFS( INDEX(rawデータ範囲, , MATCH($AG$1,表頭範囲, 0)),AM$2, INDEX(rawデータ範囲, , MATCH($AE$1,表頭範囲, 0)),$AE18, INDEX(rawデータ範囲, , MATCH($AC18,表頭範囲, 0)),$AD18 ) ) -> 0件 | AN18: =IFERROR(AM18/AM$30,"") ->  | AO18: =IF(OR(IFERROR(FIND($AD18,"施設コード"),0)>0,$AE18=""), "", COUNTIFS( INDEX(rawデータ範囲, , MATCH($AG$1,表頭範囲, 0)),AO$2, INDEX(rawデータ範囲, , MATCH($AE$1,表頭範囲, 0)),$AE18, INDEX(rawデータ範囲, , MATCH($AC18,表頭範囲, 0)),$AD18 ) ) -> 0件 | AP18: =IFERROR(AO18/AO$30,"") ->  | AQ18: =IF(OR(IFERROR(FIND($AD18,"施設コード"),0)>0,$AE18=""), "", COUNTIFS( INDEX(rawデータ範囲, , MATCH($AG$1,表頭範囲, 0)),AQ$2, INDEX(rawデータ範囲, , MATCH($AE$1,表頭範囲, 0)),$AE18, INDEX(rawデータ範囲, , MATCH($AC18,表頭範囲, 0)),$AD18 ) ) -> 0件 | AR18: =IFERROR(AQ18/AQ$30,"") ->  | AS18: =IF(OR(IFERROR(FIND($AD18,"施設コード"),0)>0,$AE18=""), "", COUNTIFS( INDEX(rawデータ範囲, , MATCH($AG$1,表頭範囲, 0)),AS$2, INDEX(rawデータ範囲, , MATCH($AE$1,表頭範囲, 0)),$AE18, INDEX(rawデータ範囲, , MATCH($AC18,表頭範囲, 0)),$AD18 ) ) -> 0件 | AT18: =IFERROR(AS18/AS$30,"") ->  | AU18: =IF(OR(IFERROR(FIND($AD18,"施設コード"),0)>0,$AE18=""), "", COUNTIFS( INDEX(rawデータ範囲, , MATCH($AG$1,表頭範囲, 0)),AU$2, INDEX(rawデータ範囲, , MATCH($AE$1,表頭範囲, 0)),$AE18, INDEX(rawデータ範囲, , MATCH($AC18,表頭範囲, 0)),$AD18 ) ) -> 0件 | AV18: =IFERROR(AU18/AU$30,"") ->  | AW18: =IF(OR(IFERROR(FIND($AD18,"施設コード"),0)>0,$AE18=""), "", COUNTIFS( INDEX(rawデータ範囲, , MATCH($AG$1,表頭範囲, 0)),AW$2, INDEX(rawデータ範囲, , MATCH($AE$1,表頭範囲, 0)),$AE18, INDEX(rawデータ範囲, , MATCH($AC18,表頭範囲, 0)),$AD18 ) ) -> 0件 | AX18: =IFERROR(AW18/AW$30,"") ->  | AY18: =IF(OR(IFERROR(FIND($AD18,"施設コード"),0)>0,$AE18=""), "", COUNTIFS( INDEX(rawデータ範囲, , MATCH($AG$1,表頭範囲, 0)),AY$2, INDEX(rawデータ範囲, , MATCH($AE$1,表頭範囲, 0)),$AE18, INDEX(rawデータ範囲, , MATCH($AC18,表頭範囲, 0)),$AD18 ) ) -> 0件 | AZ18: =IFERROR(AY18/AY$30,"") ->  | BA18: =IF(OR(IFERROR(FIND($AD18,"施設コード"),0)>0,$AE18=""), "", COUNTIFS( INDEX(rawデータ範囲, , MATCH($AG$1,表頭範囲, 0)),BA$2, INDEX(rawデータ範囲, , MATCH($AE$1,表頭範囲, 0)),$AE18, INDEX(rawデータ範囲, , MATCH($AC18,表頭範囲, 0)),$AD18 ) ) -> 0件 | BB18: =IFERROR(BA18/BA$30,"") ->  | BC18: =IF(OR(IFERROR(FIND($AD18,"施設コード"),0)>0,$AE18=""), "", COUNTIFS( INDEX(rawデータ範囲, , MATCH($AG$1,表頭範囲, 0)),BC$2, INDEX(rawデータ範囲, , MATCH($AE$1,表頭範囲, 0)),$AE18, INDEX(rawデータ範囲, , MATCH($AC18,表頭範囲, 0)),$AD18 ) ) -> 0件 | BD18: =IFERROR(BC18/BC$30,"") ->  | BE18: =IFERROR(AG18+AI18+AK18+AM18+AO18+AQ18+AS18+AU18+AW18+AY18+BA18+BC18,"") -> 129件 | BF18: =IFERROR(BE18/BE$30,"") -> 43.3%
AA19: =IF($AE19<>"",VLOOKUP($AE19,【M】満足度!$A$1:$B$5,2,0),"") -> 4 | AC19: =AC18 -> 6分類 | AD19: 福井市・永平寺町 | AE19: 満足 | AG19: 131件 | AH19: 44.0% | AI19: 0件 | AK19: 0件 | AM19: 0件 | AO19: 0件 | AQ19: 0件 | AS19: 0件 | AU19: 0件 | AW19: 0件 | AY19: 0件 | BA19: 0件 | BC19: 0件 | BE19: =IFERROR(AG19+AI19+AK19+AM19+AO19+AQ19+AS19+AU19+AW19+AY19+BA19+BC19,"") -> 131件 | BF19: 44.0%
AA20: =IF($AE20<>"",VLOOKUP($AE20,【M】満足度!$A$1:$B$5,2,0),"") -> 3 | AC20: 6分類 | AD20: 福井市・永平寺町 | AE20: どちらでもない | AG20: 33件 | AH20: 11.1% | AI20: 0件 | AK20: 0件 | AM20: 0件 | AO20: 0件 | AQ20: 0件 | AS20: 0件 | AU20: 0件 | AW20: 0件 | AY20: 0件 | BA20: 0件 | BC20: 0件 | BE20: 33件 | BF20: 11.1%
AA21: =IF($AE21<>"",VLOOKUP($AE21,【M】満足度!$A$1:$B$5,2,0),"") -> 2 | AC21: 6分類 | AD21: 福井市・永平寺町 | AE21: 不満 | AG21: 5件 | AH21: 1.7% | AI21: 0件 | AK21: 0件 | AM21: 0件 | AO21: 0件 | AQ21: 0件 | AS21: 0件 | AU21: 0件 | AW21: 0件 | AY21: 0件 | BA21: 0件 | BC21: 0件 | BE21: 5件 | BF21: 1.7%
AA22: =IF($AE22<>"",VLOOKUP($AE22,【M】満足度!$A$1:$B$5,2,0),"") -> 1 | AC22: 6分類 | AD22: 福井市・永平寺町 | AE22: とても不満 | AG22: 0件 | AH22: 0.0% | AI22: 0件 | AK22: 0件 | AM22: 0件 | AO22: 0件 | AQ22: 0件 | AS22: 0件 | AU22: 0件 | AW22: 0件 | AY22: 0件 | BA22: 0件 | BC22: 0件 | BE22: 0件 | BF22: 0.0%
AA23: =IF($AE23<>"",VLOOKUP($AE23,【M】満足度!$A$1:$B$5,2,0),"") ->  | AC23: 6分類 | AD23: 福井市・永平寺町
AA24: =IF($AE24<>"",VLOOKUP($AE24,【M】満足度!$A$1:$B$5,2,0),"") ->  | AC24: 6分類 | AD24: 福井市・永平寺町
AA25: =IF($AE25<>"",VLOOKUP($AE25,【M】満足度!$A$1:$B$5,2,0),"") ->  | AC25: =AC24 -> 6分類 | AD25: =AD24 -> 福井市・永平寺町
AA26: =IF($AE26<>"",VLOOKUP($AE26,【M】満足度!$A$1:$B$5,2,0),"") ->  | AC26: 6分類 | AD26: 福井市・永平寺町
AA27: =IF($AE27<>"",VLOOKUP($AE27,【M】満足度!$A$1:$B$5,2,0),"") ->  | AC27: 6分類 | AD27: 福井市・永平寺町
AA28: =IF($AE28<>"",VLOOKUP($AE28,【M】満足度!$A$1:$B$5,2,0),"") ->  | AC28: 6分類 | AD28: 福井市・永平寺町 | BE28: =IFERROR(AG28+AI28+AK28+AM28+AO28+AQ28+AS28+AU28+AW28+AY28+BA28+BC28,"") -> 
AA29: =IF($AE29<>"",VLOOKUP($AE29,【M】満足度!$A$1:$B$5,2,0),"") ->  | AC29: =AC27 -> 6分類 | AD29: =AD27 -> 福井市・永平寺町 | AE29: =IF(AE14<>"",AE14,"") ->  | AH29: =IFERROR(AG29/AG$30,"") ->  | AJ29: =IFERROR(AI29/AI$30,"") ->  | AL29: =IFERROR(AK29/AK$30,"") ->  | AN29: =IFERROR(AM29/AM$30,"") ->  | AP29: =IFERROR(AO29/AO$30,"") ->  | AR29: =IFERROR(AQ29/AQ$30,"") ->  | AT29: =IFERROR(AS29/AS$30,"") ->  | AV29: =IFERROR(AU29/AU$30,"") ->  | AX29: =IFERROR(AW29/AW$30,"") ->  | AZ29: =IFERROR(AY29/AY$30,"") ->  | BB29: =IFERROR(BA29/BA$30,"") ->  | BD29: =IFERROR(BC29/BC$30,"") ->  | BF29: =IFERROR(BE29/BE$30,"") -> 
AF30: 合計 | AG30: =SUM(AG18:AG29) -> 298件 | AH30: 100.0% | AI30: 0件 | AJ30: 0.0% | AK30: 0件 | AL30: 0.0% | AM30: 0件 | AN30: 0.0% | AO30: 0件 | AP30: 0.0% | AQ30: 0件 | AR30: 0.0% | AS30: 0件 | AT30: 0.0% | AU30: 0件 | AV30: 0.0% | AW30: 0件 | AX30: 0.0% | AY30: 0件 | AZ30: 0.0% | BA30: 0件 | BB30: 0.0% | BC30: 0件 | BD30: 0.0% | BE30: 298件 | BF30: 100.0%
AF31: =IF(AF$16<>"",AF$16,"") -> 満足度スコア | AG31: =IF(AG30>0,SUMPRODUCT($AA18:$AA29,AG18:AG29)/AG30,"-") -> 4.29 | AI31: =IF(AI30>0,SUMPRODUCT($AA18:$AA29,AI18:AI29)/AI30,"-") -> - | AK31: =IF(AK30>0,SUMPRODUCT($AA18:$AA29,AK18:AK29)/AK30,"-") -> - | AM31: =IF(AM30>0,SUMPRODUCT($AA18:$AA29,AM18:AM29)/AM30,"-") -> - | AO31: =IF(AO30>0,SUMPRODUCT($AA18:$AA29,AO18:AO29)/AO30,"-") -> - | AQ31: =IF(AQ30>0,SUMPRODUCT($AA18:$AA29,AQ18:AQ29)/AQ30,"-") -> - | AS31: =IF(AS30>0,SUMPRODUCT($AA18:$AA29,AS18:AS29)/AS30,"-") -> - | AU31: =IF(AU30>0,SUMPRODUCT($AA18:$AA29,AU18:AU29)/AU30,"-") -> - | AW31: =IF(AW30>0,SUMPRODUCT($AA18:$AA29,AW18:AW29)/AW30,"-") -> - | AY31: =IF(AY30>0,SUMPRODUCT($AA18:$AA29,AY18:AY29)/AY30,"-") -> - | BA31: =IF(BA30>0,SUMPRODUCT($AA18:$AA29,BA18:BA29)/BA30,"-") -> - | BC31: =IF(BC30>0,SUMPRODUCT($AA18:$AA29,BC18:BC29)/BC30,"-") -> - | BE31: =IF(BE30>0,SUMPRODUCT($AA18:$AA29,BE18:BE29)/BE30,"-") -> 4.29
AC32: 市町村 | AD32: =【M】エリア!$L$4 -> 福井市
AA33: =IF($AE33<>"",VLOOKUP($AE33,【M】満足度!$A$1:$B$5,2,0),"") -> 5 | AC33: =AC32 -> 市町村 | AD33: =AD32 -> 福井市 | AE33: =IF(AE3<>"",AE3,"") -> とても満足 | AG33: =IF(OR(IFERROR(FIND($AD33,"施設コード"),0)>0,$AE33=""), "", COUNTIFS( INDEX(rawデータ範囲, , MATCH($AG$1,表頭範囲, 0)),AG$2, INDEX(rawデータ範囲, , MATCH($AE$1,表頭範囲, 0)),$AE33, INDEX(rawデータ範囲, , MATCH($AC33,表頭範囲, 0)),$AD33 ) ) -> 79件 | AH33: =IFERROR(AG33/AG$45,"") -> 44.9% | AI33: =IF(OR(IFERROR(FIND($AD33,"施設コード"),0)>0,$AE33=""), "", COUNTIFS( INDEX(rawデータ範囲, , MATCH($AG$1,表頭範囲, 0)),AI$2, INDEX(rawデータ範囲, , MATCH($AE$1,表頭範囲, 0)),$AE33, INDEX(rawデータ範囲, , MATCH($AC33,表頭範囲, 0)),$AD33 ) ) -> 0件 | AJ33: =IFERROR(AI33/AI$45,"") ->  | AK33: =IF(OR(IFERROR(FIND($AD33,"施設コード"),0)>0,$AE33=""), "", COUNTIFS( INDEX(rawデータ範囲, , MATCH($AG$1,表頭範囲, 0)),AK$2, INDEX(rawデータ範囲, , MATCH($AE$1,表頭範囲, 0)),$AE33, INDEX(rawデータ範囲, , MATCH($AC33,表頭範囲, 0)),$AD33 ) ) -> 0件 | AL33: =IFERROR(AK33/AK$45,"") ->  | AM33: =IF(OR(IFERROR(FIND($AD33,"施設コード"),0)>0,$AE33=""), "", COUNTIFS( INDEX(rawデータ範囲, , MATCH($AG$1,表頭範囲, 0)),AM$2, INDEX(rawデータ範囲, , MATCH($AE$1,表頭範囲, 0)),$AE33, INDEX(rawデータ範囲, , MATCH($AC33,表頭範囲, 0)),$AD33 ) ) -> 0件 | AN33: =IFERROR(AM33/AM$45,"") ->  | AO33: =IF(OR(IFERROR(FIND($AD33,"施設コード"),0)>0,$AE33=""), "", COUNTIFS( INDEX(rawデータ範囲, , MATCH($AG$1,表頭範囲, 0)),AO$2, INDEX(rawデータ範囲, , MATCH($AE$1,表頭範囲, 0)),$AE33, INDEX(rawデータ範囲, , MATCH($AC33,表頭範囲, 0)),$AD33 ) ) -> 0件 | AP33: =IFERROR(AO33/AO$45,"") ->  | AQ33: =IF(OR(IFERROR(FIND($AD33,"施設コード"),0)>0,$AE33=""), "", COUNTIFS( INDEX(rawデータ範囲, , MATCH($AG$1,表頭範囲, 0)),AQ$2, INDEX(rawデータ範囲, , MATCH($AE$1,表頭範囲, 0)),$AE33, INDEX(rawデータ範囲, , MATCH($AC33,表頭範囲, 0)),$AD33 ) ) -> 0件 | AR33: =IFERROR(AQ33/AQ$45,"") ->  | AS33: =IF(OR(IFERROR(FIND($AD33,"施設コード"),0)>0,$AE33=""), "", COUNTIFS( INDEX(rawデータ範囲, , MATCH($AG$1,表頭範囲, 0)),AS$2, INDEX(rawデータ範囲, , MATCH($AE$1,表頭範囲, 0)),$AE33, INDEX(rawデータ範囲, , MATCH($AC33,表頭範囲, 0)),$AD33 ) ) -> 0件 | AT33: =IFERROR(AS33/AS$45,"") ->  | AU33: =IF(OR(IFERROR(FIND($AD33,"施設コード"),0)>0,$AE33=""), "", COUNTIFS( INDEX(rawデータ範囲, , MATCH($AG$1,表頭範囲, 0)),AU$2, INDEX(rawデータ範囲, , MATCH($AE$1,表頭範囲, 0)),$AE33, INDEX(rawデータ範囲, , MATCH($AC33,表頭範囲, 0)),$AD33 ) ) -> 0件 | AV33: =IFERROR(AU33/AU$45,"") ->  | AW33: =IF(OR(IFERROR(FIND($AD33,"施設コード"),0)>0,$AE33=""), "", COUNTIFS( INDEX(rawデータ範囲, , MATCH($AG$1,表頭範囲, 0)),AW$2, INDEX(rawデータ範囲, , MATCH($AE$1,表頭範囲, 0)),$AE33, INDEX(rawデータ範囲, , MATCH($AC33,表頭範囲, 0)),$AD33 ) ) -> 0件 | AX33: =IFERROR(AW33/AW$45,"") ->  | AY33: =IF(OR(IFERROR(FIND($AD33,"施設コード"),0)>0,$AE33=""), "", COUNTIFS( INDEX(rawデータ範囲, , MATCH($AG$1,表頭範囲, 0)),AY$2, INDEX(rawデータ範囲, , MATCH($AE$1,表頭範囲, 0)),$AE33, INDEX(rawデータ範囲, , MATCH($AC33,表頭範囲, 0)),$AD33 ) ) -> 0件 | AZ33: =IFERROR(AY33/AY$45,"") ->  | BA33: =IF(OR(IFERROR(FIND($AD33,"施設コード"),0)>0,$AE33=""), "", COUNTIFS( INDEX(rawデータ範囲, , MATCH($AG$1,表頭範囲, 0)),BA$2, INDEX(rawデータ範囲, , MATCH($AE$1,表頭範囲, 0)),$AE33, INDEX(rawデータ範囲, , MATCH($AC33,表頭範囲, 0)),$AD33 ) ) -> 0件 | BB33: =IFERROR(BA33/BA$45,"") ->  | BC33: =IF(OR(IFERROR(FIND($AD33,"施設コード"),0)>0,$AE33=""), "", COUNTIFS( INDEX(rawデータ範囲, , MATCH($AG$1,表頭範囲, 0)),BC$2, INDEX(rawデータ範囲, , MATCH($AE$1,表頭範囲, 0)),$AE33, INDEX(rawデータ範囲, , MATCH($AC33,表頭範囲, 0)),$AD33 ) ) -> 0件 | BD33: =IFERROR(BC33/BC$45,"") ->  | BE33: =IFERROR(AG33+AI33+AK33+AM33+AO33+AQ33+AS33+AU33+AW33+AY33+BA33+BC33,"") -> 79件 | BF33: =IFERROR(BE33/BE$45,"") -> 44.9%
AA34: =IF($AE34<>"",VLOOKUP($AE34,【M】満足度!$A$1:$B$5,2,0),"") -> 4 | AC34: =AC33 -> 市町村 | AD34: 福井市 | AE34: 満足 | AG34: 79件 | AH34: 44.9% | AI34: 0件 | AK34: 0件 | AM34: 0件 | AO34: 0件 | AQ34: 0件 | AS34: 0件 | AU34: 0件 | AW34: 0件 | AY34: 0件 | BA34: 0件 | BC34: 0件 | BE34: =IFERROR(AG34+AI34+AK34+AM34+AO34+AQ34+AS34+AU34+AW34+AY34+BA34+BC34,"") -> 79件 | BF34: 44.9%
AA35: =IF($AE35<>"",VLOOKUP($AE35,【M】満足度!$A$1:$B$5,2,0),"") -> 3 | AC35: 市町村 | AD35: 福井市 | AE35: どちらでもない | AG35: 16件 | AH35: 9.1% | AI35: 0件 | AK35: 0件 | AM35: 0件 | AO35: 0件 | AQ35: 0件 | AS35: 0件 | AU35: 0件 | AW35: 0件 | AY35: 0件 | BA35: 0件 | BC35: 0件 | BE35: 16件 | BF35: 9.1%
AA36: =IF($AE36<>"",VLOOKUP($AE36,【M】満足度!$A$1:$B$5,2,0),"") -> 2 | AC36: 市町村 | AD36: 福井市 | AE36: 不満 | AG36: 2件 | AH36: 1.1% | AI36: 0件 | AK36: 0件 | AM36: 0件 | AO36: 0件 | AQ36: 0件 | AS36: 0件 | AU36: 0件 | AW36: 0件 | AY36: 0件 | BA36: 0件 | BC36: 0件 | BE36: 2件 | BF36: 1.1%
AA37: =IF($AE37<>"",VLOOKUP($AE37,【M】満足度!$A$1:$B$5,2,0),"") -> 1 | AC37: 市町村 | AD37: 福井市 | AE37: とても不満 | AG37: 0件 | AH37: 0.0% | AI37: 0件 | AK37: 0件 | AM37: 0件 | AO37: 0件 | AQ37: 0件 | AS37: 0件 | AU37: 0件 | AW37: 0件 | AY37: 0件 | BA37: 0件 | BC37: 0件 | BE37: 0件 | BF37: 0.0%
AA38: =IF($AE38<>"",VLOOKUP($AE38,【M】満足度!$A$1:$B$5,2,0),"") ->  | AC38: 市町村 | AD38: 福井市
AA39: =IF($AE39<>"",VLOOKUP($AE39,【M】満足度!$A$1:$B$5,2,0),"") ->  | AC39: 市町村 | AD39: 福井市
AA40: =IF($AE40<>"",VLOOKUP($AE40,【M】満足度!$A$1:$B$5,2,0),"") ->  | AC40: =AC39 -> 市町村 | AD40: =AD39 -> 福井市
AA41: =IF($AE41<>"",VLOOKUP($AE41,【M】満足度!$A$1:$B$5,2,0),"") ->  | AC41: 市町村 | AD41: 福井市
AA42: =IF($AE42<>"",VLOOKUP($AE42,【M】満足度!$A$1:$B$5,2,0),"") ->  | AC42: 市町村 | AD42: 福井市
AA43: =IF($AE43<>"",VLOOKUP($AE43,【M】満足度!$A$1:$B$5,2,0),"") ->  | AC43: 市町村 | AD43: 福井市 | BE43: =IFERROR(AG43+AI43+AK43+AM43+AO43+AQ43+AS43+AU43+AW43+AY43+BA43+BC43,"") -> 
AA44: =IF($AE44<>"",VLOOKUP($AE44,【M】満足度!$A$1:$B$5,2,0),"") ->  | AC44: =AC42 -> 市町村 | AD44: =AD42 -> 福井市 | AE44: =IF(AE14<>"",AE14,"") ->  | AH44: =IFERROR(AG44/AG$45,"") ->  | AJ44: =IFERROR(AI44/AI$45,"") ->  | AL44: =IFERROR(AK44/AK$45,"") ->  | AN44: =IFERROR(AM44/AM$45,"") ->  | AP44: =IFERROR(AO44/AO$45,"") ->  | AR44: =IFERROR(AQ44/AQ$45,"") ->  | AT44: =IFERROR(AS44/AS$45,"") ->  | AV44: =IFERROR(AU44/AU$45,"") ->  | AX44: =IFERROR(AW44/AW$45,"") ->  | AZ44: =IFERROR(AY44/AY$45,"") ->  | BB44: =IFERROR(BA44/BA$45,"") ->  | BD44: =IFERROR(BC44/BC$45,"") -> 
AF45: 合計 | AG45: =SUM(AG33:AG44) -> 176件 | AH45: 100.0% | AI45: 0件 | AJ45: 0.0% | AK45: 0件 | AL45: 0.0% | AM45: 0件 | AN45: 0.0% | AO45: 0件 | AP45: 0.0% | AQ45: 0件 | AR45: 0.0% | AS45: 0件 | AT45: 0.0% | AU45: 0件 | AV45: 0.0% | AW45: 0件 | AX45: 0.0% | AY45: 0件 | AZ45: 0.0% | BA45: 0件 | BB45: 0.0% | BC45: 0件 | BD45: 0.0% | BE45: 176件 | BF45: 100.0%
AF46: =IF(AF$16<>"",AF$16,"") -> 満足度スコア | AG46: =IF(AG45>0,SUMPRODUCT($AA33:$AA44,AG33:AG44)/AG45,"-") -> 4.34 | AI46: =IF(AI45>0,SUMPRODUCT($AA33:$AA44,AI33:AI44)/AI45,"-") -> - | AK46: =IF(AK45>0,SUMPRODUCT($AA33:$AA44,AK33:AK44)/AK45,"-") -> - | AM46: =IF(AM45>0,SUMPRODUCT($AA33:$AA44,AM33:AM44)/AM45,"-") -> - | AO46: =IF(AO45>0,SUMPRODUCT($AA33:$AA44,AO33:AO44)/AO45,"-") -> - | AQ46: =IF(AQ45>0,SUMPRODUCT($AA33:$AA44,AQ33:AQ44)/AQ45,"-") -> - | AS46: =IF(AS45>0,SUMPRODUCT($AA33:$AA44,AS33:AS44)/AS45,"-") -> - | AU46: =IF(AU45>0,SUMPRODUCT($AA33:$AA44,AU33:AU44)/AU45,"-") -> - | AW46: =IF(AW45>0,SUMPRODUCT($AA33:$AA44,AW33:AW44)/AW45,"-") -> - | AY46: =IF(AY45>0,SUMPRODUCT($AA33:$AA44,AY33:AY44)/AY45,"-") -> - | BA46: =IF(BA45>0,SUMPRODUCT($AA33:$AA44,BA33:BA44)/BA45,"-") -> - | BC46: =IF(BC45>0,SUMPRODUCT($AA33:$AA44,BC33:BC44)/BC45,"-") -> - | BE46: =IF(BE45>0,SUMPRODUCT($AA33:$AA44,BE33:BE44)/BE45,"-") -> 4.34
AC47: 回答エリア | AD47: =【M】エリア!$L$5 -> 福井駅前 エリア
AA48: =IF($AE48<>"",VLOOKUP($AE48,【M】満足度!$A$1:$B$5,2,0),"") -> 5 | AC48: =AC47 -> 回答エリア | AD48: =AD47 -> 福井駅前 エリア | AE48: =IF(AE3<>"",AE3,"") -> とても満足 | AG48: =IF(OR(IFERROR(FIND($AD48,"施設コード"),0)>0,$AE48=""), "", COUNTIFS( INDEX(rawデータ範囲, , MATCH($AG$1,表頭範囲, 0)),AG$2, INDEX(rawデータ範囲, , MATCH($AE$1,表頭範囲, 0)),$AE48, INDEX(rawデータ範囲, , MATCH($AC48,表頭範囲, 0)),$AD48 ) ) -> 26件 | AH48: =IFERROR(AG48/AG$60,"") -> 43.3% | AI48: =IF(OR(IFERROR(FIND($AD48,"施設コード"),0)>0,$AE48=""), "", COUNTIFS( INDEX(rawデータ範囲, , MATCH($AG$1,表頭範囲, 0)),AI$2, INDEX(rawデータ範囲, , MATCH($AE$1,表頭範囲, 0)),$AE48, INDEX(rawデータ範囲, , MATCH($AC48,表頭範囲, 0)),$AD48 ) ) -> 0件 | AJ48: =IFERROR(AI48/AI$60,"") ->  | AK48: =IF(OR(IFERROR(FIND($AD48,"施設コード"),0)>0,$AE48=""), "", COUNTIFS( INDEX(rawデータ範囲, , MATCH($AG$1,表頭範囲, 0)),AK$2, INDEX(rawデータ範囲, , MATCH($AE$1,表頭範囲, 0)),$AE48, INDEX(rawデータ範囲, , MATCH($AC48,表頭範囲, 0)),$AD48 ) ) -> 0件 | AL48: =IFERROR(AK48/AK$60,"") ->  | AM48: =IF(OR(IFERROR(FIND($AD48,"施設コード"),0)>0,$AE48=""), "", COUNTIFS( INDEX(rawデータ範囲, , MATCH($AG$1,表頭範囲, 0)),AM$2, INDEX(rawデータ範囲, , MATCH($AE$1,表頭範囲, 0)),$AE48, INDEX(rawデータ範囲, , MATCH($AC48,表頭範囲, 0)),$AD48 ) ) -> 0件 | AN48: =IFERROR(AM48/AM$60,"") ->  | AO48: =IF(OR(IFERROR(FIND($AD48,"施設コード"),0)>0,$AE48=""), "", COUNTIFS( INDEX(rawデータ範囲, , MATCH($AG$1,表頭範囲, 0)),AO$2, INDEX(rawデータ範囲, , MATCH($AE$1,表頭範囲, 0)),$AE48, INDEX(rawデータ範囲, , MATCH($AC48,表頭範囲, 0)),$AD48 ) ) -> 0件 | AP48: =IFERROR(AO48/AO$60,"") ->  | AQ48: =IF(OR(IFERROR(FIND($AD48,"施設コード"),0)>0,$AE48=""), "", COUNTIFS( INDEX(rawデータ範囲, , MATCH($AG$1,表頭範囲, 0)),AQ$2, INDEX(rawデータ範囲, , MATCH($AE$1,表頭範囲, 0)),$AE48, INDEX(rawデータ範囲, , MATCH($AC48,表頭範囲, 0)),$AD48 ) ) -> 0件 | AR48: =IFERROR(AQ48/AQ$60,"") ->  | AS48: =IF(OR(IFERROR(FIND($AD48,"施設コード"),0)>0,$AE48=""), "", COUNTIFS( INDEX(rawデータ範囲, , MATCH($AG$1,表頭範囲, 0)),AS$2, INDEX(rawデータ範囲, , MATCH($AE$1,表頭範囲, 0)),$AE48, INDEX(rawデータ範囲, , MATCH($AC48,表頭範囲, 0)),$AD48 ) ) -> 0件 | AT48: =IFERROR(AS48/AS$60,"") ->  | AU48: =IF(OR(IFERROR(FIND($AD48,"施設コード"),0)>0,$AE48=""), "", COUNTIFS( INDEX(rawデータ範囲, , MATCH($AG$1,表頭範囲, 0)),AU$2, INDEX(rawデータ範囲, , MATCH($AE$1,表頭範囲, 0)),$AE48, INDEX(rawデータ範囲, , MATCH($AC48,表頭範囲, 0)),$AD48 ) ) -> 0件 | AV48: =IFERROR(AU48/AU$60,"") ->  | AW48: =IF(OR(IFERROR(FIND($AD48,"施設コード"),0)>0,$AE48=""), "", COUNTIFS( INDEX(rawデータ範囲, , MATCH($AG$1,表頭範囲, 0)),AW$2, INDEX(rawデータ範囲, , MATCH($AE$1,表頭範囲, 0)),$AE48, INDEX(rawデータ範囲, , MATCH($AC48,表頭範囲, 0)),$AD48 ) ) -> 0件 | AX48: =IFERROR(AW48/AW$60,"") ->  | AY48: =IF(OR(IFERROR(FIND($AD48,"施設コード"),0)>0,$AE48=""), "", COUNTIFS( INDEX(rawデータ範囲, , MATCH($AG$1,表頭範囲, 0)),AY$2, INDEX(rawデータ範囲, , MATCH($AE$1,表頭範囲, 0)),$AE48, INDEX(rawデータ範囲, , MATCH($AC48,表頭範囲, 0)),$AD48 ) ) -> 0件 | AZ48: =IFERROR(AY48/AY$60,"") ->  | BA48: =IF(OR(IFERROR(FIND($AD48,"施設コード"),0)>0,$AE48=""), "", COUNTIFS( INDEX(rawデータ範囲, , MATCH($AG$1,表頭範囲, 0)),BA$2, INDEX(rawデータ範囲, , MATCH($AE$1,表頭範囲, 0)),$AE48, INDEX(rawデータ範囲, , MATCH($AC48,表頭範囲, 0)),$AD48 ) ) -> 0件 | BB48: =IFERROR(BA48/BA$60,"") ->  | BC48: =IF(OR(IFERROR(FIND($AD48,"施設コード"),0)>0,$AE48=""), "", COUNTIFS( INDEX(rawデータ範囲, , MATCH($AG$1,表頭範囲, 0)),BC$2, INDEX(rawデータ範囲, , MATCH($AE$1,表頭範囲, 0)),$AE48, INDEX(rawデータ範囲, , MATCH($AC48,表頭範囲, 0)),$AD48 ) ) -> 0件 | BD48: =IFERROR(BC48/BC$60,"") ->  | BE48: =IFERROR(AG48+AI48+AK48+AM48+AO48+AQ48+AS48+AU48+AW48+AY48+BA48+BC48,"") -> 26件 | BF48: =IFERROR(BE48/BE$60,"") -> 43.3%
AA49: =IF($AE49<>"",VLOOKUP($AE49,【M】満足度!$A$1:$B$5,2,0),"") -> 4 | AC49: =AC48 -> 回答エリア | AD49: 福井駅前 エリア | AE49: 満足 | AG49: 26件 | AH49: 43.3% | AI49: 0件 | AK49: 0件 | AM49: 0件 | AO49: 0件 | AQ49: 0件 | AS49: 0件 | AU49: 0件 | AW49: 0件 | AY49: 0件 | BA49: 0件 | BC49: 0件 | BE49: =IFERROR(AG49+AI49+AK49+AM49+AO49+AQ49+AS49+AU49+AW49+AY49+BA49+BC49,"") -> 26件 | BF49: 43.3%
AA50: =IF($AE50<>"",VLOOKUP($AE50,【M】満足度!$A$1:$B$5,2,0),"") -> 3 | AC50: 回答エリア | AD50: 福井駅前 エリア | AE50: どちらでもない | AG50: 8件 | AH50: 13.3% | AI50: 0件 | AK50: 0件 | AM50: 0件 | AO50: 0件 | AQ50: 0件 | AS50: 0件 | AU50: 0件 | AW50: 0件 | AY50: 0件 | BA50: 0件 | BC50: 0件 | BE50: 8件 | BF50: 13.3%
AA51: =IF($AE51<>"",VLOOKUP($AE51,【M】満足度!$A$1:$B$5,2,0),"") -> 2 | AC51: 回答エリア | AD51: 福井駅前 エリア | AE51: 不満 | AG51: 0件 | AH51: 0.0% | AI51: 0件 | AK51: 0件 | AM51: 0件 | AO51: 0件 | AQ51: 0件 | AS51: 0件 | AU51: 0件 | AW51: 0件 | AY51: 0件 | BA51: 0件 | BC51: 0件 | BE51: 0件 | BF51: 0.0%
AA52: =IF($AE52<>"",VLOOKUP($AE52,【M】満足度!$A$1:$B$5,2,0),"") -> 1 | AC52: 回答エリア | AD52: 福井駅前 エリア | AE52: とても不満 | AG52: 0件 | AH52: 0.0% | AI52: 0件 | AK52: 0件 | AM52: 0件 | AO52: 0件 | AQ52: 0件 | AS52: 0件 | AU52: 0件 | AW52: 0件 | AY52: 0件 | BA52: 0件 | BC52: 0件 | BE52: 0件 | BF52: 0.0%
AA53: =IF($AE53<>"",VLOOKUP($AE53,【M】満足度!$A$1:$B$5,2,0),"") ->  | AC53: 回答エリア | AD53: 福井駅前 エリア
AA54: =IF($AE54<>"",VLOOKUP($AE54,【M】満足度!$A$1:$B$5,2,0),"") ->  | AC54: 回答エリア | AD54: 福井駅前 エリア
AA55: =IF($AE55<>"",VLOOKUP($AE55,【M】満足度!$A$1:$B$5,2,0),"") ->  | AC55: =AC54 -> 回答エリア | AD55: =AD54 -> 福井駅前 エリア
AA56: =IF($AE56<>"",VLOOKUP($AE56,【M】満足度!$A$1:$B$5,2,0),"") ->  | AC56: 回答エリア | AD56: 福井駅前 エリア
AA57: =IF($AE57<>"",VLOOKUP($AE57,【M】満足度!$A$1:$B$5,2,0),"") ->  | AC57: 回答エリア | AD57: 福井駅前 エリア
AA58: =IF($AE58<>"",VLOOKUP($AE58,【M】満足度!$A$1:$B$5,2,0),"") ->  | AC58: 回答エリア | AD58: 福井駅前 エリア | BE58: =IFERROR(AG58+AI58+AK58+AM58+AO58+AQ58+AS58+AU58+AW58+AY58+BA58+BC58,"") -> 
AA59: =IF($AE59<>"",VLOOKUP($AE59,【M】満足度!$A$1:$B$5,2,0),"") ->  | AC59: =AC57 -> 回答エリア | AD59: =AD57 -> 福井駅前 エリア | AE59: =IF(AE14<>"",AE14,"") ->  | AH59: =IFERROR(AG59/AG$60,"") ->  | AJ59: =IFERROR(AI59/AI$60,"") ->  | AL59: =IFERROR(AK59/AK$60,"") ->  | AN59: =IFERROR(AM59/AM$60,"") ->  | AP59: =IFERROR(AO59/AO$60,"") ->  | AR59: =IFERROR(AQ59/AQ$60,"") ->  | AT59: =IFERROR(AS59/AS$60,"") ->  | AV59: =IFERROR(AU59/AU$60,"") ->  | AX59: =IFERROR(AW59/AW$60,"") ->  | AZ59: =IFERROR(AY59/AY$60,"") ->  | BB59: =IFERROR(BA59/BA$60,"") ->  | BD59: =IFERROR(BC59/BC$60,"") ->  | BF59: =IFERROR(BE59/BE$60,"") -> 
AF60: 合計 | AG60: =SUM(AG48:AG59) -> 60件 | AH60: 100.0% | AI60: 0件 | AJ60: 0.0% | AK60: 0件 | AL60: 0.0% | AM60: 0件 | AN60: 0.0% | AO60: 0件 | AP60: 0.0% | AQ60: 0件 | AR60: 0.0% | AS60: 0件 | AT60: 0.0% | AU60: 0件 | AV60: 0.0% | AW60: 0件 | AX60: 0.0% | AY60: 0件 | AZ60: 0.0% | BA60: 0件 | BB60: 0.0% | BC60: 0件 | BD60: 0.0% | BE60: 60件 | BF60: 100.0%
AF61: =IF(AF$16<>"",AF$16,"") -> 満足度スコア | AG61: =IF(AG60>0,SUMPRODUCT($AA48:$AA59,AG48:AG59)/AG60,"-") -> 4.30 | AI61: =IF(AI60>0,SUMPRODUCT($AA48:$AA59,AI48:AI59)/AI60,"-") -> - | AK61: =IF(AK60>0,SUMPRODUCT($AA48:$AA59,AK48:AK59)/AK60,"-") -> - | AM61: =IF(AM60>0,SUMPRODUCT($AA48:$AA59,AM48:AM59)/AM60,"-") -> - | AO61: =IF(AO60>0,SUMPRODUCT($AA48:$AA59,AO48:AO59)/AO60,"-") -> - | AQ61: =IF(AQ60>0,SUMPRODUCT($AA48:$AA59,AQ48:AQ59)/AQ60,"-") -> - | AS61: =IF(AS60>0,SUMPRODUCT($AA48:$AA59,AS48:AS59)/AS60,"-") -> - | AU61: =IF(AU60>0,SUMPRODUCT($AA48:$AA59,AU48:AU59)/AU60,"-") -> - | AW61: =IF(AW60>0,SUMPRODUCT($AA48:$AA59,AW48:AW59)/AW60,"-") -> - | AY61: =IF(AY60>0,SUMPRODUCT($AA48:$AA59,AY48:AY59)/AY60,"-") -> - | BA61: =IF(BA60>0,SUMPRODUCT($AA48:$AA59,BA48:BA59)/BA60,"-") -> - | BC61: =IF(BC60>0,SUMPRODUCT($AA48:$AA59,BC48:BC59)/BC60,"-") -> - | BE61: =IF(BE60>0,SUMPRODUCT($AA48:$AA59,BE48:BE59)/BE60,"-") -> 4.30

Sheet 満足度(施設全体)
A1: =施設コード!$A$2 -> 4月 | B1: =【M】エリア!$L$2 -> 福井県 | C1: =【M】エリア!$L$3 -> 福井市・永平寺町 | D1: =【M】エリア!$L$4 -> 福井市 | E1: =【M】エリア!$L$5 -> 福井駅前 エリア | G1: =AF16 -> 満足度スコア | H1: 4月 | I1: 5月 | J1: 6月 | K1: 7月 | L1: 8月 | M1: 9月 | N1: 10月 | O1: 11月 | P1: 12月 | Q1: 1月 | R1: 2月 | S1: 3月 | T1: 通年 | AA1: =AF16&"（推移）" -> 満足度スコア（推移） | AC1: 集計区分 | AE1: 満足度(施設全体) | AF1: 回答数 | AG1: 回答月 | AH1: 回答月 | AI1: 回答月 | AJ1: 回答月 | AK1: 回答月 | AL1: 回答月 | AM1: 回答月 | AN1: 回答月 | AO1: 回答月 | AP1: 回答月 | AQ1: 回答月 | AR1: 回答月 | AS1: 回答月 | AT1: 回答月 | AU1: 回答月 | AV1: 回答月 | AW1: 回答月 | AX1: 回答月 | AY1: 回答月 | AZ1: 回答月 | BA1: 回答月 | BB1: 回答月 | BC1: 回答月 | BD1: 回答月 | BE1: 回答月 | BF1: 回答月
A2: =IF(AE3<>"",AE3,"") -> とても満足 | B2: =IFERROR(OFFSET(INDEX($AG$3:$BF$14, MATCH($A2,$A$2:$A$13,0),MATCH($A$1,$AG$2:$BF$2,0)),0,1),"") -> 39.4% | C2: =IFERROR(OFFSET(INDEX($AG$18:$BF$29, MATCH($A2,$A$2:$A$13,0),MATCH($A$1,$AG$2:$BF$2,0)),0,1),"") -> 42.6% | D2: =IFERROR(OFFSET(INDEX($AG$33:$BF$44, MATCH($A2,$A$2:$A$13,0),MATCH($A$1,$AG$2:$BF$2,0)),0,1),"") -> 38.1% | E2: =IFERROR(OFFSET(INDEX($AG$48:$BF$59, MATCH($A2,$A$2:$A$13,0),MATCH($A$1,$AG$2:$BF$2,0)),0,1),"") -> 35.0% | G2: =【M】エリア!$L$2 -> 福井県 | H2: =AG16 -> 4.27 | I2: =AI16 -> - | J2: =AK16 -> - | K2: =AM16 -> - | L2: =AO16 -> - | M2: =AQ16 -> - | N2: =AS16 -> - | O2: =AU16 -> - | P2: =AW16 -> - | Q2: =AY16 -> - | R2: =BA16 -> - | S2: =BC16 -> - | T2: =BE16 -> 4.27 | AC2: 都道府県 | AD2: =【M】エリア!$L$2 -> 福井県 | AG2: 4月 | AI2: 5月 | AK2: 6月 | AM2: 7月 | AO2: 8月 | AQ2: 9月 | AS2: 10月 | AU2: 11月 | AW2: 12月 | AY2: 1月 | BA2: 2月 | BC2: 3月 | BE2: 通年
A3: =IF(AE4<>"",AE4,"") -> 満足 | B3: =IFERROR(OFFSET(INDEX($AG$3:$BF$14, MATCH($A3,$A$2:$A$13,0),MATCH($A$1,$AG$2:$BF$2,0)),0,1),"") -> 50.5% | C3: =IFERROR(OFFSET(INDEX($AG$18:$BF$29, MATCH($A3,$A$2:$A$13,0),MATCH($A$1,$AG$2:$BF$2,0)),0,1),"") -> 47.7% | D3: =IFERROR(OFFSET(INDEX($AG$33:$BF$44, MATCH($A3,$A$2:$A$13,0),MATCH($A$1,$AG$2:$BF$2,0)),0,1),"") -> 51.7% | E3: =IFERROR(OFFSET(INDEX($AG$48:$BF$59, MATCH($A3,$A$2:$A$13,0),MATCH($A$1,$AG$2:$BF$2,0)),0,1),"") -> 55.0% | G3: =【M】エリア!$L$3 -> 福井市・永平寺町 | H3: =AG31 -> 4.30 | I3: =AI31 -> - | J3: =AK31 -> - | K3: =AM31 -> - | L3: =AO31 -> - | M3: =AQ31 -> - | N3: =AS31 -> - | O3: =AU31 -> - | P3: =AW31 -> - | Q3: =AY31 -> - | R3: =BA31 -> - | S3: =BC31 -> - | T3: =BE31 -> 4.30 | AA3: =IF($AE3<>"",VLOOKUP($AE3,【M】満足度!$A$1:$B$5,2,0),"") -> 5 | AC3: =AC2 -> 都道府県 | AD3: =AD2 -> 福井県 | AE3: とても満足 | AG3: =IF(OR(IFERROR(FIND($AD3,"施設コード"),0)>0,$AE3=""), "", COUNTIFS( INDEX(rawデータ範囲, , MATCH($AG$1,表頭範囲, 0)),AG$2, INDEX(rawデータ範囲, , MATCH($AE$1,表頭範囲, 0)),$AE3 ) ) -> 612件 | AH3: =IFERROR(AG3/AG$15,"") -> 39.4% | AI3: =IF(OR(IFERROR(FIND($AD3,"施設コード"),0)>0,$AE3=""), "", COUNTIFS( INDEX(rawデータ範囲, , MATCH($AG$1,表頭範囲, 0)),AI$2, INDEX(rawデータ範囲, , MATCH($AE$1,表頭範囲, 0)),$AE3 ) ) -> 0件 | AJ3: =IFERROR(AI3/AI$15,"") ->  | AK3: =IF(OR(IFERROR(FIND($AD3,"施設コード"),0)>0,$AE3=""), "", COUNTIFS( INDEX(rawデータ範囲, , MATCH($AG$1,表頭範囲, 0)),AK$2, INDEX(rawデータ範囲, , MATCH($AE$1,表頭範囲, 0)),$AE3 ) ) -> 0件 | AL3: =IFERROR(AK3/AK$15,"") ->  | AM3: =IF(OR(IFERROR(FIND($AD3,"施設コード"),0)>0,$AE3=""), "", COUNTIFS( INDEX(rawデータ範囲, , MATCH($AG$1,表頭範囲, 0)),AM$2, INDEX(rawデータ範囲, , MATCH($AE$1,表頭範囲, 0)),$AE3 ) ) -> 0件 | AN3: =IFERROR(AM3/AM$15,"") ->  | AO3: =IF(OR(IFERROR(FIND($AD3,"施設コード"),0)>0,$AE3=""), "", COUNTIFS( INDEX(rawデータ範囲, , MATCH($AG$1,表頭範囲, 0)),AO$2, INDEX(rawデータ範囲, , MATCH($AE$1,表頭範囲, 0)),$AE3 ) ) -> 0件 | AP3: =IFERROR(AO3/AO$15,"") ->  | AQ3: =IF(OR(IFERROR(FIND($AD3,"施設コード"),0)>0,$AE3=""), "", COUNTIFS( INDEX(rawデータ範囲, , MATCH($AG$1,表頭範囲, 0)),AQ$2, INDEX(rawデータ範囲, , MATCH($AE$1,表頭範囲, 0)),$AE3 ) ) -> 0件 | AR3: =IFERROR(AQ3/AQ$15,"") ->  | AS3: =IF(OR(IFERROR(FIND($AD3,"施設コード"),0)>0,$AE3=""), "", COUNTIFS( INDEX(rawデータ範囲, , MATCH($AG$1,表頭範囲, 0)),AS$2, INDEX(rawデータ範囲, , MATCH($AE$1,表頭範囲, 0)),$AE3 ) ) -> 0件 | AT3: =IFERROR(AS3/AS$15,"") ->  | AU3: =IF(OR(IFERROR(FIND($AD3,"施設コード"),0)>0,$AE3=""), "", COUNTIFS( INDEX(rawデータ範囲, , MATCH($AG$1,表頭範囲, 0)),AU$2, INDEX(rawデータ範囲, , MATCH($AE$1,表頭範囲, 0)),$AE3 ) ) -> 0件 | AV3: =IFERROR(AU3/AU$15,"") ->  | AW3: =IF(OR(IFERROR(FIND($AD3,"施設コード"),0)>0,$AE3=""), "", COUNTIFS( INDEX(rawデータ範囲, , MATCH($AG$1,表頭範囲, 0)),AW$2, INDEX(rawデータ範囲, , MATCH($AE$1,表頭範囲, 0)),$AE3 ) ) -> 0件 | AX3: =IFERROR(AW3/AW$15,"") ->  | AY3: =IF(OR(IFERROR(FIND($AD3,"施設コード"),0)>0,$AE3=""), "", COUNTIFS( INDEX(rawデータ範囲, , MATCH($AG$1,表頭範囲, 0)),AY$2, INDEX(rawデータ範囲, , MATCH($AE$1,表頭範囲, 0)),$AE3 ) ) -> 0件 | AZ3: =IFERROR(AY3/AY$15,"") ->  | BA3: =IF(OR(IFERROR(FIND($AD3,"施設コード"),0)>0,$AE3=""), "", COUNTIFS( INDEX(rawデータ範囲, , MATCH($AG$1,表頭範囲, 0)),BA$2, INDEX(rawデータ範囲, , MATCH($AE$1,表頭範囲, 0)),$AE3 ) ) -> 0件 | BB3: =IFERROR(BA3/BA$15,"") ->  | BC3: =IF(OR(IFERROR(FIND($AD3,"施設コード"),0)>0,$AE3=""), "", COUNTIFS( INDEX(rawデータ範囲, , MATCH($AG$1,表頭範囲, 0)),BC$2, INDEX(rawデータ範囲, , MATCH($AE$1,表頭範囲, 0)),$AE3 ) ) -> 0件 | BD3: =IFERROR(BC3/BC$15,"") ->  | BE3: =IFERROR(AG3+AI3+AK3+AM3+AO3+AQ3+AS3+AU3+AW3+AY3+BA3+BC3,"") -> 612件 | BF3: =IFERROR(BE3/BE$15,"") -> 39.4%
A4: どちらでもない | B4: 8.4% | C4: 7.4% | D4: 8.5% | E4: 10.0% | G4: =【M】エリア!$L$4 -> 福井市 | H4: =AG46 -> 4.26 | I4: =AI46 -> - | J4: =AK46 -> - | K4: =AM46 -> - | L4: =AO46 -> - | M4: =AQ46 -> - | N4: =AS46 -> - | O4: =AU46 -> - | P4: =AW46 -> - | Q4: =AY46 -> - | R4: =BA46 -> - | S4: =BC46 -> - | T4: =BE46 -> 4.26 | AA4: =IF($AE4<>"",VLOOKUP($AE4,【M】満足度!$A$1:$B$5,2,0),"") -> 4 | AC4: =AC3 -> 都道府県 | AD4: 福井県 | AE4: 満足 | AG4: 784件 | AH4: 50.5% | AI4: 0件 | AK4: 0件 | AM4: 0件 | AO4: 0件 | AQ4: 0件 | AS4: 0件 | AU4: 0件 | AW4: 0件 | AY4: 0件 | BA4: 0件 | BC4: 0件 | BE4: =IFERROR(AG4+AI4+AK4+AM4+AO4+AQ4+AS4+AU4+AW4+AY4+BA4+BC4,"") -> 784件 | BF4: 50.5%
A5: 不満 | B5: 1.2% | C5: 2.0% | D5: 1.7% | E5: 0.0% | G5: =【M】エリア!$L$5 -> 福井駅前 エリア | H5: =AG61 -> 4.25 | I5: =AI61 -> - | J5: =AK61 -> - | K5: =AM61 -> - | L5: =AO61 -> - | M5: =AQ61 -> - | N5: =AS61 -> - | O5: =AU61 -> - | P5: =AW61 -> - | Q5: =AY61 -> - | R5: =BA61 -> - | S5: =BC61 -> - | T5: =BE61 -> 4.25 | AA5: =IF($AE5<>"",VLOOKUP($AE5,【M】満足度!$A$1:$B$5,2,0),"") -> 3 | AC5: 都道府県 | AD5: 福井県 | AE5: どちらでもない | AG5: 131件 | AH5: 8.4% | AI5: 0件 | AK5: 0件 | AM5: 0件 | AO5: 0件 | AQ5: 0件 | AS5: 0件 | AU5: 0件 | AW5: 0件 | AY5: 0件 | BA5: 0件 | BC5: 0件 | BE5: 131件 | BF5: 8.4%
A6: とても不満 | B6: 0.4% | C6: 0.3% | D6: 0.0% | E6: 0.0% | AA6: =IF($AE6<>"",VLOOKUP($AE6,【M】満足度!$A$1:$B$5,2,0),"") -> 2 | AC6: 都道府県 | AD6: 福井県 | AE6: 不満 | AG6: 19件 | AH6: 1.2% | AI6: 0件 | AK6: 0件 | AM6: 0件 | AO6: 0件 | AQ6: 0件 | AS6: 0件 | AU6: 0件 | AW6: 0件 | AY6: 0件 | BA6: 0件 | BC6: 0件 | BE6: 19件 | BF6: 1.2%
AA7: =IF($AE7<>"",VLOOKUP($AE7,【M】満足度!$A$1:$B$5,2,0),"") -> 1 | AC7: 都道府県 | AD7: 福井県 | AE7: とても不満 | AG7: 6件 | AH7: 0.4% | AI7: 0件 | AK7: 0件 | AM7: 0件 | AO7: 0件 | AQ7: 0件 | AS7: 0件 | AU7: 0件 | AW7: 0件 | AY7: 0件 | BA7: 0件 | BC7: 0件 | BE7: 6件 | BF7: 0.4%
AA8: =IF($AE8<>"",VLOOKUP($AE8,【M】満足度!$A$1:$B$5,2,0),"") ->  | AC8: 都道府県 | AD8: 福井県
AA9: =IF($AE9<>"",VLOOKUP($AE9,【M】満足度!$A$1:$B$5,2,0),"") ->  | AC9: 都道府県 | AD9: 福井県
AA10: =IF($AE10<>"",VLOOKUP($AE10,【M】満足度!$A$1:$B$5,2,0),"") ->  | AC10: =AC9 -> 都道府県 | AD10: =AD9 -> 福井県
AA11: =IF($AE11<>"",VLOOKUP($AE11,【M】満足度!$A$1:$B$5,2,0),"") ->  | AC11: 都道府県 | AD11: 福井県
AA12: =IF($AE12<>"",VLOOKUP($AE12,【M】満足度!$A$1:$B$5,2,0),"") ->  | AC12: 都道府県 | AD12: 福井県
AA13: =IF($AE13<>"",VLOOKUP($AE13,【M】満足度!$A$1:$B$5,2,0),"") ->  | AC13: 都道府県 | AD13: 福井県
AA14: =IF($AE14<>"",VLOOKUP($AE14,【M】満足度!$A$1:$B$5,2,0),"") ->  | AC14: =AC12 -> 都道府県 | AD14: =AD12 -> 福井県 | AH14: =IFERROR(AG14/AG$15,"") ->  | AJ14: =IFERROR(AI14/AI$15,"") -> 
AF15: 合計 | AG15: =SUM(AG3:AG14) -> 1,552件 | AH15: 100.0% | AI15: 0件 | AJ15: 0.0% | AK15: 0件 | AL15: 0.0% | AM15: 0件 | AN15: 0.0% | AO15: 0件 | AP15: 0.0% | AQ15: 0件 | AR15: 0.0% | AS15: 0件 | AT15: 0.0% | AU15: 0件 | AV15: 0.0% | AW15: 0件 | AX15: 0.0% | AY15: 0件 | AZ15: 0.0% | BA15: 0件 | BB15: 0.0% | BC15: 0件 | BD15: 0.0% | BE15: =AG15+AI15+AK15+AM15+AO15+AQ15+AS15+AU15+AW15+AY15+BA15+BC15 -> 1,552件 | BF15: =SUM(BF3:BF14) -> 100.0%
AF16: 満足度スコア | AG16: =IF(AG15>0,SUMPRODUCT($AA3:$AA14,AG3:AG14)/AG15,"-") -> 4.27 | AI16: =IF(AI15>0,SUMPRODUCT($AA3:$AA14,AI3:AI14)/AI15,"-") -> - | AK16: =IF(AK15>0,SUMPRODUCT($AA3:$AA14,AK3:AK14)/AK15,"-") -> - | AM16: =IF(AM15>0,SUMPRODUCT($AA3:$AA14,AM3:AM14)/AM15,"-") -> - | AO16: =IF(AO15>0,SUMPRODUCT($AA3:$AA14,AO3:AO14)/AO15,"-") -> - | AQ16: =IF(AQ15>0,SUMPRODUCT($AA3:$AA14,AQ3:AQ14)/AQ15,"-") -> - | AS16: =IF(AS15>0,SUMPRODUCT($AA3:$AA14,AS3:AS14)/AS15,"-") -> - | AU16: =IF(AU15>0,SUMPRODUCT($AA3:$AA14,AU3:AU14)/AU15,"-") -> - | AW16: =IF(AW15>0,SUMPRODUCT($AA3:$AA14,AW3:AW14)/AW15,"-") -> - | AY16: =IF(AY15>0,SUMPRODUCT($AA3:$AA14,AY3:AY14)/AY15,"-") -> - | BA16: =IF(BA15>0,SUMPRODUCT($AA3:$AA14,BA3:BA14)/BA15,"-") -> - | BC16: =IF(BC15>0,SUMPRODUCT($AA3:$AA14,BC3:BC14)/BC15,"-") -> - | BE16: =IF(BE15>0,SUMPRODUCT($AA3:$AA14,BE3:BE14)/BE15,"-") -> 4.27
AC17: =【M】エリア!$J$2 -> 6分類 | AD17: =【M】エリア!$L$3 -> 福井市・永平寺町
AA18: =IF($AE18<>"",VLOOKUP($AE18,【M】満足度!$A$1:$B$5,2,0),"") -> 5 | AC18: =AC17 -> 6分類 | AD18: =AD17 -> 福井市・永平寺町 | AE18: =IF(AE3<>"",AE3,"") -> とても満足 | AG18: =IF(OR(IFERROR(FIND($AD18,"施設コード"),0)>0,$AE18=""), "", COUNTIFS( INDEX(rawデータ範囲, , MATCH($AG$1,表頭範囲, 0)),AG$2, INDEX(rawデータ範囲, , MATCH($AE$1,表頭範囲, 0)),$AE18, INDEX(rawデータ範囲, , MATCH($AC18,表頭範囲, 0)),$AD18 ) ) -> 127件 | AH18: =IFERROR(AG18/AG$30,"") -> 42.6% | AI18: =IF(OR(IFERROR(FIND($AD18,"施設コード"),0)>0,$AE18=""), "", COUNTIFS( INDEX(rawデータ範囲, , MATCH($AG$1,表頭範囲, 0)),AI$2, INDEX(rawデータ範囲, , MATCH($AE$1,表頭範囲, 0)),$AE18, INDEX(rawデータ範囲, , MATCH($AC18,表頭範囲, 0)),$AD18 ) ) -> 0件 | AJ18: =IFERROR(AI18/AI$30,"") ->  | AK18: =IF(OR(IFERROR(FIND($AD18,"施設コード"),0)>0,$AE18=""), "", COUNTIFS( INDEX(rawデータ範囲, , MATCH($AG$1,表頭範囲, 0)),AK$2, INDEX(rawデータ範囲, , MATCH($AE$1,表頭範囲, 0)),$AE18, INDEX(rawデータ範囲, , MATCH($AC18,表頭範囲, 0)),$AD18 ) ) -> 0件 | AL18: =IFERROR(AK18/AK$30,"") ->  | AM18: =IF(OR(IFERROR(FIND($AD18,"施設コード"),0)>0,$AE18=""), "", COUNTIFS( INDEX(rawデータ範囲, , MATCH($AG$1,表頭範囲, 0)),AM$2, INDEX(rawデータ範囲, , MATCH($AE$1,表頭範囲, 0)),$AE18, INDEX(rawデータ範囲, , MATCH($AC18,表頭範囲, 0)),$AD18 ) ) -> 0件 | AN18: =IFERROR(AM18/AM$30,"") ->  | AO18: =IF(OR(IFERROR(FIND($AD18,"施設コード"),0)>0,$AE18=""), "", COUNTIFS( INDEX(rawデータ範囲, , MATCH($AG$1,表頭範囲, 0)),AO$2, INDEX(rawデータ範囲, , MATCH($AE$1,表頭範囲, 0)),$AE18, INDEX(rawデータ範囲, , MATCH($AC18,表頭範囲, 0)),$AD18 ) ) -> 0件 | AP18: =IFERROR(AO18/AO$30,"") ->  | AQ18: =IF(OR(IFERROR(FIND($AD18,"施設コード"),0)>0,$AE18=""), "", COUNTIFS( INDEX(rawデータ範囲, , MATCH($AG$1,表頭範囲, 0)),AQ$2, INDEX(rawデータ範囲, , MATCH($AE$1,表頭範囲, 0)),$AE18, INDEX(rawデータ範囲, , MATCH($AC18,表頭範囲, 0)),$AD18 ) ) -> 0件 | AR18: =IFERROR(AQ18/AQ$30,"") ->  | AS18: =IF(OR(IFERROR(FIND($AD18,"施設コード"),0)>0,$AE18=""), "", COUNTIFS( INDEX(rawデータ範囲, , MATCH($AG$1,表頭範囲, 0)),AS$2, INDEX(rawデータ範囲, , MATCH($AE$1,表頭範囲, 0)),$AE18, INDEX(rawデータ範囲, , MATCH($AC18,表頭範囲, 0)),$AD18 ) ) -> 0件 | AT18: =IFERROR(AS18/AS$30,"") ->  | AU18: =IF(OR(IFERROR(FIND($AD18,"施設コード"),0)>0,$AE18=""), "", COUNTIFS( INDEX(rawデータ範囲, , MATCH($AG$1,表頭範囲, 0)),AU$2, INDEX(rawデータ範囲, , MATCH($AE$1,表頭範囲, 0)),$AE18, INDEX(rawデータ範囲, , MATCH($AC18,表頭範囲, 0)),$AD18 ) ) -> 0件 | AV18: =IFERROR(AU18/AU$30,"") ->  | AW18: =IF(OR(IFERROR(FIND($AD18,"施設コード"),0)>0,$AE18=""), "", COUNTIFS( INDEX(rawデータ範囲, , MATCH($AG$1,表頭範囲, 0)),AW$2, INDEX(rawデータ範囲, , MATCH($AE$1,表頭範囲, 0)),$AE18, INDEX(rawデータ範囲, , MATCH($AC18,表頭範囲, 0)),$AD18 ) ) -> 0件 | AX18: =IFERROR(AW18/AW$30,"") ->  | AY18: =IF(OR(IFERROR(FIND($AD18,"施設コード"),0)>0,$AE18=""), "", COUNTIFS( INDEX(rawデータ範囲, , MATCH($AG$1,表頭範囲, 0)),AY$2, INDEX(rawデータ範囲, , MATCH($AE$1,表頭範囲, 0)),$AE18, INDEX(rawデータ範囲, , MATCH($AC18,表頭範囲, 0)),$AD18 ) ) -> 0件 | AZ18: =IFERROR(AY18/AY$30,"") ->  | BA18: =IF(OR(IFERROR(FIND($AD18,"施設コード"),0)>0,$AE18=""), "", COUNTIFS( INDEX(rawデータ範囲, , MATCH($AG$1,表頭範囲, 0)),BA$2, INDEX(rawデータ範囲, , MATCH($AE$1,表頭範囲, 0)),$AE18, INDEX(rawデータ範囲, , MATCH($AC18,表頭範囲, 0)),$AD18 ) ) -> 0件 | BB18: =IFERROR(BA18/BA$30,"") ->  | BC18: =IF(OR(IFERROR(FIND($AD18,"施設コード"),0)>0,$AE18=""), "", COUNTIFS( INDEX(rawデータ範囲, , MATCH($AG$1,表頭範囲, 0)),BC$2, INDEX(rawデータ範囲, , MATCH($AE$1,表頭範囲, 0)),$AE18, INDEX(rawデータ範囲, , MATCH($AC18,表頭範囲, 0)),$AD18 ) ) -> 0件 | BD18: =IFERROR(BC18/BC$30,"") ->  | BE18: =IFERROR(AG18+AI18+AK18+AM18+AO18+AQ18+AS18+AU18+AW18+AY18+BA18+BC18,"") -> 127件 | BF18: =IFERROR(BE18/BE$30,"") -> 42.6%
AA19: =IF($AE19<>"",VLOOKUP($AE19,【M】満足度!$A$1:$B$5,2,0),"") -> 4 | AC19: =AC18 -> 6分類 | AD19: 福井市・永平寺町 | AE19: 満足 | AG19: 142件 | AH19: 47.7% | AI19: 0件 | AK19: 0件 | AM19: 0件 | AO19: 0件 | AQ19: 0件 | AS19: 0件 | AU19: 0件 | AW19: 0件 | AY19: 0件 | BA19: 0件 | BC19: 0件 | BE19: =IFERROR(AG19+AI19+AK19+AM19+AO19+AQ19+AS19+AU19+AW19+AY19+BA19+BC19,"") -> 142件 | BF19: 47.7%
AA20: =IF($AE20<>"",VLOOKUP($AE20,【M】満足度!$A$1:$B$5,2,0),"") -> 3 | AC20: 6分類 | AD20: 福井市・永平寺町 | AE20: どちらでもない | AG20: 22件 | AH20: 7.4% | AI20: 0件 | AK20: 0件 | AM20: 0件 | AO20: 0件 | AQ20: 0件 | AS20: 0件 | AU20: 0件 | AW20: 0件 | AY20: 0件 | BA20: 0件 | BC20: 0件 | BE20: 22件 | BF20: 7.4%
AA21: =IF($AE21<>"",VLOOKUP($AE21,【M】満足度!$A$1:$B$5,2,0),"") -> 2 | AC21: 6分類 | AD21: 福井市・永平寺町 | AE21: 不満 | AG21: 6件 | AH21: 2.0% | AI21: 0件 | AK21: 0件 | AM21: 0件 | AO21: 0件 | AQ21: 0件 | AS21: 0件 | AU21: 0件 | AW21: 0件 | AY21: 0件 | BA21: 0件 | BC21: 0件 | BE21: 6件 | BF21: 2.0%
AA22: =IF($AE22<>"",VLOOKUP($AE22,【M】満足度!$A$1:$B$5,2,0),"") -> 1 | AC22: 6分類 | AD22: 福井市・永平寺町 | AE22: とても不満 | AG22: 1件 | AH22: 0.3% | AI22: 0件 | AK22: 0件 | AM22: 0件 | AO22: 0件 | AQ22: 0件 | AS22: 0件 | AU22: 0件 | AW22: 0件 | AY22: 0件 | BA22: 0件 | BC22: 0件 | BE22: 1件 | BF22: 0.3%
AA23: =IF($AE23<>"",VLOOKUP($AE23,【M】満足度!$A$1:$B$5,2,0),"") ->  | AC23: 6分類 | AD23: 福井市・永平寺町
AA24: =IF($AE24<>"",VLOOKUP($AE24,【M】満足度!$A$1:$B$5,2,0),"") ->  | AC24: 6分類 | AD24: 福井市・永平寺町
AA25: =IF($AE25<>"",VLOOKUP($AE25,【M】満足度!$A$1:$B$5,2,0),"") ->  | AC25: =AC24 -> 6分類 | AD25: =AD24 -> 福井市・永平寺町
AA26: =IF($AE26<>"",VLOOKUP($AE26,【M】満足度!$A$1:$B$5,2,0),"") ->  | AC26: 6分類 | AD26: 福井市・永平寺町
AA27: =IF($AE27<>"",VLOOKUP($AE27,【M】満足度!$A$1:$B$5,2,0),"") ->  | AC27: 6分類 | AD27: 福井市・永平寺町
AA28: =IF($AE28<>"",VLOOKUP($AE28,【M】満足度!$A$1:$B$5,2,0),"") ->  | AC28: 6分類 | AD28: 福井市・永平寺町
AA29: =IF($AE29<>"",VLOOKUP($AE29,【M】満足度!$A$1:$B$5,2,0),"") ->  | AC29: =AC27 -> 6分類 | AD29: =AD27 -> 福井市・永平寺町 | AE29: =IF(AE14<>"",AE14,"") ->  | AH29: =IFERROR(AG29/AG$30,"") ->  | AJ29: =IFERROR(AI29/AI$30,"") -> 
AF30: 合計 | AG30: =SUM(AG18:AG29) -> 298件 | AH30: 100.0% | AI30: 0件 | AJ30: 0.0% | AK30: 0件 | AL30: 0.0% | AM30: 0件 | AN30: 0.0% | AO30: 0件 | AP30: 0.0% | AQ30: 0件 | AR30: 0.0% | AS30: 0件 | AT30: 0.0% | AU30: 0件 | AV30: 0.0% | AW30: 0件 | AX30: 0.0% | AY30: 0件 | AZ30: 0.0% | BA30: 0件 | BB30: 0.0% | BC30: 0件 | BD30: 0.0% | BE30: 298件 | BF30: 100.0%
AF31: =IF(AF$16<>"",AF$16,"") -> 満足度スコア | AG31: =IF(AG30>0,SUMPRODUCT($AA18:$AA29,AG18:AG29)/AG30,"-") -> 4.30 | AI31: =IF(AI30>0,SUMPRODUCT($AA18:$AA29,AI18:AI29)/AI30,"-") -> - | AK31: =IF(AK30>0,SUMPRODUCT($AA18:$AA29,AK18:AK29)/AK30,"-") -> - | AM31: =IF(AM30>0,SUMPRODUCT($AA18:$AA29,AM18:AM29)/AM30,"-") -> - | AO31: =IF(AO30>0,SUMPRODUCT($AA18:$AA29,AO18:AO29)/AO30,"-") -> - | AQ31: =IF(AQ30>0,SUMPRODUCT($AA18:$AA29,AQ18:AQ29)/AQ30,"-") -> - | AS31: =IF(AS30>0,SUMPRODUCT($AA18:$AA29,AS18:AS29)/AS30,"-") -> - | AU31: =IF(AU30>0,SUMPRODUCT($AA18:$AA29,AU18:AU29)/AU30,"-") -> - | AW31: =IF(AW30>0,SUMPRODUCT($AA18:$AA29,AW18:AW29)/AW30,"-") -> - | AY31: =IF(AY30>0,SUMPRODUCT($AA18:$AA29,AY18:AY29)/AY30,"-") -> - | BA31: =IF(BA30>0,SUMPRODUCT($AA18:$AA29,BA18:BA29)/BA30,"-") -> - | BC31: =IF(BC30>0,SUMPRODUCT($AA18:$AA29,BC18:BC29)/BC30,"-") -> - | BE31: =IF(BE30>0,SUMPRODUCT($AA18:$AA29,BE18:BE29)/BE30,"-") -> 4.30
AC32: 市町村 | AD32: =【M】エリア!$L$4 -> 福井市
AA33: =IF($AE33<>"",VLOOKUP($AE33,【M】満足度!$A$1:$B$5,2,0),"") -> 5 | AC33: =AC32 -> 市町村 | AD33: =AD32 -> 福井市 | AE33: =IF(AE3<>"",AE3,"") -> とても満足 | AG33: =IF(OR(IFERROR(FIND($AD33,"施設コード"),0)>0,$AE33=""), "", COUNTIFS( INDEX(rawデータ範囲, , MATCH($AG$1,表頭範囲, 0)),AG$2, INDEX(rawデータ範囲, , MATCH($AE$1,表頭範囲, 0)),$AE33, INDEX(rawデータ範囲, , MATCH($AC33,表頭範囲, 0)),$AD33 ) ) -> 67件 | AH33: =IFERROR(AG33/AG$45,"") -> 38.1% | AI33: =IF(OR(IFERROR(FIND($AD33,"施設コード"),0)>0,$AE33=""), "", COUNTIFS( INDEX(rawデータ範囲, , MATCH($AG$1,表頭範囲, 0)),AI$2, INDEX(rawデータ範囲, , MATCH($AE$1,表頭範囲, 0)),$AE33, INDEX(rawデータ範囲, , MATCH($AC33,表頭範囲, 0)),$AD33 ) ) -> 0件 | AJ33: =IFERROR(AI33/AI$45,"") ->  | AK33: =IF(OR(IFERROR(FIND($AD33,"施設コード"),0)>0,$AE33=""), "", COUNTIFS( INDEX(rawデータ範囲, , MATCH($AG$1,表頭範囲, 0)),AK$2, INDEX(rawデータ範囲, , MATCH($AE$1,表頭範囲, 0)),$AE33, INDEX(rawデータ範囲, , MATCH($AC33,表頭範囲, 0)),$AD33 ) ) -> 0件 | AL33: =IFERROR(AK33/AK$45,"") ->  | AM33: =IF(OR(IFERROR(FIND($AD33,"施設コード"),0)>0,$AE33=""), "", COUNTIFS( INDEX(rawデータ範囲, , MATCH($AG$1,表頭範囲, 0)),AM$2, INDEX(rawデータ範囲, , MATCH($AE$1,表頭範囲, 0)),$AE33, INDEX(rawデータ範囲, , MATCH($AC33,表頭範囲, 0)),$AD33 ) ) -> 0件 | AN33: =IFERROR(AM33/AM$45,"") ->  | AO33: =IF(OR(IFERROR(FIND($AD33,"施設コード"),0)>0,$AE33=""), "", COUNTIFS( INDEX(rawデータ範囲, , MATCH($AG$1,表頭範囲, 0)),AO$2, INDEX(rawデータ範囲, , MATCH($AE$1,表頭範囲, 0)),$AE33, INDEX(rawデータ範囲, , MATCH($AC33,表頭範囲, 0)),$AD33 ) ) -> 0件 | AP33: =IFERROR(AO33/AO$45,"") ->  | AQ33: =IF(OR(IFERROR(FIND($AD33,"施設コード"),0)>0,$AE33=""), "", COUNTIFS( INDEX(rawデータ範囲, , MATCH($AG$1,表頭範囲, 0)),AQ$2, INDEX(rawデータ範囲, , MATCH($AE$1,表頭範囲, 0)),$AE33, INDEX(rawデータ範囲, , MATCH($AC33,表頭範囲, 0)),$AD33 ) ) -> 0件 | AR33: =IFERROR(AQ33/AQ$45,"") ->  | AS33: =IF(OR(IFERROR(FIND($AD33,"施設コード"),0)>0,$AE33=""), "", COUNTIFS( INDEX(rawデータ範囲, , MATCH($AG$1,表頭範囲, 0)),AS$2, INDEX(rawデータ範囲, , MATCH($AE$1,表頭範囲, 0)),$AE33, INDEX(rawデータ範囲, , MATCH($AC33,表頭範囲, 0)),$AD33 ) ) -> 0件 | AT33: =IFERROR(AS33/AS$45,"") ->  | AU33: =IF(OR(IFERROR(FIND($AD33,"施設コード"),0)>0,$AE33=""), "", COUNTIFS( INDEX(rawデータ範囲, , MATCH($AG$1,表頭範囲, 0)),AU$2, INDEX(rawデータ範囲, , MATCH($AE$1,表頭範囲, 0)),$AE33, INDEX(rawデータ範囲, , MATCH($AC33,表頭範囲, 0)),$AD33 ) ) -> 0件 | AV33: =IFERROR(AU33/AU$45,"") ->  | AW33: =IF(OR(IFERROR(FIND($AD33,"施設コード"),0)>0,$AE33=""), "", COUNTIFS( INDEX(rawデータ範囲, , MATCH($AG$1,表頭範囲, 0)),AW$2, INDEX(rawデータ範囲, , MATCH($AE$1,表頭範囲, 0)),$AE33, INDEX(rawデータ範囲, , MATCH($AC33,表頭範囲, 0)),$AD33 ) ) -> 0件 | AX33: =IFERROR(AW33/AW$45,"") ->  | AY33: =IF(OR(IFERROR(FIND($AD33,"施設コード"),0)>0,$AE33=""), "", COUNTIFS( INDEX(rawデータ範囲, , MATCH($AG$1,表頭範囲, 0)),AY$2, INDEX(rawデータ範囲, , MATCH($AE$1,表頭範囲, 0)),$AE33, INDEX(rawデータ範囲, , MATCH($AC33,表頭範囲, 0)),$AD33 ) ) -> 0件 | AZ33: =IFERROR(AY33/AY$45,"") ->  | BA33: =IF(OR(IFERROR(FIND($AD33,"施設コード"),0)>0,$AE33=""), "", COUNTIFS( INDEX(rawデータ範囲, , MATCH($AG$1,表頭範囲, 0)),BA$2, INDEX(rawデータ範囲, , MATCH($AE$1,表頭範囲, 0)),$AE33, INDEX(rawデータ範囲, , MATCH($AC33,表頭範囲, 0)),$AD33 ) ) -> 0件 | BB33: =IFERROR(BA33/BA$45,"") ->  | BC33: =IF(OR(IFERROR(FIND($AD33,"施設コード"),0)>0,$AE33=""), "", COUNTIFS( INDEX(rawデータ範囲, , MATCH($AG$1,表頭範囲, 0)),BC$2, INDEX(rawデータ範囲, , MATCH($AE$1,表頭範囲, 0)),$AE33, INDEX(rawデータ範囲, , MATCH($AC33,表頭範囲, 0)),$AD33 ) ) -> 0件 | BD33: =IFERROR(BC33/BC$45,"") ->  | BE33: =IFERROR(AG33+AI33+AK33+AM33+AO33+AQ33+AS33+AU33+AW33+AY33+BA33+BC33,"") -> 67件 | BF33: =IFERROR(BE33/BE$45,"") -> 38.1%
AA34: =IF($AE34<>"",VLOOKUP($AE34,【M】満足度!$A$1:$B$5,2,0),"") -> 4 | AC34: =AC33 -> 市町村 | AD34: 福井市 | AE34: 満足 | AG34: 91件 | AH34: 51.7% | AI34: 0件 | AK34: 0件 | AM34: 0件 | AO34: 0件 | AQ34: 0件 | AS34: 0件 | AU34: 0件 | AW34: 0件 | AY34: 0件 | BA34: 0件 | BC34: 0件 | BE34: =IFERROR(AG34+AI34+AK34+AM34+AO34+AQ34+AS34+AU34+AW34+AY34+BA34+BC34,"") -> 91件 | BF34: 51.7%
AA35: =IF($AE35<>"",VLOOKUP($AE35,【M】満足度!$A$1:$B$5,2,0),"") -> 3 | AC35: 市町村 | AD35: 福井市 | AE35: どちらでもない | AG35: 15件 | AH35: 8.5% | AI35: 0件 | AK35: 0件 | AM35: 0件 | AO35: 0件 | AQ35: 0件 | AS35: 0件 | AU35: 0件 | AW35: 0件 | AY35: 0件 | BA35: 0件 | BC35: 0件 | BE35: 15件 | BF35: 8.5%
AA36: =IF($AE36<>"",VLOOKUP($AE36,【M】満足度!$A$1:$B$5,2,0),"") -> 2 | AC36: 市町村 | AD36: 福井市 | AE36: 不満 | AG36: 3件 | AH36: 1.7% | AI36: 0件 | AK36: 0件 | AM36: 0件 | AO36: 0件 | AQ36: 0件 | AS36: 0件 | AU36: 0件 | AW36: 0件 | AY36: 0件 | BA36: 0件 | BC36: 0件 | BE36: 3件 | BF36: 1.7%
AA37: =IF($AE37<>"",VLOOKUP($AE37,【M】満足度!$A$1:$B$5,2,0),"") -> 1 | AC37: 市町村 | AD37: 福井市 | AE37: とても不満 | AG37: 0件 | AH37: 0.0% | AI37: 0件 | AK37: 0件 | AM37: 0件 | AO37: 0件 | AQ37: 0件 | AS37: 0件 | AU37: 0件 | AW37: 0件 | AY37: 0件 | BA37: 0件 | BC37: 0件 | BE37: 0件 | BF37: 0.0%
AA38: =IF($AE38<>"",VLOOKUP($AE38,【M】満足度!$A$1:$B$5,2,0),"") ->  | AC38: 市町村 | AD38: 福井市
AA39: =IF($AE39<>"",VLOOKUP($AE39,【M】満足度!$A$1:$B$5,2,0),"") ->  | AC39: 市町村 | AD39: 福井市
AA40: =IF($AE40<>"",VLOOKUP($AE40,【M】満足度!$A$1:$B$5,2,0),"") ->  | AC40: =AC39 -> 市町村 | AD40: =AD39 -> 福井市
AA41: =IF($AE41<>"",VLOOKUP($AE41,【M】満足度!$A$1:$B$5,2,0),"") ->  | AC41: 市町村 | AD41: 福井市
AA42: =IF($AE42<>"",VLOOKUP($AE42,【M】満足度!$A$1:$B$5,2,0),"") ->  | AC42: 市町村 | AD42: 福井市
AA43: =IF($AE43<>"",VLOOKUP($AE43,【M】満足度!$A$1:$B$5,2,0),"") ->  | AC43: 市町村 | AD43: 福井市
AA44: =IF($AE44<>"",VLOOKUP($AE44,【M】満足度!$A$1:$B$5,2,0),"") ->  | AC44: =AC42 -> 市町村 | AD44: =AD42 -> 福井市 | AE44: =IF(AE14<>"",AE14,"") ->  | AH44: =IFERROR(AG44/AG$45,"") ->  | AJ44: =IFERROR(AI44/AI$45,"") -> 
AF45: 合計 | AG45: =SUM(AG33:AG44) -> 176件 | AH45: 100.0% | AI45: 0件 | AJ45: 0.0% | AK45: 0件 | AL45: 0.0% | AM45: 0件 | AN45: 0.0% | AO45: 0件 | AP45: 0.0% | AQ45: 0件 | AR45: 0.0% | AS45: 0件 | AT45: 0.0% | AU45: 0件 | AV45: 0.0% | AW45: 0件 | AX45: 0.0% | AY45: 0件 | AZ45: 0.0% | BA45: 0件 | BB45: 0.0% | BC45: 0件 | BD45: 0.0% | BE45: 176件 | BF45: 100.0%
AF46: =IF(AF$16<>"",AF$16,"") -> 満足度スコア | AG46: =IF(AG45>0,SUMPRODUCT($AA33:$AA44,AG33:AG44)/AG45,"-") -> 4.26 | AI46: =IF(AI45>0,SUMPRODUCT($AA33:$AA44,AI33:AI44)/AI45,"-") -> - | AK46: =IF(AK45>0,SUMPRODUCT($AA33:$AA44,AK33:AK44)/AK45,"-") -> - | AM46: =IF(AM45>0,SUMPRODUCT($AA33:$AA44,AM33:AM44)/AM45,"-") -> - | AO46: =IF(AO45>0,SUMPRODUCT($AA33:$AA44,AO33:AO44)/AO45,"-") -> - | AQ46: =IF(AQ45>0,SUMPRODUCT($AA33:$AA44,AQ33:AQ44)/AQ45,"-") -> - | AS46: =IF(AS45>0,SUMPRODUCT($AA33:$AA44,AS33:AS44)/AS45,"-") -> - | AU46: =IF(AU45>0,SUMPRODUCT($AA33:$AA44,AU33:AU44)/AU45,"-") -> - | AW46: =IF(AW45>0,SUMPRODUCT($AA33:$AA44,AW33:AW44)/AW45,"-") -> - | AY46: =IF(AY45>0,SUMPRODUCT($AA33:$AA44,AY33:AY44)/AY45,"-") -> - | BA46: =IF(BA45>0,SUMPRODUCT($AA33:$AA44,BA33:BA44)/BA45,"-") -> - | BC46: =IF(BC45>0,SUMPRODUCT($AA33:$AA44,BC33:BC44)/BC45,"-") -> - | BE46: =IF(BE45>0,SUMPRODUCT($AA33:$AA44,BE33:BE44)/BE45,"-") -> 4.26
AC47: 回答エリア | AD47: =【M】エリア!$L$5 -> 福井駅前 エリア
AA48: =IF($AE48<>"",VLOOKUP($AE48,【M】満足度!$A$1:$B$5,2,0),"") -> 5 | AC48: =AC47 -> 回答エリア | AD48: =AD47 -> 福井駅前 エリア | AE48: =IF(AE3<>"",AE3,"") -> とても満足 | AG48: =IF(OR(IFERROR(FIND($AD48,"施設コード"),0)>0,$AE48=""), "", COUNTIFS( INDEX(rawデータ範囲, , MATCH($AG$1,表頭範囲, 0)),AG$2, INDEX(rawデータ範囲, , MATCH($AE$1,表頭範囲, 0)),$AE48, INDEX(rawデータ範囲, , MATCH($AC48,表頭範囲, 0)),$AD48 ) ) -> 21件 | AH48: =IFERROR(AG48/AG$60,"") -> 35.0% | AI48: =IF(OR(IFERROR(FIND($AD48,"施設コード"),0)>0,$AE48=""), "", COUNTIFS( INDEX(rawデータ範囲, , MATCH($AG$1,表頭範囲, 0)),AI$2, INDEX(rawデータ範囲, , MATCH($AE$1,表頭範囲, 0)),$AE48, INDEX(rawデータ範囲, , MATCH($AC48,表頭範囲, 0)),$AD48 ) ) -> 0件 | AJ48: =IFERROR(AI48/AI$60,"") ->  | AK48: =IF(OR(IFERROR(FIND($AD48,"施設コード"),0)>0,$AE48=""), "", COUNTIFS( INDEX(rawデータ範囲, , MATCH($AG$1,表頭範囲, 0)),AK$2, INDEX(rawデータ範囲, , MATCH($AE$1,表頭範囲, 0)),$AE48, INDEX(rawデータ範囲, , MATCH($AC48,表頭範囲, 0)),$AD48 ) ) -> 0件 | AL48: =IFERROR(AK48/AK$60,"") ->  | AM48: =IF(OR(IFERROR(FIND($AD48,"施設コード"),0)>0,$AE48=""), "", COUNTIFS( INDEX(rawデータ範囲, , MATCH($AG$1,表頭範囲, 0)),AM$2, INDEX(rawデータ範囲, , MATCH($AE$1,表頭範囲, 0)),$AE48, INDEX(rawデータ範囲, , MATCH($AC48,表頭範囲, 0)),$AD48 ) ) -> 0件 | AN48: =IFERROR(AM48/AM$60,"") ->  | AO48: =IF(OR(IFERROR(FIND($AD48,"施設コード"),0)>0,$AE48=""), "", COUNTIFS( INDEX(rawデータ範囲, , MATCH($AG$1,表頭範囲, 0)),AO$2, INDEX(rawデータ範囲, , MATCH($AE$1,表頭範囲, 0)),$AE48, INDEX(rawデータ範囲, , MATCH($AC48,表頭範囲, 0)),$AD48 ) ) -> 0件 | AP48: =IFERROR(AO48/AO$60,"") ->  | AQ48: =IF(OR(IFERROR(FIND($AD48,"施設コード"),0)>0,$AE48=""), "", COUNTIFS( INDEX(rawデータ範囲, , MATCH($AG$1,表頭範囲, 0)),AQ$2, INDEX(rawデータ範囲, , MATCH($AE$1,表頭範囲, 0)),$AE48, INDEX(rawデータ範囲, , MATCH($AC48,表頭範囲, 0)),$AD48 ) ) -> 0件 | AR48: =IFERROR(AQ48/AQ$60,"") ->  | AS48: =IF(OR(IFERROR(FIND($AD48,"施設コード"),0)>0,$AE48=""), "", COUNTIFS( INDEX(rawデータ範囲, , MATCH($AG$1,表頭範囲, 0)),AS$2, INDEX(rawデータ範囲, , MATCH($AE$1,表頭範囲, 0)),$AE48, INDEX(rawデータ範囲, , MATCH($AC48,表頭範囲, 0)),$AD48 ) ) -> 0件 | AT48: =IFERROR(AS48/AS$60,"") ->  | AU48: =IF(OR(IFERROR(FIND($AD48,"施設コード"),0)>0,$AE48=""), "", COUNTIFS( INDEX(rawデータ範囲, , MATCH($AG$1,表頭範囲, 0)),AU$2, INDEX(rawデータ範囲, , MATCH($AE$1,表頭範囲, 0)),$AE48, INDEX(rawデータ範囲, , MATCH($AC48,表頭範囲, 0)),$AD48 ) ) -> 0件 | AV48: =IFERROR(AU48/AU$60,"") ->  | AW48: =IF(OR(IFERROR(FIND($AD48,"施設コード"),0)>0,$AE48=""), "", COUNTIFS( INDEX(rawデータ範囲, , MATCH($AG$1,表頭範囲, 0)),AW$2, INDEX(rawデータ範囲, , MATCH($AE$1,表頭範囲, 0)),$AE48, INDEX(rawデータ範囲, , MATCH($AC48,表頭範囲, 0)),$AD48 ) ) -> 0件 | AX48: =IFERROR(AW48/AW$60,"") ->  | AY48: =IF(OR(IFERROR(FIND($AD48,"施設コード"),0)>0,$AE48=""), "", COUNTIFS( INDEX(rawデータ範囲, , MATCH($AG$1,表頭範囲, 0)),AY$2, INDEX(rawデータ範囲, , MATCH($AE$1,表頭範囲, 0)),$AE48, INDEX(rawデータ範囲, , MATCH($AC48,表頭範囲, 0)),$AD48 ) ) -> 0件 | AZ48: =IFERROR(AY48/AY$60,"") ->  | BA48: =IF(OR(IFERROR(FIND($AD48,"施設コード"),0)>0,$AE48=""), "", COUNTIFS( INDEX(rawデータ範囲, , MATCH($AG$1,表頭範囲, 0)),BA$2, INDEX(rawデータ範囲, , MATCH($AE$1,表頭範囲, 0)),$AE48, INDEX(rawデータ範囲, , MATCH($AC48,表頭範囲, 0)),$AD48 ) ) -> 0件 | BB48: =IFERROR(BA48/BA$60,"") ->  | BC48: =IF(OR(IFERROR(FIND($AD48,"施設コード"),0)>0,$AE48=""), "", COUNTIFS( INDEX(rawデータ範囲, , MATCH($AG$1,表頭範囲, 0)),BC$2, INDEX(rawデータ範囲, , MATCH($AE$1,表頭範囲, 0)),$AE48, INDEX(rawデータ範囲, , MATCH($AC48,表頭範囲, 0)),$AD48 ) ) -> 0件 | BD48: =IFERROR(BC48/BC$60,"") ->  | BE48: =IFERROR(AG48+AI48+AK48+AM48+AO48+AQ48+AS48+AU48+AW48+AY48+BA48+BC48,"") -> 21件 | BF48: =IFERROR(BE48/BE$60,"") -> 35.0%
AA49: =IF($AE49<>"",VLOOKUP($AE49,【M】満足度!$A$1:$B$5,2,0),"") -> 4 | AC49: =AC48 -> 回答エリア | AD49: 福井駅前 エリア | AE49: 満足 | AG49: 33件 | AH49: 55.0% | AI49: 0件 | AK49: 0件 | AM49: 0件 | AO49: 0件 | AQ49: 0件 | AS49: 0件 | AU49: 0件 | AW49: 0件 | AY49: 0件 | BA49: 0件 | BC49: 0件 | BE49: =IFERROR(AG49+AI49+AK49+AM49+AO49+AQ49+AS49+AU49+AW49+AY49+BA49+BC49,"") -> 33件 | BF49: 55.0%
AA50: =IF($AE50<>"",VLOOKUP($AE50,【M】満足度!$A$1:$B$5,2,0),"") -> 3 | AC50: 回答エリア | AD50: 福井駅前 エリア | AE50: どちらでもない | AG50: 6件 | AH50: 10.0% | AI50: 0件 | AK50: 0件 | AM50: 0件 | AO50: 0件 | AQ50: 0件 | AS50: 0件 | AU50: 0件 | AW50: 0件 | AY50: 0件 | BA50: 0件 | BC50: 0件 | BE50: 6件 | BF50: 10.0%
AA51: =IF($AE51<>"",VLOOKUP($AE51,【M】満足度!$A$1:$B$5,2,0),"") -> 2 | AC51: 回答エリア | AD51: 福井駅前 エリア | AE51: 不満 | AG51: 0件 | AH51: 0.0% | AI51: 0件 | AK51: 0件 | AM51: 0件 | AO51: 0件 | AQ51: 0件 | AS51: 0件 | AU51: 0件 | AW51: 0件 | AY51: 0件 | BA51: 0件 | BC51: 0件 | BE51: 0件 | BF51: 0.0%
AA52: =IF($AE52<>"",VLOOKUP($AE52,【M】満足度!$A$1:$B$5,2,0),"") -> 1 | AC52: 回答エリア | AD52: 福井駅前 エリア | AE52: とても不満 | AG52: 0件 | AH52: 0.0% | AI52: 0件 | AK52: 0件 | AM52: 0件 | AO52: 0件 | AQ52: 0件 | AS52: 0件 | AU52: 0件 | AW52: 0件 | AY52: 0件 | BA52: 0件 | BC52: 0件 | BE52: 0件 | BF52: 0.0%
AA53: =IF($AE53<>"",VLOOKUP($AE53,【M】満足度!$A$1:$B$5,2,0),"") ->  | AC53: 回答エリア | AD53: 福井駅前 エリア
AA54: =IF($AE54<>"",VLOOKUP($AE54,【M】満足度!$A$1:$B$5,2,0),"") ->  | AC54: 回答エリア | AD54: 福井駅前 エリア
AA55: =IF($AE55<>"",VLOOKUP($AE55,【M】満足度!$A$1:$B$5,2,0),"") ->  | AC55: =AC54 -> 回答エリア | AD55: =AD54 -> 福井駅前 エリア
AA56: =IF($AE56<>"",VLOOKUP($AE56,【M】満足度!$A$1:$B$5,2,0),"") ->  | AC56: 回答エリア | AD56: 福井駅前 エリア
AA57: =IF($AE57<>"",VLOOKUP($AE57,【M】満足度!$A$1:$B$5,2,0),"") ->  | AC57: 回答エリア | AD57: 福井駅前 エリア
AA58: =IF($AE58<>"",VLOOKUP($AE58,【M】満足度!$A$1:$B$5,2,0),"") ->  | AC58: 回答エリア | AD58: 福井駅前 エリア
AA59: =IF($AE59<>"",VLOOKUP($AE59,【M】満足度!$A$1:$B$5,2,0),"") ->  | AC59: =AC57 -> 回答エリア | AD59: =AD57 -> 福井駅前 エリア | AE59: =IF(AE14<>"",AE14,"") ->  | AH59: =IFERROR(AG59/AG$60,"") ->  | AJ59: =IFERROR(AI59/AI$60,"") ->  | BF59: =IFERROR(BE59/BE$60,"") -> 
AF60: 合計 | AG60: =SUM(AG48:AG59) -> 60件 | AH60: 100.0% | AI60: 0件 | AJ60: 0.0% | AK60: 0件 | AL60: 0.0% | AM60: 0件 | AN60: 0.0% | AO60: 0件 | AP60: 0.0% | AQ60: 0件 | AR60: 0.0% | AS60: 0件 | AT60: 0.0% | AU60: 0件 | AV60: 0.0% | AW60: 0件 | AX60: 0.0% | AY60: 0件 | AZ60: 0.0% | BA60: 0件 | BB60: 0.0% | BC60: 0件 | BD60: 0.0% | BE60: 60件 | BF60: 100.0%
AF61: =IF(AF$16<>"",AF$16,"") -> 満足度スコア | AG61: =IF(AG60>0,SUMPRODUCT($AA48:$AA59,AG48:AG59)/AG60,"-") -> 4.25 | AI61: =IF(AI60>0,SUMPRODUCT($AA48:$AA59,AI48:AI59)/AI60,"-") -> - | AK61: =IF(AK60>0,SUMPRODUCT($AA48:$AA59,AK48:AK59)/AK60,"-") -> - | AM61: =IF(AM60>0,SUMPRODUCT($AA48:$AA59,AM48:AM59)/AM60,"-") -> - | AO61: =IF(AO60>0,SUMPRODUCT($AA48:$AA59,AO48:AO59)/AO60,"-") -> - | AQ61: =IF(AQ60>0,SUMPRODUCT($AA48:$AA59,AQ48:AQ59)/AQ60,"-") -> - | AS61: =IF(AS60>0,SUMPRODUCT($AA48:$AA59,AS48:AS59)/AS60,"-") -> - | AU61: =IF(AU60>0,SUMPRODUCT($AA48:$AA59,AU48:AU59)/AU60,"-") -> - | AW61: =IF(AW60>0,SUMPRODUCT($AA48:$AA59,AW48:AW59)/AW60,"-") -> - | AY61: =IF(AY60>0,SUMPRODUCT($AA48:$AA59,AY48:AY59)/AY60,"-") -> - | BA61: =IF(BA60>0,SUMPRODUCT($AA48:$AA59,BA48:BA59)/BA60,"-") -> - | BC61: =IF(BC60>0,SUMPRODUCT($AA48:$AA59,BC48:BC59)/BC60,"-") -> - | BE61: =IF(BE60>0,SUMPRODUCT($AA48:$AA59,BE48:BE59)/BE60,"-") -> 4.25

Sheet 総合満足度
A1: =施設コード!$A$2 -> 4月 | B1: =【M】エリア!$L$2 -> 福井県 | C1: =【M】エリア!$L$3 -> 福井市・永平寺町 | D1: =【M】エリア!$L$4 -> 福井市 | E1: =【M】エリア!$L$5 -> 福井駅前 エリア | G1: =AF16 -> 総合満足度スコア | H1: 4月 | I1: 5月 | J1: 6月 | K1: 7月 | L1: 8月 | M1: 9月 | N1: 10月 | O1: 11月 | P1: 12月 | Q1: 1月 | R1: 2月 | S1: 3月 | T1: 通年 | AA1: =AF16&"（推移）" -> 総合満足度スコア（推移） | AC1: 集計区分 | AE1: 総合満足度 | AF1: 回答数 | AG1: 回答月 | AH1: 回答月 | AI1: 回答月 | AJ1: 回答月 | AK1: 回答月 | AL1: 回答月 | AM1: 回答月 | AN1: 回答月 | AO1: 回答月 | AP1: 回答月 | AQ1: 回答月 | AR1: 回答月 | AS1: 回答月 | AT1: 回答月 | AU1: 回答月 | AV1: 回答月 | AW1: 回答月 | AX1: 回答月 | AY1: 回答月 | AZ1: 回答月 | BA1: 回答月 | BB1: 回答月 | BC1: 回答月 | BD1: 回答月 | BE1: 回答月 | BF1: 回答月
A2: =IF(AE3<>"",AE3,"") -> とても満足 | B2: =IFERROR(OFFSET(INDEX($AG$3:$BF$14, MATCH($A2,$A$2:$A$13,0),MATCH($A$1,$AG$2:$BF$2,0)),0,1),"") -> 38.9% | C2: =IFERROR(OFFSET(INDEX($AG$18:$BF$29, MATCH($A2,$A$2:$A$13,0),MATCH($A$1,$AG$2:$BF$2,0)),0,1),"") -> 43.0% | D2: =IFERROR(OFFSET(INDEX($AG$33:$BF$44, MATCH($A2,$A$2:$A$13,0),MATCH($A$1,$AG$2:$BF$2,0)),0,1),"") -> 41.5% | E2: =IFERROR(OFFSET(INDEX($AG$48:$BF$59, MATCH($A2,$A$2:$A$13,0),MATCH($A$1,$AG$2:$BF$2,0)),0,1),"") -> 39.2% | G2: =【M】エリア!$L$2 -> 福井県 | H2: =AG16 -> 4.26 | I2: =AI16 -> - | J2: =AK16 -> - | K2: =AM16 -> - | L2: =AO16 -> - | M2: =AQ16 -> - | N2: =AS16 -> - | O2: =AU16 -> - | P2: =AW16 -> - | Q2: =AY16 -> - | R2: =BA16 -> - | S2: =BC16 -> - | T2: =BE16 -> 4.26 | AC2: 都道府県 | AD2: =【M】エリア!$L$2 -> 福井県 | AG2: 4月 | AI2: 5月 | AK2: 6月 | AM2: 7月 | AO2: 8月 | AQ2: 9月 | AS2: 10月 | AU2: 11月 | AW2: 12月 | AY2: 1月 | BA2: 2月 | BC2: 3月 | BE2: 通年
A3: =IF(AE4<>"",AE4,"") -> 満足 | B3: =IFERROR(OFFSET(INDEX($AG$3:$BF$14, MATCH($A3,$A$2:$A$13,0),MATCH($A$1,$AG$2:$BF$2,0)),0,1),"") -> 50.0% | C3: =IFERROR(OFFSET(INDEX($AG$18:$BF$29, MATCH($A3,$A$2:$A$13,0),MATCH($A$1,$AG$2:$BF$2,0)),0,1),"") -> 45.8% | D3: =IFERROR(OFFSET(INDEX($AG$33:$BF$44, MATCH($A3,$A$2:$A$13,0),MATCH($A$1,$AG$2:$BF$2,0)),0,1),"") -> 48.3% | E3: =IFERROR(OFFSET(INDEX($AG$48:$BF$59, MATCH($A3,$A$2:$A$13,0),MATCH($A$1,$AG$2:$BF$2,0)),0,1),"") -> 49.2% | G3: =【M】エリア!$L$3 -> 福井市・永平寺町 | H3: =AG31 -> 4.30 | I3: =AI31 -> - | J3: =AK31 -> - | K3: =AM31 -> - | L3: =AO31 -> - | M3: =AQ31 -> - | N3: =AS31 -> - | O3: =AU31 -> - | P3: =AW31 -> - | Q3: =AY31 -> - | R3: =BA31 -> - | S3: =BC31 -> - | T3: =BE31 -> 4.30 | AA3: =IF($AE3<>"",VLOOKUP($AE3,【M】満足度!$A$1:$B$5,2,0),"") -> 5 | AC3: =AC2 -> 都道府県 | AD3: =AD2 -> 福井県 | AE3: とても満足 | AG3: =IF(OR(IFERROR(FIND($AD3,"施設コード"),0)>0,$AE3=""), "", '満足度(商品・サービス)'!AG3+'満足度(施設全体)'!AG3 ) -> 1209件 | AH3: =IFERROR(AG3/AG$15,"") -> 38.9% | AI3: =IF(OR(IFERROR(FIND($AD3,"施設コード"),0)>0,$AE3=""), "", '満足度(商品・サービス)'!AI3+'満足度(施設全体)'!AI3 ) -> 0件 | AJ3: =IFERROR(AI3/AI$15,"") ->  | AK3: =IF(OR(IFERROR(FIND($AD3,"施設コード"),0)>0,$AE3=""), "", '満足度(商品・サービス)'!AK3+'満足度(施設全体)'!AK3 ) -> 0件 | AL3: =IFERROR(AK3/AK$15,"") ->  | AM3: =IF(OR(IFERROR(FIND($AD3,"施設コード"),0)>0,$AE3=""), "", '満足度(商品・サービス)'!AM3+'満足度(施設全体)'!AM3 ) -> 0件 | AN3: =IFERROR(AM3/AM$15,"") ->  | AO3: =IF(OR(IFERROR(FIND($AD3,"施設コード"),0)>0,$AE3=""), "", '満足度(商品・サービス)'!AO3+'満足度(施設全体)'!AO3 ) -> 0件 | AP3: =IFERROR(AO3/AO$15,"") ->  | AQ3: =IF(OR(IFERROR(FIND($AD3,"施設コード"),0)>0,$AE3=""), "", '満足度(商品・サービス)'!AQ3+'満足度(施設全体)'!AQ3 ) -> 0件 | AR3: =IFERROR(AQ3/AQ$15,"") ->  | AS3: =IF(OR(IFERROR(FIND($AD3,"施設コード"),0)>0,$AE3=""), "", '満足度(商品・サービス)'!AS3+'満足度(施設全体)'!AS3 ) -> 0件 | AT3: =IFERROR(AS3/AS$15,"") ->  | AU3: =IF(OR(IFERROR(FIND($AD3,"施設コード"),0)>0,$AE3=""), "", '満足度(商品・サービス)'!AU3+'満足度(施設全体)'!AU3 ) -> 0件 | AV3: =IFERROR(AU3/AU$15,"") ->  | AW3: =IF(OR(IFERROR(FIND($AD3,"施設コード"),0)>0,$AE3=""), "", '満足度(商品・サービス)'!AW3+'満足度(施設全体)'!AW3 ) -> 0件 | AX3: =IFERROR(AW3/AW$15,"") ->  | AY3: =IF(OR(IFERROR(FIND($AD3,"施設コード"),0)>0,$AE3=""), "", '満足度(商品・サービス)'!AY3+'満足度(施設全体)'!AY3 ) -> 0件 | AZ3: =IFERROR(AY3/AY$15,"") ->  | BA3: =IF(OR(IFERROR(FIND($AD3,"施設コード"),0)>0,$AE3=""), "", '満足度(商品・サービス)'!BA3+'満足度(施設全体)'!BA3 ) -> 0件 | BB3: =IFERROR(BA3/BA$15,"") ->  | BC3: =IF(OR(IFERROR(FIND($AD3,"施設コード"),0)>0,$AE3=""), "", '満足度(商品・サービス)'!BC3+'満足度(施設全体)'!BC3 ) -> 0件 | BD3: =IFERROR(BC3/BC$15,"") ->  | BE3: =IFERROR(AG3+AI3+AK3+AM3+AO3+AQ3+AS3+AU3+AW3+AY3+BA3+BC3,"") -> 1209件 | BF3: =IFERROR(BE3/BE$15,"") -> 38.9%
A4: どちらでもない | B4: 9.6% | C4: 9.2% | D4: 8.8% | E4: 11.7% | G4: =【M】エリア!$L$4 -> 福井市 | H4: =AG46 -> 4.30 | I4: =AI46 -> - | J4: =AK46 -> - | K4: =AM46 -> - | L4: =AO46 -> - | M4: =AQ46 -> - | N4: =AS46 -> - | O4: =AU46 -> - | P4: =AW46 -> - | Q4: =AY46 -> - | R4: =BA46 -> - | S4: =BC46 -> - | T4: =BE46 -> 4.30 | AA4: =IF($AE4<>"",VLOOKUP($AE4,【M】満足度!$A$1:$B$5,2,0),"") -> 4 | AC4: =AC3 -> 都道府県 | AD4: 福井県 | AE4: 満足 | AG4: =IF(OR(IFERROR(FIND($AD4,"施設コード"),0)>0,$AE4=""), "", '満足度(商品・サービス)'!AG4+'満足度(施設全体)'!AG4 ) -> 1552件 | AH4: 50.0% | AI4: =IF(OR(IFERROR(FIND($AD4,"施設コード"),0)>0,$AE4=""), "", '満足度(商品・サービス)'!AI4+'満足度(施設全体)'!AI4 ) -> 0件 | AK4: =IF(OR(IFERROR(FIND($AD4,"施設コード"),0)>0,$AE4=""), "", '満足度(商品・サービス)'!AK4+'満足度(施設全体)'!AK4 ) -> 0件 | AM4: =IF(OR(IFERROR(FIND($AD4,"施設コード"),0)>0,$AE4=""), "", '満足度(商品・サービス)'!AM4+'満足度(施設全体)'!AM4 ) -> 0件 | AO4: =IF(OR(IFERROR(FIND($AD4,"施設コード"),0)>0,$AE4=""), "", '満足度(商品・サービス)'!AO4+'満足度(施設全体)'!AO4 ) -> 0件 | AQ4: =IF(OR(IFERROR(FIND($AD4,"施設コード"),0)>0,$AE4=""), "", '満足度(商品・サービス)'!AQ4+'満足度(施設全体)'!AQ4 ) -> 0件 | AS4: =IF(OR(IFERROR(FIND($AD4,"施設コード"),0)>0,$AE4=""), "", '満足度(商品・サービス)'!AS4+'満足度(施設全体)'!AS4 ) -> 0件 | AU4: =IF(OR(IFERROR(FIND($AD4,"施設コード"),0)>0,$AE4=""), "", '満足度(商品・サービス)'!AU4+'満足度(施設全体)'!AU4 ) -> 0件 | AW4: =IF(OR(IFERROR(FIND($AD4,"施設コード"),0)>0,$AE4=""), "", '満足度(商品・サービス)'!AW4+'満足度(施設全体)'!AW4 ) -> 0件 | AY4: =IF(OR(IFERROR(FIND($AD4,"施設コード"),0)>0,$AE4=""), "", '満足度(商品・サービス)'!AY4+'満足度(施設全体)'!AY4 ) -> 0件 | BA4: =IF(OR(IFERROR(FIND($AD4,"施設コード"),0)>0,$AE4=""), "", '満足度(商品・サービス)'!BA4+'満足度(施設全体)'!BA4 ) -> 0件 | BC4: =IF(OR(IFERROR(FIND($AD4,"施設コード"),0)>0,$AE4=""), "", '満足度(商品・サービス)'!BC4+'満足度(施設全体)'!BC4 ) -> 0件 | BE4: =IFERROR(AG4+AI4+AK4+AM4+AO4+AQ4+AS4+AU4+AW4+AY4+BA4+BC4,"") -> 1552件 | BF4: 50.0%
A5: 不満 | B5: 1.1% | C5: 1.8% | D5: 1.4% | E5: 0.0% | G5: =【M】エリア!$L$5 -> 福井駅前 エリア | H5: =AG61 -> 4.28 | I5: =AI61 -> - | J5: =AK61 -> - | K5: =AM61 -> - | L5: =AO61 -> - | M5: =AQ61 -> - | N5: =AS61 -> - | O5: =AU61 -> - | P5: =AW61 -> - | Q5: =AY61 -> - | R5: =BA61 -> - | S5: =BC61 -> - | T5: =BE61 -> 4.28 | AA5: =IF($AE5<>"",VLOOKUP($AE5,【M】満足度!$A$1:$B$5,2,0),"") -> 3 | AC5: 都道府県 | AD5: 福井県 | AE5: どちらでもない | AG5: =IF(OR(IFERROR(FIND($AD5,"施設コード"),0)>0,$AE5=""), "", '満足度(商品・サービス)'!AG5+'満足度(施設全体)'!AG5 ) -> 298件 | AH5: 9.6% | AI5: =IF(OR(IFERROR(FIND($AD5,"施設コード"),0)>0,$AE5=""), "", '満足度(商品・サービス)'!AI5+'満足度(施設全体)'!AI5 ) -> 0件 | AK5: =IF(OR(IFERROR(FIND($AD5,"施設コード"),0)>0,$AE5=""), "", '満足度(商品・サービス)'!AK5+'満足度(施設全体)'!AK5 ) -> 0件 | AM5: =IF(OR(IFERROR(FIND($AD5,"施設コード"),0)>0,$AE5=""), "", '満足度(商品・サービス)'!AM5+'満足度(施設全体)'!AM5 ) -> 0件 | AO5: =IF(OR(IFERROR(FIND($AD5,"施設コード"),0)>0,$AE5=""), "", '満足度(商品・サービス)'!AO5+'満足度(施設全体)'!AO5 ) -> 0件 | AQ5: =IF(OR(IFERROR(FIND($AD5,"施設コード"),0)>0,$AE5=""), "", '満足度(商品・サービス)'!AQ5+'満足度(施設全体)'!AQ5 ) -> 0件 | AS5: =IF(OR(IFERROR(FIND($AD5,"施設コード"),0)>0,$AE5=""), "", '満足度(商品・サービス)'!AS5+'満足度(施設全体)'!AS5 ) -> 0件 | AU5: =IF(OR(IFERROR(FIND($AD5,"施設コード"),0)>0,$AE5=""), "", '満足度(商品・サービス)'!AU5+'満足度(施設全体)'!AU5 ) -> 0件 | AW5: =IF(OR(IFERROR(FIND($AD5,"施設コード"),0)>0,$AE5=""), "", '満足度(商品・サービス)'!AW5+'満足度(施設全体)'!AW5 ) -> 0件 | AY5: =IF(OR(IFERROR(FIND($AD5,"施設コード"),0)>0,$AE5=""), "", '満足度(商品・サービス)'!AY5+'満足度(施設全体)'!AY5 ) -> 0件 | BA5: =IF(OR(IFERROR(FIND($AD5,"施設コード"),0)>0,$AE5=""), "", '満足度(商品・サービス)'!BA5+'満足度(施設全体)'!BA5 ) -> 0件 | BC5: =IF(OR(IFERROR(FIND($AD5,"施設コード"),0)>0,$AE5=""), "", '満足度(商品・サービス)'!BC5+'満足度(施設全体)'!BC5 ) -> 0件 | BE5: 298件 | BF5: 9.6%
A6: とても不満 | B6: 0.3% | C6: 0.2% | D6: 0.0% | E6: 0.0% | AA6: =IF($AE6<>"",VLOOKUP($AE6,【M】満足度!$A$1:$B$5,2,0),"") -> 2 | AC6: 都道府県 | AD6: 福井県 | AE6: 不満 | AG6: =IF(OR(IFERROR(FIND($AD6,"施設コード"),0)>0,$AE6=""), "", '満足度(商品・サービス)'!AG6+'満足度(施設全体)'!AG6 ) -> 35件 | AH6: 1.1% | AI6: =IF(OR(IFERROR(FIND($AD6,"施設コード"),0)>0,$AE6=""), "", '満足度(商品・サービス)'!AI6+'満足度(施設全体)'!AI6 ) -> 0件 | AK6: =IF(OR(IFERROR(FIND($AD6,"施設コード"),0)>0,$AE6=""), "", '満足度(商品・サービス)'!AK6+'満足度(施設全体)'!AK6 ) -> 0件 | AM6: =IF(OR(IFERROR(FIND($AD6,"施設コード"),0)>0,$AE6=""), "", '満足度(商品・サービス)'!AM6+'満足度(施設全体)'!AM6 ) -> 0件 | AO6: =IF(OR(IFERROR(FIND($AD6,"施設コード"),0)>0,$AE6=""), "", '満足度(商品・サービス)'!AO6+'満足度(施設全体)'!AO6 ) -> 0件 | AQ6: =IF(OR(IFERROR(FIND($AD6,"施設コード"),0)>0,$AE6=""), "", '満足度(商品・サービス)'!AQ6+'満足度(施設全体)'!AQ6 ) -> 0件 | AS6: =IF(OR(IFERROR(FIND($AD6,"施設コード"),0)>0,$AE6=""), "", '満足度(商品・サービス)'!AS6+'満足度(施設全体)'!AS6 ) -> 0件 | AU6: =IF(OR(IFERROR(FIND($AD6,"施設コード"),0)>0,$AE6=""), "", '満足度(商品・サービス)'!AU6+'満足度(施設全体)'!AU6 ) -> 0件 | AW6: =IF(OR(IFERROR(FIND($AD6,"施設コード"),0)>0,$AE6=""), "", '満足度(商品・サービス)'!AW6+'満足度(施設全体)'!AW6 ) -> 0件 | AY6: =IF(OR(IFERROR(FIND($AD6,"施設コード"),0)>0,$AE6=""), "", '満足度(商品・サービス)'!AY6+'満足度(施設全体)'!AY6 ) -> 0件 | BA6: =IF(OR(IFERROR(FIND($AD6,"施設コード"),0)>0,$AE6=""), "", '満足度(商品・サービス)'!BA6+'満足度(施設全体)'!BA6 ) -> 0件 | BC6: =IF(OR(IFERROR(FIND($AD6,"施設コード"),0)>0,$AE6=""), "", '満足度(商品・サービス)'!BC6+'満足度(施設全体)'!BC6 ) -> 0件 | BE6: 35件 | BF6: 1.1%
AA7: =IF($AE7<>"",VLOOKUP($AE7,【M】満足度!$A$1:$B$5,2,0),"") -> 1 | AC7: 都道府県 | AD7: 福井県 | AE7: とても不満 | AG7: =IF(OR(IFERROR(FIND($AD7,"施設コード"),0)>0,$AE7=""), "", '満足度(商品・サービス)'!AG7+'満足度(施設全体)'!AG7 ) -> 10件 | AH7: 0.3% | AI7: =IF(OR(IFERROR(FIND($AD7,"施設コード"),0)>0,$AE7=""), "", '満足度(商品・サービス)'!AI7+'満足度(施設全体)'!AI7 ) -> 0件 | AK7: =IF(OR(IFERROR(FIND($AD7,"施設コード"),0)>0,$AE7=""), "", '満足度(商品・サービス)'!AK7+'満足度(施設全体)'!AK7 ) -> 0件 | AM7: =IF(OR(IFERROR(FIND($AD7,"施設コード"),0)>0,$AE7=""), "", '満足度(商品・サービス)'!AM7+'満足度(施設全体)'!AM7 ) -> 0件 | AO7: =IF(OR(IFERROR(FIND($AD7,"施設コード"),0)>0,$AE7=""), "", '満足度(商品・サービス)'!AO7+'満足度(施設全体)'!AO7 ) -> 0件 | AQ7: =IF(OR(IFERROR(FIND($AD7,"施設コード"),0)>0,$AE7=""), "", '満足度(商品・サービス)'!AQ7+'満足度(施設全体)'!AQ7 ) -> 0件 | AS7: =IF(OR(IFERROR(FIND($AD7,"施設コード"),0)>0,$AE7=""), "", '満足度(商品・サービス)'!AS7+'満足度(施設全体)'!AS7 ) -> 0件 | AU7: =IF(OR(IFERROR(FIND($AD7,"施設コード"),0)>0,$AE7=""), "", '満足度(商品・サービス)'!AU7+'満足度(施設全体)'!AU7 ) -> 0件 | AW7: =IF(OR(IFERROR(FIND($AD7,"施設コード"),0)>0,$AE7=""), "", '満足度(商品・サービス)'!AW7+'満足度(施設全体)'!AW7 ) -> 0件 | AY7: =IF(OR(IFERROR(FIND($AD7,"施設コード"),0)>0,$AE7=""), "", '満足度(商品・サービス)'!AY7+'満足度(施設全体)'!AY7 ) -> 0件 | BA7: =IF(OR(IFERROR(FIND($AD7,"施設コード"),0)>0,$AE7=""), "", '満足度(商品・サービス)'!BA7+'満足度(施設全体)'!BA7 ) -> 0件 | BC7: =IF(OR(IFERROR(FIND($AD7,"施設コード"),0)>0,$AE7=""), "", '満足度(商品・サービス)'!BC7+'満足度(施設全体)'!BC7 ) -> 0件 | BE7: 10件 | BF7: 0.3%
AA8: =IF($AE8<>"",VLOOKUP($AE8,【M】満足度!$A$1:$B$5,2,0),"") ->  | AC8: 都道府県 | AD8: 福井県 | AG8: =IF(OR(IFERROR(FIND($AD8,"施設コード"),0)>0,$AE8=""), "", '満足度(商品・サービス)'!AG8+'満足度(施設全体)'!AG8 ) ->  | AI8: =IF(OR(IFERROR(FIND($AD8,"施設コード"),0)>0,$AE8=""), "", '満足度(商品・サービス)'!AI8+'満足度(施設全体)'!AI8 ) ->  | AK8: =IF(OR(IFERROR(FIND($AD8,"施設コード"),0)>0,$AE8=""), "", '満足度(商品・サービス)'!AK8+'満足度(施設全体)'!AK8 ) ->  | AM8: =IF(OR(IFERROR(FIND($AD8,"施設コード"),0)>0,$AE8=""), "", '満足度(商品・サービス)'!AM8+'満足度(施設全体)'!AM8 ) ->  | AO8: =IF(OR(IFERROR(FIND($AD8,"施設コード"),0)>0,$AE8=""), "", '満足度(商品・サービス)'!AO8+'満足度(施設全体)'!AO8 ) ->  | AQ8: =IF(OR(IFERROR(FIND($AD8,"施設コード"),0)>0,$AE8=""), "", '満足度(商品・サービス)'!AQ8+'満足度(施設全体)'!AQ8 ) ->  | AS8: =IF(OR(IFERROR(FIND($AD8,"施設コード"),0)>0,$AE8=""), "", '満足度(商品・サービス)'!AS8+'満足度(施設全体)'!AS8 ) ->  | AU8: =IF(OR(IFERROR(FIND($AD8,"施設コード"),0)>0,$AE8=""), "", '満足度(商品・サービス)'!AU8+'満足度(施設全体)'!AU8 ) ->  | AW8: =IF(OR(IFERROR(FIND($AD8,"施設コード"),0)>0,$AE8=""), "", '満足度(商品・サービス)'!AW8+'満足度(施設全体)'!AW8 ) ->  | AY8: =IF(OR(IFERROR(FIND($AD8,"施設コード"),0)>0,$AE8=""), "", '満足度(商品・サービス)'!AY8+'満足度(施設全体)'!AY8 ) ->  | BA8: =IF(OR(IFERROR(FIND($AD8,"施設コード"),0)>0,$AE8=""), "", '満足度(商品・サービス)'!BA8+'満足度(施設全体)'!BA8 ) ->  | BC8: =IF(OR(IFERROR(FIND($AD8,"施設コード"),0)>0,$AE8=""), "", '満足度(商品・サービス)'!BC8+'満足度(施設全体)'!BC8 ) -> 
AA9: =IF($AE9<>"",VLOOKUP($AE9,【M】満足度!$A$1:$B$5,2,0),"") ->  | AC9: 都道府県 | AD9: 福井県 | AG9: =IF(OR(IFERROR(FIND($AD9,"施設コード"),0)>0,$AE9=""), "", '満足度(商品・サービス)'!AG9+'満足度(施設全体)'!AG9 ) ->  | AI9: =IF(OR(IFERROR(FIND($AD9,"施設コード"),0)>0,$AE9=""), "", '満足度(商品・サービス)'!AI9+'満足度(施設全体)'!AI9 ) ->  | AK9: =IF(OR(IFERROR(FIND($AD9,"施設コード"),0)>0,$AE9=""), "", '満足度(商品・サービス)'!AK9+'満足度(施設全体)'!AK9 ) ->  | AM9: =IF(OR(IFERROR(FIND($AD9,"施設コード"),0)>0,$AE9=""), "", '満足度(商品・サービス)'!AM9+'満足度(施設全体)'!AM9 ) ->  | AO9: =IF(OR(IFERROR(FIND($AD9,"施設コード"),0)>0,$AE9=""), "", '満足度(商品・サービス)'!AO9+'満足度(施設全体)'!AO9 ) ->  | AQ9: =IF(OR(IFERROR(FIND($AD9,"施設コード"),0)>0,$AE9=""), "", '満足度(商品・サービス)'!AQ9+'満足度(施設全体)'!AQ9 ) ->  | AS9: =IF(OR(IFERROR(FIND($AD9,"施設コード"),0)>0,$AE9=""), "", '満足度(商品・サービス)'!AS9+'満足度(施設全体)'!AS9 ) ->  | AU9: =IF(OR(IFERROR(FIND($AD9,"施設コード"),0)>0,$AE9=""), "", '満足度(商品・サービス)'!AU9+'満足度(施設全体)'!AU9 ) ->  | AW9: =IF(OR(IFERROR(FIND($AD9,"施設コード"),0)>0,$AE9=""), "", '満足度(商品・サービス)'!AW9+'満足度(施設全体)'!AW9 ) ->  | AY9: =IF(OR(IFERROR(FIND($AD9,"施設コード"),0)>0,$AE9=""), "", '満足度(商品・サービス)'!AY9+'満足度(施設全体)'!AY9 ) ->  | BA9: =IF(OR(IFERROR(FIND($AD9,"施設コード"),0)>0,$AE9=""), "", '満足度(商品・サービス)'!BA9+'満足度(施設全体)'!BA9 ) ->  | BC9: =IF(OR(IFERROR(FIND($AD9,"施設コード"),0)>0,$AE9=""), "", '満足度(商品・サービス)'!BC9+'満足度(施設全体)'!BC9 ) -> 
AA10: =IF($AE10<>"",VLOOKUP($AE10,【M】満足度!$A$1:$B$5,2,0),"") ->  | AC10: =AC9 -> 都道府県 | AD10: =AD9 -> 福井県 | AG10: =IF(OR(IFERROR(FIND($AD10,"施設コード"),0)>0,$AE10=""), "", '満足度(商品・サービス)'!AG10+'満足度(施設全体)'!AG10 ) ->  | AI10: =IF(OR(IFERROR(FIND($AD10,"施設コード"),0)>0,$AE10=""), "", '満足度(商品・サービス)'!AI10+'満足度(施設全体)'!AI10 ) ->  | AK10: =IF(OR(IFERROR(FIND($AD10,"施設コード"),0)>0,$AE10=""), "", '満足度(商品・サービス)'!AK10+'満足度(施設全体)'!AK10 ) ->  | AM10: =IF(OR(IFERROR(FIND($AD10,"施設コード"),0)>0,$AE10=""), "", '満足度(商品・サービス)'!AM10+'満足度(施設全体)'!AM10 ) ->  | AO10: =IF(OR(IFERROR(FIND($AD10,"施設コード"),0)>0,$AE10=""), "", '満足度(商品・サービス)'!AO10+'満足度(施設全体)'!AO10 ) ->  | AQ10: =IF(OR(IFERROR(FIND($AD10,"施設コード"),0)>0,$AE10=""), "", '満足度(商品・サービス)'!AQ10+'満足度(施設全体)'!AQ10 ) ->  | AS10: =IF(OR(IFERROR(FIND($AD10,"施設コード"),0)>0,$AE10=""), "", '満足度(商品・サービス)'!AS10+'満足度(施設全体)'!AS10 ) ->  | AU10: =IF(OR(IFERROR(FIND($AD10,"施設コード"),0)>0,$AE10=""), "", '満足度(商品・サービス)'!AU10+'満足度(施設全体)'!AU10 ) ->  | AW10: =IF(OR(IFERROR(FIND($AD10,"施設コード"),0)>0,$AE10=""), "", '満足度(商品・サービス)'!AW10+'満足度(施設全体)'!AW10 ) ->  | AY10: =IF(OR(IFERROR(FIND($AD10,"施設コード"),0)>0,$AE10=""), "", '満足度(商品・サービス)'!AY10+'満足度(施設全体)'!AY10 ) ->  | BA10: =IF(OR(IFERROR(FIND($AD10,"施設コード"),0)>0,$AE10=""), "", '満足度(商品・サービス)'!BA10+'満足度(施設全体)'!BA10 ) ->  | BC10: =IF(OR(IFERROR(FIND($AD10,"施設コード"),0)>0,$AE10=""), "", '満足度(商品・サービス)'!BC10+'満足度(施設全体)'!BC10 ) -> 
AA11: =IF($AE11<>"",VLOOKUP($AE11,【M】満足度!$A$1:$B$5,2,0),"") ->  | AC11: 都道府県 | AD11: 福井県 | AG11: =IF(OR(IFERROR(FIND($AD11,"施設コード"),0)>0,$AE11=""), "", '満足度(商品・サービス)'!AG11+'満足度(施設全体)'!AG11 ) ->  | AI11: =IF(OR(IFERROR(FIND($AD11,"施設コード"),0)>0,$AE11=""), "", '満足度(商品・サービス)'!AI11+'満足度(施設全体)'!AI11 ) ->  | AK11: =IF(OR(IFERROR(FIND($AD11,"施設コード"),0)>0,$AE11=""), "", '満足度(商品・サービス)'!AK11+'満足度(施設全体)'!AK11 ) ->  | AM11: =IF(OR(IFERROR(FIND($AD11,"施設コード"),0)>0,$AE11=""), "", '満足度(商品・サービス)'!AM11+'満足度(施設全体)'!AM11 ) ->  | AO11: =IF(OR(IFERROR(FIND($AD11,"施設コード"),0)>0,$AE11=""), "", '満足度(商品・サービス)'!AO11+'満足度(施設全体)'!AO11 ) ->  | AQ11: =IF(OR(IFERROR(FIND($AD11,"施設コード"),0)>0,$AE11=""), "", '満足度(商品・サービス)'!AQ11+'満足度(施設全体)'!AQ11 ) ->  | AS11: =IF(OR(IFERROR(FIND($AD11,"施設コード"),0)>0,$AE11=""), "", '満足度(商品・サービス)'!AS11+'満足度(施設全体)'!AS11 ) ->  | AU11: =IF(OR(IFERROR(FIND($AD11,"施設コード"),0)>0,$AE11=""), "", '満足度(商品・サービス)'!AU11+'満足度(施設全体)'!AU11 ) ->  | AW11: =IF(OR(IFERROR(FIND($AD11,"施設コード"),0)>0,$AE11=""), "", '満足度(商品・サービス)'!AW11+'満足度(施設全体)'!AW11 ) ->  | AY11: =IF(OR(IFERROR(FIND($AD11,"施設コード"),0)>0,$AE11=""), "", '満足度(商品・サービス)'!AY11+'満足度(施設全体)'!AY11 ) ->  | BA11: =IF(OR(IFERROR(FIND($AD11,"施設コード"),0)>0,$AE11=""), "", '満足度(商品・サービス)'!BA11+'満足度(施設全体)'!BA11 ) ->  | BC11: =IF(OR(IFERROR(FIND($AD11,"施設コード"),0)>0,$AE11=""), "", '満足度(商品・サービス)'!BC11+'満足度(施設全体)'!BC11 ) -> 
AA12: =IF($AE12<>"",VLOOKUP($AE12,【M】満足度!$A$1:$B$5,2,0),"") ->  | AC12: 都道府県 | AD12: 福井県 | AG12: =IF(OR(IFERROR(FIND($AD12,"施設コード"),0)>0,$AE12=""), "", '満足度(商品・サービス)'!AG12+'満足度(施設全体)'!AG12 ) ->  | AI12: =IF(OR(IFERROR(FIND($AD12,"施設コード"),0)>0,$AE12=""), "", '満足度(商品・サービス)'!AI12+'満足度(施設全体)'!AI12 ) ->  | AK12: =IF(OR(IFERROR(FIND($AD12,"施設コード"),0)>0,$AE12=""), "", '満足度(商品・サービス)'!AK12+'満足度(施設全体)'!AK12 ) ->  | AM12: =IF(OR(IFERROR(FIND($AD12,"施設コード"),0)>0,$AE12=""), "", '満足度(商品・サービス)'!AM12+'満足度(施設全体)'!AM12 ) ->  | AO12: =IF(OR(IFERROR(FIND($AD12,"施設コード"),0)>0,$AE12=""), "", '満足度(商品・サービス)'!AO12+'満足度(施設全体)'!AO12 ) ->  | AQ12: =IF(OR(IFERROR(FIND($AD12,"施設コード"),0)>0,$AE12=""), "", '満足度(商品・サービス)'!AQ12+'満足度(施設全体)'!AQ12 ) ->  | AS12: =IF(OR(IFERROR(FIND($AD12,"施設コード"),0)>0,$AE12=""), "", '満足度(商品・サービス)'!AS12+'満足度(施設全体)'!AS12 ) ->  | AU12: =IF(OR(IFERROR(FIND($AD12,"施設コード"),0)>0,$AE12=""), "", '満足度(商品・サービス)'!AU12+'満足度(施設全体)'!AU12 ) ->  | AW12: =IF(OR(IFERROR(FIND($AD12,"施設コード"),0)>0,$AE12=""), "", '満足度(商品・サービス)'!AW12+'満足度(施設全体)'!AW12 ) ->  | AY12: =IF(OR(IFERROR(FIND($AD12,"施設コード"),0)>0,$AE12=""), "", '満足度(商品・サービス)'!AY12+'満足度(施設全体)'!AY12 ) ->  | BA12: =IF(OR(IFERROR(FIND($AD12,"施設コード"),0)>0,$AE12=""), "", '満足度(商品・サービス)'!BA12+'満足度(施設全体)'!BA12 ) ->  | BC12: =IF(OR(IFERROR(FIND($AD12,"施設コード"),0)>0,$AE12=""), "", '満足度(商品・サービス)'!BC12+'満足度(施設全体)'!BC12 ) -> 
AA13: =IF($AE13<>"",VLOOKUP($AE13,【M】満足度!$A$1:$B$5,2,0),"") ->  | AC13: 都道府県 | AD13: 福井県 | AG13: =IF(OR(IFERROR(FIND($AD13,"施設コード"),0)>0,$AE13=""), "", '満足度(商品・サービス)'!AG13+'満足度(施設全体)'!AG13 ) ->  | AI13: =IF(OR(IFERROR(FIND($AD13,"施設コード"),0)>0,$AE13=""), "", '満足度(商品・サービス)'!AI13+'満足度(施設全体)'!AI13 ) ->  | AK13: =IF(OR(IFERROR(FIND($AD13,"施設コード"),0)>0,$AE13=""), "", '満足度(商品・サービス)'!AK13+'満足度(施設全体)'!AK13 ) ->  | AM13: =IF(OR(IFERROR(FIND($AD13,"施設コード"),0)>0,$AE13=""), "", '満足度(商品・サービス)'!AM13+'満足度(施設全体)'!AM13 ) ->  | AO13: =IF(OR(IFERROR(FIND($AD13,"施設コード"),0)>0,$AE13=""), "", '満足度(商品・サービス)'!AO13+'満足度(施設全体)'!AO13 ) ->  | AQ13: =IF(OR(IFERROR(FIND($AD13,"施設コード"),0)>0,$AE13=""), "", '満足度(商品・サービス)'!AQ13+'満足度(施設全体)'!AQ13 ) ->  | AS13: =IF(OR(IFERROR(FIND($AD13,"施設コード"),0)>0,$AE13=""), "", '満足度(商品・サービス)'!AS13+'満足度(施設全体)'!AS13 ) ->  | AU13: =IF(OR(IFERROR(FIND($AD13,"施設コード"),0)>0,$AE13=""), "", '満足度(商品・サービス)'!AU13+'満足度(施設全体)'!AU13 ) ->  | AW13: =IF(OR(IFERROR(FIND($AD13,"施設コード"),0)>0,$AE13=""), "", '満足度(商品・サービス)'!AW13+'満足度(施設全体)'!AW13 ) ->  | AY13: =IF(OR(IFERROR(FIND($AD13,"施設コード"),0)>0,$AE13=""), "", '満足度(商品・サービス)'!AY13+'満足度(施設全体)'!AY13 ) ->  | BA13: =IF(OR(IFERROR(FIND($AD13,"施設コード"),0)>0,$AE13=""), "", '満足度(商品・サービス)'!BA13+'満足度(施設全体)'!BA13 ) ->  | BC13: =IF(OR(IFERROR(FIND($AD13,"施設コード"),0)>0,$AE13=""), "", '満足度(商品・サービス)'!BC13+'満足度(施設全体)'!BC13 ) -> 
AA14: =IF($AE14<>"",VLOOKUP($AE14,【M】満足度!$A$1:$B$5,2,0),"") ->  | AC14: =AC12 -> 都道府県 | AD14: =AD12 -> 福井県 | AG14: =IF(OR(IFERROR(FIND($AD14,"施設コード"),0)>0,$AE14=""), "", '満足度(商品・サービス)'!AG14+'満足度(施設全体)'!AG14 ) ->  | AH14: =IFERROR(AG14/AG$15,"") ->  | AI14: =IF(OR(IFERROR(FIND($AD14,"施設コード"),0)>0,$AE14=""), "", '満足度(商品・サービス)'!AI14+'満足度(施設全体)'!AI14 ) ->  | AJ14: =IFERROR(AI14/AI$15,"") ->  | AK14: =IF(OR(IFERROR(FIND($AD14,"施設コード"),0)>0,$AE14=""), "", '満足度(商品・サービス)'!AK14+'満足度(施設全体)'!AK14 ) ->  | AL14: =IFERROR(AK14/AK$15,"") ->  | AM14: =IF(OR(IFERROR(FIND($AD14,"施設コード"),0)>0,$AE14=""), "", '満足度(商品・サービス)'!AM14+'満足度(施設全体)'!AM14 ) ->  | AN14: =IFERROR(AM14/AM$15,"") ->  | AO14: =IF(OR(IFERROR(FIND($AD14,"施設コード"),0)>0,$AE14=""), "", '満足度(商品・サービス)'!AO14+'満足度(施設全体)'!AO14 ) ->  | AP14: =IFERROR(AO14/AO$15,"") ->  | AQ14: =IF(OR(IFERROR(FIND($AD14,"施設コード"),0)>0,$AE14=""), "", '満足度(商品・サービス)'!AQ14+'満足度(施設全体)'!AQ14 ) ->  | AR14: =IFERROR(AQ14/AQ$15,"") ->  | AS14: =IF(OR(IFERROR(FIND($AD14,"施設コード"),0)>0,$AE14=""), "", '満足度(商品・サービス)'!AS14+'満足度(施設全体)'!AS14 ) ->  | AT14: =IFERROR(AS14/AS$15,"") ->  | AU14: =IF(OR(IFERROR(FIND($AD14,"施設コード"),0)>0,$AE14=""), "", '満足度(商品・サービス)'!AU14+'満足度(施設全体)'!AU14 ) ->  | AV14: =IFERROR(AU14/AU$15,"") ->  | AW14: =IF(OR(IFERROR(FIND($AD14,"施設コード"),0)>0,$AE14=""), "", '満足度(商品・サービス)'!AW14+'満足度(施設全体)'!AW14 ) ->  | AX14: =IFERROR(AW14/AW$15,"") ->  | AY14: =IF(OR(IFERROR(FIND($AD14,"施設コード"),0)>0,$AE14=""), "", '満足度(商品・サービス)'!AY14+'満足度(施設全体)'!AY14 ) ->  | AZ14: =IFERROR(AY14/AY$15,"") ->  | BA14: =IF(OR(IFERROR(FIND($AD14,"施設コード"),0)>0,$AE14=""), "", '満足度(商品・サービス)'!BA14+'満足度(施設全体)'!BA14 ) ->  | BB14: =IFERROR(BA14/BA$15,"") ->  | BC14: =IF(OR(IFERROR(FIND($AD14,"施設コード"),0)>0,$AE14=""), "", '満足度(商品・サービス)'!BC14+'満足度(施設全体)'!BC14 ) ->  | BD14: =IFERROR(BC14/BC$15,"") ->  | BF14: =IFERROR(BE14/BE$15,"") -> 
AF15: 合計 | AG15: =SUM(AG3:AG14) -> 3,104件 | AH15: 100.0% | AI15: 0件 | AJ15: 0.0% | AK15: 0件 | AL15: 0.0% | AM15: 0件 | AN15: 0.0% | AO15: 0件 | AP15: 0.0% | AQ15: 0件 | AR15: 0.0% | AS15: 0件 | AT15: 0.0% | AU15: 0件 | AV15: 0.0% | AW15: 0件 | AX15: 0.0% | AY15: 0件 | AZ15: 0.0% | BA15: 0件 | BB15: 0.0% | BC15: 0件 | BD15: 0.0% | BE15: =AG15+AI15+AK15+AM15+AO15+AQ15+AS15+AU15+AW15+AY15+BA15+BC15 -> 3,104件 | BF15: =SUM(BF3:BF14) -> 100.0%
AF16: 総合満足度スコア | AG16: =IF(AG15>0,SUMPRODUCT($AA3:$AA14,AG3:AG14)/AG15,"-") -> 4.26 | AI16: =IF(AI15>0,SUMPRODUCT($AA3:$AA14,AI3:AI14)/AI15,"-") -> - | AK16: =IF(AK15>0,SUMPRODUCT($AA3:$AA14,AK3:AK14)/AK15,"-") -> - | AM16: =IF(AM15>0,SUMPRODUCT($AA3:$AA14,AM3:AM14)/AM15,"-") -> - | AO16: =IF(AO15>0,SUMPRODUCT($AA3:$AA14,AO3:AO14)/AO15,"-") -> - | AQ16: =IF(AQ15>0,SUMPRODUCT($AA3:$AA14,AQ3:AQ14)/AQ15,"-") -> - | AS16: =IF(AS15>0,SUMPRODUCT($AA3:$AA14,AS3:AS14)/AS15,"-") -> - | AU16: =IF(AU15>0,SUMPRODUCT($AA3:$AA14,AU3:AU14)/AU15,"-") -> - | AW16: =IF(AW15>0,SUMPRODUCT($AA3:$AA14,AW3:AW14)/AW15,"-") -> - | AY16: =IF(AY15>0,SUMPRODUCT($AA3:$AA14,AY3:AY14)/AY15,"-") -> - | BA16: =IF(BA15>0,SUMPRODUCT($AA3:$AA14,BA3:BA14)/BA15,"-") -> - | BC16: =IF(BC15>0,SUMPRODUCT($AA3:$AA14,BC3:BC14)/BC15,"-") -> - | BE16: =IF(BE15>0,SUMPRODUCT($AA3:$AA14,BE3:BE14)/BE15,"-") -> 4.26
AC17: =【M】エリア!$J$2 -> 6分類 | AD17: =【M】エリア!$L$3 -> 福井市・永平寺町
AA18: =IF($AE18<>"",VLOOKUP($AE18,【M】満足度!$A$1:$B$5,2,0),"") -> 5 | AC18: =AC17 -> 6分類 | AD18: =AD17 -> 福井市・永平寺町 | AE18: =IF(AE3<>"",AE3,"") -> とても満足 | AG18: =IF(OR(IFERROR(FIND($AD18,"施設コード"),0)>0,$AE18=""), "", '満足度(商品・サービス)'!AG18+'満足度(施設全体)'!AG18 ) -> 256件 | AH18: =IFERROR(AG18/AG$30,"") -> 43.0% | AI18: =IF(OR(IFERROR(FIND($AD18,"施設コード"),0)>0,$AE18=""), "", '満足度(商品・サービス)'!AI18+'満足度(施設全体)'!AI18 ) -> 0件 | AJ18: =IFERROR(AI18/AI$30,"") ->  | AK18: =IF(OR(IFERROR(FIND($AD18,"施設コード"),0)>0,$AE18=""), "", '満足度(商品・サービス)'!AK18+'満足度(施設全体)'!AK18 ) -> 0件 | AL18: =IFERROR(AK18/AK$30,"") ->  | AM18: =IF(OR(IFERROR(FIND($AD18,"施設コード"),0)>0,$AE18=""), "", '満足度(商品・サービス)'!AM18+'満足度(施設全体)'!AM18 ) -> 0件 | AN18: =IFERROR(AM18/AM$30,"") ->  | AO18: =IF(OR(IFERROR(FIND($AD18,"施設コード"),0)>0,$AE18=""), "", '満足度(商品・サービス)'!AO18+'満足度(施設全体)'!AO18 ) -> 0件 | AP18: =IFERROR(AO18/AO$30,"") ->  | AQ18: =IF(OR(IFERROR(FIND($AD18,"施設コード"),0)>0,$AE18=""), "", '満足度(商品・サービス)'!AQ18+'満足度(施設全体)'!AQ18 ) -> 0件 | AR18: =IFERROR(AQ18/AQ$30,"") ->  | AS18: =IF(OR(IFERROR(FIND($AD18,"施設コード"),0)>0,$AE18=""), "", '満足度(商品・サービス)'!AS18+'満足度(施設全体)'!AS18 ) -> 0件 | AT18: =IFERROR(AS18/AS$30,"") ->  | AU18: =IF(OR(IFERROR(FIND($AD18,"施設コード"),0)>0,$AE18=""), "", '満足度(商品・サービス)'!AU18+'満足度(施設全体)'!AU18 ) -> 0件 | AV18: =IFERROR(AU18/AU$30,"") ->  | AW18: =IF(OR(IFERROR(FIND($AD18,"施設コード"),0)>0,$AE18=""), "", '満足度(商品・サービス)'!AW18+'満足度(施設全体)'!AW18 ) -> 0件 | AX18: =IFERROR(AW18/AW$30,"") ->  | AY18: =IF(OR(IFERROR(FIND($AD18,"施設コード"),0)>0,$AE18=""), "", '満足度(商品・サービス)'!AY18+'満足度(施設全体)'!AY18 ) -> 0件 | AZ18: =IFERROR(AY18/AY$30,"") ->  | BA18: =IF(OR(IFERROR(FIND($AD18,"施設コード"),0)>0,$AE18=""), "", '満足度(商品・サービス)'!BA18+'満足度(施設全体)'!BA18 ) -> 0件 | BB18: =IFERROR(BA18/BA$30,"") ->  | BC18: =IF(OR(IFERROR(FIND($AD18,"施設コード"),0)>0,$AE18=""), "", '満足度(商品・サービス)'!BC18+'満足度(施設全体)'!BC18 ) -> 0件 | BD18: =IFERROR(BC18/BC$30,"") ->  | BE18: =IFERROR(AG18+AI18+AK18+AM18+AO18+AQ18+AS18+AU18+AW18+AY18+BA18+BC18,"") -> 256件 | BF18: =IFERROR(BE18/BE$30,"") -> 43.0%
AA19: =IF($AE19<>"",VLOOKUP($AE19,【M】満足度!$A$1:$B$5,2,0),"") -> 4 | AC19: =AC18 -> 6分類 | AD19: 福井市・永平寺町 | AE19: 満足 | AG19: =IF(OR(IFERROR(FIND($AD19,"施設コード"),0)>0,$AE19=""), "", '満足度(商品・サービス)'!AG19+'満足度(施設全体)'!AG19 ) -> 273件 | AH19: 45.8% | AI19: =IF(OR(IFERROR(FIND($AD19,"施設コード"),0)>0,$AE19=""), "", '満足度(商品・サービス)'!AI19+'満足度(施設全体)'!AI19 ) -> 0件 | AK19: =IF(OR(IFERROR(FIND($AD19,"施設コード"),0)>0,$AE19=""), "", '満足度(商品・サービス)'!AK19+'満足度(施設全体)'!AK19 ) -> 0件 | AM19: =IF(OR(IFERROR(FIND($AD19,"施設コード"),0)>0,$AE19=""), "", '満足度(商品・サービス)'!AM19+'満足度(施設全体)'!AM19 ) -> 0件 | AO19: =IF(OR(IFERROR(FIND($AD19,"施設コード"),0)>0,$AE19=""), "", '満足度(商品・サービス)'!AO19+'満足度(施設全体)'!AO19 ) -> 0件 | AQ19: =IF(OR(IFERROR(FIND($AD19,"施設コード"),0)>0,$AE19=""), "", '満足度(商品・サービス)'!AQ19+'満足度(施設全体)'!AQ19 ) -> 0件 | AS19: =IF(OR(IFERROR(FIND($AD19,"施設コード"),0)>0,$AE19=""), "", '満足度(商品・サービス)'!AS19+'満足度(施設全体)'!AS19 ) -> 0件 | AU19: =IF(OR(IFERROR(FIND($AD19,"施設コード"),0)>0,$AE19=""), "", '満足度(商品・サービス)'!AU19+'満足度(施設全体)'!AU19 ) -> 0件 | AW19: =IF(OR(IFERROR(FIND($AD19,"施設コード"),0)>0,$AE19=""), "", '満足度(商品・サービス)'!AW19+'満足度(施設全体)'!AW19 ) -> 0件 | AY19: =IF(OR(IFERROR(FIND($AD19,"施設コード"),0)>0,$AE19=""), "", '満足度(商品・サービス)'!AY19+'満足度(施設全体)'!AY19 ) -> 0件 | BA19: =IF(OR(IFERROR(FIND($AD19,"施設コード"),0)>0,$AE19=""), "", '満足度(商品・サービス)'!BA19+'満足度(施設全体)'!BA19 ) -> 0件 | BC19: =IF(OR(IFERROR(FIND($AD19,"施設コード"),0)>0,$AE19=""), "", '満足度(商品・サービス)'!BC19+'満足度(施設全体)'!BC19 ) -> 0件 | BE19: =IFERROR(AG19+AI19+AK19+AM19+AO19+AQ19+AS19+AU19+AW19+AY19+BA19+BC19,"") -> 273件 | BF19: 45.8%
AA20: =IF($AE20<>"",VLOOKUP($AE20,【M】満足度!$A$1:$B$5,2,0),"") -> 3 | AC20: 6分類 | AD20: 福井市・永平寺町 | AE20: どちらでもない | AG20: =IF(OR(IFERROR(FIND($AD20,"施設コード"),0)>0,$AE20=""), "", '満足度(商品・サービス)'!AG20+'満足度(施設全体)'!AG20 ) -> 55件 | AH20: 9.2% | AI20: =IF(OR(IFERROR(FIND($AD20,"施設コード"),0)>0,$AE20=""), "", '満足度(商品・サービス)'!AI20+'満足度(施設全体)'!AI20 ) -> 0件 | AK20: =IF(OR(IFERROR(FIND($AD20,"施設コード"),0)>0,$AE20=""), "", '満足度(商品・サービス)'!AK20+'満足度(施設全体)'!AK20 ) -> 0件 | AM20: =IF(OR(IFERROR(FIND($AD20,"施設コード"),0)>0,$AE20=""), "", '満足度(商品・サービス)'!AM20+'満足度(施設全体)'!AM20 ) -> 0件 | AO20: =IF(OR(IFERROR(FIND($AD20,"施設コード"),0)>0,$AE20=""), "", '満足度(商品・サービス)'!AO20+'満足度(施設全体)'!AO20 ) -> 0件 | AQ20: =IF(OR(IFERROR(FIND($AD20,"施設コード"),0)>0,$AE20=""), "", '満足度(商品・サービス)'!AQ20+'満足度(施設全体)'!AQ20 ) -> 0件 | AS20: =IF(OR(IFERROR(FIND($AD20,"施設コード"),0)>0,$AE20=""), "", '満足度(商品・サービス)'!AS20+'満足度(施設全体)'!AS20 ) -> 0件 | AU20: =IF(OR(IFERROR(FIND($AD20,"施設コード"),0)>0,$AE20=""), "", '満足度(商品・サービス)'!AU20+'満足度(施設全体)'!AU20 ) -> 0件 | AW20: =IF(OR(IFERROR(FIND($AD20,"施設コード"),0)>0,$AE20=""), "", '満足度(商品・サービス)'!AW20+'満足度(施設全体)'!AW20 ) -> 0件 | AY20: =IF(OR(IFERROR(FIND($AD20,"施設コード"),0)>0,$AE20=""), "", '満足度(商品・サービス)'!AY20+'満足度(施設全体)'!AY20 ) -> 0件 | BA20: =IF(OR(IFERROR(FIND($AD20,"施設コード"),0)>0,$AE20=""), "", '満足度(商品・サービス)'!BA20+'満足度(施設全体)'!BA20 ) -> 0件 | BC20: =IF(OR(IFERROR(FIND($AD20,"施設コード"),0)>0,$AE20=""), "", '満足度(商品・サービス)'!BC20+'満足度(施設全体)'!BC20 ) -> 0件 | BE20: 55件 | BF20: 9.2%
AA21: =IF($AE21<>"",VLOOKUP($AE21,【M】満足度!$A$1:$B$5,2,0),"") -> 2 | AC21: 6分類 | AD21: 福井市・永平寺町 | AE21: 不満 | AG21: =IF(OR(IFERROR(FIND($AD21,"施設コード"),0)>0,$AE21=""), "", '満足度(商品・サービス)'!AG21+'満足度(施設全体)'!AG21 ) -> 11件 | AH21: 1.8% | AI21: =IF(OR(IFERROR(FIND($AD21,"施設コード"),0)>0,$AE21=""), "", '満足度(商品・サービス)'!AI21+'満足度(施設全体)'!AI21 ) -> 0件 | AK21: =IF(OR(IFERROR(FIND($AD21,"施設コード"),0)>0,$AE21=""), "", '満足度(商品・サービス)'!AK21+'満足度(施設全体)'!AK21 ) -> 0件 | AM21: =IF(OR(IFERROR(FIND($AD21,"施設コード"),0)>0,$AE21=""), "", '満足度(商品・サービス)'!AM21+'満足度(施設全体)'!AM21 ) -> 0件 | AO21: =IF(OR(IFERROR(FIND($AD21,"施設コード"),0)>0,$AE21=""), "", '満足度(商品・サービス)'!AO21+'満足度(施設全体)'!AO21 ) -> 0件 | AQ21: =IF(OR(IFERROR(FIND($AD21,"施設コード"),0)>0,$AE21=""), "", '満足度(商品・サービス)'!AQ21+'満足度(施設全体)'!AQ21 ) -> 0件 | AS21: =IF(OR(IFERROR(FIND($AD21,"施設コード"),0)>0,$AE21=""), "", '満足度(商品・サービス)'!AS21+'満足度(施設全体)'!AS21 ) -> 0件 | AU21: =IF(OR(IFERROR(FIND($AD21,"施設コード"),0)>0,$AE21=""), "", '満足度(商品・サービス)'!AU21+'満足度(施設全体)'!AU21 ) -> 0件 | AW21: =IF(OR(IFERROR(FIND($AD21,"施設コード"),0)>0,$AE21=""), "", '満足度(商品・サービス)'!AW21+'満足度(施設全体)'!AW21 ) -> 0件 | AY21: =IF(OR(IFERROR(FIND($AD21,"施設コード"),0)>0,$AE21=""), "", '満足度(商品・サービス)'!AY21+'満足度(施設全体)'!AY21 ) -> 0件 | BA21: =IF(OR(IFERROR(FIND($AD21,"施設コード"),0)>0,$AE21=""), "", '満足度(商品・サービス)'!BA21+'満足度(施設全体)'!BA21 ) -> 0件 | BC21: =IF(OR(IFERROR(FIND($AD21,"施設コード"),0)>0,$AE21=""), "", '満足度(商品・サービス)'!BC21+'満足度(施設全体)'!BC21 ) -> 0件 | BE21: 11件 | BF21: 1.8%
AA22: =IF($AE22<>"",VLOOKUP($AE22,【M】満足度!$A$1:$B$5,2,0),"") -> 1 | AC22: 6分類 | AD22: 福井市・永平寺町 | AE22: とても不満 | AG22: =IF(OR(IFERROR(FIND($AD22,"施設コード"),0)>0,$AE22=""), "", '満足度(商品・サービス)'!AG22+'満足度(施設全体)'!AG22 ) -> 1件 | AH22: 0.2% | AI22: =IF(OR(IFERROR(FIND($AD22,"施設コード"),0)>0,$AE22=""), "", '満足度(商品・サービス)'!AI22+'満足度(施設全体)'!AI22 ) -> 0件 | AK22: =IF(OR(IFERROR(FIND($AD22,"施設コード"),0)>0,$AE22=""), "", '満足度(商品・サービス)'!AK22+'満足度(施設全体)'!AK22 ) -> 0件 | AM22: =IF(OR(IFERROR(FIND($AD22,"施設コード"),0)>0,$AE22=""), "", '満足度(商品・サービス)'!AM22+'満足度(施設全体)'!AM22 ) -> 0件 | AO22: =IF(OR(IFERROR(FIND($AD22,"施設コード"),0)>0,$AE22=""), "", '満足度(商品・サービス)'!AO22+'満足度(施設全体)'!AO22 ) -> 0件 | AQ22: =IF(OR(IFERROR(FIND($AD22,"施設コード"),0)>0,$AE22=""), "", '満足度(商品・サービス)'!AQ22+'満足度(施設全体)'!AQ22 ) -> 0件 | AS22: =IF(OR(IFERROR(FIND($AD22,"施設コード"),0)>0,$AE22=""), "", '満足度(商品・サービス)'!AS22+'満足度(施設全体)'!AS22 ) -> 0件 | AU22: =IF(OR(IFERROR(FIND($AD22,"施設コード"),0)>0,$AE22=""), "", '満足度(商品・サービス)'!AU22+'満足度(施設全体)'!AU22 ) -> 0件 | AW22: =IF(OR(IFERROR(FIND($AD22,"施設コード"),0)>0,$AE22=""), "", '満足度(商品・サービス)'!AW22+'満足度(施設全体)'!AW22 ) -> 0件 | AY22: =IF(OR(IFERROR(FIND($AD22,"施設コード"),0)>0,$AE22=""), "", '満足度(商品・サービス)'!AY22+'満足度(施設全体)'!AY22 ) -> 0件 | BA22: =IF(OR(IFERROR(FIND($AD22,"施設コード"),0)>0,$AE22=""), "", '満足度(商品・サービス)'!BA22+'満足度(施設全体)'!BA22 ) -> 0件 | BC22: =IF(OR(IFERROR(FIND($AD22,"施設コード"),0)>0,$AE22=""), "", '満足度(商品・サービス)'!BC22+'満足度(施設全体)'!BC22 ) -> 0件 | BE22: 1件 | BF22: 0.2%
AA23: =IF($AE23<>"",VLOOKUP($AE23,【M】満足度!$A$1:$B$5,2,0),"") ->  | AC23: 6分類 | AD23: 福井市・永平寺町 | AG23: =IF(OR(IFERROR(FIND($AD23,"施設コード"),0)>0,$AE23=""), "", '満足度(商品・サービス)'!AG23+'満足度(施設全体)'!AG23 ) ->  | AI23: =IF(OR(IFERROR(FIND($AD23,"施設コード"),0)>0,$AE23=""), "", '満足度(商品・サービス)'!AI23+'満足度(施設全体)'!AI23 ) ->  | AK23: =IF(OR(IFERROR(FIND($AD23,"施設コード"),0)>0,$AE23=""), "", '満足度(商品・サービス)'!AK23+'満足度(施設全体)'!AK23 ) ->  | AM23: =IF(OR(IFERROR(FIND($AD23,"施設コード"),0)>0,$AE23=""), "", '満足度(商品・サービス)'!AM23+'満足度(施設全体)'!AM23 ) ->  | AO23: =IF(OR(IFERROR(FIND($AD23,"施設コード"),0)>0,$AE23=""), "", '満足度(商品・サービス)'!AO23+'満足度(施設全体)'!AO23 ) ->  | AQ23: =IF(OR(IFERROR(FIND($AD23,"施設コード"),0)>0,$AE23=""), "", '満足度(商品・サービス)'!AQ23+'満足度(施設全体)'!AQ23 ) ->  | AS23: =IF(OR(IFERROR(FIND($AD23,"施設コード"),0)>0,$AE23=""), "", '満足度(商品・サービス)'!AS23+'満足度(施設全体)'!AS23 ) ->  | AU23: =IF(OR(IFERROR(FIND($AD23,"施設コード"),0)>0,$AE23=""), "", '満足度(商品・サービス)'!AU23+'満足度(施設全体)'!AU23 ) ->  | AW23: =IF(OR(IFERROR(FIND($AD23,"施設コード"),0)>0,$AE23=""), "", '満足度(商品・サービス)'!AW23+'満足度(施設全体)'!AW23 ) ->  | AY23: =IF(OR(IFERROR(FIND($AD23,"施設コード"),0)>0,$AE23=""), "", '満足度(商品・サービス)'!AY23+'満足度(施設全体)'!AY23 ) ->  | BA23: =IF(OR(IFERROR(FIND($AD23,"施設コード"),0)>0,$AE23=""), "", '満足度(商品・サービス)'!BA23+'満足度(施設全体)'!BA23 ) ->  | BC23: =IF(OR(IFERROR(FIND($AD23,"施設コード"),0)>0,$AE23=""), "", '満足度(商品・サービス)'!BC23+'満足度(施設全体)'!BC23 ) -> 
AA24: =IF($AE24<>"",VLOOKUP($AE24,【M】満足度!$A$1:$B$5,2,0),"") ->  | AC24: 6分類 | AD24: 福井市・永平寺町 | AG24: =IF(OR(IFERROR(FIND($AD24,"施設コード"),0)>0,$AE24=""), "", '満足度(商品・サービス)'!AG24+'満足度(施設全体)'!AG24 ) ->  | AI24: =IF(OR(IFERROR(FIND($AD24,"施設コード"),0)>0,$AE24=""), "", '満足度(商品・サービス)'!AI24+'満足度(施設全体)'!AI24 ) ->  | AK24: =IF(OR(IFERROR(FIND($AD24,"施設コード"),0)>0,$AE24=""), "", '満足度(商品・サービス)'!AK24+'満足度(施設全体)'!AK24 ) ->  | AM24: =IF(OR(IFERROR(FIND($AD24,"施設コード"),0)>0,$AE24=""), "", '満足度(商品・サービス)'!AM24+'満足度(施設全体)'!AM24 ) ->  | AO24: =IF(OR(IFERROR(FIND($AD24,"施設コード"),0)>0,$AE24=""), "", '満足度(商品・サービス)'!AO24+'満足度(施設全体)'!AO24 ) ->  | AQ24: =IF(OR(IFERROR(FIND($AD24,"施設コード"),0)>0,$AE24=""), "", '満足度(商品・サービス)'!AQ24+'満足度(施設全体)'!AQ24 ) ->  | AS24: =IF(OR(IFERROR(FIND($AD24,"施設コード"),0)>0,$AE24=""), "", '満足度(商品・サービス)'!AS24+'満足度(施設全体)'!AS24 ) ->  | AU24: =IF(OR(IFERROR(FIND($AD24,"施設コード"),0)>0,$AE24=""), "", '満足度(商品・サービス)'!AU24+'満足度(施設全体)'!AU24 ) ->  | AW24: =IF(OR(IFERROR(FIND($AD24,"施設コード"),0)>0,$AE24=""), "", '満足度(商品・サービス)'!AW24+'満足度(施設全体)'!AW24 ) ->  | AY24: =IF(OR(IFERROR(FIND($AD24,"施設コード"),0)>0,$AE24=""), "", '満足度(商品・サービス)'!AY24+'満足度(施設全体)'!AY24 ) ->  | BA24: =IF(OR(IFERROR(FIND($AD24,"施設コード"),0)>0,$AE24=""), "", '満足度(商品・サービス)'!BA24+'満足度(施設全体)'!BA24 ) ->  | BC24: =IF(OR(IFERROR(FIND($AD24,"施設コード"),0)>0,$AE24=""), "", '満足度(商品・サービス)'!BC24+'満足度(施設全体)'!BC24 ) -> 
AA25: =IF($AE25<>"",VLOOKUP($AE25,【M】満足度!$A$1:$B$5,2,0),"") ->  | AC25: =AC24 -> 6分類 | AD25: =AD24 -> 福井市・永平寺町 | AG25: =IF(OR(IFERROR(FIND($AD25,"施設コード"),0)>0,$AE25=""), "", '満足度(商品・サービス)'!AG25+'満足度(施設全体)'!AG25 ) ->  | AI25: =IF(OR(IFERROR(FIND($AD25,"施設コード"),0)>0,$AE25=""), "", '満足度(商品・サービス)'!AI25+'満足度(施設全体)'!AI25 ) ->  | AK25: =IF(OR(IFERROR(FIND($AD25,"施設コード"),0)>0,$AE25=""), "", '満足度(商品・サービス)'!AK25+'満足度(施設全体)'!AK25 ) ->  | AM25: =IF(OR(IFERROR(FIND($AD25,"施設コード"),0)>0,$AE25=""), "", '満足度(商品・サービス)'!AM25+'満足度(施設全体)'!AM25 ) ->  | AO25: =IF(OR(IFERROR(FIND($AD25,"施設コード"),0)>0,$AE25=""), "", '満足度(商品・サービス)'!AO25+'満足度(施設全体)'!AO25 ) ->  | AQ25: =IF(OR(IFERROR(FIND($AD25,"施設コード"),0)>0,$AE25=""), "", '満足度(商品・サービス)'!AQ25+'満足度(施設全体)'!AQ25 ) ->  | AS25: =IF(OR(IFERROR(FIND($AD25,"施設コード"),0)>0,$AE25=""), "", '満足度(商品・サービス)'!AS25+'満足度(施設全体)'!AS25 ) ->  | AU25: =IF(OR(IFERROR(FIND($AD25,"施設コード"),0)>0,$AE25=""), "", '満足度(商品・サービス)'!AU25+'満足度(施設全体)'!AU25 ) ->  | AW25: =IF(OR(IFERROR(FIND($AD25,"施設コード"),0)>0,$AE25=""), "", '満足度(商品・サービス)'!AW25+'満足度(施設全体)'!AW25 ) ->  | AY25: =IF(OR(IFERROR(FIND($AD25,"施設コード"),0)>0,$AE25=""), "", '満足度(商品・サービス)'!AY25+'満足度(施設全体)'!AY25 ) ->  | BA25: =IF(OR(IFERROR(FIND($AD25,"施設コード"),0)>0,$AE25=""), "", '満足度(商品・サービス)'!BA25+'満足度(施設全体)'!BA25 ) ->  | BC25: =IF(OR(IFERROR(FIND($AD25,"施設コード"),0)>0,$AE25=""), "", '満足度(商品・サービス)'!BC25+'満足度(施設全体)'!BC25 ) -> 
AA26: =IF($AE26<>"",VLOOKUP($AE26,【M】満足度!$A$1:$B$5,2,0),"") ->  | AC26: 6分類 | AD26: 福井市・永平寺町 | AG26: =IF(OR(IFERROR(FIND($AD26,"施設コード"),0)>0,$AE26=""), "", '満足度(商品・サービス)'!AG26+'満足度(施設全体)'!AG26 ) ->  | AI26: =IF(OR(IFERROR(FIND($AD26,"施設コード"),0)>0,$AE26=""), "", '満足度(商品・サービス)'!AI26+'満足度(施設全体)'!AI26 ) ->  | AK26: =IF(OR(IFERROR(FIND($AD26,"施設コード"),0)>0,$AE26=""), "", '満足度(商品・サービス)'!AK26+'満足度(施設全体)'!AK26 ) ->  | AM26: =IF(OR(IFERROR(FIND($AD26,"施設コード"),0)>0,$AE26=""), "", '満足度(商品・サービス)'!AM26+'満足度(施設全体)'!AM26 ) ->  | AO26: =IF(OR(IFERROR(FIND($AD26,"施設コード"),0)>0,$AE26=""), "", '満足度(商品・サービス)'!AO26+'満足度(施設全体)'!AO26 ) ->  | AQ26: =IF(OR(IFERROR(FIND($AD26,"施設コード"),0)>0,$AE26=""), "", '満足度(商品・サービス)'!AQ26+'満足度(施設全体)'!AQ26 ) ->  | AS26: =IF(OR(IFERROR(FIND($AD26,"施設コード"),0)>0,$AE26=""), "", '満足度(商品・サービス)'!AS26+'満足度(施設全体)'!AS26 ) ->  | AU26: =IF(OR(IFERROR(FIND($AD26,"施設コード"),0)>0,$AE26=""), "", '満足度(商品・サービス)'!AU26+'満足度(施設全体)'!AU26 ) ->  | AW26: =IF(OR(IFERROR(FIND($AD26,"施設コード"),0)>0,$AE26=""), "", '満足度(商品・サービス)'!AW26+'満足度(施設全体)'!AW26 ) ->  | AY26: =IF(OR(IFERROR(FIND($AD26,"施設コード"),0)>0,$AE26=""), "", '満足度(商品・サービス)'!AY26+'満足度(施設全体)'!AY26 ) ->  | BA26: =IF(OR(IFERROR(FIND($AD26,"施設コード"),0)>0,$AE26=""), "", '満足度(商品・サービス)'!BA26+'満足度(施設全体)'!BA26 ) ->  | BC26: =IF(OR(IFERROR(FIND($AD26,"施設コード"),0)>0,$AE26=""), "", '満足度(商品・サービス)'!BC26+'満足度(施設全体)'!BC26 ) -> 
AA27: =IF($AE27<>"",VLOOKUP($AE27,【M】満足度!$A$1:$B$5,2,0),"") ->  | AC27: 6分類 | AD27: 福井市・永平寺町 | AG27: =IF(OR(IFERROR(FIND($AD27,"施設コード"),0)>0,$AE27=""), "", '満足度(商品・サービス)'!AG27+'満足度(施設全体)'!AG27 ) ->  | AI27: =IF(OR(IFERROR(FIND($AD27,"施設コード"),0)>0,$AE27=""), "", '満足度(商品・サービス)'!AI27+'満足度(施設全体)'!AI27 ) ->  | AK27: =IF(OR(IFERROR(FIND($AD27,"施設コード"),0)>0,$AE27=""), "", '満足度(商品・サービス)'!AK27+'満足度(施設全体)'!AK27 ) ->  | AM27: =IF(OR(IFERROR(FIND($AD27,"施設コード"),0)>0,$AE27=""), "", '満足度(商品・サービス)'!AM27+'満足度(施設全体)'!AM27 ) ->  | AO27: =IF(OR(IFERROR(FIND($AD27,"施設コード"),0)>0,$AE27=""), "", '満足度(商品・サービス)'!AO27+'満足度(施設全体)'!AO27 ) ->  | AQ27: =IF(OR(IFERROR(FIND($AD27,"施設コード"),0)>0,$AE27=""), "", '満足度(商品・サービス)'!AQ27+'満足度(施設全体)'!AQ27 ) ->  | AS27: =IF(OR(IFERROR(FIND($AD27,"施設コード"),0)>0,$AE27=""), "", '満足度(商品・サービス)'!AS27+'満足度(施設全体)'!AS27 ) ->  | AU27: =IF(OR(IFERROR(FIND($AD27,"施設コード"),0)>0,$AE27=""), "", '満足度(商品・サービス)'!AU27+'満足度(施設全体)'!AU27 ) ->  | AW27: =IF(OR(IFERROR(FIND($AD27,"施設コード"),0)>0,$AE27=""), "", '満足度(商品・サービス)'!AW27+'満足度(施設全体)'!AW27 ) ->  | AY27: =IF(OR(IFERROR(FIND($AD27,"施設コード"),0)>0,$AE27=""), "", '満足度(商品・サービス)'!AY27+'満足度(施設全体)'!AY27 ) ->  | BA27: =IF(OR(IFERROR(FIND($AD27,"施設コード"),0)>0,$AE27=""), "", '満足度(商品・サービス)'!BA27+'満足度(施設全体)'!BA27 ) ->  | BC27: =IF(OR(IFERROR(FIND($AD27,"施設コード"),0)>0,$AE27=""), "", '満足度(商品・サービス)'!BC27+'満足度(施設全体)'!BC27 ) -> 
AA28: =IF($AE28<>"",VLOOKUP($AE28,【M】満足度!$A$1:$B$5,2,0),"") ->  | AC28: 6分類 | AD28: 福井市・永平寺町 | AG28: =IF(OR(IFERROR(FIND($AD28,"施設コード"),0)>0,$AE28=""), "", '満足度(商品・サービス)'!AG28+'満足度(施設全体)'!AG28 ) ->  | AI28: =IF(OR(IFERROR(FIND($AD28,"施設コード"),0)>0,$AE28=""), "", '満足度(商品・サービス)'!AI28+'満足度(施設全体)'!AI28 ) ->  | AK28: =IF(OR(IFERROR(FIND($AD28,"施設コード"),0)>0,$AE28=""), "", '満足度(商品・サービス)'!AK28+'満足度(施設全体)'!AK28 ) ->  | AM28: =IF(OR(IFERROR(FIND($AD28,"施設コード"),0)>0,$AE28=""), "", '満足度(商品・サービス)'!AM28+'満足度(施設全体)'!AM28 ) ->  | AO28: =IF(OR(IFERROR(FIND($AD28,"施設コード"),0)>0,$AE28=""), "", '満足度(商品・サービス)'!AO28+'満足度(施設全体)'!AO28 ) ->  | AQ28: =IF(OR(IFERROR(FIND($AD28,"施設コード"),0)>0,$AE28=""), "", '満足度(商品・サービス)'!AQ28+'満足度(施設全体)'!AQ28 ) ->  | AS28: =IF(OR(IFERROR(FIND($AD28,"施設コード"),0)>0,$AE28=""), "", '満足度(商品・サービス)'!AS28+'満足度(施設全体)'!AS28 ) ->  | AU28: =IF(OR(IFERROR(FIND($AD28,"施設コード"),0)>0,$AE28=""), "", '満足度(商品・サービス)'!AU28+'満足度(施設全体)'!AU28 ) ->  | AW28: =IF(OR(IFERROR(FIND($AD28,"施設コード"),0)>0,$AE28=""), "", '満足度(商品・サービス)'!AW28+'満足度(施設全体)'!AW28 ) ->  | AY28: =IF(OR(IFERROR(FIND($AD28,"施設コード"),0)>0,$AE28=""), "", '満足度(商品・サービス)'!AY28+'満足度(施設全体)'!AY28 ) ->  | BA28: =IF(OR(IFERROR(FIND($AD28,"施設コード"),0)>0,$AE28=""), "", '満足度(商品・サービス)'!BA28+'満足度(施設全体)'!BA28 ) ->  | BC28: =IF(OR(IFERROR(FIND($AD28,"施設コード"),0)>0,$AE28=""), "", '満足度(商品・サービス)'!BC28+'満足度(施設全体)'!BC28 ) -> 
AA29: =IF($AE29<>"",VLOOKUP($AE29,【M】満足度!$A$1:$B$5,2,0),"") ->  | AC29: =AC27 -> 6分類 | AD29: =AD27 -> 福井市・永平寺町 | AE29: =IF(AE14<>"",AE14,"") ->  | AG29: =IF(OR(IFERROR(FIND($AD29,"施設コード"),0)>0,$AE29=""), "", '満足度(商品・サービス)'!AG29+'満足度(施設全体)'!AG29 ) ->  | AH29: =IFERROR(AG29/AG$30,"") ->  | AI29: =IF(OR(IFERROR(FIND($AD29,"施設コード"),0)>0,$AE29=""), "", '満足度(商品・サービス)'!AI29+'満足度(施設全体)'!AI29 ) ->  | AJ29: =IFERROR(AI29/AI$30,"") ->  | AK29: =IF(OR(IFERROR(FIND($AD29,"施設コード"),0)>0,$AE29=""), "", '満足度(商品・サービス)'!AK29+'満足度(施設全体)'!AK29 ) ->  | AL29: =IFERROR(AK29/AK$30,"") ->  | AM29: =IF(OR(IFERROR(FIND($AD29,"施設コード"),0)>0,$AE29=""), "", '満足度(商品・サービス)'!AM29+'満足度(施設全体)'!AM29 ) ->  | AN29: =IFERROR(AM29/AM$30,"") ->  | AO29: =IF(OR(IFERROR(FIND($AD29,"施設コード"),0)>0,$AE29=""), "", '満足度(商品・サービス)'!AO29+'満足度(施設全体)'!AO29 ) ->  | AP29: =IFERROR(AO29/AO$30,"") ->  | AQ29: =IF(OR(IFERROR(FIND($AD29,"施設コード"),0)>0,$AE29=""), "", '満足度(商品・サービス)'!AQ29+'満足度(施設全体)'!AQ29 ) ->  | AR29: =IFERROR(AQ29/AQ$30,"") ->  | AS29: =IF(OR(IFERROR(FIND($AD29,"施設コード"),0)>0,$AE29=""), "", '満足度(商品・サービス)'!AS29+'満足度(施設全体)'!AS29 ) ->  | AT29: =IFERROR(AS29/AS$30,"") ->  | AU29: =IF(OR(IFERROR(FIND($AD29,"施設コード"),0)>0,$AE29=""), "", '満足度(商品・サービス)'!AU29+'満足度(施設全体)'!AU29 ) ->  | AV29: =IFERROR(AU29/AU$30,"") ->  | AW29: =IF(OR(IFERROR(FIND($AD29,"施設コード"),0)>0,$AE29=""), "", '満足度(商品・サービス)'!AW29+'満足度(施設全体)'!AW29 ) ->  | AX29: =IFERROR(AW29/AW$30,"") ->  | AY29: =IF(OR(IFERROR(FIND($AD29,"施設コード"),0)>0,$AE29=""), "", '満足度(商品・サービス)'!AY29+'満足度(施設全体)'!AY29 ) ->  | AZ29: =IFERROR(AY29/AY$30,"") ->  | BA29: =IF(OR(IFERROR(FIND($AD29,"施設コード"),0)>0,$AE29=""), "", '満足度(商品・サービス)'!BA29+'満足度(施設全体)'!BA29 ) ->  | BB29: =IFERROR(BA29/BA$30,"") ->  | BC29: =IF(OR(IFERROR(FIND($AD29,"施設コード"),0)>0,$AE29=""), "", '満足度(商品・サービス)'!BC29+'満足度(施設全体)'!BC29 ) ->  | BD29: =IFERROR(BC29/BC$30,"") ->  | BF29: =IFERROR(BE29/BE$30,"") -> 
AF30: 合計 | AG30: =SUM(AG18:AG29) -> 596件 | AH30: 100.0% | AI30: 0件 | AJ30: 0.0% | AK30: 0件 | AL30: 0.0% | AM30: 0件 | AN30: 0.0% | AO30: 0件 | AP30: 0.0% | AQ30: 0件 | AR30: 0.0% | AS30: 0件 | AT30: 0.0% | AU30: 0件 | AV30: 0.0% | AW30: 0件 | AX30: 0.0% | AY30: 0件 | AZ30: 0.0% | BA30: 0件 | BB30: 0.0% | BC30: 0件 | BD30: 0.0% | BE30: 596件 | BF30: 100.0%
AF31: =IF(AF$16<>"",AF$16,"") -> 総合満足度スコア | AG31: =IF(AG30>0,SUMPRODUCT($AA18:$AA29,AG18:AG29)/AG30,"-") -> 4.30 | AI31: =IF(AI30>0,SUMPRODUCT($AA18:$AA29,AI18:AI29)/AI30,"-") -> - | AK31: =IF(AK30>0,SUMPRODUCT($AA18:$AA29,AK18:AK29)/AK30,"-") -> - | AM31: =IF(AM30>0,SUMPRODUCT($AA18:$AA29,AM18:AM29)/AM30,"-") -> - | AO31: =IF(AO30>0,SUMPRODUCT($AA18:$AA29,AO18:AO29)/AO30,"-") -> - | AQ31: =IF(AQ30>0,SUMPRODUCT($AA18:$AA29,AQ18:AQ29)/AQ30,"-") -> - | AS31: =IF(AS30>0,SUMPRODUCT($AA18:$AA29,AS18:AS29)/AS30,"-") -> - | AU31: =IF(AU30>0,SUMPRODUCT($AA18:$AA29,AU18:AU29)/AU30,"-") -> - | AW31: =IF(AW30>0,SUMPRODUCT($AA18:$AA29,AW18:AW29)/AW30,"-") -> - | AY31: =IF(AY30>0,SUMPRODUCT($AA18:$AA29,AY18:AY29)/AY30,"-") -> - | BA31: =IF(BA30>0,SUMPRODUCT($AA18:$AA29,BA18:BA29)/BA30,"-") -> - | BC31: =IF(BC30>0,SUMPRODUCT($AA18:$AA29,BC18:BC29)/BC30,"-") -> - | BE31: =IF(BE30>0,SUMPRODUCT($AA18:$AA29,BE18:BE29)/BE30,"-") -> 4.30
AC32: 市町村 | AD32: =【M】エリア!$L$4 -> 福井市
AA33: =IF($AE33<>"",VLOOKUP($AE33,【M】満足度!$A$1:$B$5,2,0),"") -> 5 | AC33: =AC32 -> 市町村 | AD33: =AD32 -> 福井市 | AE33: =IF(AE3<>"",AE3,"") -> とても満足 | AG33: =IF(OR(IFERROR(FIND($AD33,"施設コード"),0)>0,$AE33=""), "", '満足度(商品・サービス)'!AG33+'満足度(施設全体)'!AG33 ) -> 146件 | AH33: =IFERROR(AG33/AG$45,"") -> 41.5% | AI33: =IF(OR(IFERROR(FIND($AD33,"施設コード"),0)>0,$AE33=""), "", '満足度(商品・サービス)'!AI33+'満足度(施設全体)'!AI33 ) -> 0件 | AJ33: =IFERROR(AI33/AI$45,"") ->  | AK33: =IF(OR(IFERROR(FIND($AD33,"施設コード"),0)>0,$AE33=""), "", '満足度(商品・サービス)'!AK33+'満足度(施設全体)'!AK33 ) -> 0件 | AL33: =IFERROR(AK33/AK$45,"") ->  | AM33: =IF(OR(IFERROR(FIND($AD33,"施設コード"),0)>0,$AE33=""), "", '満足度(商品・サービス)'!AM33+'満足度(施設全体)'!AM33 ) -> 0件 | AN33: =IFERROR(AM33/AM$45,"") ->  | AO33: =IF(OR(IFERROR(FIND($AD33,"施設コード"),0)>0,$AE33=""), "", '満足度(商品・サービス)'!AO33+'満足度(施設全体)'!AO33 ) -> 0件 | AP33: =IFERROR(AO33/AO$45,"") ->  | AQ33: =IF(OR(IFERROR(FIND($AD33,"施設コード"),0)>0,$AE33=""), "", '満足度(商品・サービス)'!AQ33+'満足度(施設全体)'!AQ33 ) -> 0件 | AR33: =IFERROR(AQ33/AQ$45,"") ->  | AS33: =IF(OR(IFERROR(FIND($AD33,"施設コード"),0)>0,$AE33=""), "", '満足度(商品・サービス)'!AS33+'満足度(施設全体)'!AS33 ) -> 0件 | AT33: =IFERROR(AS33/AS$45,"") ->  | AU33: =IF(OR(IFERROR(FIND($AD33,"施設コード"),0)>0,$AE33=""), "", '満足度(商品・サービス)'!AU33+'満足度(施設全体)'!AU33 ) -> 0件 | AV33: =IFERROR(AU33/AU$45,"") ->  | AW33: =IF(OR(IFERROR(FIND($AD33,"施設コード"),0)>0,$AE33=""), "", '満足度(商品・サービス)'!AW33+'満足度(施設全体)'!AW33 ) -> 0件 | AX33: =IFERROR(AW33/AW$45,"") ->  | AY33: =IF(OR(IFERROR(FIND($AD33,"施設コード"),0)>0,$AE33=""), "", '満足度(商品・サービス)'!AY33+'満足度(施設全体)'!AY33 ) -> 0件 | AZ33: =IFERROR(AY33/AY$45,"") ->  | BA33: =IF(OR(IFERROR(FIND($AD33,"施設コード"),0)>0,$AE33=""), "", '満足度(商品・サービス)'!BA33+'満足度(施設全体)'!BA33 ) -> 0件 | BB33: =IFERROR(BA33/BA$45,"") ->  | BC33: =IF(OR(IFERROR(FIND($AD33,"施設コード"),0)>0,$AE33=""), "", '満足度(商品・サービス)'!BC33+'満足度(施設全体)'!BC33 ) -> 0件 | BD33: =IFERROR(BC33/BC$45,"") ->  | BE33: =IFERROR(AG33+AI33+AK33+AM33+AO33+AQ33+AS33+AU33+AW33+AY33+BA33+BC33,"") -> 146件 | BF33: =IFERROR(BE33/BE$45,"") -> 41.5%
AA34: =IF($AE34<>"",VLOOKUP($AE34,【M】満足度!$A$1:$B$5,2,0),"") -> 4 | AC34: =AC33 -> 市町村 | AD34: 福井市 | AE34: 満足 | AG34: =IF(OR(IFERROR(FIND($AD34,"施設コード"),0)>0,$AE34=""), "", '満足度(商品・サービス)'!AG34+'満足度(施設全体)'!AG34 ) -> 170件 | AH34: 48.3% | AI34: =IF(OR(IFERROR(FIND($AD34,"施設コード"),0)>0,$AE34=""), "", '満足度(商品・サービス)'!AI34+'満足度(施設全体)'!AI34 ) -> 0件 | AK34: =IF(OR(IFERROR(FIND($AD34,"施設コード"),0)>0,$AE34=""), "", '満足度(商品・サービス)'!AK34+'満足度(施設全体)'!AK34 ) -> 0件 | AM34: =IF(OR(IFERROR(FIND($AD34,"施設コード"),0)>0,$AE34=""), "", '満足度(商品・サービス)'!AM34+'満足度(施設全体)'!AM34 ) -> 0件 | AO34: =IF(OR(IFERROR(FIND($AD34,"施設コード"),0)>0,$AE34=""), "", '満足度(商品・サービス)'!AO34+'満足度(施設全体)'!AO34 ) -> 0件 | AQ34: =IF(OR(IFERROR(FIND($AD34,"施設コード"),0)>0,$AE34=""), "", '満足度(商品・サービス)'!AQ34+'満足度(施設全体)'!AQ34 ) -> 0件 | AS34: =IF(OR(IFERROR(FIND($AD34,"施設コード"),0)>0,$AE34=""), "", '満足度(商品・サービス)'!AS34+'満足度(施設全体)'!AS34 ) -> 0件 | AU34: =IF(OR(IFERROR(FIND($AD34,"施設コード"),0)>0,$AE34=""), "", '満足度(商品・サービス)'!AU34+'満足度(施設全体)'!AU34 ) -> 0件 | AW34: =IF(OR(IFERROR(FIND($AD34,"施設コード"),0)>0,$AE34=""), "", '満足度(商品・サービス)'!AW34+'満足度(施設全体)'!AW34 ) -> 0件 | AY34: =IF(OR(IFERROR(FIND($AD34,"施設コード"),0)>0,$AE34=""), "", '満足度(商品・サービス)'!AY34+'満足度(施設全体)'!AY34 ) -> 0件 | BA34: =IF(OR(IFERROR(FIND($AD34,"施設コード"),0)>0,$AE34=""), "", '満足度(商品・サービス)'!BA34+'満足度(施設全体)'!BA34 ) -> 0件 | BC34: =IF(OR(IFERROR(FIND($AD34,"施設コード"),0)>0,$AE34=""), "", '満足度(商品・サービス)'!BC34+'満足度(施設全体)'!BC34 ) -> 0件 | BE34: =IFERROR(AG34+AI34+AK34+AM34+AO34+AQ34+AS34+AU34+AW34+AY34+BA34+BC34,"") -> 170件 | BF34: 48.3%
AA35: =IF($AE35<>"",VLOOKUP($AE35,【M】満足度!$A$1:$B$5,2,0),"") -> 3 | AC35: 市町村 | AD35: 福井市 | AE35: どちらでもない | AG35: =IF(OR(IFERROR(FIND($AD35,"施設コード"),0)>0,$AE35=""), "", '満足度(商品・サービス)'!AG35+'満足度(施設全体)'!AG35 ) -> 31件 | AH35: 8.8% | AI35: =IF(OR(IFERROR(FIND($AD35,"施設コード"),0)>0,$AE35=""), "", '満足度(商品・サービス)'!AI35+'満足度(施設全体)'!AI35 ) -> 0件 | AK35: =IF(OR(IFERROR(FIND($AD35,"施設コード"),0)>0,$AE35=""), "", '満足度(商品・サービス)'!AK35+'満足度(施設全体)'!AK35 ) -> 0件 | AM35: =IF(OR(IFERROR(FIND($AD35,"施設コード"),0)>0,$AE35=""), "", '満足度(商品・サービス)'!AM35+'満足度(施設全体)'!AM35 ) -> 0件 | AO35: =IF(OR(IFERROR(FIND($AD35,"施設コード"),0)>0,$AE35=""), "", '満足度(商品・サービス)'!AO35+'満足度(施設全体)'!AO35 ) -> 0件 | AQ35: =IF(OR(IFERROR(FIND($AD35,"施設コード"),0)>0,$AE35=""), "", '満足度(商品・サービス)'!AQ35+'満足度(施設全体)'!AQ35 ) -> 0件 | AS35: =IF(OR(IFERROR(FIND($AD35,"施設コード"),0)>0,$AE35=""), "", '満足度(商品・サービス)'!AS35+'満足度(施設全体)'!AS35 ) -> 0件 | AU35: =IF(OR(IFERROR(FIND($AD35,"施設コード"),0)>0,$AE35=""), "", '満足度(商品・サービス)'!AU35+'満足度(施設全体)'!AU35 ) -> 0件 | AW35: =IF(OR(IFERROR(FIND($AD35,"施設コード"),0)>0,$AE35=""), "", '満足度(商品・サービス)'!AW35+'満足度(施設全体)'!AW35 ) -> 0件 | AY35: =IF(OR(IFERROR(FIND($AD35,"施設コード"),0)>0,$AE35=""), "", '満足度(商品・サービス)'!AY35+'満足度(施設全体)'!AY35 ) -> 0件 | BA35: =IF(OR(IFERROR(FIND($AD35,"施設コード"),0)>0,$AE35=""), "", '満足度(商品・サービス)'!BA35+'満足度(施設全体)'!BA35 ) -> 0件 | BC35: =IF(OR(IFERROR(FIND($AD35,"施設コード"),0)>0,$AE35=""), "", '満足度(商品・サービス)'!BC35+'満足度(施設全体)'!BC35 ) -> 0件 | BE35: 31件 | BF35: 8.8%
AA36: =IF($AE36<>"",VLOOKUP($AE36,【M】満足度!$A$1:$B$5,2,0),"") -> 2 | AC36: 市町村 | AD36: 福井市 | AE36: 不満 | AG36: =IF(OR(IFERROR(FIND($AD36,"施設コード"),0)>0,$AE36=""), "", '満足度(商品・サービス)'!AG36+'満足度(施設全体)'!AG36 ) -> 5件 | AH36: 1.4% | AI36: =IF(OR(IFERROR(FIND($AD36,"施設コード"),0)>0,$AE36=""), "", '満足度(商品・サービス)'!AI36+'満足度(施設全体)'!AI36 ) -> 0件 | AK36: =IF(OR(IFERROR(FIND($AD36,"施設コード"),0)>0,$AE36=""), "", '満足度(商品・サービス)'!AK36+'満足度(施設全体)'!AK36 ) -> 0件 | AM36: =IF(OR(IFERROR(FIND($AD36,"施設コード"),0)>0,$AE36=""), "", '満足度(商品・サービス)'!AM36+'満足度(施設全体)'!AM36 ) -> 0件 | AO36: =IF(OR(IFERROR(FIND($AD36,"施設コード"),0)>0,$AE36=""), "", '満足度(商品・サービス)'!AO36+'満足度(施設全体)'!AO36 ) -> 0件 | AQ36: =IF(OR(IFERROR(FIND($AD36,"施設コード"),0)>0,$AE36=""), "", '満足度(商品・サービス)'!AQ36+'満足度(施設全体)'!AQ36 ) -> 0件 | AS36: =IF(OR(IFERROR(FIND($AD36,"施設コード"),0)>0,$AE36=""), "", '満足度(商品・サービス)'!AS36+'満足度(施設全体)'!AS36 ) -> 0件 | AU36: =IF(OR(IFERROR(FIND($AD36,"施設コード"),0)>0,$AE36=""), "", '満足度(商品・サービス)'!AU36+'満足度(施設全体)'!AU36 ) -> 0件 | AW36: =IF(OR(IFERROR(FIND($AD36,"施設コード"),0)>0,$AE36=""), "", '満足度(商品・サービス)'!AW36+'満足度(施設全体)'!AW36 ) -> 0件 | AY36: =IF(OR(IFERROR(FIND($AD36,"施設コード"),0)>0,$AE36=""), "", '満足度(商品・サービス)'!AY36+'満足度(施設全体)'!AY36 ) -> 0件 | BA36: =IF(OR(IFERROR(FIND($AD36,"施設コード"),0)>0,$AE36=""), "", '満足度(商品・サービス)'!BA36+'満足度(施設全体)'!BA36 ) -> 0件 | BC36: =IF(OR(IFERROR(FIND($AD36,"施設コード"),0)>0,$AE36=""), "", '満足度(商品・サービス)'!BC36+'満足度(施設全体)'!BC36 ) -> 0件 | BE36: 5件 | BF36: 1.4%
AA37: =IF($AE37<>"",VLOOKUP($AE37,【M】満足度!$A$1:$B$5,2,0),"") -> 1 | AC37: 市町村 | AD37: 福井市 | AE37: とても不満 | AG37: =IF(OR(IFERROR(FIND($AD37,"施設コード"),0)>0,$AE37=""), "", '満足度(商品・サービス)'!AG37+'満足度(施設全体)'!AG37 ) -> 0件 | AH37: 0.0% | AI37: =IF(OR(IFERROR(FIND($AD37,"施設コード"),0)>0,$AE37=""), "", '満足度(商品・サービス)'!AI37+'満足度(施設全体)'!AI37 ) -> 0件 | AK37: =IF(OR(IFERROR(FIND($AD37,"施設コード"),0)>0,$AE37=""), "", '満足度(商品・サービス)'!AK37+'満足度(施設全体)'!AK37 ) -> 0件 | AM37: =IF(OR(IFERROR(FIND($AD37,"施設コード"),0)>0,$AE37=""), "", '満足度(商品・サービス)'!AM37+'満足度(施設全体)'!AM37 ) -> 0件 | AO37: =IF(OR(IFERROR(FIND($AD37,"施設コード"),0)>0,$AE37=""), "", '満足度(商品・サービス)'!AO37+'満足度(施設全体)'!AO37 ) -> 0件 | AQ37: =IF(OR(IFERROR(FIND($AD37,"施設コード"),0)>0,$AE37=""), "", '満足度(商品・サービス)'!AQ37+'満足度(施設全体)'!AQ37 ) -> 0件 | AS37: =IF(OR(IFERROR(FIND($AD37,"施設コード"),0)>0,$AE37=""), "", '満足度(商品・サービス)'!AS37+'満足度(施設全体)'!AS37 ) -> 0件 | AU37: =IF(OR(IFERROR(FIND($AD37,"施設コード"),0)>0,$AE37=""), "", '満足度(商品・サービス)'!AU37+'満足度(施設全体)'!AU37 ) -> 0件 | AW37: =IF(OR(IFERROR(FIND($AD37,"施設コード"),0)>0,$AE37=""), "", '満足度(商品・サービス)'!AW37+'満足度(施設全体)'!AW37 ) -> 0件 | AY37: =IF(OR(IFERROR(FIND($AD37,"施設コード"),0)>0,$AE37=""), "", '満足度(商品・サービス)'!AY37+'満足度(施設全体)'!AY37 ) -> 0件 | BA37: =IF(OR(IFERROR(FIND($AD37,"施設コード"),0)>0,$AE37=""), "", '満足度(商品・サービス)'!BA37+'満足度(施設全体)'!BA37 ) -> 0件 | BC37: =IF(OR(IFERROR(FIND($AD37,"施設コード"),0)>0,$AE37=""), "", '満足度(商品・サービス)'!BC37+'満足度(施設全体)'!BC37 ) -> 0件 | BE37: 0件 | BF37: 0.0%
AA38: =IF($AE38<>"",VLOOKUP($AE38,【M】満足度!$A$1:$B$5,2,0),"") ->  | AC38: 市町村 | AD38: 福井市 | AG38: =IF(OR(IFERROR(FIND($AD38,"施設コード"),0)>0,$AE38=""), "", '満足度(商品・サービス)'!AG38+'満足度(施設全体)'!AG38 ) ->  | AI38: =IF(OR(IFERROR(FIND($AD38,"施設コード"),0)>0,$AE38=""), "", '満足度(商品・サービス)'!AI38+'満足度(施設全体)'!AI38 ) ->  | AK38: =IF(OR(IFERROR(FIND($AD38,"施設コード"),0)>0,$AE38=""), "", '満足度(商品・サービス)'!AK38+'満足度(施設全体)'!AK38 ) ->  | AM38: =IF(OR(IFERROR(FIND($AD38,"施設コード"),0)>0,$AE38=""), "", '満足度(商品・サービス)'!AM38+'満足度(施設全体)'!AM38 ) ->  | AO38: =IF(OR(IFERROR(FIND($AD38,"施設コード"),0)>0,$AE38=""), "", '満足度(商品・サービス)'!AO38+'満足度(施設全体)'!AO38 ) ->  | AQ38: =IF(OR(IFERROR(FIND($AD38,"施設コード"),0)>0,$AE38=""), "", '満足度(商品・サービス)'!AQ38+'満足度(施設全体)'!AQ38 ) ->  | AS38: =IF(OR(IFERROR(FIND($AD38,"施設コード"),0)>0,$AE38=""), "", '満足度(商品・サービス)'!AS38+'満足度(施設全体)'!AS38 ) ->  | AU38: =IF(OR(IFERROR(FIND($AD38,"施設コード"),0)>0,$AE38=""), "", '満足度(商品・サービス)'!AU38+'満足度(施設全体)'!AU38 ) ->  | AW38: =IF(OR(IFERROR(FIND($AD38,"施設コード"),0)>0,$AE38=""), "", '満足度(商品・サービス)'!AW38+'満足度(施設全体)'!AW38 ) ->  | AY38: =IF(OR(IFERROR(FIND($AD38,"施設コード"),0)>0,$AE38=""), "", '満足度(商品・サービス)'!AY38+'満足度(施設全体)'!AY38 ) ->  | BA38: =IF(OR(IFERROR(FIND($AD38,"施設コード"),0)>0,$AE38=""), "", '満足度(商品・サービス)'!BA38+'満足度(施設全体)'!BA38 ) ->  | BC38: =IF(OR(IFERROR(FIND($AD38,"施設コード"),0)>0,$AE38=""), "", '満足度(商品・サービス)'!BC38+'満足度(施設全体)'!BC38 ) -> 
AA39: =IF($AE39<>"",VLOOKUP($AE39,【M】満足度!$A$1:$B$5,2,0),"") ->  | AC39: 市町村 | AD39: 福井市 | AG39: =IF(OR(IFERROR(FIND($AD39,"施設コード"),0)>0,$AE39=""), "", '満足度(商品・サービス)'!AG39+'満足度(施設全体)'!AG39 ) ->  | AI39: =IF(OR(IFERROR(FIND($AD39,"施設コード"),0)>0,$AE39=""), "", '満足度(商品・サービス)'!AI39+'満足度(施設全体)'!AI39 ) ->  | AK39: =IF(OR(IFERROR(FIND($AD39,"施設コード"),0)>0,$AE39=""), "", '満足度(商品・サービス)'!AK39+'満足度(施設全体)'!AK39 ) ->  | AM39: =IF(OR(IFERROR(FIND($AD39,"施設コード"),0)>0,$AE39=""), "", '満足度(商品・サービス)'!AM39+'満足度(施設全体)'!AM39 ) ->  | AO39: =IF(OR(IFERROR(FIND($AD39,"施設コード"),0)>0,$AE39=""), "", '満足度(商品・サービス)'!AO39+'満足度(施設全体)'!AO39 ) ->  | AQ39: =IF(OR(IFERROR(FIND($AD39,"施設コード"),0)>0,$AE39=""), "", '満足度(商品・サービス)'!AQ39+'満足度(施設全体)'!AQ39 ) ->  | AS39: =IF(OR(IFERROR(FIND($AD39,"施設コード"),0)>0,$AE39=""), "", '満足度(商品・サービス)'!AS39+'満足度(施設全体)'!AS39 ) ->  | AU39: =IF(OR(IFERROR(FIND($AD39,"施設コード"),0)>0,$AE39=""), "", '満足度(商品・サービス)'!AU39+'満足度(施設全体)'!AU39 ) ->  | AW39: =IF(OR(IFERROR(FIND($AD39,"施設コード"),0)>0,$AE39=""), "", '満足度(商品・サービス)'!AW39+'満足度(施設全体)'!AW39 ) ->  | AY39: =IF(OR(IFERROR(FIND($AD39,"施設コード"),0)>0,$AE39=""), "", '満足度(商品・サービス)'!AY39+'満足度(施設全体)'!AY39 ) ->  | BA39: =IF(OR(IFERROR(FIND($AD39,"施設コード"),0)>0,$AE39=""), "", '満足度(商品・サービス)'!BA39+'満足度(施設全体)'!BA39 ) ->  | BC39: =IF(OR(IFERROR(FIND($AD39,"施設コード"),0)>0,$AE39=""), "", '満足度(商品・サービス)'!BC39+'満足度(施設全体)'!BC39 ) -> 
AA40: =IF($AE40<>"",VLOOKUP($AE40,【M】満足度!$A$1:$B$5,2,0),"") ->  | AC40: =AC39 -> 市町村 | AD40: =AD39 -> 福井市 | AG40: =IF(OR(IFERROR(FIND($AD40,"施設コード"),0)>0,$AE40=""), "", '満足度(商品・サービス)'!AG40+'満足度(施設全体)'!AG40 ) ->  | AI40: =IF(OR(IFERROR(FIND($AD40,"施設コード"),0)>0,$AE40=""), "", '満足度(商品・サービス)'!AI40+'満足度(施設全体)'!AI40 ) ->  | AK40: =IF(OR(IFERROR(FIND($AD40,"施設コード"),0)>0,$AE40=""), "", '満足度(商品・サービス)'!AK40+'満足度(施設全体)'!AK40 ) ->  | AM40: =IF(OR(IFERROR(FIND($AD40,"施設コード"),0)>0,$AE40=""), "", '満足度(商品・サービス)'!AM40+'満足度(施設全体)'!AM40 ) ->  | AO40: =IF(OR(IFERROR(FIND($AD40,"施設コード"),0)>0,$AE40=""), "", '満足度(商品・サービス)'!AO40+'満足度(施設全体)'!AO40 ) ->  | AQ40: =IF(OR(IFERROR(FIND($AD40,"施設コード"),0)>0,$AE40=""), "", '満足度(商品・サービス)'!AQ40+'満足度(施設全体)'!AQ40 ) ->  | AS40: =IF(OR(IFERROR(FIND($AD40,"施設コード"),0)>0,$AE40=""), "", '満足度(商品・サービス)'!AS40+'満足度(施設全体)'!AS40 ) ->  | AU40: =IF(OR(IFERROR(FIND($AD40,"施設コード"),0)>0,$AE40=""), "", '満足度(商品・サービス)'!AU40+'満足度(施設全体)'!AU40 ) ->  | AW40: =IF(OR(IFERROR(FIND($AD40,"施設コード"),0)>0,$AE40=""), "", '満足度(商品・サービス)'!AW40+'満足度(施設全体)'!AW40 ) ->  | AY40: =IF(OR(IFERROR(FIND($AD40,"施設コード"),0)>0,$AE40=""), "", '満足度(商品・サービス)'!AY40+'満足度(施設全体)'!AY40 ) ->  | BA40: =IF(OR(IFERROR(FIND($AD40,"施設コード"),0)>0,$AE40=""), "", '満足度(商品・サービス)'!BA40+'満足度(施設全体)'!BA40 ) ->  | BC40: =IF(OR(IFERROR(FIND($AD40,"施設コード"),0)>0,$AE40=""), "", '満足度(商品・サービス)'!BC40+'満足度(施設全体)'!BC40 ) -> 
AA41: =IF($AE41<>"",VLOOKUP($AE41,【M】満足度!$A$1:$B$5,2,0),"") ->  | AC41: 市町村 | AD41: 福井市 | AG41: =IF(OR(IFERROR(FIND($AD41,"施設コード"),0)>0,$AE41=""), "", '満足度(商品・サービス)'!AG41+'満足度(施設全体)'!AG41 ) ->  | AI41: =IF(OR(IFERROR(FIND($AD41,"施設コード"),0)>0,$AE41=""), "", '満足度(商品・サービス)'!AI41+'満足度(施設全体)'!AI41 ) ->  | AK41: =IF(OR(IFERROR(FIND($AD41,"施設コード"),0)>0,$AE41=""), "", '満足度(商品・サービス)'!AK41+'満足度(施設全体)'!AK41 ) ->  | AM41: =IF(OR(IFERROR(FIND($AD41,"施設コード"),0)>0,$AE41=""), "", '満足度(商品・サービス)'!AM41+'満足度(施設全体)'!AM41 ) ->  | AO41: =IF(OR(IFERROR(FIND($AD41,"施設コード"),0)>0,$AE41=""), "", '満足度(商品・サービス)'!AO41+'満足度(施設全体)'!AO41 ) ->  | AQ41: =IF(OR(IFERROR(FIND($AD41,"施設コード"),0)>0,$AE41=""), "", '満足度(商品・サービス)'!AQ41+'満足度(施設全体)'!AQ41 ) ->  | AS41: =IF(OR(IFERROR(FIND($AD41,"施設コード"),0)>0,$AE41=""), "", '満足度(商品・サービス)'!AS41+'満足度(施設全体)'!AS41 ) ->  | AU41: =IF(OR(IFERROR(FIND($AD41,"施設コード"),0)>0,$AE41=""), "", '満足度(商品・サービス)'!AU41+'満足度(施設全体)'!AU41 ) ->  | AW41: =IF(OR(IFERROR(FIND($AD41,"施設コード"),0)>0,$AE41=""), "", '満足度(商品・サービス)'!AW41+'満足度(施設全体)'!AW41 ) ->  | AY41: =IF(OR(IFERROR(FIND($AD41,"施設コード"),0)>0,$AE41=""), "", '満足度(商品・サービス)'!AY41+'満足度(施設全体)'!AY41 ) ->  | BA41: =IF(OR(IFERROR(FIND($AD41,"施設コード"),0)>0,$AE41=""), "", '満足度(商品・サービス)'!BA41+'満足度(施設全体)'!BA41 ) ->  | BC41: =IF(OR(IFERROR(FIND($AD41,"施設コード"),0)>0,$AE41=""), "", '満足度(商品・サービス)'!BC41+'満足度(施設全体)'!BC41 ) -> 
AA42: =IF($AE42<>"",VLOOKUP($AE42,【M】満足度!$A$1:$B$5,2,0),"") ->  | AC42: 市町村 | AD42: 福井市 | AG42: =IF(OR(IFERROR(FIND($AD42,"施設コード"),0)>0,$AE42=""), "", '満足度(商品・サービス)'!AG42+'満足度(施設全体)'!AG42 ) ->  | AI42: =IF(OR(IFERROR(FIND($AD42,"施設コード"),0)>0,$AE42=""), "", '満足度(商品・サービス)'!AI42+'満足度(施設全体)'!AI42 ) ->  | AK42: =IF(OR(IFERROR(FIND($AD42,"施設コード"),0)>0,$AE42=""), "", '満足度(商品・サービス)'!AK42+'満足度(施設全体)'!AK42 ) ->  | AM42: =IF(OR(IFERROR(FIND($AD42,"施設コード"),0)>0,$AE42=""), "", '満足度(商品・サービス)'!AM42+'満足度(施設全体)'!AM42 ) ->  | AO42: =IF(OR(IFERROR(FIND($AD42,"施設コード"),0)>0,$AE42=""), "", '満足度(商品・サービス)'!AO42+'満足度(施設全体)'!AO42 ) ->  | AQ42: =IF(OR(IFERROR(FIND($AD42,"施設コード"),0)>0,$AE42=""), "", '満足度(商品・サービス)'!AQ42+'満足度(施設全体)'!AQ42 ) ->  | AS42: =IF(OR(IFERROR(FIND($AD42,"施設コード"),0)>0,$AE42=""), "", '満足度(商品・サービス)'!AS42+'満足度(施設全体)'!AS42 ) ->  | AU42: =IF(OR(IFERROR(FIND($AD42,"施設コード"),0)>0,$AE42=""), "", '満足度(商品・サービス)'!AU42+'満足度(施設全体)'!AU42 ) ->  | AW42: =IF(OR(IFERROR(FIND($AD42,"施設コード"),0)>0,$AE42=""), "", '満足度(商品・サービス)'!AW42+'満足度(施設全体)'!AW42 ) ->  | AY42: =IF(OR(IFERROR(FIND($AD42,"施設コード"),0)>0,$AE42=""), "", '満足度(商品・サービス)'!AY42+'満足度(施設全体)'!AY42 ) ->  | BA42: =IF(OR(IFERROR(FIND($AD42,"施設コード"),0)>0,$AE42=""), "", '満足度(商品・サービス)'!BA42+'満足度(施設全体)'!BA42 ) ->  | BC42: =IF(OR(IFERROR(FIND($AD42,"施設コード"),0)>0,$AE42=""), "", '満足度(商品・サービス)'!BC42+'満足度(施設全体)'!BC42 ) -> 
AA43: =IF($AE43<>"",VLOOKUP($AE43,【M】満足度!$A$1:$B$5,2,0),"") ->  | AC43: 市町村 | AD43: 福井市 | AG43: =IF(OR(IFERROR(FIND($AD43,"施設コード"),0)>0,$AE43=""), "", '満足度(商品・サービス)'!AG43+'満足度(施設全体)'!AG43 ) ->  | AI43: =IF(OR(IFERROR(FIND($AD43,"施設コード"),0)>0,$AE43=""), "", '満足度(商品・サービス)'!AI43+'満足度(施設全体)'!AI43 ) ->  | AK43: =IF(OR(IFERROR(FIND($AD43,"施設コード"),0)>0,$AE43=""), "", '満足度(商品・サービス)'!AK43+'満足度(施設全体)'!AK43 ) ->  | AM43: =IF(OR(IFERROR(FIND($AD43,"施設コード"),0)>0,$AE43=""), "", '満足度(商品・サービス)'!AM43+'満足度(施設全体)'!AM43 ) ->  | AO43: =IF(OR(IFERROR(FIND($AD43,"施設コード"),0)>0,$AE43=""), "", '満足度(商品・サービス)'!AO43+'満足度(施設全体)'!AO43 ) ->  | AQ43: =IF(OR(IFERROR(FIND($AD43,"施設コード"),0)>0,$AE43=""), "", '満足度(商品・サービス)'!AQ43+'満足度(施設全体)'!AQ43 ) ->  | AS43: =IF(OR(IFERROR(FIND($AD43,"施設コード"),0)>0,$AE43=""), "", '満足度(商品・サービス)'!AS43+'満足度(施設全体)'!AS43 ) ->  | AU43: =IF(OR(IFERROR(FIND($AD43,"施設コード"),0)>0,$AE43=""), "", '満足度(商品・サービス)'!AU43+'満足度(施設全体)'!AU43 ) ->  | AW43: =IF(OR(IFERROR(FIND($AD43,"施設コード"),0)>0,$AE43=""), "", '満足度(商品・サービス)'!AW43+'満足度(施設全体)'!AW43 ) ->  | AY43: =IF(OR(IFERROR(FIND($AD43,"施設コード"),0)>0,$AE43=""), "", '満足度(商品・サービス)'!AY43+'満足度(施設全体)'!AY43 ) ->  | BA43: =IF(OR(IFERROR(FIND($AD43,"施設コード"),0)>0,$AE43=""), "", '満足度(商品・サービス)'!BA43+'満足度(施設全体)'!BA43 ) ->  | BC43: =IF(OR(IFERROR(FIND($AD43,"施設コード"),0)>0,$AE43=""), "", '満足度(商品・サービス)'!BC43+'満足度(施設全体)'!BC43 ) -> 
AA44: =IF($AE44<>"",VLOOKUP($AE44,【M】満足度!$A$1:$B$5,2,0),"") ->  | AC44: =AC42 -> 市町村 | AD44: =AD42 -> 福井市 | AE44: =IF(AE14<>"",AE14,"") ->  | AG44: =IF(OR(IFERROR(FIND($AD44,"施設コード"),0)>0,$AE44=""), "", '満足度(商品・サービス)'!AG44+'満足度(施設全体)'!AG44 ) ->  | AH44: =IFERROR(AG44/AG$45,"") ->  | AI44: =IF(OR(IFERROR(FIND($AD44,"施設コード"),0)>0,$AE44=""), "", '満足度(商品・サービス)'!AI44+'満足度(施設全体)'!AI44 ) ->  | AJ44: =IFERROR(AI44/AI$45,"") ->  | AK44: =IF(OR(IFERROR(FIND($AD44,"施設コード"),0)>0,$AE44=""), "", '満足度(商品・サービス)'!AK44+'満足度(施設全体)'!AK44 ) ->  | AL44: =IFERROR(AK44/AK$45,"") ->  | AM44: =IF(OR(IFERROR(FIND($AD44,"施設コード"),0)>0,$AE44=""), "", '満足度(商品・サービス)'!AM44+'満足度(施設全体)'!AM44 ) ->  | AN44: =IFERROR(AM44/AM$45,"") ->  | AO44: =IF(OR(IFERROR(FIND($AD44,"施設コード"),0)>0,$AE44=""), "", '満足度(商品・サービス)'!AO44+'満足度(施設全体)'!AO44 ) ->  | AP44: =IFERROR(AO44/AO$45,"") ->  | AQ44: =IF(OR(IFERROR(FIND($AD44,"施設コード"),0)>0,$AE44=""), "", '満足度(商品・サービス)'!AQ44+'満足度(施設全体)'!AQ44 ) ->  | AR44: =IFERROR(AQ44/AQ$45,"") ->  | AS44: =IF(OR(IFERROR(FIND($AD44,"施設コード"),0)>0,$AE44=""), "", '満足度(商品・サービス)'!AS44+'満足度(施設全体)'!AS44 ) ->  | AT44: =IFERROR(AS44/AS$45,"") ->  | AU44: =IF(OR(IFERROR(FIND($AD44,"施設コード"),0)>0,$AE44=""), "", '満足度(商品・サービス)'!AU44+'満足度(施設全体)'!AU44 ) ->  | AV44: =IFERROR(AU44/AU$45,"") ->  | AW44: =IF(OR(IFERROR(FIND($AD44,"施設コード"),0)>0,$AE44=""), "", '満足度(商品・サービス)'!AW44+'満足度(施設全体)'!AW44 ) ->  | AX44: =IFERROR(AW44/AW$45,"") ->  | AY44: =IF(OR(IFERROR(FIND($AD44,"施設コード"),0)>0,$AE44=""), "", '満足度(商品・サービス)'!AY44+'満足度(施設全体)'!AY44 ) ->  | AZ44: =IFERROR(AY44/AY$45,"") ->  | BA44: =IF(OR(IFERROR(FIND($AD44,"施設コード"),0)>0,$AE44=""), "", '満足度(商品・サービス)'!BA44+'満足度(施設全体)'!BA44 ) ->  | BB44: =IFERROR(BA44/BA$45,"") ->  | BC44: =IF(OR(IFERROR(FIND($AD44,"施設コード"),0)>0,$AE44=""), "", '満足度(商品・サービス)'!BC44+'満足度(施設全体)'!BC44 ) ->  | BD44: =IFERROR(BC44/BC$45,"") ->  | BF44: =IFERROR(BE44/BE$45,"") -> 
AF45: 合計 | AG45: =SUM(AG33:AG44) -> 352件 | AH45: 100.0% | AI45: 0件 | AJ45: 0.0% | AK45: 0件 | AL45: 0.0% | AM45: 0件 | AN45: 0.0% | AO45: 0件 | AP45: 0.0% | AQ45: 0件 | AR45: 0.0% | AS45: 0件 | AT45: 0.0% | AU45: 0件 | AV45: 0.0% | AW45: 0件 | AX45: 0.0% | AY45: 0件 | AZ45: 0.0% | BA45: 0件 | BB45: 0.0% | BC45: 0件 | BD45: 0.0% | BE45: 352件 | BF45: 100.0%
AF46: =IF(AF$16<>"",AF$16,"") -> 総合満足度スコア | AG46: =IF(AG45>0,SUMPRODUCT($AA33:$AA44,AG33:AG44)/AG45,"-") -> 4.30 | AI46: =IF(AI45>0,SUMPRODUCT($AA33:$AA44,AI33:AI44)/AI45,"-") -> - | AK46: =IF(AK45>0,SUMPRODUCT($AA33:$AA44,AK33:AK44)/AK45,"-") -> - | AM46: =IF(AM45>0,SUMPRODUCT($AA33:$AA44,AM33:AM44)/AM45,"-") -> - | AO46: =IF(AO45>0,SUMPRODUCT($AA33:$AA44,AO33:AO44)/AO45,"-") -> - | AQ46: =IF(AQ45>0,SUMPRODUCT($AA33:$AA44,AQ33:AQ44)/AQ45,"-") -> - | AS46: =IF(AS45>0,SUMPRODUCT($AA33:$AA44,AS33:AS44)/AS45,"-") -> - | AU46: =IF(AU45>0,SUMPRODUCT($AA33:$AA44,AU33:AU44)/AU45,"-") -> - | AW46: =IF(AW45>0,SUMPRODUCT($AA33:$AA44,AW33:AW44)/AW45,"-") -> - | AY46: =IF(AY45>0,SUMPRODUCT($AA33:$AA44,AY33:AY44)/AY45,"-") -> - | BA46: =IF(BA45>0,SUMPRODUCT($AA33:$AA44,BA33:BA44)/BA45,"-") -> - | BC46: =IF(BC45>0,SUMPRODUCT($AA33:$AA44,BC33:BC44)/BC45,"-") -> - | BE46: =IF(BE45>0,SUMPRODUCT($AA33:$AA44,BE33:BE44)/BE45,"-") -> 4.30
AC47: 回答エリア | AD47: =【M】エリア!$L$5 -> 福井駅前 エリア
AA48: =IF($AE48<>"",VLOOKUP($AE48,【M】満足度!$A$1:$B$5,2,0),"") -> 5 | AC48: =AC47 -> 回答エリア | AD48: =AD47 -> 福井駅前 エリア | AE48: =IF(AE3<>"",AE3,"") -> とても満足 | AG48: =IF(OR(IFERROR(FIND($AD48,"施設コード"),0)>0,$AE48=""), "", '満足度(商品・サービス)'!AG48+'満足度(施設全体)'!AG48 ) -> 47件 | AH48: =IFERROR(AG48/AG$60,"") -> 39.2% | AI48: =IF(OR(IFERROR(FIND($AD48,"施設コード"),0)>0,$AE48=""), "", '満足度(商品・サービス)'!AI48+'満足度(施設全体)'!AI48 ) -> 0件 | AJ48: =IFERROR(AI48/AI$60,"") ->  | AK48: =IF(OR(IFERROR(FIND($AD48,"施設コード"),0)>0,$AE48=""), "", '満足度(商品・サービス)'!AK48+'満足度(施設全体)'!AK48 ) -> 0件 | AL48: =IFERROR(AK48/AK$60,"") ->  | AM48: =IF(OR(IFERROR(FIND($AD48,"施設コード"),0)>0,$AE48=""), "", '満足度(商品・サービス)'!AM48+'満足度(施設全体)'!AM48 ) -> 0件 | AN48: =IFERROR(AM48/AM$60,"") ->  | AO48: =IF(OR(IFERROR(FIND($AD48,"施設コード"),0)>0,$AE48=""), "", '満足度(商品・サービス)'!AO48+'満足度(施設全体)'!AO48 ) -> 0件 | AP48: =IFERROR(AO48/AO$60,"") ->  | AQ48: =IF(OR(IFERROR(FIND($AD48,"施設コード"),0)>0,$AE48=""), "", '満足度(商品・サービス)'!AQ48+'満足度(施設全体)'!AQ48 ) -> 0件 | AR48: =IFERROR(AQ48/AQ$60,"") ->  | AS48: =IF(OR(IFERROR(FIND($AD48,"施設コード"),0)>0,$AE48=""), "", '満足度(商品・サービス)'!AS48+'満足度(施設全体)'!AS48 ) -> 0件 | AT48: =IFERROR(AS48/AS$60,"") ->  | AU48: =IF(OR(IFERROR(FIND($AD48,"施設コード"),0)>0,$AE48=""), "", '満足度(商品・サービス)'!AU48+'満足度(施設全体)'!AU48 ) -> 0件 | AV48: =IFERROR(AU48/AU$60,"") ->  | AW48: =IF(OR(IFERROR(FIND($AD48,"施設コード"),0)>0,$AE48=""), "", '満足度(商品・サービス)'!AW48+'満足度(施設全体)'!AW48 ) -> 0件 | AX48: =IFERROR(AW48/AW$60,"") ->  | AY48: =IF(OR(IFERROR(FIND($AD48,"施設コード"),0)>0,$AE48=""), "", '満足度(商品・サービス)'!AY48+'満足度(施設全体)'!AY48 ) -> 0件 | AZ48: =IFERROR(AY48/AY$60,"") ->  | BA48: =IF(OR(IFERROR(FIND($AD48,"施設コード"),0)>0,$AE48=""), "", '満足度(商品・サービス)'!BA48+'満足度(施設全体)'!BA48 ) -> 0件 | BB48: =IFERROR(BA48/BA$60,"") ->  | BC48: =IF(OR(IFERROR(FIND($AD48,"施設コード"),0)>0,$AE48=""), "", '満足度(商品・サービス)'!BC48+'満足度(施設全体)'!BC48 ) -> 0件 | BD48: =IFERROR(BC48/BC$60,"") ->  | BE48: =IFERROR(AG48+AI48+AK48+AM48+AO48+AQ48+AS48+AU48+AW48+AY48+BA48+BC48,"") -> 47件 | BF48: =IFERROR(BE48/BE$60,"") -> 39.2%
AA49: =IF($AE49<>"",VLOOKUP($AE49,【M】満足度!$A$1:$B$5,2,0),"") -> 4 | AC49: =AC48 -> 回答エリア | AD49: 福井駅前 エリア | AE49: 満足 | AG49: =IF(OR(IFERROR(FIND($AD49,"施設コード"),0)>0,$AE49=""), "", '満足度(商品・サービス)'!AG49+'満足度(施設全体)'!AG49 ) -> 59件 | AH49: 49.2% | AI49: =IF(OR(IFERROR(FIND($AD49,"施設コード"),0)>0,$AE49=""), "", '満足度(商品・サービス)'!AI49+'満足度(施設全体)'!AI49 ) -> 0件 | AK49: =IF(OR(IFERROR(FIND($AD49,"施設コード"),0)>0,$AE49=""), "", '満足度(商品・サービス)'!AK49+'満足度(施設全体)'!AK49 ) -> 0件 | AM49: =IF(OR(IFERROR(FIND($AD49,"施設コード"),0)>0,$AE49=""), "", '満足度(商品・サービス)'!AM49+'満足度(施設全体)'!AM49 ) -> 0件 | AO49: =IF(OR(IFERROR(FIND($AD49,"施設コード"),0)>0,$AE49=""), "", '満足度(商品・サービス)'!AO49+'満足度(施設全体)'!AO49 ) -> 0件 | AQ49: =IF(OR(IFERROR(FIND($AD49,"施設コード"),0)>0,$AE49=""), "", '満足度(商品・サービス)'!AQ49+'満足度(施設全体)'!AQ49 ) -> 0件 | AS49: =IF(OR(IFERROR(FIND($AD49,"施設コード"),0)>0,$AE49=""), "", '満足度(商品・サービス)'!AS49+'満足度(施設全体)'!AS49 ) -> 0件 | AU49: =IF(OR(IFERROR(FIND($AD49,"施設コード"),0)>0,$AE49=""), "", '満足度(商品・サービス)'!AU49+'満足度(施設全体)'!AU49 ) -> 0件 | AW49: =IF(OR(IFERROR(FIND($AD49,"施設コード"),0)>0,$AE49=""), "", '満足度(商品・サービス)'!AW49+'満足度(施設全体)'!AW49 ) -> 0件 | AY49: =IF(OR(IFERROR(FIND($AD49,"施設コード"),0)>0,$AE49=""), "", '満足度(商品・サービス)'!AY49+'満足度(施設全体)'!AY49 ) -> 0件 | BA49: =IF(OR(IFERROR(FIND($AD49,"施設コード"),0)>0,$AE49=""), "", '満足度(商品・サービス)'!BA49+'満足度(施設全体)'!BA49 ) -> 0件 | BC49: =IF(OR(IFERROR(FIND($AD49,"施設コード"),0)>0,$AE49=""), "", '満足度(商品・サービス)'!BC49+'満足度(施設全体)'!BC49 ) -> 0件 | BE49: =IFERROR(AG49+AI49+AK49+AM49+AO49+AQ49+AS49+AU49+AW49+AY49+BA49+BC49,"") -> 59件 | BF49: 49.2%
AA50: =IF($AE50<>"",VLOOKUP($AE50,【M】満足度!$A$1:$B$5,2,0),"") -> 3 | AC50: 回答エリア | AD50: 福井駅前 エリア | AE50: どちらでもない | AG50: =IF(OR(IFERROR(FIND($AD50,"施設コード"),0)>0,$AE50=""), "", '満足度(商品・サービス)'!AG50+'満足度(施設全体)'!AG50 ) -> 14件 | AH50: 11.7% | AI50: =IF(OR(IFERROR(FIND($AD50,"施設コード"),0)>0,$AE50=""), "", '満足度(商品・サービス)'!AI50+'満足度(施設全体)'!AI50 ) -> 0件 | AK50: =IF(OR(IFERROR(FIND($AD50,"施設コード"),0)>0,$AE50=""), "", '満足度(商品・サービス)'!AK50+'満足度(施設全体)'!AK50 ) -> 0件 | AM50: =IF(OR(IFERROR(FIND($AD50,"施設コード"),0)>0,$AE50=""), "", '満足度(商品・サービス)'!AM50+'満足度(施設全体)'!AM50 ) -> 0件 | AO50: =IF(OR(IFERROR(FIND($AD50,"施設コード"),0)>0,$AE50=""), "", '満足度(商品・サービス)'!AO50+'満足度(施設全体)'!AO50 ) -> 0件 | AQ50: =IF(OR(IFERROR(FIND($AD50,"施設コード"),0)>0,$AE50=""), "", '満足度(商品・サービス)'!AQ50+'満足度(施設全体)'!AQ50 ) -> 0件 | AS50: =IF(OR(IFERROR(FIND($AD50,"施設コード"),0)>0,$AE50=""), "", '満足度(商品・サービス)'!AS50+'満足度(施設全体)'!AS50 ) -> 0件 | AU50: =IF(OR(IFERROR(FIND($AD50,"施設コード"),0)>0,$AE50=""), "", '満足度(商品・サービス)'!AU50+'満足度(施設全体)'!AU50 ) -> 0件 | AW50: =IF(OR(IFERROR(FIND($AD50,"施設コード"),0)>0,$AE50=""), "", '満足度(商品・サービス)'!AW50+'満足度(施設全体)'!AW50 ) -> 0件 | AY50: =IF(OR(IFERROR(FIND($AD50,"施設コード"),0)>0,$AE50=""), "", '満足度(商品・サービス)'!AY50+'満足度(施設全体)'!AY50 ) -> 0件 | BA50: =IF(OR(IFERROR(FIND($AD50,"施設コード"),0)>0,$AE50=""), "", '満足度(商品・サービス)'!BA50+'満足度(施設全体)'!BA50 ) -> 0件 | BC50: =IF(OR(IFERROR(FIND($AD50,"施設コード"),0)>0,$AE50=""), "", '満足度(商品・サービス)'!BC50+'満足度(施設全体)'!BC50 ) -> 0件 | BE50: 14件 | BF50: 11.7%
AA51: =IF($AE51<>"",VLOOKUP($AE51,【M】満足度!$A$1:$B$5,2,0),"") -> 2 | AC51: 回答エリア | AD51: 福井駅前 エリア | AE51: 不満 | AG51: =IF(OR(IFERROR(FIND($AD51,"施設コード"),0)>0,$AE51=""), "", '満足度(商品・サービス)'!AG51+'満足度(施設全体)'!AG51 ) -> 0件 | AH51: 0.0% | AI51: =IF(OR(IFERROR(FIND($AD51,"施設コード"),0)>0,$AE51=""), "", '満足度(商品・サービス)'!AI51+'満足度(施設全体)'!AI51 ) -> 0件 | AK51: =IF(OR(IFERROR(FIND($AD51,"施設コード"),0)>0,$AE51=""), "", '満足度(商品・サービス)'!AK51+'満足度(施設全体)'!AK51 ) -> 0件 | AM51: =IF(OR(IFERROR(FIND($AD51,"施設コード"),0)>0,$AE51=""), "", '満足度(商品・サービス)'!AM51+'満足度(施設全体)'!AM51 ) -> 0件 | AO51: =IF(OR(IFERROR(FIND($AD51,"施設コード"),0)>0,$AE51=""), "", '満足度(商品・サービス)'!AO51+'満足度(施設全体)'!AO51 ) -> 0件 | AQ51: =IF(OR(IFERROR(FIND($AD51,"施設コード"),0)>0,$AE51=""), "", '満足度(商品・サービス)'!AQ51+'満足度(施設全体)'!AQ51 ) -> 0件 | AS51: =IF(OR(IFERROR(FIND($AD51,"施設コード"),0)>0,$AE51=""), "", '満足度(商品・サービス)'!AS51+'満足度(施設全体)'!AS51 ) -> 0件 | AU51: =IF(OR(IFERROR(FIND($AD51,"施設コード"),0)>0,$AE51=""), "", '満足度(商品・サービス)'!AU51+'満足度(施設全体)'!AU51 ) -> 0件 | AW51: =IF(OR(IFERROR(FIND($AD51,"施設コード"),0)>0,$AE51=""), "", '満足度(商品・サービス)'!AW51+'満足度(施設全体)'!AW51 ) -> 0件 | AY51: =IF(OR(IFERROR(FIND($AD51,"施設コード"),0)>0,$AE51=""), "", '満足度(商品・サービス)'!AY51+'満足度(施設全体)'!AY51 ) -> 0件 | BA51: =IF(OR(IFERROR(FIND($AD51,"施設コード"),0)>0,$AE51=""), "", '満足度(商品・サービス)'!BA51+'満足度(施設全体)'!BA51 ) -> 0件 | BC51: =IF(OR(IFERROR(FIND($AD51,"施設コード"),0)>0,$AE51=""), "", '満足度(商品・サービス)'!BC51+'満足度(施設全体)'!BC51 ) -> 0件 | BE51: 0件 | BF51: 0.0%
AA52: =IF($AE52<>"",VLOOKUP($AE52,【M】満足度!$A$1:$B$5,2,0),"") -> 1 | AC52: 回答エリア | AD52: 福井駅前 エリア | AE52: とても不満 | AG52: =IF(OR(IFERROR(FIND($AD52,"施設コード"),0)>0,$AE52=""), "", '満足度(商品・サービス)'!AG52+'満足度(施設全体)'!AG52 ) -> 0件 | AH52: 0.0% | AI52: =IF(OR(IFERROR(FIND($AD52,"施設コード"),0)>0,$AE52=""), "", '満足度(商品・サービス)'!AI52+'満足度(施設全体)'!AI52 ) -> 0件 | AK52: =IF(OR(IFERROR(FIND($AD52,"施設コード"),0)>0,$AE52=""), "", '満足度(商品・サービス)'!AK52+'満足度(施設全体)'!AK52 ) -> 0件 | AM52: =IF(OR(IFERROR(FIND($AD52,"施設コード"),0)>0,$AE52=""), "", '満足度(商品・サービス)'!AM52+'満足度(施設全体)'!AM52 ) -> 0件 | AO52: =IF(OR(IFERROR(FIND($AD52,"施設コード"),0)>0,$AE52=""), "", '満足度(商品・サービス)'!AO52+'満足度(施設全体)'!AO52 ) -> 0件 | AQ52: =IF(OR(IFERROR(FIND($AD52,"施設コード"),0)>0,$AE52=""), "", '満足度(商品・サービス)'!AQ52+'満足度(施設全体)'!AQ52 ) -> 0件 | AS52: =IF(OR(IFERROR(FIND($AD52,"施設コード"),0)>0,$AE52=""), "", '満足度(商品・サービス)'!AS52+'満足度(施設全体)'!AS52 ) -> 0件 | AU52: =IF(OR(IFERROR(FIND($AD52,"施設コード"),0)>0,$AE52=""), "", '満足度(商品・サービス)'!AU52+'満足度(施設全体)'!AU52 ) -> 0件 | AW52: =IF(OR(IFERROR(FIND($AD52,"施設コード"),0)>0,$AE52=""), "", '満足度(商品・サービス)'!AW52+'満足度(施設全体)'!AW52 ) -> 0件 | AY52: =IF(OR(IFERROR(FIND($AD52,"施設コード"),0)>0,$AE52=""), "", '満足度(商品・サービス)'!AY52+'満足度(施設全体)'!AY52 ) -> 0件 | BA52: =IF(OR(IFERROR(FIND($AD52,"施設コード"),0)>0,$AE52=""), "", '満足度(商品・サービス)'!BA52+'満足度(施設全体)'!BA52 ) -> 0件 | BC52: =IF(OR(IFERROR(FIND($AD52,"施設コード"),0)>0,$AE52=""), "", '満足度(商品・サービス)'!BC52+'満足度(施設全体)'!BC52 ) -> 0件 | BE52: 0件 | BF52: 0.0%
AA53: =IF($AE53<>"",VLOOKUP($AE53,【M】満足度!$A$1:$B$5,2,0),"") ->  | AC53: 回答エリア | AD53: 福井駅前 エリア | AG53: =IF(OR(IFERROR(FIND($AD53,"施設コード"),0)>0,$AE53=""), "", '満足度(商品・サービス)'!AG53+'満足度(施設全体)'!AG53 ) ->  | AI53: =IF(OR(IFERROR(FIND($AD53,"施設コード"),0)>0,$AE53=""), "", '満足度(商品・サービス)'!AI53+'満足度(施設全体)'!AI53 ) ->  | AK53: =IF(OR(IFERROR(FIND($AD53,"施設コード"),0)>0,$AE53=""), "", '満足度(商品・サービス)'!AK53+'満足度(施設全体)'!AK53 ) ->  | AM53: =IF(OR(IFERROR(FIND($AD53,"施設コード"),0)>0,$AE53=""), "", '満足度(商品・サービス)'!AM53+'満足度(施設全体)'!AM53 ) ->  | AO53: =IF(OR(IFERROR(FIND($AD53,"施設コード"),0)>0,$AE53=""), "", '満足度(商品・サービス)'!AO53+'満足度(施設全体)'!AO53 ) ->  | AQ53: =IF(OR(IFERROR(FIND($AD53,"施設コード"),0)>0,$AE53=""), "", '満足度(商品・サービス)'!AQ53+'満足度(施設全体)'!AQ53 ) ->  | AS53: =IF(OR(IFERROR(FIND($AD53,"施設コード"),0)>0,$AE53=""), "", '満足度(商品・サービス)'!AS53+'満足度(施設全体)'!AS53 ) ->  | AU53: =IF(OR(IFERROR(FIND($AD53,"施設コード"),0)>0,$AE53=""), "", '満足度(商品・サービス)'!AU53+'満足度(施設全体)'!AU53 ) ->  | AW53: =IF(OR(IFERROR(FIND($AD53,"施設コード"),0)>0,$AE53=""), "", '満足度(商品・サービス)'!AW53+'満足度(施設全体)'!AW53 ) ->  | AY53: =IF(OR(IFERROR(FIND($AD53,"施設コード"),0)>0,$AE53=""), "", '満足度(商品・サービス)'!AY53+'満足度(施設全体)'!AY53 ) ->  | BA53: =IF(OR(IFERROR(FIND($AD53,"施設コード"),0)>0,$AE53=""), "", '満足度(商品・サービス)'!BA53+'満足度(施設全体)'!BA53 ) ->  | BC53: =IF(OR(IFERROR(FIND($AD53,"施設コード"),0)>0,$AE53=""), "", '満足度(商品・サービス)'!BC53+'満足度(施設全体)'!BC53 ) -> 
AA54: =IF($AE54<>"",VLOOKUP($AE54,【M】満足度!$A$1:$B$5,2,0),"") ->  | AC54: 回答エリア | AD54: 福井駅前 エリア | AG54: =IF(OR(IFERROR(FIND($AD54,"施設コード"),0)>0,$AE54=""), "", '満足度(商品・サービス)'!AG54+'満足度(施設全体)'!AG54 ) ->  | AI54: =IF(OR(IFERROR(FIND($AD54,"施設コード"),0)>0,$AE54=""), "", '満足度(商品・サービス)'!AI54+'満足度(施設全体)'!AI54 ) ->  | AK54: =IF(OR(IFERROR(FIND($AD54,"施設コード"),0)>0,$AE54=""), "", '満足度(商品・サービス)'!AK54+'満足度(施設全体)'!AK54 ) ->  | AM54: =IF(OR(IFERROR(FIND($AD54,"施設コード"),0)>0,$AE54=""), "", '満足度(商品・サービス)'!AM54+'満足度(施設全体)'!AM54 ) ->  | AO54: =IF(OR(IFERROR(FIND($AD54,"施設コード"),0)>0,$AE54=""), "", '満足度(商品・サービス)'!AO54+'満足度(施設全体)'!AO54 ) ->  | AQ54: =IF(OR(IFERROR(FIND($AD54,"施設コード"),0)>0,$AE54=""), "", '満足度(商品・サービス)'!AQ54+'満足度(施設全体)'!AQ54 ) ->  | AS54: =IF(OR(IFERROR(FIND($AD54,"施設コード"),0)>0,$AE54=""), "", '満足度(商品・サービス)'!AS54+'満足度(施設全体)'!AS54 ) ->  | AU54: =IF(OR(IFERROR(FIND($AD54,"施設コード"),0)>0,$AE54=""), "", '満足度(商品・サービス)'!AU54+'満足度(施設全体)'!AU54 ) ->  | AW54: =IF(OR(IFERROR(FIND($AD54,"施設コード"),0)>0,$AE54=""), "", '満足度(商品・サービス)'!AW54+'満足度(施設全体)'!AW54 ) ->  | AY54: =IF(OR(IFERROR(FIND($AD54,"施設コード"),0)>0,$AE54=""), "", '満足度(商品・サービス)'!AY54+'満足度(施設全体)'!AY54 ) ->  | BA54: =IF(OR(IFERROR(FIND($AD54,"施設コード"),0)>0,$AE54=""), "", '満足度(商品・サービス)'!BA54+'満足度(施設全体)'!BA54 ) ->  | BC54: =IF(OR(IFERROR(FIND($AD54,"施設コード"),0)>0,$AE54=""), "", '満足度(商品・サービス)'!BC54+'満足度(施設全体)'!BC54 ) -> 
AA55: =IF($AE55<>"",VLOOKUP($AE55,【M】満足度!$A$1:$B$5,2,0),"") ->  | AC55: =AC54 -> 回答エリア | AD55: =AD54 -> 福井駅前 エリア | AG55: =IF(OR(IFERROR(FIND($AD55,"施設コード"),0)>0,$AE55=""), "", '満足度(商品・サービス)'!AG55+'満足度(施設全体)'!AG55 ) ->  | AI55: =IF(OR(IFERROR(FIND($AD55,"施設コード"),0)>0,$AE55=""), "", '満足度(商品・サービス)'!AI55+'満足度(施設全体)'!AI55 ) ->  | AK55: =IF(OR(IFERROR(FIND($AD55,"施設コード"),0)>0,$AE55=""), "", '満足度(商品・サービス)'!AK55+'満足度(施設全体)'!AK55 ) ->  | AM55: =IF(OR(IFERROR(FIND($AD55,"施設コード"),0)>0,$AE55=""), "", '満足度(商品・サービス)'!AM55+'満足度(施設全体)'!AM55 ) ->  | AO55: =IF(OR(IFERROR(FIND($AD55,"施設コード"),0)>0,$AE55=""), "", '満足度(商品・サービス)'!AO55+'満足度(施設全体)'!AO55 ) ->  | AQ55: =IF(OR(IFERROR(FIND($AD55,"施設コード"),0)>0,$AE55=""), "", '満足度(商品・サービス)'!AQ55+'満足度(施設全体)'!AQ55 ) ->  | AS55: =IF(OR(IFERROR(FIND($AD55,"施設コード"),0)>0,$AE55=""), "", '満足度(商品・サービス)'!AS55+'満足度(施設全体)'!AS55 ) ->  | AU55: =IF(OR(IFERROR(FIND($AD55,"施設コード"),0)>0,$AE55=""), "", '満足度(商品・サービス)'!AU55+'満足度(施設全体)'!AU55 ) ->  | AW55: =IF(OR(IFERROR(FIND($AD55,"施設コード"),0)>0,$AE55=""), "", '満足度(商品・サービス)'!AW55+'満足度(施設全体)'!AW55 ) ->  | AY55: =IF(OR(IFERROR(FIND($AD55,"施設コード"),0)>0,$AE55=""), "", '満足度(商品・サービス)'!AY55+'満足度(施設全体)'!AY55 ) ->  | BA55: =IF(OR(IFERROR(FIND($AD55,"施設コード"),0)>0,$AE55=""), "", '満足度(商品・サービス)'!BA55+'満足度(施設全体)'!BA55 ) ->  | BC55: =IF(OR(IFERROR(FIND($AD55,"施設コード"),0)>0,$AE55=""), "", '満足度(商品・サービス)'!BC55+'満足度(施設全体)'!BC55 ) -> 
AA56: =IF($AE56<>"",VLOOKUP($AE56,【M】満足度!$A$1:$B$5,2,0),"") ->  | AC56: 回答エリア | AD56: 福井駅前 エリア | AG56: =IF(OR(IFERROR(FIND($AD56,"施設コード"),0)>0,$AE56=""), "", '満足度(商品・サービス)'!AG56+'満足度(施設全体)'!AG56 ) ->  | AI56: =IF(OR(IFERROR(FIND($AD56,"施設コード"),0)>0,$AE56=""), "", '満足度(商品・サービス)'!AI56+'満足度(施設全体)'!AI56 ) ->  | AK56: =IF(OR(IFERROR(FIND($AD56,"施設コード"),0)>0,$AE56=""), "", '満足度(商品・サービス)'!AK56+'満足度(施設全体)'!AK56 ) ->  | AM56: =IF(OR(IFERROR(FIND($AD56,"施設コード"),0)>0,$AE56=""), "", '満足度(商品・サービス)'!AM56+'満足度(施設全体)'!AM56 ) ->  | AO56: =IF(OR(IFERROR(FIND($AD56,"施設コード"),0)>0,$AE56=""), "", '満足度(商品・サービス)'!AO56+'満足度(施設全体)'!AO56 ) ->  | AQ56: =IF(OR(IFERROR(FIND($AD56,"施設コード"),0)>0,$AE56=""), "", '満足度(商品・サービス)'!AQ56+'満足度(施設全体)'!AQ56 ) ->  | AS56: =IF(OR(IFERROR(FIND($AD56,"施設コード"),0)>0,$AE56=""), "", '満足度(商品・サービス)'!AS56+'満足度(施設全体)'!AS56 ) ->  | AU56: =IF(OR(IFERROR(FIND($AD56,"施設コード"),0)>0,$AE56=""), "", '満足度(商品・サービス)'!AU56+'満足度(施設全体)'!AU56 ) ->  | AW56: =IF(OR(IFERROR(FIND($AD56,"施設コード"),0)>0,$AE56=""), "", '満足度(商品・サービス)'!AW56+'満足度(施設全体)'!AW56 ) ->  | AY56: =IF(OR(IFERROR(FIND($AD56,"施設コード"),0)>0,$AE56=""), "", '満足度(商品・サービス)'!AY56+'満足度(施設全体)'!AY56 ) ->  | BA56: =IF(OR(IFERROR(FIND($AD56,"施設コード"),0)>0,$AE56=""), "", '満足度(商品・サービス)'!BA56+'満足度(施設全体)'!BA56 ) ->  | BC56: =IF(OR(IFERROR(FIND($AD56,"施設コード"),0)>0,$AE56=""), "", '満足度(商品・サービス)'!BC56+'満足度(施設全体)'!BC56 ) -> 
AA57: =IF($AE57<>"",VLOOKUP($AE57,【M】満足度!$A$1:$B$5,2,0),"") ->  | AC57: 回答エリア | AD57: 福井駅前 エリア | AG57: =IF(OR(IFERROR(FIND($AD57,"施設コード"),0)>0,$AE57=""), "", '満足度(商品・サービス)'!AG57+'満足度(施設全体)'!AG57 ) ->  | AI57: =IF(OR(IFERROR(FIND($AD57,"施設コード"),0)>0,$AE57=""), "", '満足度(商品・サービス)'!AI57+'満足度(施設全体)'!AI57 ) ->  | AK57: =IF(OR(IFERROR(FIND($AD57,"施設コード"),0)>0,$AE57=""), "", '満足度(商品・サービス)'!AK57+'満足度(施設全体)'!AK57 ) ->  | AM57: =IF(OR(IFERROR(FIND($AD57,"施設コード"),0)>0,$AE57=""), "", '満足度(商品・サービス)'!AM57+'満足度(施設全体)'!AM57 ) ->  | AO57: =IF(OR(IFERROR(FIND($AD57,"施設コード"),0)>0,$AE57=""), "", '満足度(商品・サービス)'!AO57+'満足度(施設全体)'!AO57 ) ->  | AQ57: =IF(OR(IFERROR(FIND($AD57,"施設コード"),0)>0,$AE57=""), "", '満足度(商品・サービス)'!AQ57+'満足度(施設全体)'!AQ57 ) ->  | AS57: =IF(OR(IFERROR(FIND($AD57,"施設コード"),0)>0,$AE57=""), "", '満足度(商品・サービス)'!AS57+'満足度(施設全体)'!AS57 ) ->  | AU57: =IF(OR(IFERROR(FIND($AD57,"施設コード"),0)>0,$AE57=""), "", '満足度(商品・サービス)'!AU57+'満足度(施設全体)'!AU57 ) ->  | AW57: =IF(OR(IFERROR(FIND($AD57,"施設コード"),0)>0,$AE57=""), "", '満足度(商品・サービス)'!AW57+'満足度(施設全体)'!AW57 ) ->  | AY57: =IF(OR(IFERROR(FIND($AD57,"施設コード"),0)>0,$AE57=""), "", '満足度(商品・サービス)'!AY57+'満足度(施設全体)'!AY57 ) ->  | BA57: =IF(OR(IFERROR(FIND($AD57,"施設コード"),0)>0,$AE57=""), "", '満足度(商品・サービス)'!BA57+'満足度(施設全体)'!BA57 ) ->  | BC57: =IF(OR(IFERROR(FIND($AD57,"施設コード"),0)>0,$AE57=""), "", '満足度(商品・サービス)'!BC57+'満足度(施設全体)'!BC57 ) -> 
AA58: =IF($AE58<>"",VLOOKUP($AE58,【M】満足度!$A$1:$B$5,2,0),"") ->  | AC58: 回答エリア | AD58: 福井駅前 エリア | AG58: =IF(OR(IFERROR(FIND($AD58,"施設コード"),0)>0,$AE58=""), "", '満足度(商品・サービス)'!AG58+'満足度(施設全体)'!AG58 ) ->  | AI58: =IF(OR(IFERROR(FIND($AD58,"施設コード"),0)>0,$AE58=""), "", '満足度(商品・サービス)'!AI58+'満足度(施設全体)'!AI58 ) ->  | AK58: =IF(OR(IFERROR(FIND($AD58,"施設コード"),0)>0,$AE58=""), "", '満足度(商品・サービス)'!AK58+'満足度(施設全体)'!AK58 ) ->  | AM58: =IF(OR(IFERROR(FIND($AD58,"施設コード"),0)>0,$AE58=""), "", '満足度(商品・サービス)'!AM58+'満足度(施設全体)'!AM58 ) ->  | AO58: =IF(OR(IFERROR(FIND($AD58,"施設コード"),0)>0,$AE58=""), "", '満足度(商品・サービス)'!AO58+'満足度(施設全体)'!AO58 ) ->  | AQ58: =IF(OR(IFERROR(FIND($AD58,"施設コード"),0)>0,$AE58=""), "", '満足度(商品・サービス)'!AQ58+'満足度(施設全体)'!AQ58 ) ->  | AS58: =IF(OR(IFERROR(FIND($AD58,"施設コード"),0)>0,$AE58=""), "", '満足度(商品・サービス)'!AS58+'満足度(施設全体)'!AS58 ) ->  | AU58: =IF(OR(IFERROR(FIND($AD58,"施設コード"),0)>0,$AE58=""), "", '満足度(商品・サービス)'!AU58+'満足度(施設全体)'!AU58 ) ->  | AW58: =IF(OR(IFERROR(FIND($AD58,"施設コード"),0)>0,$AE58=""), "", '満足度(商品・サービス)'!AW58+'満足度(施設全体)'!AW58 ) ->  | AY58: =IF(OR(IFERROR(FIND($AD58,"施設コード"),0)>0,$AE58=""), "", '満足度(商品・サービス)'!AY58+'満足度(施設全体)'!AY58 ) ->  | BA58: =IF(OR(IFERROR(FIND($AD58,"施設コード"),0)>0,$AE58=""), "", '満足度(商品・サービス)'!BA58+'満足度(施設全体)'!BA58 ) ->  | BC58: =IF(OR(IFERROR(FIND($AD58,"施設コード"),0)>0,$AE58=""), "", '満足度(商品・サービス)'!BC58+'満足度(施設全体)'!BC58 ) -> 
AA59: =IF($AE59<>"",VLOOKUP($AE59,【M】満足度!$A$1:$B$5,2,0),"") ->  | AC59: =AC57 -> 回答エリア | AD59: =AD57 -> 福井駅前 エリア | AE59: =IF(AE14<>"",AE14,"") ->  | AG59: =IF(OR(IFERROR(FIND($AD59,"施設コード"),0)>0,$AE59=""), "", '満足度(商品・サービス)'!AG59+'満足度(施設全体)'!AG59 ) ->  | AH59: =IFERROR(AG59/AG$60,"") ->  | AI59: =IF(OR(IFERROR(FIND($AD59,"施設コード"),0)>0,$AE59=""), "", '満足度(商品・サービス)'!AI59+'満足度(施設全体)'!AI59 ) ->  | AJ59: =IFERROR(AI59/AI$60,"") ->  | AK59: =IF(OR(IFERROR(FIND($AD59,"施設コード"),0)>0,$AE59=""), "", '満足度(商品・サービス)'!AK59+'満足度(施設全体)'!AK59 ) ->  | AL59: =IFERROR(AK59/AK$60,"") ->  | AM59: =IF(OR(IFERROR(FIND($AD59,"施設コード"),0)>0,$AE59=""), "", '満足度(商品・サービス)'!AM59+'満足度(施設全体)'!AM59 ) ->  | AN59: =IFERROR(AM59/AM$60,"") ->  | AO59: =IF(OR(IFERROR(FIND($AD59,"施設コード"),0)>0,$AE59=""), "", '満足度(商品・サービス)'!AO59+'満足度(施設全体)'!AO59 ) ->  | AP59: =IFERROR(AO59/AO$60,"") ->  | AQ59: =IF(OR(IFERROR(FIND($AD59,"施設コード"),0)>0,$AE59=""), "", '満足度(商品・サービス)'!AQ59+'満足度(施設全体)'!AQ59 ) ->  | AR59: =IFERROR(AQ59/AQ$60,"") ->  | AS59: =IF(OR(IFERROR(FIND($AD59,"施設コード"),0)>0,$AE59=""), "", '満足度(商品・サービス)'!AS59+'満足度(施設全体)'!AS59 ) ->  | AT59: =IFERROR(AS59/AS$60,"") ->  | AU59: =IF(OR(IFERROR(FIND($AD59,"施設コード"),0)>0,$AE59=""), "", '満足度(商品・サービス)'!AU59+'満足度(施設全体)'!AU59 ) ->  | AV59: =IFERROR(AU59/AU$60,"") ->  | AW59: =IF(OR(IFERROR(FIND($AD59,"施設コード"),0)>0,$AE59=""), "", '満足度(商品・サービス)'!AW59+'満足度(施設全体)'!AW59 ) ->  | AX59: =IFERROR(AW59/AW$60,"") ->  | AY59: =IF(OR(IFERROR(FIND($AD59,"施設コード"),0)>0,$AE59=""), "", '満足度(商品・サービス)'!AY59+'満足度(施設全体)'!AY59 ) ->  | AZ59: =IFERROR(AY59/AY$60,"") ->  | BA59: =IF(OR(IFERROR(FIND($AD59,"施設コード"),0)>0,$AE59=""), "", '満足度(商品・サービス)'!BA59+'満足度(施設全体)'!BA59 ) ->  | BB59: =IFERROR(BA59/BA$60,"") ->  | BC59: =IF(OR(IFERROR(FIND($AD59,"施設コード"),0)>0,$AE59=""), "", '満足度(商品・サービス)'!BC59+'満足度(施設全体)'!BC59 ) ->  | BD59: =IFERROR(BC59/BC$60,"") ->  | BF59: =IFERROR(BE59/BE$60,"") -> 
AF60: 合計 | AG60: =SUM(AG48:AG59) -> 120件 | AH60: 100.0% | AI60: 0件 | AJ60: 0.0% | AK60: 0件 | AL60: 0.0% | AM60: 0件 | AN60: 0.0% | AO60: 0件 | AP60: 0.0% | AQ60: 0件 | AR60: 0.0% | AS60: 0件 | AT60: 0.0% | AU60: 0件 | AV60: 0.0% | AW60: 0件 | AX60: 0.0% | AY60: 0件 | AZ60: 0.0% | BA60: 0件 | BB60: 0.0% | BC60: 0件 | BD60: 0.0% | BE60: 120件 | BF60: 100.0%
AF61: =IF(AF$16<>"",AF$16,"") -> 総合満足度スコア | AG61: =IF(AG60>0,SUMPRODUCT($AA48:$AA59,AG48:AG59)/AG60,"-") -> 4.28 | AI61: =IF(AI60>0,SUMPRODUCT($AA48:$AA59,AI48:AI59)/AI60,"-") -> - | AK61: =IF(AK60>0,SUMPRODUCT($AA48:$AA59,AK48:AK59)/AK60,"-") -> - | AM61: =IF(AM60>0,SUMPRODUCT($AA48:$AA59,AM48:AM59)/AM60,"-") -> - | AO61: =IF(AO60>0,SUMPRODUCT($AA48:$AA59,AO48:AO59)/AO60,"-") -> - | AQ61: =IF(AQ60>0,SUMPRODUCT($AA48:$AA59,AQ48:AQ59)/AQ60,"-") -> - | AS61: =IF(AS60>0,SUMPRODUCT($AA48:$AA59,AS48:AS59)/AS60,"-") -> - | AU61: =IF(AU60>0,SUMPRODUCT($AA48:$AA59,AU48:AU59)/AU60,"-") -> - | AW61: =IF(AW60>0,SUMPRODUCT($AA48:$AA59,AW48:AW59)/AW60,"-") -> - | AY61: =IF(AY60>0,SUMPRODUCT($AA48:$AA59,AY48:AY59)/AY60,"-") -> - | BA61: =IF(BA60>0,SUMPRODUCT($AA48:$AA59,BA48:BA59)/BA60,"-") -> - | BC61: =IF(BC60>0,SUMPRODUCT($AA48:$AA59,BC48:BC59)/BC60,"-") -> - | BE61: =IF(BE60>0,SUMPRODUCT($AA48:$AA59,BE48:BE59)/BE60,"-") -> 4.28

Sheet 性年代
A1: =施設コード!$A$2 -> 4月 | B1: =【M】エリア!$L$2 -> 福井県 | C1: =【M】エリア!$L$3 -> 福井市・永平寺町 | D1: =【M】エリア!$L$4 -> 福井市 | E1: =【M】エリア!$L$5 -> 福井駅前 エリア | AA1: =AG22&"（推移）" -> （推移） | AC1: 集計区分 | AE1: 性別 | AF1: 年代 | AG1: 回答数 | AH1: 回答月 | AI1: 回答月 | AJ1: 回答月 | AK1: 回答月 | AL1: 回答月 | AM1: 回答月 | AN1: 回答月 | AO1: 回答月 | AP1: 回答月 | AQ1: 回答月 | AR1: 回答月 | AS1: 回答月 | AT1: 回答月 | AU1: 回答月 | AV1: 回答月 | AW1: 回答月 | AX1: 回答月 | AY1: 回答月 | AZ1: 回答月 | BA1: 回答月 | BB1: 回答月 | BC1: 回答月 | BD1: 回答月 | BE1: 回答月 | BF1: 回答月 | BG1: 回答月
A2: 男・10代以下 | B2: =IFERROR(OFFSET(INDEX($AH$3:$BG$20, MATCH($A2,$AA$3:$AA$20,0),MATCH($A$1,$AH$2:$BG$2,0)),0,1),"") -> 0.0% | C2: =IFERROR(OFFSET(INDEX($AH$24:$BG$41, MATCH($A2,$AA$24:$AA$41,0),MATCH($A$1,$AH$2:$BG$2,0)),0,1),"") -> 0.0% | D2: =IFERROR(OFFSET(INDEX($AH$45:$BG$62, MATCH($A2,$AA$45:$AA$62,0),MATCH($A$1,$AH$2:$BG$2,0)),0,1),"") -> 0.0% | E2: =IFERROR(OFFSET(INDEX($AH$66:$BG$83, MATCH($A2,$AA$66:$AA$83,0),MATCH($A$1,$AH$2:$BG$2,0)),0,1),"") -> 0.0% | AC2: 都道府県 | AD2: =【M】エリア!$L$2 -> 福井県 | AH2: 4月 | AJ2: 5月 | AL2: 6月 | AN2: 7月 | AP2: 8月 | AR2: 9月 | AT2: 10月 | AV2: 11月 | AX2: 12月 | AZ2: 1月 | BB2: 2月 | BD2: 3月 | BF2: 通年
A3: 男・20代 | B3: =IFERROR(OFFSET(INDEX($AH$3:$BG$20, MATCH($A3,$AA$3:$AA$20,0),MATCH($A$1,$AH$2:$BG$2,0)),0,1),"") -> 2.5% | C3: =IFERROR(OFFSET(INDEX($AH$24:$BG$41, MATCH($A3,$AA$24:$AA$41,0),MATCH($A$1,$AH$2:$BG$2,0)),0,1),"") -> 3.7% | D3: =IFERROR(OFFSET(INDEX($AH$45:$BG$62, MATCH($A3,$AA$45:$AA$62,0),MATCH($A$1,$AH$2:$BG$2,0)),0,1),"") -> 3.4% | E3: =IFERROR(OFFSET(INDEX($AH$66:$BG$83, MATCH($A3,$AA$66:$AA$83,0),MATCH($A$1,$AH$2:$BG$2,0)),0,1),"") -> 1.7% | AA3: =AE3&"・"&AF3 -> 男・10代以下 | AC3: =AC2 -> 都道府県 | AD3: =AD2 -> 福井県 | AE3: 男 | AF3: 10代以下 | AH3: =IF(OR(IFERROR(FIND($AD3,"施設コード"),0)>0,$AF3=""), "", COUNTIFS( INDEX(rawデータ範囲, , MATCH($AH$1,表頭範囲, 0)),AH$2, INDEX(rawデータ範囲, , MATCH($AE$1,表頭範囲, 0)),$AE3, INDEX(rawデータ範囲, , MATCH($AF$1,表頭範囲, 0)),$AF3 ) ) -> 0件 | AI3: =IFERROR(AH3/AH$21,"") -> 0.0% | AJ3: =IF(OR(IFERROR(FIND($AD3,"施設コード"),0)>0,$AF3=""), "", COUNTIFS( INDEX(rawデータ範囲, , MATCH($AH$1,表頭範囲, 0)),AJ$2, INDEX(rawデータ範囲, , MATCH($AE$1,表頭範囲, 0)),$AE3, INDEX(rawデータ範囲, , MATCH($AF$1,表頭範囲, 0)),$AF3 ) ) -> 0件 | AK3: =IFERROR(AJ3/AJ$21,"") ->  | AL3: =IF(OR(IFERROR(FIND($AD3,"施設コード"),0)>0,$AF3=""), "", COUNTIFS( INDEX(rawデータ範囲, , MATCH($AH$1,表頭範囲, 0)),AL$2, INDEX(rawデータ範囲, , MATCH($AE$1,表頭範囲, 0)),$AE3, INDEX(rawデータ範囲, , MATCH($AF$1,表頭範囲, 0)),$AF3 ) ) -> 0件 | AM3: =IFERROR(AL3/AL$21,"") ->  | AN3: =IF(OR(IFERROR(FIND($AD3,"施設コード"),0)>0,$AF3=""), "", COUNTIFS( INDEX(rawデータ範囲, , MATCH($AH$1,表頭範囲, 0)),AN$2, INDEX(rawデータ範囲, , MATCH($AE$1,表頭範囲, 0)),$AE3, INDEX(rawデータ範囲, , MATCH($AF$1,表頭範囲, 0)),$AF3 ) ) -> 0件 | AO3: =IFERROR(AN3/AN$21,"") ->  | AP3: =IF(OR(IFERROR(FIND($AD3,"施設コード"),0)>0,$AF3=""), "", COUNTIFS( INDEX(rawデータ範囲, , MATCH($AH$1,表頭範囲, 0)),AP$2, INDEX(rawデータ範囲, , MATCH($AE$1,表頭範囲, 0)),$AE3, INDEX(rawデータ範囲, , MATCH($AF$1,表頭範囲, 0)),$AF3 ) ) -> 0件 | AQ3: =IFERROR(AP3/AP$21,"") ->  | AR3: =IF(OR(IFERROR(FIND($AD3,"施設コード"),0)>0,$AF3=""), "", COUNTIFS( INDEX(rawデータ範囲, , MATCH($AH$1,表頭範囲, 0)),AR$2, INDEX(rawデータ範囲, , MATCH($AE$1,表頭範囲, 0)),$AE3, INDEX(rawデータ範囲, , MATCH($AF$1,表頭範囲, 0)),$AF3 ) ) -> 0件 | AS3: =IFERROR(AR3/AR$21,"") ->  | AT3: =IF(OR(IFERROR(FIND($AD3,"施設コード"),0)>0,$AF3=""), "", COUNTIFS( INDEX(rawデータ範囲, , MATCH($AH$1,表頭範囲, 0)),AT$2, INDEX(rawデータ範囲, , MATCH($AE$1,表頭範囲, 0)),$AE3, INDEX(rawデータ範囲, , MATCH($AF$1,表頭範囲, 0)),$AF3 ) ) -> 0件 | AU3: =IFERROR(AT3/AT$21,"") ->  | AV3: =IF(OR(IFERROR(FIND($AD3,"施設コード"),0)>0,$AF3=""), "", COUNTIFS( INDEX(rawデータ範囲, , MATCH($AH$1,表頭範囲, 0)),AV$2, INDEX(rawデータ範囲, , MATCH($AE$1,表頭範囲, 0)),$AE3, INDEX(rawデータ範囲, , MATCH($AF$1,表頭範囲, 0)),$AF3 ) ) -> 0件 | AW3: =IFERROR(AV3/AV$21,"") ->  | AX3: =IF(OR(IFERROR(FIND($AD3,"施設コード"),0)>0,$AF3=""), "", COUNTIFS( INDEX(rawデータ範囲, , MATCH($AH$1,表頭範囲, 0)),AX$2, INDEX(rawデータ範囲, , MATCH($AE$1,表頭範囲, 0)),$AE3, INDEX(rawデータ範囲, , MATCH($AF$1,表頭範囲, 0)),$AF3 ) ) -> 0件 | AY3: =IFERROR(AX3/AX$21,"") ->  | AZ3: =IF(OR(IFERROR(FIND($AD3,"施設コード"),0)>0,$AF3=""), "", COUNTIFS( INDEX(rawデータ範囲, , MATCH($AH$1,表頭範囲, 0)),AZ$2, INDEX(rawデータ範囲, , MATCH($AE$1,表頭範囲, 0)),$AE3, INDEX(rawデータ範囲, , MATCH($AF$1,表頭範囲, 0)),$AF3 ) ) -> 0件 | BA3: =IFERROR(AZ3/AZ$21,"") ->  | BB3: =IF(OR(IFERROR(FIND($AD3,"施設コード"),0)>0,$AF3=""), "", COUNTIFS( INDEX(rawデータ範囲, , MATCH($AH$1,表頭範囲, 0)),BB$2, INDEX(rawデータ範囲, , MATCH($AE$1,表頭範囲, 0)),$AE3, INDEX(rawデータ範囲, , MATCH($AF$1,表頭範囲, 0)),$AF3 ) ) -> 0件 | BC3: =IFERROR(BB3/BB$21,"") ->  | BD3: =IF(OR(IFERROR(FIND($AD3,"施設コード"),0)>0,$AF3=""), "", COUNTIFS( INDEX(rawデータ範囲, , MATCH($AH$1,表頭範囲, 0)),BD$2, INDEX(rawデータ範囲, , MATCH($AE$1,表頭範囲, 0)),$AE3, INDEX(rawデータ範囲, , MATCH($AF$1,表頭範囲, 0)),$AF3 ) ) -> 0件 | BE3: =IFERROR(BD3/BD$21,"") ->  | BF3: =IFERROR(AH3+AJ3+AL3+AN3+AP3+AR3+AT3+AV3+AX3+AZ3+BB3+BD3,"") -> 0件 | BG3: =IFERROR(BF3/BF$21,"") -> 0.0%
A4: 男・30代 | B4: 4.6% | C4: 4.1% | D4: 4.0% | E4: 6.8% | AA4: =AE4&"・"&AF4 -> 男・20代 | AC4: =AC3 -> 都道府県 | AD4: 福井県 | AE4: 男 | AF4: 20代 | AH4: 39件 | AI4: =IFERROR(AH4/AH$21,"") -> 2.5% | AJ4: 0件 | AL4: 0件 | AM4: =IFERROR(AL4/AL$21,"") ->  | AN4: 0件 | AO4: =IFERROR(AN4/AN$21,"") ->  | AP4: 0件 | AQ4: =IFERROR(AP4/AP$21,"") ->  | AR4: 0件 | AS4: =IFERROR(AR4/AR$21,"") ->  | AT4: 0件 | AU4: =IFERROR(AT4/AT$21,"") ->  | AV4: 0件 | AW4: =IFERROR(AV4/AV$21,"") ->  | AX4: 0件 | AY4: =IFERROR(AX4/AX$21,"") ->  | AZ4: 0件 | BA4: =IFERROR(AZ4/AZ$21,"") ->  | BB4: 0件 | BC4: =IFERROR(BB4/BB$21,"") ->  | BD4: 0件 | BE4: =IFERROR(BD4/BD$21,"") ->  | BF4: =IFERROR(AH4+AJ4+AL4+AN4+AP4+AR4+AT4+AV4+AX4+AZ4+BB4+BD4,"") -> 39件 | BG4: =IFERROR(BF4/BF$21,"") -> 2.5%
A5: 男・40代 | B5: 6.2% | C5: 9.8% | D5: 9.8% | E5: 8.5% | AA5: 男・30代 | AC5: 都道府県 | AD5: 福井県 | AE5: =AE4 -> 男 | AF5: 30代 | AH5: 70件 | AI5: 4.6% | AJ5: 0件 | AL5: 0件 | AM5: =IFERROR(AL5/AL$21,"") ->  | AN5: 0件 | AO5: =IFERROR(AN5/AN$21,"") ->  | AP5: 0件 | AQ5: =IFERROR(AP5/AP$21,"") ->  | AR5: 0件 | AS5: =IFERROR(AR5/AR$21,"") ->  | AT5: 0件 | AU5: =IFERROR(AT5/AT$21,"") ->  | AV5: 0件 | AW5: =IFERROR(AV5/AV$21,"") ->  | AX5: 0件 | AY5: =IFERROR(AX5/AX$21,"") ->  | AZ5: 0件 | BA5: =IFERROR(AZ5/AZ$21,"") ->  | BB5: 0件 | BC5: =IFERROR(BB5/BB$21,"") ->  | BD5: 0件 | BE5: =IFERROR(BD5/BD$21,"") ->  | BF5: 70件 | BG5: 4.6%
A6: 男・50代 | B6: 10.8% | C6: 14.2% | D6: 16.7% | E6: 15.3% | AA6: 男・40代 | AC6: 都道府県 | AD6: 福井県 | AE6: =AE5 -> 男 | AF6: 40代 | AH6: 95件 | AI6: 6.2% | AJ6: 0件 | AL6: 0件 | AM6: =IFERROR(AL6/AL$21,"") ->  | AN6: 0件 | AO6: =IFERROR(AN6/AN$21,"") ->  | AP6: 0件 | AQ6: =IFERROR(AP6/AP$21,"") ->  | AR6: 0件 | AS6: =IFERROR(AR6/AR$21,"") ->  | AT6: 0件 | AU6: =IFERROR(AT6/AT$21,"") ->  | AV6: 0件 | AW6: =IFERROR(AV6/AV$21,"") ->  | AX6: 0件 | AY6: =IFERROR(AX6/AX$21,"") ->  | AZ6: 0件 | BA6: =IFERROR(AZ6/AZ$21,"") ->  | BB6: 0件 | BC6: =IFERROR(BB6/BB$21,"") ->  | BD6: 0件 | BE6: =IFERROR(BD6/BD$21,"") ->  | BF6: 95件 | BG6: 6.2%
A7: 男・60代 | B7: 12.7% | C7: 11.9% | D7: 11.5% | E7: 11.9% | AA7: 男・50代 | AC7: 都道府県 | AD7: 福井県 | AE7: =AE6 -> 男 | AF7: 50代 | AH7: 166件 | AI7: 10.8% | AJ7: 0件 | AL7: 0件 | AM7: =IFERROR(AL7/AL$21,"") ->  | AN7: 0件 | AO7: =IFERROR(AN7/AN$21,"") ->  | AP7: 0件 | AQ7: =IFERROR(AP7/AP$21,"") ->  | AR7: 0件 | AS7: =IFERROR(AR7/AR$21,"") ->  | AT7: 0件 | AU7: =IFERROR(AT7/AT$21,"") ->  | AV7: 0件 | AW7: =IFERROR(AV7/AV$21,"") ->  | AX7: 0件 | AY7: =IFERROR(AX7/AX$21,"") ->  | AZ7: 0件 | BA7: =IFERROR(AZ7/AZ$21,"") ->  | BB7: 0件 | BC7: =IFERROR(BB7/BB$21,"") ->  | BD7: 0件 | BE7: =IFERROR(BD7/BD$21,"") ->  | BF7: 166件 | BG7: 10.8%
A8: 男・70代 | B8: 2.3% | C8: 2.4% | D8: 2.9% | E8: 3.4% | AA8: 男・60代 | AC8: =AC7 -> 都道府県 | AD8: 福井県 | AE8: 男 | AF8: 60代 | AH8: 194件 | AI8: 12.7% | AJ8: 0件 | AL8: 0件 | AM8: =IFERROR(AL8/AL$21,"") ->  | AN8: 0件 | AO8: =IFERROR(AN8/AN$21,"") ->  | AP8: 0件 | AQ8: =IFERROR(AP8/AP$21,"") ->  | AR8: 0件 | AS8: =IFERROR(AR8/AR$21,"") ->  | AT8: 0件 | AU8: =IFERROR(AT8/AT$21,"") ->  | AV8: 0件 | AW8: =IFERROR(AV8/AV$21,"") ->  | AX8: 0件 | AY8: =IFERROR(AX8/AX$21,"") ->  | AZ8: 0件 | BA8: =IFERROR(AZ8/AZ$21,"") ->  | BB8: 0件 | BC8: =IFERROR(BB8/BB$21,"") ->  | BD8: 0件 | BE8: =IFERROR(BD8/BD$21,"") ->  | BF8: 194件 | BG8: 12.7%
A9: 男・80代以上 | B9: 0.0% | C9: 0.0% | D9: 0.0% | E9: 0.0% | AA9: 男・70代 | AC9: =AC8 -> 都道府県 | AD9: 福井県 | AE9: 男 | AF9: 70代 | AH9: 35件 | AI9: 2.3% | AJ9: 0件 | AL9: 0件 | AM9: =IFERROR(AL9/AL$21,"") ->  | AN9: 0件 | AO9: =IFERROR(AN9/AN$21,"") ->  | AP9: 0件 | AQ9: =IFERROR(AP9/AP$21,"") ->  | AR9: 0件 | AS9: =IFERROR(AR9/AR$21,"") ->  | AT9: 0件 | AU9: =IFERROR(AT9/AT$21,"") ->  | AV9: 0件 | AW9: =IFERROR(AV9/AV$21,"") ->  | AX9: 0件 | AY9: =IFERROR(AX9/AX$21,"") ->  | AZ9: 0件 | BA9: =IFERROR(AZ9/AZ$21,"") ->  | BB9: 0件 | BC9: =IFERROR(BB9/BB$21,"") ->  | BD9: 0件 | BE9: =IFERROR(BD9/BD$21,"") ->  | BF9: 35件 | BG9: 2.3%
A10: 女・10代以下 | B10: 0.0% | C10: 0.0% | D10: 0.0% | E10: 0.0% | AA10: 男・80代以上 | AC10: =AC9 -> 都道府県 | AD10: 福井県 | AE10: 男 | AF10: 80代以上 | AH10: 0件 | AI10: 0.0% | AJ10: 0件 | AL10: 0件 | AM10: =IFERROR(AL10/AL$21,"") ->  | AN10: 0件 | AO10: =IFERROR(AN10/AN$21,"") ->  | AP10: 0件 | AQ10: =IFERROR(AP10/AP$21,"") ->  | AR10: 0件 | AS10: =IFERROR(AR10/AR$21,"") ->  | AT10: 0件 | AU10: =IFERROR(AT10/AT$21,"") ->  | AV10: 0件 | AW10: =IFERROR(AV10/AV$21,"") ->  | AX10: 0件 | AY10: =IFERROR(AX10/AX$21,"") ->  | AZ10: 0件 | BA10: =IFERROR(AZ10/AZ$21,"") ->  | BB10: 0件 | BC10: =IFERROR(BB10/BB$21,"") ->  | BD10: 0件 | BE10: =IFERROR(BD10/BD$21,"") ->  | BF10: 0件 | BG10: 0.0%
A11: 女・20代 | B11: 4.5% | C11: 4.1% | D11: 3.4% | E11: 6.8% | AA11: 女・10代以下 | AC11: =AC10 -> 都道府県 | AD11: 福井県 | AE11: 女 | AF11: 10代以下 | AH11: 0件 | AI11: 0.0% | AJ11: 0件 | AL11: 0件 | AM11: =IFERROR(AL11/AL$21,"") ->  | AN11: 0件 | AO11: =IFERROR(AN11/AN$21,"") ->  | AP11: 0件 | AQ11: =IFERROR(AP11/AP$21,"") ->  | AR11: 0件 | AS11: =IFERROR(AR11/AR$21,"") ->  | AT11: 0件 | AU11: =IFERROR(AT11/AT$21,"") ->  | AV11: 0件 | AW11: =IFERROR(AV11/AV$21,"") ->  | AX11: 0件 | AY11: =IFERROR(AX11/AX$21,"") ->  | AZ11: 0件 | BA11: =IFERROR(AZ11/AZ$21,"") ->  | BB11: 0件 | BC11: =IFERROR(BB11/BB$21,"") ->  | BD11: 0件 | BE11: =IFERROR(BD11/BD$21,"") ->  | BF11: 0件 | BG11: 0.0%
A12: 女・30代 | B12: 6.6% | C12: 4.7% | D12: 2.9% | E12: 1.7% | AA12: 女・20代 | AC12: =AC11 -> 都道府県 | AD12: 福井県 | AE12: 女 | AF12: 20代 | AH12: 69件 | AI12: 4.5% | AJ12: 0件 | AL12: 0件 | AM12: =IFERROR(AL12/AL$21,"") ->  | AN12: 0件 | AO12: =IFERROR(AN12/AN$21,"") ->  | AP12: 0件 | AQ12: =IFERROR(AP12/AP$21,"") ->  | AR12: 0件 | AS12: =IFERROR(AR12/AR$21,"") ->  | AT12: 0件 | AU12: =IFERROR(AT12/AT$21,"") ->  | AV12: 0件 | AW12: =IFERROR(AV12/AV$21,"") ->  | AX12: 0件 | AY12: =IFERROR(AX12/AX$21,"") ->  | AZ12: 0件 | BA12: =IFERROR(AZ12/AZ$21,"") ->  | BB12: 0件 | BC12: =IFERROR(BB12/BB$21,"") ->  | BD12: 0件 | BE12: =IFERROR(BD12/BD$21,"") ->  | BF12: 69件 | BG12: 4.5%
A13: 女・40代 | B13: 11.8% | C13: 10.2% | D13: 13.2% | E13: 16.9% | AA13: 女・30代 | AC13: =AC12 -> 都道府県 | AD13: 福井県 | AE13: 女 | AF13: 30代 | AH13: 101件 | AI13: 6.6% | AJ13: 0件 | AL13: 0件 | AM13: =IFERROR(AL13/AL$21,"") ->  | AN13: 0件 | AO13: =IFERROR(AN13/AN$21,"") ->  | AP13: 0件 | AQ13: =IFERROR(AP13/AP$21,"") ->  | AR13: 0件 | AS13: =IFERROR(AR13/AR$21,"") ->  | AT13: 0件 | AU13: =IFERROR(AT13/AT$21,"") ->  | AV13: 0件 | AW13: =IFERROR(AV13/AV$21,"") ->  | AX13: 0件 | AY13: =IFERROR(AX13/AX$21,"") ->  | AZ13: 0件 | BA13: =IFERROR(AZ13/AZ$21,"") ->  | BB13: 0件 | BC13: =IFERROR(BB13/BB$21,"") ->  | BD13: 0件 | BE13: =IFERROR(BD13/BD$21,"") ->  | BF13: 101件 | BG13: 6.6%
A14: 女・50代 | B14: 18.7% | C14: 18.6% | D14: 20.1% | E14: 16.9% | AA14: 女・40代 | AC14: =AC13 -> 都道府県 | AD14: 福井県 | AE14: 女 | AF14: 40代 | AH14: 181件 | AI14: 11.8% | AJ14: 0件 | AL14: 0件 | AM14: =IFERROR(AL14/AL$21,"") ->  | AN14: 0件 | AO14: =IFERROR(AN14/AN$21,"") ->  | AP14: 0件 | AQ14: =IFERROR(AP14/AP$21,"") ->  | AR14: 0件 | AS14: =IFERROR(AR14/AR$21,"") ->  | AT14: 0件 | AU14: =IFERROR(AT14/AT$21,"") ->  | AV14: 0件 | AW14: =IFERROR(AV14/AV$21,"") ->  | AX14: 0件 | AY14: =IFERROR(AX14/AX$21,"") ->  | AZ14: 0件 | BA14: =IFERROR(AZ14/AZ$21,"") ->  | BB14: 0件 | BC14: =IFERROR(BB14/BB$21,"") ->  | BD14: 0件 | BE14: =IFERROR(BD14/BD$21,"") ->  | BF14: 181件 | BG14: 11.8%
A15: 女・60代 | B15: 13.8% | C15: 10.8% | D15: 9.2% | E15: 5.1% | AA15: 女・50代 | AC15: =AC14 -> 都道府県 | AD15: 福井県 | AE15: 女 | AF15: 50代 | AH15: 286件 | AI15: 18.7% | AJ15: 0件 | AL15: 0件 | AM15: =IFERROR(AL15/AL$21,"") ->  | AN15: 0件 | AO15: =IFERROR(AN15/AN$21,"") ->  | AP15: 0件 | AQ15: =IFERROR(AP15/AP$21,"") ->  | AR15: 0件 | AS15: =IFERROR(AR15/AR$21,"") ->  | AT15: 0件 | AU15: =IFERROR(AT15/AT$21,"") ->  | AV15: 0件 | AW15: =IFERROR(AV15/AV$21,"") ->  | AX15: 0件 | AY15: =IFERROR(AX15/AX$21,"") ->  | AZ15: 0件 | BA15: =IFERROR(AZ15/AZ$21,"") ->  | BB15: 0件 | BC15: =IFERROR(BB15/BB$21,"") ->  | BD15: 0件 | BE15: =IFERROR(BD15/BD$21,"") ->  | BF15: 286件 | BG15: 18.7%
A16: 女・70代 | B16: 1.8% | C16: 2.4% | D16: 1.7% | E16: 3.4% | AA16: 女・60代 | AC16: =AC15 -> 都道府県 | AD16: 福井県 | AE16: 女 | AF16: 60代 | AH16: 211件 | AI16: 13.8% | AJ16: 0件 | AL16: 0件 | AM16: =IFERROR(AL16/AL$21,"") ->  | AN16: 0件 | AO16: =IFERROR(AN16/AN$21,"") ->  | AP16: 0件 | AQ16: =IFERROR(AP16/AP$21,"") ->  | AR16: 0件 | AS16: =IFERROR(AR16/AR$21,"") ->  | AT16: 0件 | AU16: =IFERROR(AT16/AT$21,"") ->  | AV16: 0件 | AW16: =IFERROR(AV16/AV$21,"") ->  | AX16: 0件 | AY16: =IFERROR(AX16/AX$21,"") ->  | AZ16: 0件 | BA16: =IFERROR(AZ16/AZ$21,"") ->  | BB16: 0件 | BC16: =IFERROR(BB16/BB$21,"") ->  | BD16: 0件 | BE16: =IFERROR(BD16/BD$21,"") ->  | BF16: 211件 | BG16: 13.8%
A17: 女・80代以上 | B17: 0.0% | C17: 0.0% | D17: 0.0% | E17: 0.0% | AA17: 女・70代 | AC17: =AC16 -> 都道府県 | AD17: 福井県 | AE17: 女 | AF17: 70代 | AH17: 28件 | AI17: 1.8% | AJ17: 0件 | AL17: 0件 | AM17: =IFERROR(AL17/AL$21,"") ->  | AN17: 0件 | AO17: =IFERROR(AN17/AN$21,"") ->  | AP17: 0件 | AQ17: =IFERROR(AP17/AP$21,"") ->  | AR17: 0件 | AS17: =IFERROR(AR17/AR$21,"") ->  | AT17: 0件 | AU17: =IFERROR(AT17/AT$21,"") ->  | AV17: 0件 | AW17: =IFERROR(AV17/AV$21,"") ->  | AX17: 0件 | AY17: =IFERROR(AX17/AX$21,"") ->  | AZ17: 0件 | BA17: =IFERROR(AZ17/AZ$21,"") ->  | BB17: 0件 | BC17: =IFERROR(BB17/BB$21,"") ->  | BD17: 0件 | BE17: =IFERROR(BD17/BD$21,"") ->  | BF17: 28件 | BG17: 1.8%
A18: その他・無回答 | B18: =IFERROR(B20+B21,"") -> 3.7% | C18: =IFERROR(C20+C21,"") -> 3.1% | D18: 1.1% | E18: 1.7% | AA18: 女・80代以上 | AC18: =AC17 -> 都道府県 | AD18: 福井県 | AE18: 女 | AF18: 80代以上 | AH18: 0件 | AI18: 0.0% | AJ18: 0件 | AL18: 0件 | AM18: =IFERROR(AL18/AL$21,"") ->  | AN18: 0件 | AO18: =IFERROR(AN18/AN$21,"") ->  | AP18: 0件 | AQ18: =IFERROR(AP18/AP$21,"") ->  | AR18: 0件 | AS18: =IFERROR(AR18/AR$21,"") ->  | AT18: 0件 | AU18: =IFERROR(AT18/AT$21,"") ->  | AV18: 0件 | AW18: =IFERROR(AV18/AV$21,"") ->  | AX18: 0件 | AY18: =IFERROR(AX18/AX$21,"") ->  | AZ18: 0件 | BA18: =IFERROR(AZ18/AZ$21,"") ->  | BB18: 0件 | BC18: =IFERROR(BB18/BB$21,"") ->  | BD18: 0件 | BE18: =IFERROR(BD18/BD$21,"") ->  | BF18: 0件 | BG18: 0.0%
A19: （以下計算） | AA19: その他・<> | AC19: 都道府県 | AD19: 福井県 | AE19: その他 | AF19: <> | AH19: 7件 | AI19: 0.5% | AJ19: 0件 | AL19: 0件 | AM19: =IFERROR(AL19/AL$21,"") ->  | AN19: 0件 | AO19: =IFERROR(AN19/AN$21,"") ->  | AP19: 0件 | AQ19: =IFERROR(AP19/AP$21,"") ->  | AR19: 0件 | AS19: =IFERROR(AR19/AR$21,"") ->  | AT19: 0件 | AU19: =IFERROR(AT19/AT$21,"") ->  | AV19: 0件 | AW19: =IFERROR(AV19/AV$21,"") ->  | AX19: 0件 | AY19: =IFERROR(AX19/AX$21,"") ->  | AZ19: 0件 | BA19: =IFERROR(AZ19/AZ$21,"") ->  | BB19: 0件 | BC19: =IFERROR(BB19/BB$21,"") ->  | BD19: 0件 | BE19: =IFERROR(BD19/BD$21,"") ->  | BF19: 7件 | BG19: 0.5%
A20: その他・<> | B20: 0.5% | C20: 0.3% | D20: 0.6% | E20: 1.7% | AA20: 無回答・<> | AC20: =AC18 -> 都道府県 | AD20: =AD18 -> 福井県 | AE20: 無回答 | AF20: <> | AH20: 49件 | AI20: 3.2% | AJ20: 0件 | AL20: 0件 | AM20: =IFERROR(AL20/AL$21,"") ->  | AN20: 0件 | AO20: =IFERROR(AN20/AN$21,"") ->  | AP20: 0件 | AQ20: =IFERROR(AP20/AP$21,"") ->  | AR20: 0件 | AS20: =IFERROR(AR20/AR$21,"") ->  | AT20: 0件 | AU20: =IFERROR(AT20/AT$21,"") ->  | AV20: 0件 | AW20: =IFERROR(AV20/AV$21,"") ->  | AX20: 0件 | AY20: =IFERROR(AX20/AX$21,"") ->  | AZ20: 0件 | BA20: =IFERROR(AZ20/AZ$21,"") ->  | BB20: 0件 | BC20: =IFERROR(BB20/BB$21,"") ->  | BD20: 0件 | BE20: =IFERROR(BD20/BD$21,"") ->  | BF20: 49件 | BG20: 3.2%
A21: 無回答・<> | B21: 3.2% | C21: 2.7% | D21: 0.6% | E21: 0.0% | AG21: 合計 | AH21: =SUM(AH3:AH20) -> 1,531件 | AI21: 100.0% | AJ21: 0件 | AK21: 0.0% | AL21: 0件 | AM21: 0.0% | AN21: 0件 | AO21: 0.0% | AP21: 0件 | AQ21: 0.0% | AR21: 0件 | AS21: 0.0% | AT21: 0件 | AU21: 0.0% | AV21: 0件 | AW21: 0.0% | AX21: 0件 | AY21: 0.0% | AZ21: 0件 | BA21: 0.0% | BB21: 0件 | BC21: 0.0% | BD21: 0件 | BE21: 0.0% | BF21: =AH21+AJ21+AL21+AN21+AP21+AR21+AT21+AV21+AX21+AZ21+BB21+BD21 -> 1,531件 | BG21: =SUM(BG3:BG20) -> 100.0%
AC23: =【M】エリア!$J$2 -> 6分類 | AD23: =【M】エリア!$L$3 -> 福井市・永平寺町
AA24: =AE24&"・"&AF24 -> 男・10代以下 | AC24: =AC23 -> 6分類 | AD24: =AD23 -> 福井市・永平寺町 | AE24: =IF(AE3<>"",AE3,"") -> 男 | AF24: =IF(AF3<>"",AF3,"") -> 10代以下 | AH24: =IF(OR(IFERROR(FIND($AD24,"施設コード"),0)>0,$AF24=""), "", COUNTIFS( INDEX(rawデータ範囲, , MATCH($AH$1,表頭範囲, 0)),AH$2, INDEX(rawデータ範囲, , MATCH($AE$1,表頭範囲, 0)),$AE24, INDEX(rawデータ範囲, , MATCH($AF$1,表頭範囲, 0)),$AF24, INDEX(rawデータ範囲, , MATCH($AC24,表頭範囲, 0)),$AD24 ) ) -> 0件 | AI24: =IFERROR(AH24/AH$42,"") -> 0.0% | AJ24: =IF(OR(IFERROR(FIND($AD24,"施設コード"),0)>0,$AF24=""), "", COUNTIFS( INDEX(rawデータ範囲, , MATCH($AH$1,表頭範囲, 0)),AJ$2, INDEX(rawデータ範囲, , MATCH($AE$1,表頭範囲, 0)),$AE24, INDEX(rawデータ範囲, , MATCH($AF$1,表頭範囲, 0)),$AF24, INDEX(rawデータ範囲, , MATCH($AC24,表頭範囲, 0)),$AD24 ) ) -> 0件 | AK24: =IFERROR(AJ24/AJ$42,"") ->  | AL24: =IF(OR(IFERROR(FIND($AD24,"施設コード"),0)>0,$AF24=""), "", COUNTIFS( INDEX(rawデータ範囲, , MATCH($AH$1,表頭範囲, 0)),AL$2, INDEX(rawデータ範囲, , MATCH($AE$1,表頭範囲, 0)),$AE24, INDEX(rawデータ範囲, , MATCH($AF$1,表頭範囲, 0)),$AF24, INDEX(rawデータ範囲, , MATCH($AC24,表頭範囲, 0)),$AD24 ) ) -> 0件 | AM24: =IFERROR(AL24/AL$42,"") ->  | AN24: =IF(OR(IFERROR(FIND($AD24,"施設コード"),0)>0,$AF24=""), "", COUNTIFS( INDEX(rawデータ範囲, , MATCH($AH$1,表頭範囲, 0)),AN$2, INDEX(rawデータ範囲, , MATCH($AE$1,表頭範囲, 0)),$AE24, INDEX(rawデータ範囲, , MATCH($AF$1,表頭範囲, 0)),$AF24, INDEX(rawデータ範囲, , MATCH($AC24,表頭範囲, 0)),$AD24 ) ) -> 0件 | AO24: =IFERROR(AN24/AN$42,"") ->  | AP24: =IF(OR(IFERROR(FIND($AD24,"施設コード"),0)>0,$AF24=""), "", COUNTIFS( INDEX(rawデータ範囲, , MATCH($AH$1,表頭範囲, 0)),AP$2, INDEX(rawデータ範囲, , MATCH($AE$1,表頭範囲, 0)),$AE24, INDEX(rawデータ範囲, , MATCH($AF$1,表頭範囲, 0)),$AF24, INDEX(rawデータ範囲, , MATCH($AC24,表頭範囲, 0)),$AD24 ) ) -> 0件 | AQ24: =IFERROR(AP24/AP$42,"") ->  | AR24: =IF(OR(IFERROR(FIND($AD24,"施設コード"),0)>0,$AF24=""), "", COUNTIFS( INDEX(rawデータ範囲, , MATCH($AH$1,表頭範囲, 0)),AR$2, INDEX(rawデータ範囲, , MATCH($AE$1,表頭範囲, 0)),$AE24, INDEX(rawデータ範囲, , MATCH($AF$1,表頭範囲, 0)),$AF24, INDEX(rawデータ範囲, , MATCH($AC24,表頭範囲, 0)),$AD24 ) ) -> 0件 | AS24: =IFERROR(AR24/AR$42,"") ->  | AT24: =IF(OR(IFERROR(FIND($AD24,"施設コード"),0)>0,$AF24=""), "", COUNTIFS( INDEX(rawデータ範囲, , MATCH($AH$1,表頭範囲, 0)),AT$2, INDEX(rawデータ範囲, , MATCH($AE$1,表頭範囲, 0)),$AE24, INDEX(rawデータ範囲, , MATCH($AF$1,表頭範囲, 0)),$AF24, INDEX(rawデータ範囲, , MATCH($AC24,表頭範囲, 0)),$AD24 ) ) -> 0件 | AU24: =IFERROR(AT24/AT$42,"") ->  | AV24: =IF(OR(IFERROR(FIND($AD24,"施設コード"),0)>0,$AF24=""), "", COUNTIFS( INDEX(rawデータ範囲, , MATCH($AH$1,表頭範囲, 0)),AV$2, INDEX(rawデータ範囲, , MATCH($AE$1,表頭範囲, 0)),$AE24, INDEX(rawデータ範囲, , MATCH($AF$1,表頭範囲, 0)),$AF24, INDEX(rawデータ範囲, , MATCH($AC24,表頭範囲, 0)),$AD24 ) ) -> 0件 | AW24: =IFERROR(AV24/AV$42,"") ->  | AX24: =IF(OR(IFERROR(FIND($AD24,"施設コード"),0)>0,$AF24=""), "", COUNTIFS( INDEX(rawデータ範囲, , MATCH($AH$1,表頭範囲, 0)),AX$2, INDEX(rawデータ範囲, , MATCH($AE$1,表頭範囲, 0)),$AE24, INDEX(rawデータ範囲, , MATCH($AF$1,表頭範囲, 0)),$AF24, INDEX(rawデータ範囲, , MATCH($AC24,表頭範囲, 0)),$AD24 ) ) -> 0件 | AY24: =IFERROR(AX24/AX$42,"") ->  | AZ24: =IF(OR(IFERROR(FIND($AD24,"施設コード"),0)>0,$AF24=""), "", COUNTIFS( INDEX(rawデータ範囲, , MATCH($AH$1,表頭範囲, 0)),AZ$2, INDEX(rawデータ範囲, , MATCH($AE$1,表頭範囲, 0)),$AE24, INDEX(rawデータ範囲, , MATCH($AF$1,表頭範囲, 0)),$AF24, INDEX(rawデータ範囲, , MATCH($AC24,表頭範囲, 0)),$AD24 ) ) -> 0件 | BA24: =IFERROR(AZ24/AZ$42,"") ->  | BB24: =IF(OR(IFERROR(FIND($AD24,"施設コード"),0)>0,$AF24=""), "", COUNTIFS( INDEX(rawデータ範囲, , MATCH($AH$1,表頭範囲, 0)),BB$2, INDEX(rawデータ範囲, , MATCH($AE$1,表頭範囲, 0)),$AE24, INDEX(rawデータ範囲, , MATCH($AF$1,表頭範囲, 0)),$AF24, INDEX(rawデータ範囲, , MATCH($AC24,表頭範囲, 0)),$AD24 ) ) -> 0件 | BC24: =IFERROR(BB24/BB$42,"") ->  | BD24: =IF(OR(IFERROR(FIND($AD24,"施設コード"),0)>0,$AF24=""), "", COUNTIFS( INDEX(rawデータ範囲, , MATCH($AH$1,表頭範囲, 0)),BD$2, INDEX(rawデータ範囲, , MATCH($AE$1,表頭範囲, 0)),$AE24, INDEX(rawデータ範囲, , MATCH($AF$1,表頭範囲, 0)),$AF24, INDEX(rawデータ範囲, , MATCH($AC24,表頭範囲, 0)),$AD24 ) ) -> 0件 | BE24: =IFERROR(BD24/BD$42,"") ->  | BF24: =IFERROR(AH24+AJ24+AL24+AN24+AP24+AR24+AT24+AV24+AX24+AZ24+BB24+BD24,"") -> 0件 | BG24: =IFERROR(BF24/BF$42,"") -> 0.0%
AA25: =AE25&"・"&AF25 -> 男・20代 | AC25: =AC24 -> 6分類 | AD25: 福井市・永平寺町 | AE25: =IF(AE4<>"",AE4,"") -> 男 | AF25: 20代 | AH25: 11件 | AI25: =IFERROR(AH25/AH$42,"") -> 3.7% | AJ25: 0件 | AL25: 0件 | AM25: =IFERROR(AL25/AL$42,"") ->  | AN25: 0件 | AO25: =IFERROR(AN25/AN$42,"") ->  | AP25: 0件 | AQ25: =IFERROR(AP25/AP$42,"") ->  | AR25: 0件 | AS25: =IFERROR(AR25/AR$42,"") ->  | AT25: 0件 | AU25: =IFERROR(AT25/AT$42,"") ->  | AV25: 0件 | AW25: =IFERROR(AV25/AV$42,"") ->  | AX25: 0件 | AY25: =IFERROR(AX25/AX$42,"") ->  | AZ25: 0件 | BA25: =IFERROR(AZ25/AZ$42,"") ->  | BB25: 0件 | BC25: =IFERROR(BB25/BB$42,"") ->  | BD25: 0件 | BE25: =IFERROR(BD25/BD$42,"") ->  | BF25: =IFERROR(AH25+AJ25+AL25+AN25+AP25+AR25+AT25+AV25+AX25+AZ25+BB25+BD25,"") -> 11件 | BG25: =IFERROR(BF25/BF$42,"") -> 3.7%
AA26: 男・30代 | AC26: 6分類 | AD26: 福井市・永平寺町 | AE26: =IF(AE5<>"",AE5,"") -> 男 | AF26: 30代 | AH26: 12件 | AI26: 4.1% | AJ26: 0件 | AL26: 0件 | AM26: =IFERROR(AL26/AL$42,"") ->  | AN26: 0件 | AO26: =IFERROR(AN26/AN$42,"") ->  | AP26: 0件 | AQ26: =IFERROR(AP26/AP$42,"") ->  | AR26: 0件 | AS26: =IFERROR(AR26/AR$42,"") ->  | AT26: 0件 | AU26: =IFERROR(AT26/AT$42,"") ->  | AV26: 0件 | AW26: =IFERROR(AV26/AV$42,"") ->  | AX26: 0件 | AZ26: 0件 | BB26: 0件 | BD26: 0件 | BF26: 12件 | BG26: 4.1%
AA27: 男・40代 | AC27: 6分類 | AD27: 福井市・永平寺町 | AE27: =IF(AE6<>"",AE6,"") -> 男 | AF27: 40代 | AH27: 29件 | AI27: 9.8% | AJ27: 0件 | AL27: 0件 | AM27: =IFERROR(AL27/AL$42,"") ->  | AN27: 0件 | AO27: =IFERROR(AN27/AN$42,"") ->  | AP27: 0件 | AQ27: =IFERROR(AP27/AP$42,"") ->  | AR27: 0件 | AS27: =IFERROR(AR27/AR$42,"") ->  | AT27: 0件 | AU27: =IFERROR(AT27/AT$42,"") ->  | AV27: 0件 | AW27: =IFERROR(AV27/AV$42,"") ->  | AX27: 0件 | AZ27: 0件 | BB27: 0件 | BD27: 0件 | BF27: 29件 | BG27: 9.8%
AA28: 男・50代 | AC28: 6分類 | AD28: 福井市・永平寺町 | AE28: =IF(AE7<>"",AE7,"") -> 男 | AF28: 50代 | AH28: 42件 | AI28: 14.2% | AJ28: 0件 | AL28: 0件 | AM28: =IFERROR(AL28/AL$42,"") ->  | AN28: 0件 | AO28: =IFERROR(AN28/AN$42,"") ->  | AP28: 0件 | AQ28: =IFERROR(AP28/AP$42,"") ->  | AR28: 0件 | AS28: =IFERROR(AR28/AR$42,"") ->  | AT28: 0件 | AU28: =IFERROR(AT28/AT$42,"") ->  | AV28: 0件 | AW28: =IFERROR(AV28/AV$42,"") ->  | AX28: 0件 | AZ28: 0件 | BB28: 0件 | BD28: 0件 | BF28: 42件 | BG28: 14.2%
AA29: 男・60代 | AC29: =AC28 -> 6分類 | AD29: 福井市・永平寺町 | AE29: =IF(AE8<>"",AE8,"") -> 男 | AF29: 60代 | AH29: 35件 | AI29: 11.9% | AJ29: 0件 | AL29: 0件 | AM29: =IFERROR(AL29/AL$42,"") ->  | AN29: 0件 | AO29: =IFERROR(AN29/AN$42,"") ->  | AP29: 0件 | AQ29: =IFERROR(AP29/AP$42,"") ->  | AR29: 0件 | AS29: =IFERROR(AR29/AR$42,"") ->  | AT29: 0件 | AU29: =IFERROR(AT29/AT$42,"") ->  | AV29: 0件 | AW29: =IFERROR(AV29/AV$42,"") ->  | AX29: 0件 | AZ29: 0件 | BB29: 0件 | BD29: 0件 | BF29: 35件 | BG29: 11.9%
AA30: 男・70代 | AC30: =AC29 -> 6分類 | AD30: 福井市・永平寺町 | AE30: =IF(AE9<>"",AE9,"") -> 男 | AF30: 70代 | AH30: 7件 | AI30: 2.4% | AJ30: 0件 | AL30: 0件 | AM30: =IFERROR(AL30/AL$42,"") ->  | AN30: 0件 | AO30: =IFERROR(AN30/AN$42,"") ->  | AP30: 0件 | AQ30: =IFERROR(AP30/AP$42,"") ->  | AR30: 0件 | AS30: =IFERROR(AR30/AR$42,"") ->  | AT30: 0件 | AU30: =IFERROR(AT30/AT$42,"") ->  | AV30: 0件 | AW30: =IFERROR(AV30/AV$42,"") ->  | AX30: 0件 | AZ30: 0件 | BB30: 0件 | BD30: 0件 | BF30: 7件 | BG30: 2.4%
AA31: 男・80代以上 | AC31: =AC30 -> 6分類 | AD31: 福井市・永平寺町 | AE31: =IF(AE10<>"",AE10,"") -> 男 | AF31: 80代以上 | AH31: 0件 | AI31: 0.0% | AJ31: 0件 | AL31: 0件 | AM31: =IFERROR(AL31/AL$42,"") ->  | AN31: 0件 | AO31: =IFERROR(AN31/AN$42,"") ->  | AP31: 0件 | AQ31: =IFERROR(AP31/AP$42,"") ->  | AR31: 0件 | AS31: =IFERROR(AR31/AR$42,"") ->  | AT31: 0件 | AU31: =IFERROR(AT31/AT$42,"") ->  | AV31: 0件 | AW31: =IFERROR(AV31/AV$42,"") ->  | AX31: 0件 | AZ31: 0件 | BB31: 0件 | BD31: 0件 | BF31: 0件 | BG31: 0.0%
AA32: 女・10代以下 | AC32: =AC31 -> 6分類 | AD32: 福井市・永平寺町 | AE32: =IF(AE11<>"",AE11,"") -> 女 | AF32: 10代以下 | AH32: 0件 | AI32: 0.0% | AJ32: 0件 | AL32: 0件 | AM32: =IFERROR(AL32/AL$42,"") ->  | AN32: 0件 | AO32: =IFERROR(AN32/AN$42,"") ->  | AP32: 0件 | AQ32: =IFERROR(AP32/AP$42,"") ->  | AR32: 0件 | AS32: =IFERROR(AR32/AR$42,"") ->  | AT32: 0件 | AU32: =IFERROR(AT32/AT$42,"") ->  | AV32: 0件 | AW32: =IFERROR(AV32/AV$42,"") ->  | AX32: 0件 | AZ32: 0件 | BB32: 0件 | BD32: 0件 | BF32: 0件 | BG32: 0.0%
AA33: 女・20代 | AC33: =AC32 -> 6分類 | AD33: 福井市・永平寺町 | AE33: =IF(AE12<>"",AE12,"") -> 女 | AF33: 20代 | AH33: 12件 | AI33: 4.1% | AJ33: 0件 | AL33: 0件 | AM33: =IFERROR(AL33/AL$42,"") ->  | AN33: 0件 | AO33: =IFERROR(AN33/AN$42,"") ->  | AP33: 0件 | AQ33: =IFERROR(AP33/AP$42,"") ->  | AR33: 0件 | AS33: =IFERROR(AR33/AR$42,"") ->  | AT33: 0件 | AU33: =IFERROR(AT33/AT$42,"") ->  | AV33: 0件 | AW33: =IFERROR(AV33/AV$42,"") ->  | AX33: 0件 | AZ33: 0件 | BB33: 0件 | BD33: 0件 | BF33: 12件 | BG33: 4.1%
AA34: 女・30代 | AC34: =AC33 -> 6分類 | AD34: 福井市・永平寺町 | AE34: =IF(AE13<>"",AE13,"") -> 女 | AF34: 30代 | AH34: 14件 | AI34: 4.7% | AJ34: 0件 | AL34: 0件 | AM34: =IFERROR(AL34/AL$42,"") ->  | AN34: 0件 | AO34: =IFERROR(AN34/AN$42,"") ->  | AP34: 0件 | AQ34: =IFERROR(AP34/AP$42,"") ->  | AR34: 0件 | AS34: =IFERROR(AR34/AR$42,"") ->  | AT34: 0件 | AU34: =IFERROR(AT34/AT$42,"") ->  | AV34: 0件 | AW34: =IFERROR(AV34/AV$42,"") ->  | AX34: 0件 | AZ34: 0件 | BB34: 0件 | BD34: 0件 | BF34: 14件 | BG34: 4.7%
AA35: 女・40代 | AC35: =AC34 -> 6分類 | AD35: 福井市・永平寺町 | AE35: =IF(AE14<>"",AE14,"") -> 女 | AF35: 40代 | AH35: 30件 | AI35: 10.2% | AJ35: 0件 | AL35: 0件 | AM35: =IFERROR(AL35/AL$42,"") ->  | AN35: 0件 | AO35: =IFERROR(AN35/AN$42,"") ->  | AP35: 0件 | AQ35: =IFERROR(AP35/AP$42,"") ->  | AR35: 0件 | AS35: =IFERROR(AR35/AR$42,"") ->  | AT35: 0件 | AU35: =IFERROR(AT35/AT$42,"") ->  | AV35: 0件 | AW35: =IFERROR(AV35/AV$42,"") ->  | AX35: 0件 | AZ35: 0件 | BB35: 0件 | BD35: 0件 | BF35: 30件 | BG35: 10.2%
AA36: 女・50代 | AC36: =AC35 -> 6分類 | AD36: 福井市・永平寺町 | AE36: =IF(AE15<>"",AE15,"") -> 女 | AF36: 50代 | AH36: 55件 | AI36: 18.6% | AJ36: 0件 | AL36: 0件 | AM36: =IFERROR(AL36/AL$42,"") ->  | AN36: 0件 | AO36: =IFERROR(AN36/AN$42,"") ->  | AP36: 0件 | AQ36: =IFERROR(AP36/AP$42,"") ->  | AR36: 0件 | AS36: =IFERROR(AR36/AR$42,"") ->  | AT36: 0件 | AU36: =IFERROR(AT36/AT$42,"") ->  | AV36: 0件 | AW36: =IFERROR(AV36/AV$42,"") ->  | AX36: 0件 | AZ36: 0件 | BB36: 0件 | BD36: 0件 | BF36: 55件 | BG36: 18.6%
AA37: 女・60代 | AC37: =AC36 -> 6分類 | AD37: 福井市・永平寺町 | AE37: =IF(AE16<>"",AE16,"") -> 女 | AF37: 60代 | AH37: 32件 | AI37: 10.8% | AJ37: 0件 | AL37: 0件 | AM37: =IFERROR(AL37/AL$42,"") ->  | AN37: 0件 | AO37: =IFERROR(AN37/AN$42,"") ->  | AP37: 0件 | AQ37: =IFERROR(AP37/AP$42,"") ->  | AR37: 0件 | AS37: =IFERROR(AR37/AR$42,"") ->  | AT37: 0件 | AU37: =IFERROR(AT37/AT$42,"") ->  | AV37: 0件 | AW37: =IFERROR(AV37/AV$42,"") ->  | AX37: 0件 | AZ37: 0件 | BB37: 0件 | BD37: 0件 | BF37: 32件 | BG37: 10.8%
AA38: 女・70代 | AC38: =AC37 -> 6分類 | AD38: 福井市・永平寺町 | AE38: =IF(AE17<>"",AE17,"") -> 女 | AF38: 70代 | AH38: 7件 | AI38: 2.4% | AJ38: 0件 | AL38: 0件 | AM38: =IFERROR(AL38/AL$42,"") ->  | AN38: 0件 | AO38: =IFERROR(AN38/AN$42,"") ->  | AP38: 0件 | AQ38: =IFERROR(AP38/AP$42,"") ->  | AR38: 0件 | AS38: =IFERROR(AR38/AR$42,"") ->  | AT38: 0件 | AU38: =IFERROR(AT38/AT$42,"") ->  | AV38: 0件 | AW38: =IFERROR(AV38/AV$42,"") ->  | AX38: 0件 | AZ38: 0件 | BB38: 0件 | BD38: 0件 | BF38: 7件 | BG38: 2.4%
AA39: 女・80代以上 | AC39: =AC38 -> 6分類 | AD39: 福井市・永平寺町 | AE39: =IF(AE18<>"",AE18,"") -> 女 | AF39: 80代以上 | AH39: 0件 | AI39: 0.0% | AJ39: 0件 | AL39: 0件 | AM39: =IFERROR(AL39/AL$42,"") ->  | AN39: 0件 | AO39: =IFERROR(AN39/AN$42,"") ->  | AP39: 0件 | AQ39: =IFERROR(AP39/AP$42,"") ->  | AR39: 0件 | AS39: =IFERROR(AR39/AR$42,"") ->  | AT39: 0件 | AU39: =IFERROR(AT39/AT$42,"") ->  | AV39: 0件 | AW39: =IFERROR(AV39/AV$42,"") ->  | AX39: 0件 | AZ39: 0件 | BB39: 0件 | BD39: 0件 | BF39: 0件 | BG39: 0.0%
AA40: その他・<> | AC40: 6分類 | AD40: 福井市・永平寺町 | AE40: =IF(AE19<>"",AE19,"") -> その他 | AF40: <> | AH40: 1件 | AI40: 0.3% | AJ40: 0件 | AL40: 0件 | AM40: =IFERROR(AL40/AL$42,"") ->  | AN40: 0件 | AO40: =IFERROR(AN40/AN$42,"") ->  | AP40: 0件 | AQ40: =IFERROR(AP40/AP$42,"") ->  | AR40: 0件 | AS40: =IFERROR(AR40/AR$42,"") ->  | AT40: 0件 | AU40: =IFERROR(AT40/AT$42,"") ->  | AV40: 0件 | AW40: =IFERROR(AV40/AV$42,"") ->  | AX40: 0件 | AZ40: 0件 | BB40: 0件 | BD40: 0件 | BF40: 1件 | BG40: 0.3%
AA41: 無回答・<> | AC41: =AC39 -> 6分類 | AD41: =AD39 -> 福井市・永平寺町 | AE41: =IF(AE20<>"",AE20,"") -> 無回答 | AF41: <> | AH41: 8件 | AI41: 2.7% | AJ41: 0件 | AL41: 0件 | AM41: =IFERROR(AL41/AL$42,"") ->  | AN41: 0件 | AO41: =IFERROR(AN41/AN$42,"") ->  | AP41: 0件 | AQ41: =IFERROR(AP41/AP$42,"") ->  | AR41: 0件 | AS41: =IFERROR(AR41/AR$42,"") ->  | AT41: 0件 | AU41: =IFERROR(AT41/AT$42,"") ->  | AV41: 0件 | AW41: =IFERROR(AV41/AV$42,"") ->  | AX41: 0件 | AZ41: 0件 | BB41: 0件 | BD41: 0件 | BF41: 8件 | BG41: 2.7%
AG42: 合計 | AH42: =SUM(AH24:AH41) -> 295件 | AI42: 100.0% | AJ42: 0件 | AK42: 0.0% | AL42: 0件 | AM42: 0.0% | AN42: 0件 | AO42: 0.0% | AP42: 0件 | AQ42: 0.0% | AR42: 0件 | AS42: 0.0% | AT42: 0件 | AU42: 0.0% | AV42: 0件 | AW42: 0.0% | AX42: 0件 | AY42: 0.0% | AZ42: 0件 | BA42: 0.0% | BB42: 0件 | BC42: 0.0% | BD42: 0件 | BE42: 0.0% | BF42: 295件 | BG42: 100.0%
AC44: 市町村 | AD44: =【M】エリア!$L$4 -> 福井市
